Workbook

Sheet Home
B1: =uxb_works!$B$92 -> Digital Cities Index | C1: =uxb_works!$B$92 -> Digital Cities Index | BA1: 0 | BB1: 0

Sheet Contents
C1: =uxb_works!B92 -> Digital Cities Index | BA1: 1 | BB1: 0 | BC1: 1 | BD1: 2
C10: Table of Contents
F11: Click name below to view
D12: =uxb_works!C94 -> RESULTS | F12: =uxb_works!B95 -> SUMMARY | H12: Shows the overall and category scores and rankings for all cities
F13: =uxb_works!B96 -> INDICATOR RANKING | H13: Offers a more detailed description of the scoring for each indicator
F14: =uxb_works!B104 -> CITY PROFILE | H14: Review indicators for a single city
F15: =uxb_works!B97 -> CITY SCORECARD | H15: View and compare city results
F16: =uxb_works!B98 -> CITY COMPARE | H16: Allows comparisons for two cities against any filter group through tables, spider charts and bar charts
F17: =uxb_works!B103 -> REGION COMPARE | H17: Allows comparisons for all filter groups and overlaps.
D19: =uxb_works!C95 -> INSIGHTS & ANALYTICS | F19: =uxb_works!B99 -> SCATTER | H19: Displays scatter plots between indicators
F20: =uxb_works!B100 -> CORRELATIONS | H20: Provides correlation analysis between indicators
D22: =uxb_works!C96 -> SCORES & WEIGHTS | F22: =uxb_works!B101 -> DATA / SCORES | H22: Table of data or normalised scores for each indicator and country
F23: =uxb_works!B102 -> WEIGHTS | H23: Create and save your own weight profiles

Sheet Summary1
A1: =uxb_works!$B$92 -> Digital Cities Index | BA1: 1 | BB1: 1
D6: =uxb_works!$C$5 -> The active weight profile has been changed from its default setting
D8: =uxb_works!$D$67 -> There are 30 cities in the active filter set
B13: =COUNTIF(B15:B45,"<>0") -> 31 | D13: =iSummary1!R6 -> OVERALL SCORE | I13: =COUNTIF(I15:I45,"<>0") -> 31 | K13: =iSummary1!AM6 -> 1) CONNECTIVITY | R13: =iSummary1!BH6 -> 2) SERVICES | Y13: =iSummary1!CC6 -> 3) CULTURE | AF13: =iSummary1!CX6 -> 4) SUSTAINABILITY
B15: =iSummary1!Q8 -> 1 | C15: =IF(B15=0,0,IF(G15=-100,5,IF(G15<=G$49,1,IF(G15<=G$50,2,IF(G15<=G$51,3,4))))) -> 4 | E15: =iSummary1!R8 -> 1 | F15: =iSummary1!S8 -> Copenhagen | G15: =iSummary1!T8 -> 81.5 | I15: =iSummary1!AL8 -> 1 | J15: =IF(I15=0,0,IF(N15=-100,5,IF(N15<=N$49,1,IF(N15<=N$50,2,IF(N15<=N$51,3,4))))) -> 4 | L15: =iSummary1!AM8 -> 1 | M15: =iSummary1!AN8 -> Copenhagen | N15: =iSummary1!AO8 -> 85.4 | P15: =iSummary1!BG8 -> 1 | Q15: =IF(P15=0,0,IF(U15=-100,5,IF(U15<=U$49,1,IF(U15<=U$50,2,IF(U15<=U$51,3,4))))) -> 4 | S15: =iSummary1!BH8 -> 1 | T15: =iSummary1!BI8 -> Copenhagen | U15: =iSummary1!BJ8 -> 79.3 | W15: =iSummary1!CB8 -> 1 | X15: =IF(W15=0,0,IF(AB15=-100,5,IF(AB15<=AB$49,1,IF(AB15<=AB$50,2,IF(AB15<=AB$51,3,4))))) -> 3 | Z15: =iSummary1!CC8 -> 1 | AA15: =iSummary1!CD8 -> New York | AB15: =iSummary1!CE8 -> 73.6 | AD15: =iSummary1!CW8 -> 1 | AE15: =IF(AD15=0,0,IF(AI15=-100,5,IF(AI15<=AI$49,1,IF(AI15<=AI$50,2,IF(AI15<=AI$51,3,4))))) -> 4 | AG15: =iSummary1!CX8 -> 1 | AH15: =iSummary1!CY8 -> Copenhagen | AI15: =iSummary1!CZ8 -> 92.6
B16: =iSummary1!Q9 -> 1 | C16: 3 | E16: =iSummary1!R9 -> 2 | F16: =iSummary1!S9 -> Amsterdam | G16: =iSummary1!T9 -> 74.6 | I16: =iSummary1!AL9 -> 1 | J16: 4 | L16: =iSummary1!AM9 -> 2 | M16: =iSummary1!AN9 -> Singapore | N16: =iSummary1!AO9 -> 83.1 | P16: =iSummary1!BG9 -> 1 | Q16: 3 | S16: =iSummary1!BH9 -> 2 | T16: =iSummary1!BI9 -> Berlin | U16: =iSummary1!BJ9 -> 73.8 | W16: =iSummary1!CB9 -> 1 | X16: 3 | Z16: =iSummary1!CC9 -> 2 | AA16: =iSummary1!CD9 -> Washington DC | AB16: =iSummary1!CE9 -> 69.2 | AD16: =iSummary1!CW9 -> 1 | AE16: 4 | AG16: =iSummary1!CX9 -> 2 | AH16: =iSummary1!CY9 -> Seoul | AI16: =iSummary1!CZ9 -> 92.1
B17: =iSummary1!Q10 -> 1 | C17: 3 | E17: =iSummary1!R10 -> 3 | F17: =iSummary1!S10 -> Beijing | G17: =iSummary1!T10 -> 73.7 | I17: =iSummary1!AL10 -> 1 | J17: 4 | L17: =iSummary1!AM10 -> 3 | M17: =iSummary1!AN10 -> Zurich | N17: =iSummary1!AO10 -> 81 | P17: =iSummary1!BG10 -> 1 | Q17: 3 | S17: =iSummary1!BH10 -> 3 | T17: =iSummary1!BI10 -> London | U17: =iSummary1!BJ10 -> 73.5 | W17: =iSummary1!CB10 -> 1 | X17: 3 | Z17: =iSummary1!CC10 -> 3 | AA17: =iSummary1!CD10 -> Toronto | AB17: =iSummary1!CE10 -> 68.4 | AD17: =iSummary1!CW10 -> 1 | AE17: 4 | AG17: =iSummary1!CX10 -> 3 | AH17: =iSummary1!CY10 -> Toronto | AI17: =iSummary1!CZ10 -> 90.5
B18: =iSummary1!Q11 -> 1 | C18: =IF(B18=0,0,IF(G18=-100,5,IF(G18<=G$49,1,IF(G18<=G$50,2,IF(G18<=G$51,3,4))))) -> 3 | E18: =iSummary1!R11 -> =4 | F18: =iSummary1!S11 -> London | G18: =iSummary1!T11 -> 73.6 | I18: =iSummary1!AL11 -> 1 | J18: =IF(I18=0,0,IF(N18=-100,5,IF(N18<=N$49,1,IF(N18<=N$50,2,IF(N18<=N$51,3,4))))) -> 4 | L18: =iSummary1!AM11 -> 4 | M18: =iSummary1!AN11 -> Beijing | N18: =iSummary1!AO11 -> 80.7 | P18: =iSummary1!BG11 -> 1 | Q18: =IF(P18=0,0,IF(U18=-100,5,IF(U18<=U$49,1,IF(U18<=U$50,2,IF(U18<=U$51,3,4))))) -> 3 | S18: =iSummary1!BH11 -> 4 | T18: =iSummary1!BI11 -> Amsterdam | U18: =iSummary1!BJ11 -> 73.2 | W18: =iSummary1!CB11 -> 1 | X18: =IF(W18=0,0,IF(AB18=-100,5,IF(AB18<=AB$49,1,IF(AB18<=AB$50,2,IF(AB18<=AB$51,3,4))))) -> 3 | Z18: =iSummary1!CC11 -> 4 | AA18: =iSummary1!CD11 -> Copenhagen | AB18: =iSummary1!CE11 -> 67.9 | AD18: =iSummary1!CW11 -> 1 | AE18: 4 | AG18: =iSummary1!CX11 -> 4 | AH18: =iSummary1!CY11 -> Barcelona | AI18: =iSummary1!CZ11 -> 87.3
B19: =iSummary1!Q12 -> 1 | C19: 3 | E19: =iSummary1!R12 -> =4 | F19: =iSummary1!S12 -> Seoul | G19: =iSummary1!T12 -> 73.6 | I19: =iSummary1!AL12 -> 1 | J19: 4 | L19: =iSummary1!AM12 -> 5 | M19: =iSummary1!AN12 -> Sydney | N19: =iSummary1!AO12 -> 78 | P19: =iSummary1!BG12 -> 1 | Q19: 3 | S19: =iSummary1!BH12 -> 5 | T19: =iSummary1!BI12 -> Singapore | U19: =iSummary1!BJ12 -> 72.7 | W19: =iSummary1!CB12 -> 1 | X19: 3 | Z19: =iSummary1!CC12 -> =5 | AA19: =iSummary1!CD12 -> Dallas | AB19: =iSummary1!CE12 -> 67.5 | AD19: =iSummary1!CW12 -> 1 | AE19: 4 | AG19: =iSummary1!CX12 -> 5 | AH19: =iSummary1!CY12 -> Beijing | AI19: =iSummary1!CZ12 -> 86.8
B20: =iSummary1!Q13 -> 1 | C20: 3 | E20: =iSummary1!R13 -> 6 | F20: =iSummary1!S13 -> New York | G20: =iSummary1!T13 -> 73.3 | I20: =iSummary1!AL13 -> 1 | J20: 4 | L20: =iSummary1!AM13 -> 6 | M20: =iSummary1!AN13 -> Amsterdam | N20: =iSummary1!AO13 -> 77 | P20: =iSummary1!BG13 -> 1 | Q20: 3 | S20: =iSummary1!BH13 -> 6 | T20: =iSummary1!BI13 -> Paris | U20: =iSummary1!BJ13 -> 72.5 | W20: =iSummary1!CB13 -> 1 | X20: 3 | Z20: =iSummary1!CC13 -> =5 | AA20: =iSummary1!CD13 -> Seoul | AB20: =iSummary1!CE13 -> 67.5 | AD20: =iSummary1!CW13 -> 1 | AE20: 4 | AG20: =iSummary1!CX13 -> 6 | AH20: =iSummary1!CY13 -> Amsterdam | AI20: =iSummary1!CZ13 -> 85.4
B21: =iSummary1!Q14 -> 1 | C21: 3 | E21: =iSummary1!R14 -> 7 | F21: =iSummary1!S14 -> Sydney | G21: =iSummary1!T14 -> 72.6 | I21: =iSummary1!AL14 -> 1 | J21: 4 | L21: =iSummary1!AM14 -> 7 | M21: =iSummary1!AN14 -> Hong Kong | N21: =iSummary1!AO14 -> 76.6 | P21: =iSummary1!BG14 -> 1 | Q21: 3 | S21: =iSummary1!BH14 -> 7 | T21: =iSummary1!BI14 -> Barcelona | U21: =iSummary1!BJ14 -> 72 | W21: =iSummary1!CB14 -> 1 | X21: 3 | Z21: =iSummary1!CC14 -> 7 | AA21: =iSummary1!CD14 -> Auckland | AB21: =iSummary1!CE14 -> 67 | AD21: =iSummary1!CW14 -> 1 | AE21: 4 | AG21: =iSummary1!CX14 -> 7 | AH21: =iSummary1!CY14 -> London | AI21: =iSummary1!CZ14 -> 85.2
B22: =iSummary1!Q15 -> 1 | C22: 3 | E22: =iSummary1!R15 -> 8 | F22: =iSummary1!S15 -> Singapore | G22: =iSummary1!T15 -> 71.4 | I22: =iSummary1!AL15 -> 1 | J22: 4 | L22: =iSummary1!AM15 -> 8 | M22: =iSummary1!AN15 -> New York | N22: =iSummary1!AO15 -> 76.2 | P22: =iSummary1!BG15 -> 1 | Q22: 3 | S22: =iSummary1!BH15 -> 8 | T22: =iSummary1!BI15 -> Sydney | U22: =iSummary1!BJ15 -> 70.8 | W22: =iSummary1!CB15 -> 1 | X22: 3 | Z22: =iSummary1!CC15 -> 8 | AA22: =iSummary1!CD15 -> London | AB22: =iSummary1!CE15 -> 65.4 | AD22: =iSummary1!CW15 -> 1 | AE22: 4 | AG22: =iSummary1!CX15 -> 8 | AH22: =iSummary1!CY15 -> Sydney | AI22: =iSummary1!CZ15 -> 78.6
B23: =iSummary1!Q16 -> 1 | C23: 3 | E23: =iSummary1!R16 -> 9 | F23: =iSummary1!S16 -> Washington DC | G23: =iSummary1!T16 -> 71.2 | I23: =iSummary1!AL16 -> 1 | J23: 4 | L23: =iSummary1!AM16 -> 9 | M23: =iSummary1!AN16 -> Washington DC | N23: =iSummary1!AO16 -> 75.6 | P23: =iSummary1!BG16 -> 1 | Q23: 3 | S23: =iSummary1!BH16 -> 9 | T23: =iSummary1!BI16 -> Hong Kong | U23: =iSummary1!BJ16 -> 70.2 | W23: =iSummary1!CB16 -> 1 | X23: 3 | Z23: =iSummary1!CC16 -> 9 | AA23: =iSummary1!CD16 -> Dubai | AB23: =iSummary1!CE16 -> 65.2 | AD23: =iSummary1!CW16 -> 1 | AE23: 4 | AG23: =iSummary1!CX16 -> 9 | AH23: =iSummary1!CY16 -> New York | AI23: =iSummary1!CZ16 -> 76.7
B24: =iSummary1!Q17 -> 1 | C24: 3 | E24: =iSummary1!R17 -> 10 | F24: =iSummary1!S17 -> Paris | G24: =iSummary1!T17 -> 70.2 | I24: =iSummary1!AL17 -> 1 | J24: 4 | L24: =iSummary1!AM17 -> 10 | M24: =iSummary1!AN17 -> Seoul | N24: =iSummary1!AO17 -> 75.3 | P24: =iSummary1!BG17 -> 1 | Q24: 3 | S24: =iSummary1!BH17 -> 10 | T24: =iSummary1!BI17 -> Frankfurt | U24: =iSummary1!BJ17 -> 69.9 | W24: =iSummary1!CB17 -> 1 | X24: 3 | Z24: =iSummary1!CC17 -> 10 | AA24: =iSummary1!CD17 -> Paris | AB24: =iSummary1!CE17 -> 64.1 | AD24: =iSummary1!CW17 -> 1 | AE24: 4 | AG24: =iSummary1!CX17 -> 10 | AH24: =iSummary1!CY17 -> Washington DC | AI24: =iSummary1!CZ17 -> 75.4
B25: =iSummary1!Q18 -> 1 | C25: 3 | E25: =iSummary1!R18 -> =11 | F25: =iSummary1!S18 -> Toronto | G25: =iSummary1!T18 -> 70.1 | I25: =iSummary1!AL18 -> 1 | J25: 3 | L25: =iSummary1!AM18 -> 11 | M25: =iSummary1!AN18 -> Dallas | N25: =iSummary1!AO18 -> 74.2 | P25: =iSummary1!BG18 -> 1 | Q25: 3 | S25: =iSummary1!BH18 -> 11 | T25: =iSummary1!BI18 -> Dubai | U25: =iSummary1!BJ18 -> 69.8 | W25: =iSummary1!CB18 -> 1 | X25: 3 | Z25: =iSummary1!CC18 -> 11 | AA25: =iSummary1!CD18 -> Zurich | AB25: =iSummary1!CE18 -> 64 | AD25: =iSummary1!CW18 -> 1 | AE25: 3 | AG25: =iSummary1!CX18 -> 11 | AH25: =iSummary1!CY18 -> Hong Kong | AI25: =iSummary1!CZ18 -> 72.6
B26: =iSummary1!Q19 -> 1 | C26: 3 | E26: =iSummary1!R19 -> =11 | F26: =iSummary1!S19 -> Zurich | G26: =iSummary1!T19 -> 70.1 | I26: =iSummary1!AL19 -> 1 | J26: 3 | L26: =iSummary1!AM19 -> 12 | M26: =iSummary1!AN19 -> Paris | N26: =iSummary1!AO19 -> 71.9 | P26: =iSummary1!BG19 -> 1 | Q26: 3 | S26: =iSummary1!BH19 -> 12 | T26: =iSummary1!BI19 -> Beijing | U26: =iSummary1!BJ19 -> 68.3 | W26: =iSummary1!CB19 -> 1 | X26: 3 | Z26: =iSummary1!CC19 -> 12 | AA26: =iSummary1!CD19 -> Singapore | AB26: =iSummary1!CE19 -> 63.7 | AD26: =iSummary1!CW19 -> 1 | AE26: 3 | AG26: =iSummary1!CX19 -> 12 | AH26: =iSummary1!CY19 -> Tokyo | AI26: =iSummary1!CZ19 -> 72.2
B27: =iSummary1!Q20 -> 1 | C27: 3 | E27: =iSummary1!R20 -> 13 | F27: =iSummary1!S20 -> Barcelona | G27: =iSummary1!T20 -> 69.7 | I27: =iSummary1!AL20 -> 1 | J27: 3 | L27: =iSummary1!AM20 -> =13 | M27: =iSummary1!AN20 -> London | N27: =iSummary1!AO20 -> 71.3 | P27: =iSummary1!BG20 -> 1 | Q27: 3 | S27: =iSummary1!BH20 -> 13 | T27: =iSummary1!BI20 -> Dallas | U27: =iSummary1!BJ20 -> 67.5 | W27: =iSummary1!CB20 -> 1 | X27: 3 | Z27: =iSummary1!CC20 -> =13 | AA27: =iSummary1!CD20 -> Berlin | AB27: =iSummary1!CE20 -> 62.7 | AD27: =iSummary1!CW20 -> 1 | AE27: 3 | AG27: =iSummary1!CX20 -> 13 | AH27: =iSummary1!CY20 -> Frankfurt | AI27: =iSummary1!CZ20 -> 71.7
B28: =iSummary1!Q21 -> 1 | C28: 3 | E28: =iSummary1!R21 -> 14 | F28: =iSummary1!S21 -> Frankfurt | G28: =iSummary1!T21 -> 69.1 | I28: =iSummary1!AL21 -> 1 | J28: 3 | L28: =iSummary1!AM21 -> =13 | M28: =iSummary1!AN21 -> Tokyo | N28: =iSummary1!AO21 -> 71.3 | P28: =iSummary1!BG21 -> 1 | Q28: 3 | S28: =iSummary1!BH21 -> 14 | T28: =iSummary1!BI21 -> New York | U28: =iSummary1!BJ21 -> 67.2 | W28: =iSummary1!CB21 -> 1 | X28: 3 | Z28: =iSummary1!CC21 -> =13 | AA28: =iSummary1!CD21 -> Frankfurt | AB28: =iSummary1!CE21 -> 62.7 | AD28: =iSummary1!CW21 -> 1 | AE28: 3 | AG28: =iSummary1!CX21 -> 14 | AH28: =iSummary1!CY21 -> Paris | AI28: =iSummary1!CZ21 -> 70.9
B29: =iSummary1!Q22 -> 1 | C29: 3 | E29: =iSummary1!R22 -> 15 | F29: =iSummary1!S22 -> Dallas | G29: =iSummary1!T22 -> 68.7 | I29: =iSummary1!AL22 -> 1 | J29: 3 | L29: =iSummary1!AM22 -> 15 | M29: =iSummary1!AN22 -> Frankfurt | N29: =iSummary1!AO22 -> 71.2 | P29: =iSummary1!BG22 -> 1 | Q29: 3 | S29: =iSummary1!BH22 -> 15 | T29: =iSummary1!BI22 -> Zurich | U29: =iSummary1!BJ22 -> 65.7 | W29: =iSummary1!CB22 -> 1 | X29: 3 | Z29: =iSummary1!CC22 -> 15 | AA29: =iSummary1!CD22 -> Amsterdam | AB29: =iSummary1!CE22 -> 62.1 | AD29: =iSummary1!CW22 -> 1 | AE29: 3 | AG29: =iSummary1!CX22 -> 15 | AH29: =iSummary1!CY22 -> Berlin | AI29: =iSummary1!CZ22 -> 69.6
B30: =iSummary1!Q23 -> 1 | C30: 3 | E30: =iSummary1!R23 -> 16 | F30: =iSummary1!S23 -> Berlin | G30: =iSummary1!T23 -> 68.2 | I30: =iSummary1!AL23 -> 1 | J30: 3 | L30: =iSummary1!AM23 -> 16 | M30: =iSummary1!AN23 -> Berlin | N30: =iSummary1!AO23 -> 65.9 | P30: =iSummary1!BG23 -> 1 | Q30: 3 | S30: =iSummary1!BH23 -> 16 | T30: =iSummary1!BI23 -> Rome | U30: =iSummary1!BJ23 -> 65.3 | W30: =iSummary1!CB23 -> 1 | X30: 3 | Z30: =iSummary1!CC23 -> 16 | AA30: =iSummary1!CD23 -> Sydney | AB30: =iSummary1!CE23 -> 61.4 | AD30: =iSummary1!CW23 -> 1 | AE30: 3 | AG30: =iSummary1!CX23 -> 16 | AH30: =iSummary1!CY23 -> Madrid | AI30: =iSummary1!CZ23 -> 69.5
B31: =iSummary1!Q24 -> 1 | C31: 3 | E31: =iSummary1!R24 -> 17 | F31: =iSummary1!S24 -> Hong Kong | G31: =iSummary1!T24 -> 68 | I31: =iSummary1!AL24 -> 4 | J31: 3 | L31: =iSummary1!AM24 ->  | M31: =iSummary1!AN24 -> AVERAGE | N31: =iSummary1!AO24 -> 65.9 | P31: =iSummary1!BG24 -> 1 | Q31: 3 | S31: =iSummary1!BH24 -> 17 | T31: =iSummary1!BI24 -> Washington DC | U31: =iSummary1!BJ24 -> 64.9 | W31: =iSummary1!CB24 -> 1 | X31: 3 | Z31: =iSummary1!CC24 -> 17 | AA31: =iSummary1!CD24 -> Barcelona | AB31: =iSummary1!CE24 -> 60.6 | AD31: =iSummary1!CW24 -> 1 | AE31: 3 | AG31: =iSummary1!CX24 -> 17 | AH31: =iSummary1!CY24 -> Auckland | AI31: =iSummary1!CZ24 -> 68.1
B32: =iSummary1!Q25 -> 1 | C32: 3 | E32: =iSummary1!R25 -> 18 | F32: =iSummary1!S25 -> Dubai | G32: =iSummary1!T25 -> 63.8 | I32: =iSummary1!AL25 -> 1 | J32: 3 | L32: =iSummary1!AM25 -> 17 | M32: =iSummary1!AN25 -> Rome | N32: =iSummary1!AO25 -> 64.9 | P32: =iSummary1!BG25 -> 1 | Q32: 3 | S32: =iSummary1!BH25 -> 18 | T32: =iSummary1!BI25 -> Toronto | U32: =iSummary1!BJ25 -> 64 | W32: =iSummary1!CB25 -> 4 | X32: 3 | Z32: =iSummary1!CC25 ->  | AA32: =iSummary1!CD25 -> AVERAGE | AB32: =iSummary1!CE25 -> 59.2 | AD32: =iSummary1!CW25 -> 1 | AE32: 3 | AG32: =iSummary1!CX25 -> 18 | AH32: =iSummary1!CY25 -> Zurich | AI32: =iSummary1!CZ25 -> 66.3
B33: =iSummary1!Q26 -> 4 | C33: 3 | E33: =iSummary1!R26 ->  | F33: =iSummary1!S26 -> AVERAGE | G33: =iSummary1!T26 -> 63.3 | I33: =iSummary1!AL26 -> 1 | J33: 3 | L33: =iSummary1!AM26 -> 18 | M33: =iSummary1!AN26 -> Madrid | N33: =iSummary1!AO26 -> 64.6 | P33: =iSummary1!BG26 -> 1 | Q33: 3 | S33: =iSummary1!BH26 -> 19 | T33: =iSummary1!BI26 -> Seoul | U33: =iSummary1!BJ26 -> 62.5 | W33: =iSummary1!CB26 -> 1 | X33: 3 | Z33: =iSummary1!CC26 -> 18 | AA33: =iSummary1!CD26 -> Beijing | AB33: =iSummary1!CE26 -> 57.9 | AD33: =iSummary1!CW26 -> 4 | AE33: 3 | AG33: =iSummary1!CX26 ->  | AH33: =iSummary1!CY26 -> AVERAGE | AI33: =iSummary1!CZ26 -> 66.3
B34: =iSummary1!Q27 -> 1 | C34: 3 | E34: =iSummary1!R27 -> 19 | F34: =iSummary1!S27 -> Madrid | G34: =iSummary1!T27 -> 63.2 | I34: =iSummary1!AL27 -> 1 | J34: 3 | L34: =iSummary1!AM27 -> 19 | M34: =iSummary1!AN27 -> Dubai | N34: =iSummary1!AO27 -> 63.5 | P34: =iSummary1!BG27 -> 1 | Q34: 3 | S34: =iSummary1!BH27 -> 20 | T34: =iSummary1!BI27 -> Madrid | U34: =iSummary1!BJ27 -> 61.5 | W34: =iSummary1!CB27 -> 1 | X34: 3 | Z34: =iSummary1!CC27 -> 19 | AA34: =iSummary1!CD27 -> Sao Paulo | AB34: =iSummary1!CE27 -> 57 | AD34: =iSummary1!CW27 -> 1 | AE34: 3 | AG34: =iSummary1!CX27 -> 19 | AH34: =iSummary1!CY27 -> Kuala Lumpur | AI34: =iSummary1!CZ27 -> 66
B35: =iSummary1!Q28 -> 1 | C35: 3 | E35: =iSummary1!R28 -> 20 | F35: =iSummary1!S28 -> Tokyo | G35: =iSummary1!T28 -> 63 | I35: =iSummary1!AL28 -> 1 | J35: 3 | L35: =iSummary1!AM28 -> 20 | M35: =iSummary1!AN28 -> Toronto | N35: =iSummary1!AO28 -> 62.8 | P35: =iSummary1!BG28 -> 4 | Q35: 3 | S35: =iSummary1!BH28 ->  | T35: =iSummary1!BI28 -> AVERAGE | U35: =iSummary1!BJ28 -> 61.4 | W35: =iSummary1!CB28 -> 1 | X35: 3 | Z35: =iSummary1!CC28 -> =20 | AA35: =iSummary1!CD28 -> Kuala Lumpur | AB35: =iSummary1!CE28 -> 56.9 | AD35: =iSummary1!CW28 -> 1 | AE35: 3 | AG35: =iSummary1!CX28 -> 20 | AH35: =iSummary1!CY28 -> Dallas | AI35: =iSummary1!CZ28 -> 63.7
B36: =iSummary1!Q29 -> 1 | C36: 3 | E36: =iSummary1!R29 -> 21 | F36: =iSummary1!S29 -> Rome | G36: =iSummary1!T29 -> 61.2 | I36: =iSummary1!AL29 -> 1 | J36: 3 | L36: =iSummary1!AM29 -> 21 | M36: =iSummary1!AN29 -> Barcelona | N36: =iSummary1!AO29 -> 61.6 | P36: =iSummary1!BG29 -> 1 | Q36: 3 | S36: =iSummary1!BH29 -> 21 | T36: =iSummary1!BI29 -> New Delhi | U36: =iSummary1!BJ29 -> 54.3 | W36: =iSummary1!CB29 -> 1 | X36: 3 | Z36: =iSummary1!CC29 -> =20 | AA36: =iSummary1!CD29 -> Madrid | AB36: =iSummary1!CE29 -> 56.9 | AD36: =iSummary1!CW29 -> 1 | AE36: 3 | AG36: =iSummary1!CX29 -> 21 | AH36: =iSummary1!CY29 -> Rome | AI36: =iSummary1!CZ29 -> 61.7
B37: =iSummary1!Q30 -> 1 | C37: 3 | E37: =iSummary1!R30 -> 22 | F37: =iSummary1!S30 -> Auckland | G37: =iSummary1!T30 -> 60.1 | I37: =iSummary1!AL30 -> 1 | J37: 3 | L37: =iSummary1!AM30 -> 22 | M37: =iSummary1!AN30 -> Auckland | N37: =iSummary1!AO30 -> 59.7 | P37: =iSummary1!BG30 -> 1 | Q37: 3 | S37: =iSummary1!BH30 -> 22 | T37: =iSummary1!BI30 -> Tokyo | U37: =iSummary1!BJ30 -> 52.8 | W37: =iSummary1!CB30 -> 1 | X37: 3 | Z37: =iSummary1!CC30 -> 22 | AA37: =iSummary1!CD30 -> Tokyo | AB37: =iSummary1!CE30 -> 55.5 | AD37: =iSummary1!CW30 -> 1 | AE37: 3 | AG37: =iSummary1!CX30 -> 22 | AH37: =iSummary1!CY30 -> Singapore | AI37: =iSummary1!CZ30 -> 60.8
B38: =iSummary1!Q31 -> 1 | C38: 3 | E38: =iSummary1!R31 -> 23 | F38: =iSummary1!S31 -> Kuala Lumpur | G38: =iSummary1!T31 -> 58.2 | I38: =iSummary1!AL31 -> 1 | J38: 3 | L38: =iSummary1!AM31 -> 23 | M38: =iSummary1!AN31 -> Kuala Lumpur | N38: =iSummary1!AO31 -> 58.9 | P38: =iSummary1!BG31 -> 1 | Q38: 3 | S38: =iSummary1!BH31 -> =23 | T38: =iSummary1!BI31 -> Bangkok | U38: =iSummary1!BJ31 -> 52.6 | W38: =iSummary1!CB31 -> 1 | X38: 2 | Z38: =iSummary1!CC31 -> 23 | AA38: =iSummary1!CD31 -> Rome | AB38: =iSummary1!CE31 -> 50 | AD38: =iSummary1!CW31 -> 1 | AE38: 3 | AG38: =iSummary1!CX31 -> 23 | AH38: =iSummary1!CY31 -> Dubai | AI38: =iSummary1!CZ31 -> 54.8
B39: =iSummary1!Q32 -> 1 | C39: 3 | E39: =iSummary1!R32 -> 24 | F39: =iSummary1!S32 -> Sao Paulo | G39: =iSummary1!T32 -> 50.7 | I39: =iSummary1!AL32 -> 1 | J39: 3 | L39: =iSummary1!AM32 -> 24 | M39: =iSummary1!AN32 -> Sao Paulo | N39: =iSummary1!AO32 -> 56.5 | P39: =iSummary1!BG32 -> 1 | Q39: 3 | S39: =iSummary1!BH32 -> =23 | T39: =iSummary1!BI32 -> Kuala Lumpur | U39: =iSummary1!BJ32 -> 52.6 | W39: =iSummary1!CB32 -> 1 | X39: 2 | Z39: =iSummary1!CC32 -> 24 | AA39: =iSummary1!CD32 -> Buenos Aires | AB39: =iSummary1!CE32 -> 48.7 | AD39: =iSummary1!CW32 -> 1 | AE39: 3 | AG39: =iSummary1!CX32 -> 24 | AH39: =iSummary1!CY32 -> Buenos Aires | AI39: =iSummary1!CZ32 -> 51.5
B40: =iSummary1!Q33 -> 1 | C40: 2 | E40: =iSummary1!R33 -> 25 | F40: =iSummary1!S33 -> Bangkok | G40: =iSummary1!T33 -> 49.1 | I40: =iSummary1!AL33 -> 1 | J40: 3 | L40: =iSummary1!AM33 -> 25 | M40: =iSummary1!AN33 -> Bangkok | N40: =iSummary1!AO33 -> 55.3 | P40: =iSummary1!BG33 -> 1 | Q40: 2 | S40: =iSummary1!BH33 -> 25 | T40: =iSummary1!BI33 -> Auckland | U40: =iSummary1!BJ33 -> 49.5 | W40: =iSummary1!CB33 -> 1 | X40: 2 | Z40: =iSummary1!CC33 -> =25 | AA40: =iSummary1!CD33 -> Hong Kong | AB40: =iSummary1!CE33 -> 48.3 | AD40: =iSummary1!CW33 -> 1 | AE40: 2 | AG40: =iSummary1!CX33 -> 25 | AH40: =iSummary1!CY33 -> Sao Paulo | AI40: =iSummary1!CZ33 -> 48.8
B41: =iSummary1!Q34 -> 1 | C41: 2 | E41: =iSummary1!R34 -> 26 | F41: =iSummary1!S34 -> Buenos Aires | G41: =iSummary1!T34 -> 45.1 | I41: =iSummary1!AL34 -> 1 | J41: 3 | L41: =iSummary1!AM34 -> 26 | M41: =iSummary1!AN34 -> Mexico City | N41: =iSummary1!AO34 -> 53 | P41: =iSummary1!BG34 -> 1 | Q41: 2 | S41: =iSummary1!BH34 -> 26 | T41: =iSummary1!BI34 -> Jakarta | U41: =iSummary1!BJ34 -> 42.5 | W41: =iSummary1!CB34 -> 1 | X41: 2 | Z41: =iSummary1!CC34 -> =25 | AA41: =iSummary1!CD34 -> Mexico City | AB41: =iSummary1!CE34 -> 48.3 | AD41: =iSummary1!CW34 -> 1 | AE41: 2 | AG41: =iSummary1!CX34 -> 26 | AH41: =iSummary1!CY34 -> Bangkok | AI41: =iSummary1!CZ34 -> 41.3
B42: =iSummary1!Q35 -> 1 | C42: 2 | E42: =iSummary1!R35 -> 27 | F42: =iSummary1!S35 -> Jakarta | G42: =iSummary1!T35 -> 43.5 | I42: =iSummary1!AL35 -> 1 | J42: 2 | L42: =iSummary1!AM35 -> 27 | M42: =iSummary1!AN35 -> Jakarta | N42: =iSummary1!AO35 -> 48.1 | P42: =iSummary1!BG35 -> 1 | Q42: 2 | S42: =iSummary1!BH35 -> 27 | T42: =iSummary1!BI35 -> Buenos Aires | U42: =iSummary1!BJ35 -> 42.2 | W42: =iSummary1!CB35 -> 1 | X42: 2 | Z42: =iSummary1!CC35 -> 27 | AA42: =iSummary1!CD35 -> Jakarta | AB42: =iSummary1!CE35 -> 47.2 | AD42: =iSummary1!CW35 -> 1 | AE42: 2 | AG42: =iSummary1!CX35 -> 27 | AH42: =iSummary1!CY35 -> Jakarta | AI42: =iSummary1!CZ35 -> 34.7
B43: =iSummary1!Q36 -> 1 | C43: 2 | E43: =iSummary1!R36 -> 28 | F43: =iSummary1!S36 -> Mexico City | G43: =iSummary1!T36 -> 42.6 | I43: =iSummary1!AL36 -> 1 | J43: 2 | L43: =iSummary1!AM36 -> 28 | M43: =iSummary1!AN36 -> Manila | N43: =iSummary1!AO36 -> 43.8 | P43: =iSummary1!BG36 -> 1 | Q43: 2 | S43: =iSummary1!BH36 -> 28 | T43: =iSummary1!BI36 -> Sao Paulo | U43: =iSummary1!BJ36 -> 41.3 | W43: =iSummary1!CB36 -> 1 | X43: 2 | Z43: =iSummary1!CC36 -> 28 | AA43: =iSummary1!CD36 -> Manila | AB43: =iSummary1!CE36 -> 46.8 | AD43: =iSummary1!CW36 -> 1 | AE43: 2 | AG43: =iSummary1!CX36 -> 28 | AH43: =iSummary1!CY36 -> New Delhi | AI43: =iSummary1!CZ36 -> 32.9
B44: =iSummary1!Q37 -> 1 | C44: 2 | E44: =iSummary1!R37 -> 29 | F44: =iSummary1!S37 -> New Delhi | G44: =iSummary1!T37 -> 40.3 | I44: =iSummary1!AL37 -> 1 | J44: 2 | L44: =iSummary1!AM37 -> 29 | M44: =iSummary1!AN37 -> Buenos Aires | N44: =iSummary1!AO37 -> 40.8 | P44: =iSummary1!BG37 -> 1 | Q44: 2 | S44: =iSummary1!BH37 -> 29 | T44: =iSummary1!BI37 -> Manila | U44: =iSummary1!BJ37 -> 36.5 | W44: =iSummary1!CB37 -> 1 | X44: 2 | Z44: =iSummary1!CC37 -> 29 | AA44: =iSummary1!CD37 -> New Delhi | AB44: =iSummary1!CE37 -> 46.1 | AD44: =iSummary1!CW37 -> 1 | AE44: 2 | AG44: =iSummary1!CX37 -> 29 | AH44: =iSummary1!CY37 -> Mexico City | AI44: =iSummary1!CZ37 -> 32.8
B45: =iSummary1!Q38 -> 1 | C45: 2 | E45: =iSummary1!R38 -> 30 | F45: =iSummary1!S38 -> Manila | G45: =iSummary1!T38 -> 39.1 | I45: =iSummary1!AL38 -> 1 | J45: 2 | L45: =iSummary1!AM38 -> 30 | M45: =iSummary1!AN38 -> New Delhi | N45: =iSummary1!AO38 -> 28.4 | P45: =iSummary1!BG38 -> 1 | Q45: 2 | S45: =iSummary1!BH38 -> 30 | T45: =iSummary1!BI38 -> Mexico City | U45: =iSummary1!BJ38 -> 34.4 | W45: =iSummary1!CB38 -> 1 | X45: 2 | Z45: =iSummary1!CC38 -> 30 | AA45: =iSummary1!CD38 -> Bangkok | AB45: =iSummary1!CE38 -> 43.4 | AD45: =iSummary1!CW38 -> 1 | AE45: 2 | AG45: =iSummary1!CX38 -> 30 | AH45: =iSummary1!CY38 -> Manila | AI45: =iSummary1!CZ38 -> 28
G49: 25 | M49: 0.25 | N49: 25 | T49: =M49 -> 0.25 | U49: 25 | AA49: =T49 -> 0.25 | AB49: 25 | AH49: =AA49 -> 0.25 | AI49: 25
G50: 50 | M50: 0.5 | N50: 50 | T50: =M50 -> 0.5 | U50: 50 | AA50: =T50 -> 0.5 | AB50: 50 | AH50: =AA50 -> 0.5 | AI50: 50
G51: 75 | M51: 0.75 | N51: 75 | T51: =M51 -> 0.75 | U51: 75 | AA51: 0.75 | AB51: 75 | AH51: 0.75 | AI51: 75
G54: =COUNTIF(G15:G45,">=0")-uxb_works!$C$49 -> 30 | N54: =COUNTIF(N15:N45,">=0")-uxb_works!$C$49 -> 30 | U54: =COUNTIF(U15:U45,">=0") -> 31 | AB54: =COUNTIF(AB15:AB45,">=0") -> 31 | AI54: =COUNTIF(AI15:AI45,">=0") -> 31

Sheet Indicator_Ranking
A1: =uxb_works!$B$92 -> Digital Cities Index | BA1: 1 | BB1: 2
AT2: =iIndiRank!V2 -> 0
A6: =uxb_works!$C$5 -> The active weight profile has been changed from its default setting | B6: =uxb_works!$C$5 -> The active weight profile has been changed from its default setting | C6: =uxb_works!$C$5 -> The active weight profile has been changed from its default setting | D6: =uxb_works!$C$5 -> The active weight profile has been changed from its default setting
A8: =uxb_works!$D$67 -> There are 30 cities in the active filter set | B8: =uxb_works!$D$67 -> There are 30 cities in the active filter set | C8: =uxb_works!$D$67 -> There are 30 cities in the active filter set | D8: =uxb_works!$D$67 -> There are 30 cities in the active filter set
C10: =iIndiRank!$G$2 -> 3.1) Digital inclusion
C11: =iIndiRank!$F$2 -> 3.1.3) Digital skills | BO11: =C11 -> 3.1.3) Digital skills
E14: =iIndiRank!AO2 -> 0 | K14: =COUNT(J17:J46) -> 30 | V14: =IF(COUNTIF(V17:V46,"<>0")=0,1,COUNTIF(V17:V46,"<>0")) -> 1 | W14: =iIndiRank!AU1 -> 0 | Y14: =IF(COUNTIF(Y17:Y46,"<>0")=0,1,COUNTIF(Y17:Y46,"<>0")) -> 1 | Z14: =iIndiRank!AX1 -> 0 | AB14: =IF(COUNTIF(AB17:AB46,"<>0")=0,1,COUNTIF(AB17:AB46,"<>0")) -> 1 | AC14: =iIndiRank!BA1 ->  | AE14: =IF(COUNTIF(AE17:AE46,"<>0")=0,1,COUNTIF(AE17:AE46,"<>0")) -> 1 | AF14: =iIndiRank!BD1 ->  | AH14: =IF(COUNTIF(AH17:AH46,"<>0")=0,1,COUNTIF(AH17:AH46,"<>0")) -> 1 | AI14: =iIndiRank!BG1 -> 
B15: =iIndiRank!P4 -> 23 | C15: Digital skills can be defined as the ability to find, evaluate, use, share, and create content using digital devices, such as computers and smartphones. The indicator is a self assessment of digital skills by city residents, as captured in the Economist Impact survey. Scoring Guidance: The score is calculated as the weighted average of the following digital skills self-assessed by city residents, where basic skills are assigned the lowest weight, and the advanced skills the highest: Basic : - Using basic functions like calls, messaging etc. on your device (mobile, laptop, ipads etc.) - Browsing online content (eg. send emails, browse websites, save and share content) Intermediate: - Managing your online profile on various social media platforms - Creating digital content like videos, presentations Upper-intermediate: - Understanding terms of service (copyright, licensing, ethical code of conduct) when creating digital content - Taking precautions (like changing passwords regularly, downloading anti-virus softwares) to protect your devices and personal data from cyber threats Advanced: - Resolving some complex issues (like lost files, hard drive failures) you encounter while using your personal device by troubleshooting or using online help and support pages - Having advanced digital competences such as coding or software development skills Units: Scale (0-100) Source: Economist Impact survey Year: 2021 | J15: =iIndiRank!G3 -> 0 | K15: =iIndiRank!J3 -> 0 | L15: =IF(K15<>2,"Rank","") -> Rank | N15: City | P15: =IF($J$15=0,"Score / 100","") -> Score / 100 | Q15: =IF($J$15=0,"Visualisation","") -> Visualisation | R15: =IF(iIndiRank!P2=1,"","Data") -> Data | W15: =IF(W14<>0,iIndiRank!AU3,"") ->  | Z15: =IF(Z14<>0,iIndiRank!AX3,"") ->  | AC15: =IF(AC14<>0,iIndiRank!BA3,"") ->  | AF15: =IF(AF14<>0,iIndiRank!BD3,"") ->  | AI15: =IF(AI14<>0,iIndiRank!BG3,"") -> 
J16: =IF(uxb_works!$J$21=1,COUNTIF(J17:J46,">0"),MAX(V16,Indicator_Ranking!Y16,Indicator_Ranking!AB16,Indicator_Ranking!AE16,Indicator_Ranking!AH16)) -> 30 | L16: Rank | N16: Country | O16: Score / 100 | P16: Score / 100 | Q16: Visualisation | R16: =iIndiRank!S5 -> Data | V16: =COUNTIF(V17:V46,">0") -> 0 | Y16: =COUNTIF(Y17:Y46,">0") -> 0 | AB16: =COUNTIF(AB17:AB46,">0") -> 0 | AE16: =COUNTIF(AE17:AE46,">0") -> 0 | AH16: =COUNTIF(AH17:AH46,">0") -> 0 | BA16: =W15 ->  | BD16: =Z15 ->  | BG16: =AC15 ->  | BJ16: =AF15 ->  | BM16: =AI15 -> 
J17: =iIndiRank!L6 -> 1 | K17: =IF(J17=0,4,IF($J$15=1,8,IF(P17<=uxb_works!$B$122,0,IF(P17<=uxb_works!$B$121,1,IF(P17<=uxb_works!$B$120,2,3))))) -> 3 | M17: =IF($K$15=2,"",iIndiRank!P6) -> 1 | N17: =iIndiRank!Q6 -> New Delhi | O17: =iIndiRank!R6 -> 100 | P17: =IF($J$15=0,iIndiRank!T6,"") -> 100 | Q17: =IF($K$15=2,"",IF(ISNUMBER(O17),REPT("|",O17/3),"")) -> ||||||||||||||||||||||||||||||||| | R17: =TEXT(iIndiRank!S6,iIndiRank!$E$2) -> 82.4 | V17: =iIndiRank!AT6 -> 0 | W17: =iIndiRank!AU6 ->  | Y17: =iIndiRank!AW6 -> 0 | Z17: =iIndiRank!AX6 ->  | AB17: =iIndiRank!AZ6 -> 0 | AC17: =iIndiRank!BA6 ->  | AE17: =iIndiRank!BC6 -> 0 | AF17: =iIndiRank!BD6 ->  | AH17: =iIndiRank!BF6 -> 0 | AI17: =iIndiRank!BG6 -> 
J18: =iIndiRank!L7 -> 1 | K18: =IF(J18=0,4,IF($J$15=1,8,IF(P18<=uxb_works!$B$122,0,IF(P18<=uxb_works!$B$121,1,IF(P18<=uxb_works!$B$120,2,3))))) -> 3 | M18: =IF($K$15=2,"",iIndiRank!P7) -> 2 | N18: =iIndiRank!Q7 -> Dubai | O18: =iIndiRank!R7 -> 81.8 | P18: =IF($J$15=0,iIndiRank!T7,"") -> 81.8 | Q18: =IF($K$15=2,"",IF(ISNUMBER(O18),REPT("|",O18/3),"")) -> ||||||||||||||||||||||||||| | R18: =TEXT(iIndiRank!S7,iIndiRank!$E$2) -> 72.9 | V18: =iIndiRank!AT7 -> 0 | W18: =iIndiRank!AU7 ->  | Y18: =iIndiRank!AW7 -> 0 | Z18: =iIndiRank!AX7 ->  | AB18: =iIndiRank!AZ7 -> 0 | AC18: =iIndiRank!BA7 ->  | AE18: =iIndiRank!BC7 -> 0 | AF18: =iIndiRank!BD7 ->  | AH18: =iIndiRank!BF7 -> 0 | AI18: =iIndiRank!BG7 -> 
J19: =iIndiRank!L8 -> 1 | K19: =IF(J19=0,4,IF($J$15=1,8,IF(P19<=uxb_works!$B$122,0,IF(P19<=uxb_works!$B$121,1,IF(P19<=uxb_works!$B$120,2,3))))) -> 3 | M19: =IF($K$15=2,"",iIndiRank!P8) -> 3 | N19: =iIndiRank!Q8 -> Jakarta | O19: =iIndiRank!R8 -> 80.5 | P19: =IF($J$15=0,iIndiRank!T8,"") -> 80.5 | Q19: |||||||||||||||||||||||||| | R19: =TEXT(iIndiRank!S8,iIndiRank!$E$2) -> 72.2 | V19: =iIndiRank!AT8 -> 0 | W19: =iIndiRank!AU8 ->  | Y19: =iIndiRank!AW8 -> 0 | Z19: =iIndiRank!AX8 ->  | AB19: =iIndiRank!AZ8 -> 0 | AC19: =iIndiRank!BA8 ->  | AE19: =iIndiRank!BC8 -> 0 | AF19: =iIndiRank!BD8 ->  | AH19: =iIndiRank!BF8 -> 0 | AI19: =iIndiRank!BG8 -> 
J20: =iIndiRank!L9 -> 1 | K20: =IF(J20=0,4,IF($J$15=1,8,IF(P20<=uxb_works!$B$122,0,IF(P20<=uxb_works!$B$121,1,IF(P20<=uxb_works!$B$120,2,3))))) -> 2 | M20: =IF($K$15=2,"",iIndiRank!P9) -> =4 | N20: =iIndiRank!Q9 -> Beijing | O20: =iIndiRank!R9 -> 64.6 | P20: =IF($J$15=0,iIndiRank!T9,"") -> 64.6 | Q20: ||||||||||||||||||||| | R20: =TEXT(iIndiRank!S9,iIndiRank!$E$2) -> 63.9 | V20: =iIndiRank!AT9 -> 0 | W20: =iIndiRank!AU9 ->  | Y20: =iIndiRank!AW9 -> 0 | Z20: =iIndiRank!AX9 ->  | AB20: =iIndiRank!AZ9 -> 0 | AC20: =iIndiRank!BA9 ->  | AE20: =iIndiRank!BC9 -> 0 | AF20: =iIndiRank!BD9 ->  | AH20: =iIndiRank!BF9 -> 0 | AI20: =iIndiRank!BG9 -> 
J21: =iIndiRank!L10 -> 1 | K21: =IF(J21=0,4,IF($J$15=1,8,IF(P21<=uxb_works!$B$122,0,IF(P21<=uxb_works!$B$121,1,IF(P21<=uxb_works!$B$120,2,3))))) -> 2 | M21: =IF($K$15=2,"",iIndiRank!P10) -> =4 | N21: =iIndiRank!Q10 -> Mexico City | O21: =iIndiRank!R10 -> 64.6 | P21: =IF($J$15=0,iIndiRank!T10,"") -> 64.6 | Q21: ||||||||||||||||||||| | R21: =TEXT(iIndiRank!S10,iIndiRank!$E$2) -> 63.9 | V21: =iIndiRank!AT10 -> 0 | W21: =iIndiRank!AU10 ->  | Y21: =iIndiRank!AW10 -> 0 | Z21: =iIndiRank!AX10 ->  | AB21: =iIndiRank!AZ10 -> 0 | AC21: =iIndiRank!BA10 ->  | AE21: =iIndiRank!BC10 -> 0 | AF21: =iIndiRank!BD10 ->  | AH21: =iIndiRank!BF10 -> 0 | AI21: =iIndiRank!BG10 -> 
J22: =iIndiRank!L11 -> 1 | K22: =IF(J22=0,4,IF($J$15=1,8,IF(P22<=uxb_works!$B$122,0,IF(P22<=uxb_works!$B$121,1,IF(P22<=uxb_works!$B$120,2,3))))) -> 2 | M22: =IF($K$15=2,"",iIndiRank!P11) -> 6 | N22: =iIndiRank!Q11 -> Manila | O22: =iIndiRank!R11 -> 62.5 | P22: =IF($J$15=0,iIndiRank!T11,"") -> 62.5 | Q22: |||||||||||||||||||| | R22: =TEXT(iIndiRank!S11,iIndiRank!$E$2) -> 62.8 | V22: =iIndiRank!AT11 -> 0 | W22: =iIndiRank!AU11 ->  | Y22: =iIndiRank!AW11 -> 0 | Z22: =iIndiRank!AX11 ->  | AB22: =iIndiRank!AZ11 -> 0 | AC22: =iIndiRank!BA11 ->  | AE22: =iIndiRank!BC11 -> 0 | AF22: =iIndiRank!BD11 ->  | AH22: =iIndiRank!BF11 -> 0 | AI22: =iIndiRank!BG11 -> 
J23: =iIndiRank!L12 -> 1 | K23: =IF(J23=0,4,IF($J$15=1,8,IF(P23<=uxb_works!$B$122,0,IF(P23<=uxb_works!$B$121,1,IF(P23<=uxb_works!$B$120,2,3))))) -> 2 | M23: =IF($K$15=2,"",iIndiRank!P12) -> 7 | N23: =iIndiRank!Q12 -> Bangkok | O23: =iIndiRank!R12 -> 62.3 | P23: =IF($J$15=0,iIndiRank!T12,"") -> 62.3 | Q23: |||||||||||||||||||| | R23: =TEXT(iIndiRank!S12,iIndiRank!$E$2) -> 62.7 | V23: =iIndiRank!AT12 -> 0 | W23: =iIndiRank!AU12 ->  | Y23: =iIndiRank!AW12 -> 0 | Z23: =iIndiRank!AX12 ->  | AB23: =iIndiRank!AZ12 -> 0 | AC23: =iIndiRank!BA12 ->  | AE23: =iIndiRank!BC12 -> 0 | AF23: =iIndiRank!BD12 ->  | AH23: =iIndiRank!BF12 -> 0 | AI23: =iIndiRank!BG12 -> 
J24: =iIndiRank!L13 -> 1 | K24: =IF(J24=0,4,IF($J$15=1,8,IF(P24<=uxb_works!$B$122,0,IF(P24<=uxb_works!$B$121,1,IF(P24<=uxb_works!$B$120,2,3))))) -> 2 | M24: =IF($K$15=2,"",iIndiRank!P13) -> =8 | N24: =iIndiRank!Q13 -> Dallas | O24: =iIndiRank!R13 -> 52.8 | P24: =IF($J$15=0,iIndiRank!T13,"") -> 52.8 | Q24: ||||||||||||||||| | R24: =TEXT(iIndiRank!S13,iIndiRank!$E$2) -> 57.7 | V24: =iIndiRank!AT13 -> 0 | W24: =iIndiRank!AU13 ->  | Y24: =iIndiRank!AW13 -> 0 | Z24: =iIndiRank!AX13 ->  | AB24: =iIndiRank!AZ13 -> 0 | AC24: =iIndiRank!BA13 ->  | AE24: =iIndiRank!BC13 -> 0 | AF24: =iIndiRank!BD13 ->  | AH24: =iIndiRank!BF13 -> 0 | AI24: =iIndiRank!BG13 -> 
J25: =iIndiRank!L14 -> 1 | K25: =IF(J25=0,4,IF($J$15=1,8,IF(P25<=uxb_works!$B$122,0,IF(P25<=uxb_works!$B$121,1,IF(P25<=uxb_works!$B$120,2,3))))) -> 2 | M25: =IF($K$15=2,"",iIndiRank!P14) -> =8 | N25: =iIndiRank!Q14 -> Sao Paulo | O25: =iIndiRank!R14 -> 52.8 | P25: =IF($J$15=0,iIndiRank!T14,"") -> 52.8 | Q25: ||||||||||||||||| | R25: =TEXT(iIndiRank!S14,iIndiRank!$E$2) -> 57.7 | V25: =iIndiRank!AT14 -> 0 | W25: =iIndiRank!AU14 ->  | Y25: =iIndiRank!AW14 -> 0 | Z25: =iIndiRank!AX14 ->  | AB25: =iIndiRank!AZ14 -> 0 | AC25: =iIndiRank!BA14 ->  | AE25: =iIndiRank!BC14 -> 0 | AF25: =iIndiRank!BD14 ->  | AH25: =iIndiRank!BF14 -> 0 | AI25: =iIndiRank!BG14 -> 
J26: =iIndiRank!L15 -> 1 | K26: =IF(J26=0,4,IF($J$15=1,8,IF(P26<=uxb_works!$B$122,0,IF(P26<=uxb_works!$B$121,1,IF(P26<=uxb_works!$B$120,2,3))))) -> 2 | M26: =IF($K$15=2,"",iIndiRank!P15) -> 10 | N26: =iIndiRank!Q15 -> Buenos Aires | O26: =iIndiRank!R15 -> 51.2 | P26: =IF($J$15=0,iIndiRank!T15,"") -> 51.2 | Q26: ||||||||||||||||| | R26: =TEXT(iIndiRank!S15,iIndiRank!$E$2) -> 56.9 | V26: =iIndiRank!AT15 -> 0 | W26: =iIndiRank!AU15 ->  | Y26: =iIndiRank!AW15 -> 0 | Z26: =iIndiRank!AX15 ->  | AB26: =iIndiRank!AZ15 -> 0 | AC26: =iIndiRank!BA15 ->  | AE26: =iIndiRank!BC15 -> 0 | AF26: =iIndiRank!BD15 ->  | AH26: =iIndiRank!BF15 -> 0 | AI26: =iIndiRank!BG15 -> 
J27: =iIndiRank!L16 -> 1 | K27: =IF(J27=0,4,IF($J$15=1,8,IF(P27<=uxb_works!$B$122,0,IF(P27<=uxb_works!$B$121,1,IF(P27<=uxb_works!$B$120,2,3))))) -> 1 | M27: =IF($K$15=2,"",iIndiRank!P16) -> 11 | N27: =iIndiRank!Q16 -> Kuala Lumpur | O27: =iIndiRank!R16 -> 42.3 | P27: =IF($J$15=0,iIndiRank!T16,"") -> 42.3 | Q27: |||||||||||||| | R27: =TEXT(iIndiRank!S16,iIndiRank!$E$2) -> 52.2 | V27: =iIndiRank!AT16 -> 0 | W27: =iIndiRank!AU16 ->  | Y27: =iIndiRank!AW16 -> 0 | Z27: =iIndiRank!AX16 ->  | AB27: =iIndiRank!AZ16 -> 0 | AC27: =iIndiRank!BA16 ->  | AE27: =iIndiRank!BC16 -> 0 | AF27: =iIndiRank!BD16 ->  | AH27: =iIndiRank!BF16 -> 0 | AI27: =iIndiRank!BG16 -> 
J28: =iIndiRank!L17 -> 1 | K28: =IF(J28=0,4,IF($J$15=1,8,IF(P28<=uxb_works!$B$122,0,IF(P28<=uxb_works!$B$121,1,IF(P28<=uxb_works!$B$120,2,3))))) -> 1 | M28: =IF($K$15=2,"",iIndiRank!P17) -> 12 | N28: =iIndiRank!Q17 -> Madrid | O28: =iIndiRank!R17 -> 41.3 | P28: =IF($J$15=0,iIndiRank!T17,"") -> 41.3 | Q28: ||||||||||||| | R28: =TEXT(iIndiRank!S17,iIndiRank!$E$2) -> 51.7 | V28: =iIndiRank!AT17 -> 0 | W28: =iIndiRank!AU17 ->  | Y28: =iIndiRank!AW17 -> 0 | Z28: =iIndiRank!AX17 ->  | AB28: =iIndiRank!AZ17 -> 0 | AC28: =iIndiRank!BA17 ->  | AE28: =iIndiRank!BC17 -> 0 | AF28: =iIndiRank!BD17 ->  | AH28: =iIndiRank!BF17 -> 0 | AI28: =iIndiRank!BG17 -> 
J29: =iIndiRank!L18 -> 1 | K29: =IF(J29=0,4,IF($J$15=1,8,IF(P29<=uxb_works!$B$122,0,IF(P29<=uxb_works!$B$121,1,IF(P29<=uxb_works!$B$120,2,3))))) -> 1 | M29: =IF($K$15=2,"",iIndiRank!P18) -> 13 | N29: =iIndiRank!Q18 -> Rome | O29: =iIndiRank!R18 -> 40.5 | P29: =IF($J$15=0,iIndiRank!T18,"") -> 40.5 | Q29: ||||||||||||| | R29: =TEXT(iIndiRank!S18,iIndiRank!$E$2) -> 51.3 | V29: =iIndiRank!AT18 -> 0 | W29: =iIndiRank!AU18 ->  | Y29: =iIndiRank!AW18 -> 0 | Z29: =iIndiRank!AX18 ->  | AB29: =iIndiRank!AZ18 -> 0 | AC29: =iIndiRank!BA18 ->  | AE29: =iIndiRank!BC18 -> 0 | AF29: =iIndiRank!BD18 ->  | AH29: =iIndiRank!BF18 -> 0 | AI29: =iIndiRank!BG18 -> 
J30: =iIndiRank!L19 -> 1 | K30: =IF(J30=0,4,IF($J$15=1,8,IF(P30<=uxb_works!$B$122,0,IF(P30<=uxb_works!$B$121,1,IF(P30<=uxb_works!$B$120,2,3))))) -> 1 | M30: =IF($K$15=2,"",iIndiRank!P19) -> 14 | N30: =iIndiRank!Q19 -> Barcelona | O30: =iIndiRank!R19 -> 36.3 | P30: =IF($J$15=0,iIndiRank!T19,"") -> 36.3 | Q30: |||||||||||| | R30: =TEXT(iIndiRank!S19,iIndiRank!$E$2) -> 49.1 | V30: =iIndiRank!AT19 -> 0 | W30: =iIndiRank!AU19 ->  | Y30: =iIndiRank!AW19 -> 0 | Z30: =iIndiRank!AX19 ->  | AB30: =iIndiRank!AZ19 -> 0 | AC30: =iIndiRank!BA19 ->  | AE30: =iIndiRank!BC19 -> 0 | AF30: =iIndiRank!BD19 ->  | AH30: =iIndiRank!BF19 -> 0 | AI30: =iIndiRank!BG19 -> 
J31: =iIndiRank!L20 -> 1 | K31: =IF(J31=0,4,IF($J$15=1,8,IF(P31<=uxb_works!$B$122,0,IF(P31<=uxb_works!$B$121,1,IF(P31<=uxb_works!$B$120,2,3))))) -> 1 | M31: =IF($K$15=2,"",iIndiRank!P20) -> 15 | N31: =iIndiRank!Q20 -> Seoul | O31: =iIndiRank!R20 -> 34 | P31: =IF($J$15=0,iIndiRank!T20,"") -> 34 | Q31: ||||||||||| | R31: =TEXT(iIndiRank!S20,iIndiRank!$E$2) -> 47.9 | V31: =iIndiRank!AT20 -> 0 | W31: =iIndiRank!AU20 ->  | Y31: =iIndiRank!AW20 -> 0 | Z31: =iIndiRank!AX20 ->  | AB31: =iIndiRank!AZ20 -> 0 | AC31: =iIndiRank!BA20 ->  | AE31: =iIndiRank!BC20 -> 0 | AF31: =iIndiRank!BD20 ->  | AH31: =iIndiRank!BF20 -> 0 | AI31: =iIndiRank!BG20 -> 
J32: =iIndiRank!L21 -> 1 | K32: =IF(J32=0,4,IF($J$15=1,8,IF(P32<=uxb_works!$B$122,0,IF(P32<=uxb_works!$B$121,1,IF(P32<=uxb_works!$B$120,2,3))))) -> 1 | M32: =IF($K$15=2,"",iIndiRank!P21) -> 16 | N32: =iIndiRank!Q21 -> Copenhagen | O32: =iIndiRank!R21 -> 33.1 | P32: =IF($J$15=0,iIndiRank!T21,"") -> 33.1 | Q32: ||||||||||| | R32: =TEXT(iIndiRank!S21,iIndiRank!$E$2) -> 47.4 | V32: =iIndiRank!AT21 -> 0 | W32: =iIndiRank!AU21 ->  | Y32: =iIndiRank!AW21 -> 0 | Z32: =iIndiRank!AX21 ->  | AB32: =iIndiRank!AZ21 -> 0 | AC32: =iIndiRank!BA21 ->  | AE32: =iIndiRank!BC21 -> 0 | AF32: =iIndiRank!BD21 ->  | AH32: =iIndiRank!BF21 -> 0 | AI32: =iIndiRank!BG21 -> 
J33: =iIndiRank!L22 -> 1 | K33: =IF(J33=0,4,IF($J$15=1,8,IF(P33<=uxb_works!$B$122,0,IF(P33<=uxb_works!$B$121,1,IF(P33<=uxb_works!$B$120,2,3))))) -> 1 | M33: =IF($K$15=2,"",iIndiRank!P22) -> 17 | N33: =iIndiRank!Q22 -> Washington DC | O33: =iIndiRank!R22 -> 29.4 | P33: =IF($J$15=0,iIndiRank!T22,"") -> 29.4 | Q33: ||||||||| | R33: =TEXT(iIndiRank!S22,iIndiRank!$E$2) -> 45.5 | V33: =iIndiRank!AT22 -> 0 | W33: =iIndiRank!AU22 ->  | Y33: =iIndiRank!AW22 -> 0 | Z33: =iIndiRank!AX22 ->  | AB33: =iIndiRank!AZ22 -> 0 | AC33: =iIndiRank!BA22 ->  | AE33: =iIndiRank!BC22 -> 0 | AF33: =iIndiRank!BD22 ->  | AH33: =iIndiRank!BF22 -> 0 | AI33: =iIndiRank!BG22 -> 
J34: =iIndiRank!L23 -> 1 | K34: =IF(J34=0,4,IF($J$15=1,8,IF(P34<=uxb_works!$B$122,0,IF(P34<=uxb_works!$B$121,1,IF(P34<=uxb_works!$B$120,2,3))))) -> 1 | M34: =IF($K$15=2,"",iIndiRank!P23) -> 18 | N34: =iIndiRank!Q23 -> New York | O34: =iIndiRank!R23 -> 28.9 | P34: =IF($J$15=0,iIndiRank!T23,"") -> 28.9 | Q34: ||||||||| | R34: =TEXT(iIndiRank!S23,iIndiRank!$E$2) -> 45.2 | V34: =iIndiRank!AT23 -> 0 | W34: =iIndiRank!AU23 ->  | Y34: =iIndiRank!AW23 -> 0 | Z34: =iIndiRank!AX23 ->  | AB34: =iIndiRank!AZ23 -> 0 | AC34: =iIndiRank!BA23 ->  | AE34: =iIndiRank!BC23 -> 0 | AF34: =iIndiRank!BD23 ->  | AH34: =iIndiRank!BF23 -> 0 | AI34: =iIndiRank!BG23 -> 
J35: =iIndiRank!L24 -> 1 | K35: =IF(J35=0,4,IF($J$15=1,8,IF(P35<=uxb_works!$B$122,0,IF(P35<=uxb_works!$B$121,1,IF(P35<=uxb_works!$B$120,2,3))))) -> 1 | M35: =IF($K$15=2,"",iIndiRank!P24) -> 19 | N35: =iIndiRank!Q24 -> Singapore | O35: =iIndiRank!R24 -> 27.9 | P35: =IF($J$15=0,iIndiRank!T24,"") -> 27.9 | Q35: ||||||||| | R35: =TEXT(iIndiRank!S24,iIndiRank!$E$2) -> 44.7 | V35: =iIndiRank!AT24 -> 0 | W35: =iIndiRank!AU24 ->  | Y35: =iIndiRank!AW24 -> 0 | Z35: =iIndiRank!AX24 ->  | AB35: =iIndiRank!AZ24 -> 0 | AC35: =iIndiRank!BA24 ->  | AE35: =iIndiRank!BC24 -> 0 | AF35: =iIndiRank!BD24 ->  | AH35: =iIndiRank!BF24 -> 0 | AI35: =iIndiRank!BG24 -> 
J36: =iIndiRank!L25 -> 1 | K36: =IF(J36=0,4,IF($J$15=1,8,IF(P36<=uxb_works!$B$122,0,IF(P36<=uxb_works!$B$121,1,IF(P36<=uxb_works!$B$120,2,3))))) -> 0 | M36: =IF($K$15=2,"",iIndiRank!P25) -> 20 | N36: =iIndiRank!Q25 -> Auckland | O36: =iIndiRank!R25 -> 23.3 | P36: =IF($J$15=0,iIndiRank!T25,"") -> 23.3 | Q36: ||||||| | R36: =TEXT(iIndiRank!S25,iIndiRank!$E$2) -> 42.3 | V36: =iIndiRank!AT25 -> 0 | W36: =iIndiRank!AU25 ->  | Y36: =iIndiRank!AW25 -> 0 | Z36: =iIndiRank!AX25 ->  | AB36: =iIndiRank!AZ25 -> 0 | AC36: =iIndiRank!BA25 ->  | AE36: =iIndiRank!BC25 -> 0 | AF36: =iIndiRank!BD25 ->  | AH36: =iIndiRank!BF25 -> 0 | AI36: =iIndiRank!BG25 -> 
J37: =iIndiRank!L26 -> 1 | K37: =IF(J37=0,4,IF($J$15=1,8,IF(P37<=uxb_works!$B$122,0,IF(P37<=uxb_works!$B$121,1,IF(P37<=uxb_works!$B$120,2,3))))) -> 0 | M37: =IF($K$15=2,"",iIndiRank!P26) -> 21 | N37: =iIndiRank!Q26 -> Toronto | O37: =iIndiRank!R26 -> 21.2 | P37: =IF($J$15=0,iIndiRank!T26,"") -> 21.2 | Q37: ||||||| | R37: =TEXT(iIndiRank!S26,iIndiRank!$E$2) -> 41.2 | V37: =iIndiRank!AT26 -> 0 | W37: =iIndiRank!AU26 ->  | Y37: =iIndiRank!AW26 -> 0 | Z37: =iIndiRank!AX26 ->  | AB37: =iIndiRank!AZ26 -> 0 | AC37: =iIndiRank!BA26 ->  | AE37: =iIndiRank!BC26 -> 0 | AF37: =iIndiRank!BD26 ->  | AH37: =iIndiRank!BF26 -> 0 | AI37: =iIndiRank!BG26 -> 
J38: =iIndiRank!L27 -> 1 | K38: =IF(J38=0,4,IF($J$15=1,8,IF(P38<=uxb_works!$B$122,0,IF(P38<=uxb_works!$B$121,1,IF(P38<=uxb_works!$B$120,2,3))))) -> 0 | M38: =IF($K$15=2,"",iIndiRank!P27) -> 22 | N38: =iIndiRank!Q27 -> Hong Kong | O38: =iIndiRank!R27 -> 20.5 | P38: =IF($J$15=0,iIndiRank!T27,"") -> 20.5 | Q38: |||||| | R38: =TEXT(iIndiRank!S27,iIndiRank!$E$2) -> 40.8 | V38: =iIndiRank!AT27 -> 0 | W38: =iIndiRank!AU27 ->  | Y38: =iIndiRank!AW27 -> 0 | Z38: =iIndiRank!AX27 ->  | AB38: =iIndiRank!AZ27 -> 0 | AC38: =iIndiRank!BA27 ->  | AE38: =iIndiRank!BC27 -> 0 | AF38: =iIndiRank!BD27 ->  | AH38: =iIndiRank!BF27 -> 0 | AI38: =iIndiRank!BG27 -> 
J39: =iIndiRank!L28 -> 1 | K39: =IF(J39=0,4,IF($J$15=1,8,IF(P39<=uxb_works!$B$122,0,IF(P39<=uxb_works!$B$121,1,IF(P39<=uxb_works!$B$120,2,3))))) -> 0 | M39: =IF($K$15=2,"",iIndiRank!P28) -> 23 | N39: =iIndiRank!Q28 -> Frankfurt | O39: =iIndiRank!R28 -> 18 | P39: =IF($J$15=0,iIndiRank!T28,"") -> 18 | Q39: |||||| | R39: =TEXT(iIndiRank!S28,iIndiRank!$E$2) -> 39.5 | V39: =iIndiRank!AT28 -> 0 | W39: =iIndiRank!AU28 ->  | Y39: =iIndiRank!AW28 -> 0 | Z39: =iIndiRank!AX28 ->  | AB39: =iIndiRank!AZ28 -> 0 | AC39: =iIndiRank!BA28 ->  | AE39: =iIndiRank!BC28 -> 0 | AF39: =iIndiRank!BD28 ->  | AH39: =iIndiRank!BF28 -> 0 | AI39: =iIndiRank!BG28 -> 
J40: =iIndiRank!L29 -> 1 | K40: =IF(J40=0,4,IF($J$15=1,8,IF(P40<=uxb_works!$B$122,0,IF(P40<=uxb_works!$B$121,1,IF(P40<=uxb_works!$B$120,2,3))))) -> 0 | M40: =IF($K$15=2,"",iIndiRank!P29) -> 24 | N40: =iIndiRank!Q29 -> Paris | O40: =iIndiRank!R29 -> 15.9 | P40: =IF($J$15=0,iIndiRank!T29,"") -> 15.9 | Q40: ||||| | R40: =TEXT(iIndiRank!S29,iIndiRank!$E$2) -> 38.4 | V40: =iIndiRank!AT29 -> 0 | W40: =iIndiRank!AU29 ->  | Y40: =iIndiRank!AW29 -> 0 | Z40: =iIndiRank!AX29 ->  | AB40: =iIndiRank!AZ29 -> 0 | AC40: =iIndiRank!BA29 ->  | AE40: =iIndiRank!BC29 -> 0 | AF40: =iIndiRank!BD29 ->  | AH40: =iIndiRank!BF29 -> 0 | AI40: =iIndiRank!BG29 -> 
J41: =iIndiRank!L30 -> 1 | K41: =IF(J41=0,4,IF($J$15=1,8,IF(P41<=uxb_works!$B$122,0,IF(P41<=uxb_works!$B$121,1,IF(P41<=uxb_works!$B$120,2,3))))) -> 0 | M41: =IF($K$15=2,"",iIndiRank!P30) -> 25 | N41: =iIndiRank!Q30 -> Zurich | O41: =iIndiRank!R30 -> 14.7 | P41: =IF($J$15=0,iIndiRank!T30,"") -> 14.7 | Q41: |||| | R41: =TEXT(iIndiRank!S30,iIndiRank!$E$2) -> 37.8 | V41: =iIndiRank!AT30 -> 0 | W41: =iIndiRank!AU30 ->  | Y41: =iIndiRank!AW30 -> 0 | Z41: =iIndiRank!AX30 ->  | AB41: =iIndiRank!AZ30 -> 0 | AC41: =iIndiRank!BA30 ->  | AE41: =iIndiRank!BC30 -> 0 | AF41: =iIndiRank!BD30 ->  | AH41: =iIndiRank!BF30 -> 0 | AI41: =iIndiRank!BG30 -> 
J42: =iIndiRank!L31 -> 1 | K42: =IF(J42=0,4,IF($J$15=1,8,IF(P42<=uxb_works!$B$122,0,IF(P42<=uxb_works!$B$121,1,IF(P42<=uxb_works!$B$120,2,3))))) -> 0 | M42: =IF($K$15=2,"",iIndiRank!P31) -> 26 | N42: =iIndiRank!Q31 -> Berlin | O42: =iIndiRank!R31 -> 13.2 | P42: =IF($J$15=0,iIndiRank!T31,"") -> 13.2 | Q42: |||| | R42: =TEXT(iIndiRank!S31,iIndiRank!$E$2) -> 37.0 | V42: =iIndiRank!AT31 -> 0 | W42: =iIndiRank!AU31 ->  | Y42: =iIndiRank!AW31 -> 0 | Z42: =iIndiRank!AX31 ->  | AB42: =iIndiRank!AZ31 -> 0 | AC42: =iIndiRank!BA31 ->  | AE42: =iIndiRank!BC31 -> 0 | AF42: =iIndiRank!BD31 ->  | AH42: =iIndiRank!BF31 -> 0 | AI42: =iIndiRank!BG31 -> 
J43: =iIndiRank!L32 -> 1 | K43: =IF(J43=0,4,IF($J$15=1,8,IF(P43<=uxb_works!$B$122,0,IF(P43<=uxb_works!$B$121,1,IF(P43<=uxb_works!$B$120,2,3))))) -> 0 | M43: =IF($K$15=2,"",iIndiRank!P32) -> 27 | N43: =iIndiRank!Q32 -> Amsterdam | O43: =iIndiRank!R32 -> 12.8 | P43: =IF($J$15=0,iIndiRank!T32,"") -> 12.8 | Q43: |||| | R43: =TEXT(iIndiRank!S32,iIndiRank!$E$2) -> 36.8 | V43: =iIndiRank!AT32 -> 0 | W43: =iIndiRank!AU32 ->  | Y43: =iIndiRank!AW32 -> 0 | Z43: =iIndiRank!AX32 ->  | AB43: =iIndiRank!AZ32 -> 0 | AC43: =iIndiRank!BA32 ->  | AE43: =iIndiRank!BC32 -> 0 | AF43: =iIndiRank!BD32 ->  | AH43: =iIndiRank!BF32 -> 0 | AI43: =iIndiRank!BG32 -> 
J44: =iIndiRank!L33 -> 1 | K44: =IF(J44=0,4,IF($J$15=1,8,IF(P44<=uxb_works!$B$122,0,IF(P44<=uxb_works!$B$121,1,IF(P44<=uxb_works!$B$120,2,3))))) -> 0 | M44: =IF($K$15=2,"",iIndiRank!P33) -> 28 | N44: =iIndiRank!Q33 -> London | O44: =iIndiRank!R33 -> 8.8 | P44: =IF($J$15=0,iIndiRank!T33,"") -> 8.8 | Q44: || | R44: =TEXT(iIndiRank!S33,iIndiRank!$E$2) -> 34.7 | V44: =iIndiRank!AT33 -> 0 | W44: =iIndiRank!AU33 ->  | Y44: =iIndiRank!AW33 -> 0 | Z44: =iIndiRank!AX33 ->  | AB44: =iIndiRank!AZ33 -> 0 | AC44: =iIndiRank!BA33 ->  | AE44: =iIndiRank!BC33 -> 0 | AF44: =iIndiRank!BD33 ->  | AH44: =iIndiRank!BF33 -> 0 | AI44: =iIndiRank!BG33 -> 
J45: =iIndiRank!L34 -> 1 | K45: =IF(J45=0,4,IF($J$15=1,8,IF(P45<=uxb_works!$B$122,0,IF(P45<=uxb_works!$B$121,1,IF(P45<=uxb_works!$B$120,2,3))))) -> 0 | M45: =IF($K$15=2,"",iIndiRank!P34) -> 29 | N45: =iIndiRank!Q34 -> Tokyo | O45: =iIndiRank!R34 -> 8 | P45: =IF($J$15=0,iIndiRank!T34,"") -> 8 | Q45: || | R45: =TEXT(iIndiRank!S34,iIndiRank!$E$2) -> 34.3 | V45: =iIndiRank!AT34 -> 0 | W45: =iIndiRank!AU34 ->  | Y45: =iIndiRank!AW34 -> 0 | Z45: =iIndiRank!AX34 ->  | AB45: =iIndiRank!AZ34 -> 0 | AC45: =iIndiRank!BA34 ->  | AE45: =iIndiRank!BC34 -> 0 | AF45: =iIndiRank!BD34 ->  | AH45: =iIndiRank!BF34 -> 0 | AI45: =iIndiRank!BG34 -> 
J46: =iIndiRank!L35 -> 1 | K46: =IF(J46=0,4,IF($J$15=1,8,IF(P46<=uxb_works!$B$122,0,IF(P46<=uxb_works!$B$121,1,IF(P46<=uxb_works!$B$120,2,3))))) -> 0 | M46: =IF($K$15=2,"",iIndiRank!P35) -> 30 | N46: =iIndiRank!Q35 -> Sydney | O46: =iIndiRank!R35 -> 0 | P46: =IF($J$15=0,iIndiRank!T35,"") -> 0 | R46: =TEXT(iIndiRank!S35,iIndiRank!$E$2) -> 30.1 | V46: =iIndiRank!AT35 -> 0 | W46: =iIndiRank!AU35 ->  | Y46: =iIndiRank!AW35 -> 0 | Z46: =iIndiRank!AX35 ->  | AB46: =iIndiRank!AZ35 -> 0 | AC46: =iIndiRank!BA35 ->  | AE46: =iIndiRank!BC35 -> 0 | AF46: =iIndiRank!BD35 ->  | AH46: =iIndiRank!BF35 -> 0 | AI46: =iIndiRank!BG35 -> 

Sheet CProfile
A1: =uxb_works!$B$92 -> Digital Cities Index | BA1: 1 | BB1: 3
BF2: 2 | BG2: 0
A6: =uxb_works!$C$5 -> The active weight profile has been changed from its default setting
E12: =uxb_works!C26 -> Amsterdam
B13: =COUNTIF(B15:B24,">0") -> 5 | G13: Score | H13: Rank
B15: =iCP_Chart!CV41 -> 2 | C15: =iCP_Chart!CX41 -> OVERALL SCORE | F15: =iCP_Chart!DA41 -> 3 | G15: =iCP_Chart!CY41 -> 74.6 | H15: =iCP_Chart!CZ41 -> 2
B16: =iCP_Chart!CV42 -> 1 | C16: =iCP_Chart!CX42 -> 1) CONNECTIVITY | F16: =iCP_Chart!DA42 -> 4 | G16: =iCP_Chart!CY42 -> 77 | H16: =iCP_Chart!CZ42 -> 6
B17: =iCP_Chart!CV43 -> 2 | C17: =iCP_Chart!CX43 -> 2) SERVICES | F17: =iCP_Chart!DA43 -> 3 | G17: =iCP_Chart!CY43 -> 73.2 | H17: =iCP_Chart!CZ43 -> 4
B18: =iCP_Chart!CV44 -> 1 | C18: =iCP_Chart!CX44 -> 3) CULTURE | F18: =iCP_Chart!DA44 -> 3 | G18: =iCP_Chart!CY44 -> 62.1 | H18: =iCP_Chart!CZ44 -> 15
B19: =iCP_Chart!CV45 -> 2 | C19: =iCP_Chart!CX45 -> 4) SUSTAINABILITY | F19: =iCP_Chart!DA45 -> 4 | G19: =iCP_Chart!CY45 -> 85.4 | H19: =iCP_Chart!CZ45 -> 6
B20: =iCP_Chart!CV46 -> 0 | C20: =iCP_Chart!CX46 ->  | F20: =iCP_Chart!DA46 ->  | G20: =iCP_Chart!CY46 ->  | H20: =iCP_Chart!CZ46 -> 
B21: =iCP_Chart!CV47 -> 0 | C21: =iCP_Chart!CX47 ->  | F21: =iCP_Chart!DA47 ->  | G21: =iCP_Chart!CY47 ->  | H21: =iCP_Chart!CZ47 -> 
B22: =iCP_Chart!CV48 -> 0 | C22: =iCP_Chart!CX48 ->  | F22: =iCP_Chart!DA48 ->  | G22: =iCP_Chart!CY48 ->  | H22: =iCP_Chart!CZ48 -> 
B23: =iCP_Chart!CV49 -> 0 | C23: =iCP_Chart!CX49 ->  | F23: =iCP_Chart!DA49 ->  | G23: =iCP_Chart!CY49 ->  | H23: =iCP_Chart!CZ49 -> 
B24: =iCP_Chart!CV50 -> 0 | C24: =iCP_Chart!CX50 ->  | F24: =iCP_Chart!DA50 ->  | G24: =iCP_Chart!CY50 ->  | H24: =iCP_Chart!CZ50 -> 
B137: =IF(C137="",0,1) ->  | C137: =TRIM(#REF!) ->  | E137: =#REF! ->  | G137: =IF(H137="",0,1) ->  | H137: =TRIM(#REF!) -> 
C138: =TRIM(#REF!) ->  | E138: =#REF! ->  | H138: =TRIM(#REF!) -> 
C139: =TRIM(#REF!) ->  | E139: =#REF! ->  | H139: =TRIM(#REF!) -> 
C140: =TRIM(#REF!) ->  | E140: =#REF! ->  | H140: =TRIM(#REF!) -> 
C141: =TRIM(#REF!) ->  | E141: =#REF! ->  | H141: =TRIM(#REF!) -> 
C142: =TRIM(#REF!) ->  | E142: =#REF! ->  | H142: =TRIM(#REF!) -> 
C143: =TRIM(#REF!) ->  | E143: =#REF! ->  | H143: =TRIM(#REF!) -> 
C144: =TRIM(#REF!) ->  | E144: =#REF! ->  | H144: =TRIM(#REF!) -> 
C145: =TRIM(#REF!) ->  | E145: =#REF! ->  | H145: =TRIM(#REF!) -> 
C146: =TRIM(#REF!) ->  | E146: =#REF! ->  | H146: =TRIM(#REF!) -> 
C147: =TRIM(#REF!) ->  | E147: =#REF! ->  | H147: =TRIM(#REF!) -> 
C148: =TRIM(#REF!) ->  | E148: =#REF! ->  | H148: =TRIM(#REF!) -> 
C149: =TRIM(#REF!) ->  | E149: =#REF! ->  | H149: =TRIM(#REF!) -> 
C150: =TRIM(#REF!) ->  | E150: =#REF! ->  | H150: =TRIM(#REF!) -> 
C151: =TRIM(#REF!) ->  | E151: =#REF! ->  | H151: =TRIM(#REF!) -> 
C152: =TRIM(#REF!) ->  | E152: =#REF! ->  | H152: =TRIM(#REF!) -> 
C153: =TRIM(#REF!) ->  | E153: =#REF! ->  | H153: =TRIM(#REF!) -> 
C154: =TRIM(#REF!) ->  | E154: =#REF! ->  | H154: =TRIM(#REF!) -> 
C155: =TRIM(#REF!) ->  | E155: =#REF! ->  | H155: =TRIM(#REF!) -> 
C156: =TRIM(#REF!) ->  | E156: =#REF! ->  | H156: =TRIM(#REF!) -> 
C157: =TRIM(#REF!) ->  | E157: =#REF! ->  | H157: =TRIM(#REF!) -> 
C158: =TRIM(#REF!) ->  | E158: =#REF! ->  | H158: =TRIM(#REF!) -> 
C159: =TRIM(#REF!) ->  | E159: =#REF! ->  | H159: =TRIM(#REF!) -> 
C160: =TRIM(#REF!) ->  | E160: =#REF! ->  | H160: =TRIM(#REF!) -> 
C161: =TRIM(#REF!) ->  | E161: =#REF! ->  | H161: =TRIM(#REF!) -> 
C162: =TRIM(#REF!) ->  | E162: =#REF! ->  | H162: =TRIM(#REF!) -> 
C163: =TRIM(#REF!) ->  | E163: =#REF! ->  | H163: =TRIM(#REF!) -> 
C164: =TRIM(#REF!) ->  | E164: =#REF! ->  | H164: =TRIM(#REF!) -> 
C165: =TRIM(#REF!) ->  | E165: =#REF! ->  | H165: =TRIM(#REF!) -> 
C166: =TRIM(#REF!) ->  | E166: =#REF! ->  | H166: =TRIM(#REF!) -> 
C167: =TRIM(#REF!) ->  | E167: =#REF! ->  | H167: =TRIM(#REF!) -> 
C168: =TRIM(#REF!) ->  | E168: =#REF! ->  | H168: =TRIM(#REF!) -> 
C169: =TRIM(#REF!) ->  | E169: =#REF! ->  | H169: =TRIM(#REF!) -> 
C170: =TRIM(#REF!) ->  | E170: =#REF! ->  | H170: =TRIM(#REF!) -> 
C171: =TRIM(#REF!) ->  | E171: =#REF! ->  | H171: =TRIM(#REF!) -> 
C172: =TRIM(#REF!) ->  | E172: =#REF! ->  | H172: =TRIM(#REF!) -> 
C173: =TRIM(#REF!) ->  | E173: =#REF! ->  | H173: =TRIM(#REF!) -> 
C174: =TRIM(#REF!) ->  | E174: =#REF! ->  | H174: =TRIM(#REF!) -> 
C175: =TRIM(#REF!) ->  | E175: =#REF! ->  | H175: =TRIM(#REF!) -> 
C176: =TRIM(#REF!) ->  | E176: =#REF! ->  | H176: =TRIM(#REF!) -> 

Sheet CtyScoreCard
A1: =uxb_works!$B$92 -> Digital Cities Index | AC1: $C$30 | BA1: 1 | BB1: 4 | BF1: 1 | BG1: 2
A3: t
A4: =uxb_works!B111 -> 2
A6: =uxb_works!$C$5 -> The active weight profile has been changed from its default setting
C8: =uxb_works!D67 -> There are 30 cities in the active filter set
C13: =uxb_works!C26 -> Amsterdam | I13: Score | J13: ="Rank/"&uxb_works!$B$1 -> Rank/30 | K13: =IF(uxb_works!E10=3,"All city average","See filters above") -> All city average
B14: 1 | C14: =iCSCtbl!C3 -> OVERALL SCORE | I14: =iCSCtbl!D3 -> 74.6 | J14: =iCSCtbl!E3 -> 2 | K14: =iCSCtbl!G3 -> 63.3
B15: =iCSCtbl!F4 -> 1 | C15: =TRIM(UPPER(iCSCtbl!C4)) -> 1) CONNECTIVITY | I15: =iCSCtbl!D4 -> 77 | J15: =iCSCtbl!E4 -> 6 | K15: =iCSCtbl!G4 -> 65.9
B16: =iCSCtbl!F5 -> 2 | C16: =TRIM(iCSCtbl!C5) -> 1.1) Digital infrastructure | I16: =iCSCtbl!D5 -> 84 | J16: =iCSCtbl!E5 -> 8 | K16: =iCSCtbl!G5 -> 74.5
B17: =iCSCtbl!F6 -> 2 | C17: =TRIM(iCSCtbl!C6) -> 1.2) Quality | I17: =iCSCtbl!D6 -> 66.7 | J17: =iCSCtbl!E6 -> 7 | K17: =iCSCtbl!G6 -> 43.5
B18: =iCSCtbl!F7 -> 2 | C18: =TRIM(iCSCtbl!C7) -> 1.3) Affordability | I18: =iCSCtbl!D7 -> 74.6 | J18: =iCSCtbl!E7 -> 15 | K18: =iCSCtbl!G7 -> 69.3
B19: =iCSCtbl!F8 -> 1 | C19: =TRIM(iCSCtbl!C8) -> 2) SERVICES | I19: =iCSCtbl!D8 -> 73.2 | J19: =iCSCtbl!E8 -> 4 | K19: =iCSCtbl!G8 -> 61.4
B20: =iCSCtbl!F9 -> 2 | C20: =TRIM(iCSCtbl!C9) -> 2.1) E-gov services for residents & businesses | I20: =iCSCtbl!D9 -> 48.6 | J20: =iCSCtbl!E9 -> 29 | K20: =iCSCtbl!G9 -> 68.2
B21: =iCSCtbl!F10 -> 2 | C21: =TRIM(iCSCtbl!C10) -> 2.2) Digital finance | I21: =iCSCtbl!D10 -> 58.5 | J21: =iCSCtbl!E10 -> 13 | K21: =iCSCtbl!G10 -> 50.8
B22: =iCSCtbl!F11 -> 2 | C22: =TRIM(iCSCtbl!C11) -> 2.3) Transportation | I22: =iCSCtbl!D11 -> 100 | J22: =iCSCtbl!E11 -> =1 | K22: =iCSCtbl!G11 -> 67.6
B23: =iCSCtbl!F12 -> 2 | C23: =TRIM(iCSCtbl!C12) -> 2.4) Healthcare | I23: =iCSCtbl!D12 -> 91.6 | J23: =iCSCtbl!E12 -> 7 | K23: =iCSCtbl!G12 -> 71.6
B24: =iCSCtbl!F13 -> 2 | C24: =TRIM(iCSCtbl!C13) -> 2.5) Education | I24: =iCSCtbl!D13 -> 100 | J24: =iCSCtbl!E13 -> =1 | K24: =iCSCtbl!G13 -> 73.3
B25: =iCSCtbl!F14 -> 2 | C25: =TRIM(iCSCtbl!C14) -> 2.6) Retail and hospitality | I25: =iCSCtbl!D14 -> 40.3 | J25: =iCSCtbl!E14 -> 9 | K25: =iCSCtbl!G14 -> 33.9
B26: =iCSCtbl!F15 -> 1 | C26: =TRIM(iCSCtbl!C15) -> 3) CULTURE | I26: =iCSCtbl!D15 -> 62.1 | J26: =iCSCtbl!E15 -> 15 | K26: =iCSCtbl!G15 -> 59.2
B27: =iCSCtbl!F16 -> 2 | C27: =TRIM(iCSCtbl!C16) -> 3.1) Digital inclusion | I27: =iCSCtbl!D16 -> 65.8 | J27: =iCSCtbl!E16 -> 22 | K27: =iCSCtbl!G16 -> 69.5
B28: =iCSCtbl!F17 -> 2 | C28: =TRIM(iCSCtbl!C17) -> 3.2) Government support | I28: =iCSCtbl!D17 -> 76 | J28: =iCSCtbl!E17 -> 15 | K28: =iCSCtbl!G17 -> 71.7
B29: =iCSCtbl!F18 -> 2 | C29: =TRIM(iCSCtbl!C18) -> 3.3) Innovation ecosystem | I29: =iCSCtbl!D18 -> 62 | J29: =iCSCtbl!E18 -> 9 | K29: =iCSCtbl!G18 -> 49.1
B30: =iCSCtbl!F19 -> 2 | C30: =TRIM(iCSCtbl!C19) -> 3.4) Public attitude and engagement | I30: =iCSCtbl!D19 -> 35.1 | J30: =iCSCtbl!E19 -> 20 | K30: =iCSCtbl!G19 -> 44.9
B31: =iCSCtbl!F20 -> 1 | C31: =TRIM(iCSCtbl!C20) -> 4) SUSTAINABILITY | I31: =iCSCtbl!D20 -> 85.4 | J31: =iCSCtbl!E20 -> 6 | K31: =iCSCtbl!G20 -> 66.3
B32: =iCSCtbl!F21 -> 2 | C32: =TRIM(iCSCtbl!C21) -> 4.1) Efficient resource management | I32: =iCSCtbl!D21 -> 87.5 | J32: =iCSCtbl!E21 -> =11 | K32: =iCSCtbl!G21 -> 76
B33: =iCSCtbl!F22 -> 2 | C33: =TRIM(iCSCtbl!C22) -> 4.2) Emissions reduction | I33: =iCSCtbl!D22 -> 100 | J33: =iCSCtbl!E22 -> =1 | K33: =iCSCtbl!G22 -> 78
B34: =iCSCtbl!F23 -> 2 | C34: =TRIM(iCSCtbl!C23) -> 4.3) Pollution | I34: =iCSCtbl!D23 -> 50 | J34: =iCSCtbl!E23 -> =15 | K34: =iCSCtbl!G23 -> 57.8
B35: =iCSCtbl!F24 -> 2 | C35: =TRIM(iCSCtbl!C24) -> 4.4) Circular economy | I35: =iCSCtbl!D24 -> 100 | J35: =iCSCtbl!E24 -> =1 | K35: =iCSCtbl!G24 -> 48
B48: =IF(C48="",0,1) -> 0 | F48: =IF(G48="",0,1) -> 0 | W48: =C48 ->  | X48: =G48 -> 
B49: 0 | F49: 0
B50: 0 | F50: 0
B51: 0 | F51: 0
B52: 0 | F52: 0
B53: 0 | F53: 0
B54: 0 | F54: 0
B55: 0 | F55: 0
B56: 0 | F56: 0
B57: 0 | F57: 0
B58: 0 | F58: 0
B59: 0 | F59: 0
B60: 0 | F60: 0
B61: 0 | F61: 0
B62: 0 | F62: 0
B63: 0 | F63: 0
B64: 0 | F64: 0
B65: 0 | F65: 0
B66: 0 | F66: 0
B67: 0 | F67: 0
B68: 0 | F68: 0
B69: 0 | F69: 0
B70: 0 | F70: 0
B71: 0 | F71: 0
B72: 0 | F72: 0
B73: 0 | F73: 0
B74: 0 | F74: 0
B75: 0 | F75: 0
B76: 0 | F76: 0
B77: 0 | F77: 0
B78: 0 | F78: 0
B79: 0 | F79: 0
B80: 0 | F80: 0
B81: 0 | F81: 0
B82: 0 | F82: 0
B83: 0 | F83: 0
B84: 0 | F84: 0
B85: 0 | F85: 0
B86: 0 | F86: 0
B87: 0 | F87: 0
B88: 0 | F88: 0
B89: 0 | F89: 0
B90: 0 | F90: 0
B91: 0 | F91: 0
B92: 0 | F92: 0
B93: 0 | F93: 0
B94: 0 | F94: 0
B95: 0 | F95: 0
B96: 0 | F96: 0
B97: 0 | F97: 0
B98: 0 | F98: 0
B99: 0 | F99: 0
B100: 0 | F100: 0
B101: 0 | F101: 0
B102: 0 | F102: 0
B103: 0 | F103: 0
B104: 0 | F104: 0
B105: 0 | F105: 0
B106: =IF(C106="",0,1) -> 0 | F106: =IF(G106="",0,1) -> 0 | W106: =C106 ->  | X106: =G106 -> 
B107: 0 | F107: 0
B108: 0 | F108: 0
B109: 0 | F109: 0
B110: 0 | F110: 0
B111: 0 | F111: 0
B112: 0 | F112: 0
B113: 0 | F113: 0
B114: 0 | F114: 0
B115: 0 | F115: 0
B116: 0 | F116: 0
B117: 0 | F117: 0
B118: 0 | F118: 0
B119: 0 | F119: 0
B120: 0 | F120: 0
B121: 0 | F121: 0
B122: 0 | F122: 0
B123: 0 | F123: 0
B124: 0 | F124: 0
B125: 0 | F125: 0
B126: 0 | F126: 0
B127: 0 | F127: 0
B128: 0 | F128: 0
B129: 0 | F129: 0
B130: 0 | F130: 0
B131: 0 | F131: 0
B132: 0 | F132: 0
B133: 0 | F133: 0
B134: 0 | F134: 0
B135: 0 | F135: 0
B136: 0 | F136: 0
B137: 0 | F137: 0
B138: 0 | F138: 0
B139: 0 | F139: 0
B140: 0 | F140: 0
B141: 0 | F141: 0
B142: 0 | F142: 0
B143: 0 | F143: 0

Sheet CCompare
B1: s | C1: =uxb_works!$B$92 -> Digital Cities Index | Z1: 1 | AX1: $V$16 | AY1: =INDEX(tblIndicators!$AL$2:$AL$60,MATCH($AX$2,tblIndiSets!$F$13:$F$81,0)) ->  | BA1: 1 | BB1: 5
AX2: =TRIM(INDIRECT(AX1)) -> OVERALL SCORE | AY2: =INDEX(tblIndicators!$O$2:$O$60,MATCH($AX$2,tblIndiSets!$F$13:$F$81,0)) -> 
AX4: =AY1&" "&AY2 -> 
C6: =uxb_works!$C$5 -> The active weight profile has been changed from its default setting
C8: =uxb_works!$D$67 -> There are 30 cities in the active filter set
C10: =TRIM(uxb_works!D32) -> OVERALL SCORE
C12: City Comparison Overview | X12: 1 | Y12: 2 | Z12: =iCComp!AG17 -> 3 | AA12: =iCComp!AH17 -> 1 | AB12: =iCComp!AI17 -> 2 | AC12: =iCComp!AJ17 -> 3 | AD12: =iCComp!AK17 -> 0 | AE12: =iCComp!AL17 -> 0 | AF12: =iCComp!AM17 -> 0 | AG12: =iCComp!AN17 -> 0 | AH12: =iCComp!AO17 -> 0
B14: =MAX(COUNTIF(S16:S51,"<>0"),11) -> 22 | S14: =COUNTIF(S16:S51,"<>0") -> 22 | T14: =uxb_works!$B$130 -> 1 | V14: Indicator | X14: =iCComp!C2 -> Amsterdam | AA14: =iCComp!C3 -> Auckland | AD14: =iCComp!C4 -> See Filter Selection | AG14: See Filter Selection
X15: Score | Y15: Rank | AA15: Score | AB15: Rank | AD15: Score | AG15: Score | AH15: Rank
S16: =iCComp!AB22 -> 2 | T16: =iCComp!AC22 -> 2 | V16: =iCComp!AD22 -> OVERALL SCORE | X16: =iCComp!AE22 -> 74.6 | Y16: =iCComp!AF22 -> 2 | AA16: =iCComp!AH22 -> 60.1 | AB16: =iCComp!AI22 -> 22 | AD16: =iCComp!AK22 -> 63.3 | AG16: =iCComp!AN22 -> 0 | AH16: =iCComp!AO22 -> 0 | AK16: =MIN(X16,AA16) -> 60.1 | AL16: =MAX(X16,AA16) -> 74.6 | AN16: =V16 -> OVERALL SCORE
S17: =iCComp!AB23 -> 1 | T17: =iCComp!AC23 -> 1 | V17: =iCComp!AD23 -> 1) CONNECTIVITY | X17: =iCComp!AE23 -> 77 | Y17: =iCComp!AF23 -> 6 | AA17: =iCComp!AH23 -> 59.7 | AB17: =iCComp!AI23 -> 22 | AD17: =iCComp!AK23 -> 65.9 | AG17: =iCComp!AN23 -> 0 | AH17: =iCComp!AO23 -> 0 | AK17: =MIN(X17,AA17) -> 59.7 | AL17: =MAX(X17,AA17) -> 77 | AN17: =V17 -> 1) CONNECTIVITY
S18: =iCComp!AB24 -> 1 | T18: =iCComp!AC24 -> 1 | V18: =iCComp!AD24 -> 1.1) Digital infrastructure | X18: =iCComp!AE24 -> 84 | Y18: =iCComp!AF24 -> 8 | AA18: =iCComp!AH24 -> 77.3 | AB18: =iCComp!AI24 -> 15 | AD18: =iCComp!AK24 -> 74.5 | AG18: =iCComp!AN24 -> 0 | AH18: =iCComp!AO24 -> 0 | AK18: 77.3 | AL18: 84 | AN18: =V18 -> 1.1) Digital infrastructure
S19: =iCComp!AB25 -> 1 | T19: =iCComp!AC25 -> 1 | V19: =iCComp!AD25 -> 1.2) Quality | X19: =iCComp!AE25 -> 66.7 | Y19: =iCComp!AF25 -> 7 | AA19: =iCComp!AH25 -> 44.1 | AB19: =iCComp!AI25 -> 12 | AD19: =iCComp!AK25 -> 43.5 | AG19: =iCComp!AN25 -> 0 | AH19: =iCComp!AO25 -> 0 | AK19: 44.1 | AL19: 66.7 | AN19: 1.2) Quality
S20: =iCComp!AB26 -> 1 | T20: =iCComp!AC26 -> 1 | V20: =iCComp!AD26 -> 1.3) Affordability | X20: =iCComp!AE26 -> 74.6 | Y20: =iCComp!AF26 -> 15 | AA20: =iCComp!AH26 -> 46.8 | AB20: =iCComp!AI26 -> 25 | AD20: =iCComp!AK26 -> 69.3 | AG20: =iCComp!AN26 -> 0 | AH20: =iCComp!AO26 -> 0 | AK20: 46.8 | AL20: 74.6 | AN20: 1.3) Affordability
S21: =iCComp!AB27 -> 2 | T21: =iCComp!AC27 -> 1 | V21: =iCComp!AD27 -> 2) SERVICES | X21: =iCComp!AE27 -> 73.2 | Y21: =iCComp!AF27 -> 4 | AA21: =iCComp!AH27 -> 49.5 | AB21: =iCComp!AI27 -> 25 | AD21: =iCComp!AK27 -> 61.4 | AG21: =iCComp!AN27 -> 0 | AH21: =iCComp!AO27 -> 0 | AK21: 49.5 | AL21: 73.2 | AN21: 2) SERVICES
S22: =iCComp!AB28 -> 2 | T22: =iCComp!AC28 -> 1 | V22: =iCComp!AD28 -> 2.1) E-gov services for residents & businesses | X22: =iCComp!AE28 -> 48.6 | Y22: =iCComp!AF28 -> 29 | AA22: =iCComp!AH28 -> 65.4 | AB22: =iCComp!AI28 -> 14 | AD22: =iCComp!AK28 -> 68.2 | AG22: =iCComp!AN28 -> 0 | AH22: =iCComp!AO28 -> 0 | AK22: 48.6 | AL22: 65.4 | AN22: 2.1) E-gov services for residents & businesses
S23: =iCComp!AB29 -> 2 | T23: =iCComp!AC29 -> 1 | V23: =iCComp!AD29 -> 2.2) Digital finance | X23: =iCComp!AE29 -> 58.5 | Y23: =iCComp!AF29 -> 13 | AA23: =iCComp!AH29 -> 65.6 | AB23: =iCComp!AI29 -> 5 | AD23: =iCComp!AK29 -> 50.8 | AG23: =iCComp!AN29 -> 0 | AH23: =iCComp!AO29 -> 0 | AK23: 58.5 | AL23: 65.6 | AN23: 2.2) Digital finance
S24: =iCComp!AB30 -> 2 | T24: =iCComp!AC30 -> 1 | V24: =iCComp!AD30 -> 2.3) Transportation | X24: =iCComp!AE30 -> 100 | Y24: =iCComp!AF30 -> =1 | AA24: =iCComp!AH30 -> 41 | AB24: =iCComp!AI30 -> 24 | AD24: =iCComp!AK30 -> 67.6 | AG24: =iCComp!AN30 -> 0 | AH24: =iCComp!AO30 -> 0 | AK24: 41 | AL24: 100 | AN24: 2.3) Transportation
S25: =iCComp!AB31 -> 2 | T25: =iCComp!AC31 -> 1 | V25: =iCComp!AD31 -> 2.4) Healthcare | X25: =iCComp!AE31 -> 91.6 | Y25: =iCComp!AF31 -> 7 | AA25: =iCComp!AH31 -> 54.1 | AB25: =iCComp!AI31 -> 24 | AD25: =iCComp!AK31 -> 71.6 | AG25: =iCComp!AN31 -> 0 | AH25: =iCComp!AO31 -> 0 | AK25: 54.1 | AL25: 91.6 | AN25: 2.4) Healthcare
S26: =iCComp!AB32 -> 2 | T26: =iCComp!AC32 -> 1 | V26: =iCComp!AD32 -> 2.5) Education | X26: =iCComp!AE32 -> 100 | Y26: =iCComp!AF32 -> =1 | AA26: =iCComp!AH32 -> 50 | AB26: =iCComp!AI32 -> =17 | AD26: =iCComp!AK32 -> 73.3 | AG26: =iCComp!AN32 -> 0 | AH26: =iCComp!AO32 -> 0 | AK26: 50 | AL26: 100 | AN26: 2.5) Education
S27: =iCComp!AB33 -> 2 | T27: =iCComp!AC33 -> 1 | V27: =iCComp!AD33 -> 2.6) Retail and hospitality | X27: =iCComp!AE33 -> 40.3 | Y27: =iCComp!AF33 -> 9 | AA27: =iCComp!AH33 -> 19.2 | AB27: =iCComp!AI33 -> 21 | AD27: =iCComp!AK33 -> 33.9 | AG27: =iCComp!AN33 -> 0 | AH27: =iCComp!AO33 -> 0 | AK27: 19.2 | AL27: 40.3 | AN27: 2.6) Retail and hospitality
S28: =iCComp!AB34 -> 1 | T28: =iCComp!AC34 -> 1 | V28: =iCComp!AD34 -> 3) CULTURE | X28: =iCComp!AE34 -> 62.1 | Y28: =iCComp!AF34 -> 15 | AA28: =iCComp!AH34 -> 67 | AB28: =iCComp!AI34 -> 7 | AD28: =iCComp!AK34 -> 59.2 | AG28: =iCComp!AN34 -> 0 | AH28: =iCComp!AO34 -> 0 | AK28: 62.1 | AL28: 67 | AN28: 3) CULTURE
S29: =iCComp!AB35 -> 1 | T29: =iCComp!AC35 -> 1 | V29: =iCComp!AD35 -> 3.1) Digital inclusion | X29: =iCComp!AE35 -> 65.8 | Y29: =iCComp!AF35 -> 22 | AA29: =iCComp!AH35 -> 69.4 | AB29: =iCComp!AI35 -> 17 | AD29: =iCComp!AK35 -> 69.5 | AG29: =iCComp!AN35 -> 0 | AH29: =iCComp!AO35 -> 0 | AK29: 65.8 | AL29: 69.4 | AN29: 3.1) Digital inclusion
S30: =iCComp!AB36 -> 1 | T30: =iCComp!AC36 -> 1 | V30: =iCComp!AD36 -> 3.2) Government support | X30: =iCComp!AE36 -> 76 | Y30: =iCComp!AF36 -> 15 | AA30: =iCComp!AH36 -> 81.1 | AB30: =iCComp!AI36 -> 8 | AD30: =iCComp!AK36 -> 71.7 | AG30: =iCComp!AN36 -> 0 | AH30: =iCComp!AO36 -> 0 | AK30: 76 | AL30: 81.1 | AN30: 3.2) Government support
S31: =iCComp!AB37 -> 1 | T31: =iCComp!AC37 -> 1 | V31: =iCComp!AD37 -> 3.3) Innovation ecosystem | X31: =iCComp!AE37 -> 62 | Y31: =iCComp!AF37 -> 9 | AA31: =iCComp!AH37 -> 49.1 | AB31: =iCComp!AI37 -> 18 | AD31: =iCComp!AK37 -> 49.1 | AG31: =iCComp!AN37 -> 0 | AH31: =iCComp!AO37 -> 0 | AK31: 49.1 | AL31: 62 | AN31: 3.3) Innovation ecosystem
S32: =iCComp!AB38 -> 1 | T32: =iCComp!AC38 -> 1 | V32: =iCComp!AD38 -> 3.4) Public attitude and engagement | X32: =iCComp!AE38 -> 35.1 | Y32: =iCComp!AF38 -> 20 | AA32: =iCComp!AH38 -> 70.8 | AB32: =iCComp!AI38 -> 5 | AD32: =iCComp!AK38 -> 44.9 | AG32: =iCComp!AN38 -> 0 | AH32: =iCComp!AO38 -> 0 | AK32: 35.1 | AL32: 70.8 | AN32: 3.4) Public attitude and engagement
S33: =iCComp!AB39 -> 2 | T33: =iCComp!AC39 -> 1 | V33: =iCComp!AD39 -> 4) SUSTAINABILITY | X33: =iCComp!AE39 -> 85.4 | Y33: =iCComp!AF39 -> 6 | AA33: =iCComp!AH39 -> 68.1 | AB33: =iCComp!AI39 -> 17 | AD33: =iCComp!AK39 -> 66.3 | AG33: =iCComp!AN39 -> 0 | AH33: =iCComp!AO39 -> 0 | AK33: 68.1 | AL33: 85.4 | AN33: 4) SUSTAINABILITY
S34: =iCComp!AB40 -> 2 | T34: =iCComp!AC40 -> 1 | V34: =iCComp!AD40 -> 4.1) Efficient resource management | X34: =iCComp!AE40 -> 87.5 | Y34: =iCComp!AF40 -> =11 | AA34: =iCComp!AH40 -> 87.5 | AB34: =iCComp!AI40 -> =11 | AD34: =iCComp!AK40 -> 76 | AG34: =iCComp!AN40 -> 0 | AH34: =iCComp!AO40 -> 0 | AK34: 87.5 | AL34: 87.5 | AN34: 4.1) Efficient resource management
S35: =iCComp!AB41 -> 2 | T35: =iCComp!AC41 -> 1 | V35: =iCComp!AD41 -> 4.2) Emissions reduction | X35: =iCComp!AE41 -> 100 | Y35: =iCComp!AF41 -> =1 | AA35: =iCComp!AH41 -> 77.6 | AB35: =iCComp!AI41 -> =19 | AD35: =iCComp!AK41 -> 78 | AG35: =iCComp!AN41 -> 0 | AH35: =iCComp!AO41 -> 0 | AK35: 77.6 | AL35: 100 | AN35: 4.2) Emissions reduction
S36: =iCComp!AB42 -> 2 | T36: =iCComp!AC42 -> 1 | V36: =iCComp!AD42 -> 4.3) Pollution | X36: =iCComp!AE42 -> 50 | Y36: =iCComp!AF42 -> =15 | AA36: =iCComp!AH42 -> 100 | AB36: =iCComp!AI42 -> 1 | AD36: =iCComp!AK42 -> 57.8 | AG36: =iCComp!AN42 -> 0 | AH36: =iCComp!AO42 -> 0 | AK36: 50 | AL36: 100 | AN36: 4.3) Pollution
S37: =iCComp!AB43 -> 2 | T37: =iCComp!AC43 -> 1 | V37: =iCComp!AD43 -> 4.4) Circular economy | X37: =iCComp!AE43 -> 100 | Y37: =iCComp!AF43 -> =1 | AA37: =iCComp!AH43 -> 0 | AB37: =iCComp!AI43 -> =26 | AD37: =iCComp!AK43 -> 48 | AG37: =iCComp!AN43 -> 0 | AH37: =iCComp!AO43 -> 0 | AK37: 0 | AL37: 100 | AN37: 4.4) Circular economy
S38: =iCComp!AB44 -> 0 | T38: =iCComp!AC44 -> 0 | V38: =iCComp!AD44 ->  | X38: =iCComp!AE44 ->  | Y38: =iCComp!AF44 ->  | AA38: =iCComp!AH44 ->  | AB38: =iCComp!AI44 ->  | AD38: =iCComp!AK44 ->  | AG38: =iCComp!AN44 ->  | AH38: =iCComp!AO44 ->  | AK38: 0 | AL38: 0
S39: =iCComp!AB45 -> 0 | T39: =iCComp!AC45 -> 0 | V39: =iCComp!AD45 ->  | X39: =iCComp!AE45 ->  | Y39: =iCComp!AF45 ->  | AA39: =iCComp!AH45 ->  | AB39: =iCComp!AI45 ->  | AD39: =iCComp!AK45 ->  | AG39: =iCComp!AN45 ->  | AH39: =iCComp!AO45 ->  | AK39: 0 | AL39: 0
S40: =iCComp!AB46 -> 0 | T40: =iCComp!AC46 -> 0 | V40: =iCComp!AD46 ->  | X40: =iCComp!AE46 ->  | Y40: =iCComp!AF46 ->  | AA40: =iCComp!AH46 ->  | AB40: =iCComp!AI46 ->  | AD40: =iCComp!AK46 ->  | AG40: =iCComp!AN46 ->  | AH40: =iCComp!AO46 ->  | AK40: 0 | AL40: 0
S41: =iCComp!AB47 -> 0 | T41: =iCComp!AC47 -> 0 | V41: =iCComp!AD47 ->  | X41: =iCComp!AE47 ->  | Y41: =iCComp!AF47 ->  | AA41: =iCComp!AH47 ->  | AB41: =iCComp!AI47 ->  | AD41: =iCComp!AK47 ->  | AG41: =iCComp!AN47 ->  | AH41: =iCComp!AO47 ->  | AK41: 0 | AL41: 0
S42: =iCComp!AB48 -> 0 | T42: =iCComp!AC48 -> 0 | V42: =iCComp!AD48 ->  | X42: =iCComp!AE48 ->  | Y42: =iCComp!AF48 ->  | AA42: =iCComp!AH48 ->  | AB42: =iCComp!AI48 ->  | AD42: =iCComp!AK48 ->  | AG42: =iCComp!AN48 ->  | AH42: =iCComp!AO48 ->  | AK42: 0 | AL42: 0
S43: =iCComp!AB49 -> 0 | T43: =iCComp!AC49 -> 0 | V43: =iCComp!AD49 ->  | X43: =iCComp!AE49 ->  | Y43: =iCComp!AF49 ->  | AA43: =iCComp!AH49 ->  | AB43: =iCComp!AI49 ->  | AD43: =iCComp!AK49 ->  | AG43: =iCComp!AN49 ->  | AH43: =iCComp!AO49 ->  | AK43: 0 | AL43: 0
S44: =iCComp!AB50 -> 0 | T44: =iCComp!AC50 -> 0 | V44: =iCComp!AD50 ->  | X44: =iCComp!AE50 ->  | Y44: =iCComp!AF50 ->  | AA44: =iCComp!AH50 ->  | AB44: =iCComp!AI50 ->  | AD44: =iCComp!AK50 ->  | AG44: =iCComp!AN50 ->  | AH44: =iCComp!AO50 ->  | AK44: 0 | AL44: 0
S45: =iCComp!AB51 -> 0 | T45: =iCComp!AC51 -> 0 | V45: =iCComp!AD51 ->  | X45: =iCComp!AE51 ->  | Y45: =iCComp!AF51 ->  | AA45: =iCComp!AH51 ->  | AB45: =iCComp!AI51 ->  | AD45: =iCComp!AK51 ->  | AG45: =iCComp!AN51 ->  | AH45: =iCComp!AO51 ->  | AK45: 0 | AL45: 0
S46: =iCComp!AB52 -> 0 | T46: =iCComp!AC52 -> 0 | V46: =iCComp!AD52 ->  | X46: =iCComp!AE52 ->  | Y46: =iCComp!AF52 ->  | AA46: =iCComp!AH52 ->  | AB46: =iCComp!AI52 ->  | AD46: =iCComp!AK52 ->  | AG46: =iCComp!AN52 ->  | AH46: =iCComp!AO52 ->  | AK46: 0 | AL46: 0
S47: =iCComp!AB53 -> 0 | T47: =iCComp!AC53 -> 0 | V47: =iCComp!AD53 ->  | X47: =iCComp!AE53 ->  | Y47: =iCComp!AF53 ->  | AA47: =iCComp!AH53 ->  | AB47: =iCComp!AI53 ->  | AD47: =iCComp!AK53 ->  | AG47: =iCComp!AN53 ->  | AH47: =iCComp!AO53 ->  | AK47: 0 | AL47: 0
S48: =iCComp!AB54 -> 0 | T48: =iCComp!AC54 -> 0 | V48: =iCComp!AD54 ->  | X48: =iCComp!AE54 ->  | Y48: =iCComp!AF54 ->  | AA48: =iCComp!AH54 ->  | AB48: =iCComp!AI54 ->  | AD48: =iCComp!AK54 ->  | AG48: =iCComp!AN54 ->  | AH48: =iCComp!AO54 ->  | AK48: 0 | AL48: 0
S49: =iCComp!AB57 -> 0 | T49: =iCComp!AC57 -> 0 | V49: =iCComp!AD57 ->  | X49: =iCComp!AE57 ->  | Y49: =iCComp!AF57 ->  | AA49: =iCComp!AH57 ->  | AB49: =iCComp!AI57 ->  | AD49: =iCComp!AK57 ->  | AG49: =iCComp!AN57 ->  | AH49: =iCComp!AO57 ->  | AK49: 0 | AL49: 0
S50: =iCComp!AB58 -> 0 | T50: =iCComp!AC58 -> 0 | V50: =iCComp!AD58 ->  | X50: =iCComp!AE58 ->  | Y50: =iCComp!AF58 ->  | AA50: =iCComp!AH58 ->  | AB50: =iCComp!AI58 ->  | AD50: =iCComp!AK58 ->  | AG50: =iCComp!AN58 ->  | AH50: =iCComp!AO58 ->  | AK50: 0 | AL50: 0
S51: =iCComp!AB59 -> 0 | T51: =iCComp!AC59 -> 0 | V51: =iCComp!AD59 ->  | X51: =iCComp!AE59 ->  | Y51: =iCComp!AF59 ->  | AA51: =iCComp!AH59 ->  | AB51: =iCComp!AI59 ->  | AD51: =iCComp!AK59 ->  | AG51: =iCComp!AN59 ->  | AH51: =iCComp!AO59 ->  | AK51: 0 | AL51: 0
S52: =iCComp!AB60 -> 0 | T52: =iCComp!AC60 -> 0 | V52: =iCComp!AD60 ->  | X52: =iCComp!AE60 ->  | Y52: =iCComp!AF60 ->  | AA52: =iCComp!AH60 ->  | AB52: =iCComp!AI60 ->  | AD52: =iCComp!AK60 ->  | AG52: =iCComp!AN60 ->  | AH52: =iCComp!AO60 ->  | AK52: 0 | AL52: 0 | AN52: =V52 -> 

Sheet RegionCompare
A1: =uxb_works!$B$92 -> Digital Cities Index | AN1: =uxb_works!L16 -> 1 | BA1: 1 | BB1: 6 | BH1: 1 | BI1: 5 | BJ1: 1 | BK1: 6
A4: =uxb_works!B111 -> 2 | B4: =uxb_works!C111 -> Hide these options | C4: =uxb_works!D111 -> Hide these options | D4: =uxb_works!E111 -> Show more options | E4: =uxb_works!F111 -> 0 | F4: =uxb_works!G111 -> 0 | G4: =uxb_works!H111 -> 0 | H4: =uxb_works!I111 -> 0 | I4: =uxb_works!J111 -> 0 | J4: =uxb_works!K111 -> 0 | K4: =uxb_works!L111 -> 0 | L4: =uxb_works!M111 -> 0 | M4: =uxb_works!N111 -> 0 | N4: =uxb_works!O111 -> 0 | O4: =uxb_works!P111 -> 0 | P4: =uxb_works!Q111 -> 0 | Q4: =uxb_works!R111 -> 0 | R4: =uxb_works!S111 -> 0 | S4: =uxb_works!T111 -> 0 | T4: =uxb_works!U111 -> 0 | U4: =uxb_works!V111 -> 0 | V4: =uxb_works!W111 -> 0 | W4: =uxb_works!X111 -> 0 | X4: =uxb_works!Y111 -> 0 | Y4: =uxb_works!Z111 -> 0 | Z4: =uxb_works!AA111 -> 0 | AA4: =uxb_works!AB111 -> 0 | AB4: =uxb_works!AC111 -> 0 | AC4: =uxb_works!AD111 -> 0 | AD4: =uxb_works!AE111 -> 0 | AE4: =uxb_works!AF111 -> 0 | AF4: =uxb_works!AG111 -> 0 | AG4: =uxb_works!AH111 -> 0 | AH4: =uxb_works!AI111 -> 0 | AI4: =uxb_works!AJ111 -> 0 | AJ4: =uxb_works!AK111 -> 0 | AK4: =uxb_works!AL111 -> 0 | AP4: 1600
C6: =uxb_works!$C$5 -> The active weight profile has been changed from its default setting
D8: =uxb_works!D67 -> There are 30 cities in the active filter set
D10: =" "&iRegionComp!$E$2&" " -> OVERALL SCORE
D11: CATEGORIES | R11: =iRegionComp!AD7 -> All | T11: See filter selection above | V11: =iRegionComp!AF7 -> APAC | W11: =iRegionComp!AG7 -> EUROPE | X11: =iRegionComp!AH7 -> LATAM | Y11: =iRegionComp!AI7 -> MEA | Z11: =iRegionComp!AJ7 -> NA | AB11: =iRegionComp!AK7 -> Low & lower middle income | AC11: =iRegionComp!AL7 -> Upper middle income | AD11: =iRegionComp!AM7 -> High income | AF11: =iRegionComp!AN7 -> Population < 5m | AG11: =iRegionComp!AO7 -> Population 5-10m | AH11: =iRegionComp!AP7 -> Population 10-15m | AI11: =iRegionComp!AQ7 -> Population 15m +
C14: =iRegionComp!D8 -> 1 | D14: =iRegionComp!E8 -> OVERALL SCORE | R14: =iRegionComp!G8 -> 63.3 | T14: =iRegionComp!H8 -> 63.3 | V14: =iRegionComp!I8 -> 59.4 | W14: =iRegionComp!J8 -> 70.1 | X14: =iRegionComp!K8 -> 46.1 | Y14: =iRegionComp!L8 -> 63.8 | Z14: =iRegionComp!M8 -> 70.8 | AB14: =iRegionComp!N8 -> 41 | AC14: =iRegionComp!O8 -> 53.2 | AD14: =iRegionComp!P8 -> 69.4 | AF14: =iRegionComp!Q8 -> 69.1 | AG14: =iRegionComp!R8 -> 67.6 | AH14: =iRegionComp!S8 -> 58 | AI14: =iRegionComp!T8 -> 56.2 | AN14: =CHOOSE($AN$1,MIN(R14:Y14,AC14:AI14),MIN(R14:AI14),MIN(R14:Y14,AC14:AI14),MIN(R14:AB14,AC14:AI14)) -> 46.1 | AO14: =CHOOSE($AN$1,MAX(R14:Y14,AC14:AI14),MAX(R14:AI14),MAX(R14:Y14,AC14:AI14),MAX(R14:AB14,AC14:AI14)) -> 70.1
C15: =iRegionComp!D9 -> 0 | D15: =iRegionComp!E9 -> 1) CONNECTIVITY | R15: =iRegionComp!G9 -> 65.9 | T15: =iRegionComp!H9 -> 65.9 | V15: =iRegionComp!I9 -> 63.3 | W15: =iRegionComp!J9 -> 71.5 | X15: =iRegionComp!K9 -> 50.1 | Y15: =iRegionComp!L9 -> 63.5 | Z15: =iRegionComp!M9 -> 72.2 | AB15: =iRegionComp!N9 -> 40.1 | AC15: =iRegionComp!O9 -> 57.5 | AD15: =iRegionComp!P9 -> 72 | AF15: =iRegionComp!Q9 -> 72.6 | AG15: =iRegionComp!R9 -> 69.3 | AH15: =iRegionComp!S9 -> 60.6 | AI15: =iRegionComp!T9 -> 58.9 | AN15: 50.1 | AO15: 72.6
C16: =iRegionComp!D10 -> 0 | D16: =iRegionComp!E10 -> 2) SERVICES | R16: =iRegionComp!G10 -> 61.4 | T16: =iRegionComp!H10 -> 61.4 | V16: =iRegionComp!I10 -> 57.1 | W16: =iRegionComp!J10 -> 70.7 | X16: =iRegionComp!K10 -> 39.3 | Y16: =iRegionComp!L10 -> 69.8 | Z16: =iRegionComp!M10 -> 65.9 | AB16: =iRegionComp!N10 -> 44.4 | AC16: =iRegionComp!O10 -> 48.6 | AD16: =iRegionComp!P10 -> 67.6 | AF16: =iRegionComp!Q10 -> 67.9 | AG16: =iRegionComp!R10 -> 66.6 | AH16: =iRegionComp!S10 -> 58.8 | AI16: =iRegionComp!T10 -> 51.7 | AN16: 39.3 | AO16: 70.7
C17: =iRegionComp!D11 -> 0 | D17: =iRegionComp!E11 -> 3) CULTURE | R17: =iRegionComp!G11 -> 59.2 | T17: =iRegionComp!H11 -> 59.2 | V17: =iRegionComp!I11 -> 55.1 | W17: =iRegionComp!J11 -> 61.6 | X17: =iRegionComp!K11 -> 51.3 | Y17: =iRegionComp!L11 -> 65.2 | Z17: =iRegionComp!M11 -> 69.7 | AB17: =iRegionComp!N11 -> 46.7 | AC17: =iRegionComp!O11 -> 52 | AD17: =iRegionComp!P11 -> 63 | AF17: =iRegionComp!Q11 -> 62.5 | AG17: =iRegionComp!R11 -> 61.6 | AH17: =iRegionComp!S11 -> 54.9 | AI17: =iRegionComp!T11 -> 55.8 | AN17: 51.3 | AO17: 65.2
C18: =iRegionComp!D12 -> 0 | D18: =iRegionComp!E12 -> 4) SUSTAINABILITY | R18: =iRegionComp!G12 -> 66.3 | T18: =iRegionComp!H12 -> 66.3 | V18: =iRegionComp!I12 -> 61.2 | W18: =iRegionComp!J12 -> 76 | X18: =iRegionComp!K12 -> 44.4 | Y18: =iRegionComp!L12 -> 54.8 | Z18: =iRegionComp!M12 -> 76.6 | AB18: =iRegionComp!N12 -> 31.9 | AC18: =iRegionComp!O12 -> 54.5 | AD18: =iRegionComp!P12 -> 74.6 | AF18: =iRegionComp!Q12 -> 72.4 | AG18: =iRegionComp!R12 -> 72.8 | AH18: =iRegionComp!S12 -> 56.4 | AI18: =iRegionComp!T12 -> 58.7 | AN18: 44.4 | AO18: 76
C19: =iRegionComp!D13 -> 0 | D19: =iRegionComp!E13 -> 0 | R19: =iRegionComp!G13 -> 0 | T19: =iRegionComp!H13 -> 0 | V19: =iRegionComp!I13 -> 0 | W19: =iRegionComp!J13 -> 0 | X19: =iRegionComp!K13 -> 0 | Y19: =iRegionComp!L13 -> 0 | Z19: =iRegionComp!M13 -> 0 | AB19: =iRegionComp!N13 -> 0 | AC19: =iRegionComp!O13 -> 0 | AD19: =iRegionComp!P13 -> 0 | AF19: =iRegionComp!Q13 -> 0 | AG19: =iRegionComp!R13 -> 0 | AH19: =iRegionComp!S13 -> 0 | AI19: =iRegionComp!T13 -> 0 | AN19: 0 | AO19: 0
Q24: =iRegionComp!F17 -> 1 | R24: =iRegionComp!G17 -> 0 | T24: =iRegionComp!H17 -> 0 | V24: =iRegionComp!I17 -> 0 | W24: =iRegionComp!J17 -> 0 | X24: =iRegionComp!K17 -> 0 | Y24: =iRegionComp!L17 -> 0 | Z24: =iRegionComp!M17 -> 0 | AB24: =iRegionComp!N17 -> 0 | AC24: =iRegionComp!O17 -> 0 | AD24: =iRegionComp!P17 -> 0 | AF24: =iRegionComp!Q17 -> 0 | AG24: =iRegionComp!R17 -> 0 | AH24: =iRegionComp!S17 -> 0 | AI24: =iRegionComp!T17 -> 0
E26: Sub-category | R26: =iRegionComp!AD7 -> All | T26: =T11 -> See filter selection above | V26: =iRegionComp!AF7 -> APAC | W26: =iRegionComp!AG7 -> EUROPE | X26: =iRegionComp!AH7 -> LATAM | Y26: =iRegionComp!AI7 -> MEA | Z26: =iRegionComp!AJ7 -> NA | AB26: =iRegionComp!AK7 -> Low & lower middle income | AC26: =iRegionComp!AL7 -> Upper middle income | AD26: =iRegionComp!AM7 -> High income | AF26: =iRegionComp!AN7 -> Population < 5m | AG26: =iRegionComp!AO7 -> Population 5-10m | AH26: =iRegionComp!AP7 -> Population 10-15m | AI26: =iRegionComp!AQ7 -> Population 15m +
B27: =COUNTIF(B28:B97,"<>0") -> 65
B28: =IF(iRegionComp!AA22="",0,iRegionComp!AA22) -> 3 | C28: =iRegionComp!AB22 -> 2 | E28: =TRIM(iRegionComp!AC22) -> 1.1) Digital infrastructure | R28: =iRegionComp!AD22 -> 74.5 | T28: =iRegionComp!AE22 -> 74.5 | V28: =iRegionComp!AF22 -> 70.1 | W28: =iRegionComp!AG22 -> 78.5 | X28: =iRegionComp!AH22 -> 62.8 | Y28: =iRegionComp!AI22 -> 93.1 | Z28: =iRegionComp!AJ22 -> 82.2 | AB28: =iRegionComp!AK22 -> 48.3 | AC28: =iRegionComp!AL22 -> 64.7 | AD28: =iRegionComp!AM22 -> 81.1 | AF28: =iRegionComp!AN22 -> 81.2 | AG28: =iRegionComp!AO22 -> 77.8 | AH28: =iRegionComp!AP22 -> 68.1 | AI28: =iRegionComp!AQ22 -> 68.2 | AN28: =CHOOSE($AN$1,MIN(R28:Y28,AC28:AI28),MIN(R28:AI28),MIN(R28:Y28,AC28:AI28),MIN(R28:AB28,AC28:AI28)) -> 62.8 | AO28: =CHOOSE($AN$1,MAX(R28:Y28,AC28:AI28),MAX(R28:AI28),MAX(R28:Y28,AC28:AI28),MAX(R28:AB28,AC28:AI28)) -> 93.1
B29: =IF(iRegionComp!AA23="",0,iRegionComp!AA23) -> 4 | C29: =iRegionComp!AB23 -> 0 | E29: =TRIM(iRegionComp!AC23) -> 1.1.1) Mobile broadband subscriptions | R29: =iRegionComp!AD23 -> 41.3 | T29: =iRegionComp!AE23 -> 41.3 | V29: =iRegionComp!AF23 -> 42 | W29: =iRegionComp!AG23 -> 36.2 | X29: =iRegionComp!AH23 -> 19.8 | Y29: =iRegionComp!AI23 -> 100 | Z29: =iRegionComp!AJ23 -> 53.8 | AB29: =iRegionComp!AK23 -> 11 | AC29: =iRegionComp!AL23 -> 28.4 | AD29: =iRegionComp!AM23 -> 49.3 | AF29: =iRegionComp!AN23 -> 48.7 | AG29: =iRegionComp!AO23 -> 46.2 | AH29: =iRegionComp!AP23 -> 28.2 | AI29: =iRegionComp!AQ23 -> 35.8 | AN29: 19.8 | AO29: 100
B30: =IF(iRegionComp!AA24="",0,iRegionComp!AA24) -> 5 | C30: =iRegionComp!AB24 -> 0 | E30: =TRIM(iRegionComp!AC24) -> 1.1.2) Fixed broadband susbcriptions | R30: =iRegionComp!AD24 -> 64.7 | T30: =iRegionComp!AE24 -> 64.7 | V30: =iRegionComp!AF24 -> 48.7 | W30: =iRegionComp!AG24 -> 86 | X30: =iRegionComp!AH24 -> 36.8 | Y30: =iRegionComp!AI24 -> 68.9 | Z30: =iRegionComp!AJ24 -> 79.8 | AB30: =iRegionComp!AK24 -> 4.6 | AC30: =iRegionComp!AL24 -> 38.9 | AD30: =iRegionComp!AM24 -> 80.7 | AF30: =iRegionComp!AN24 -> 82 | AG30: =iRegionComp!AO24 -> 70 | AH30: =iRegionComp!AP24 -> 56.9 | AI30: =iRegionComp!AQ24 -> 47.6 | AN30: 36.8 | AO30: 86
B31: =IF(iRegionComp!AA25="",0,iRegionComp!AA25) -> 6 | C31: =iRegionComp!AB25 -> 0 | E31: =TRIM(iRegionComp!AC25) -> 1.1.3) 5G readiness | R31: =iRegionComp!AD25 -> 98.9 | T31: =iRegionComp!AE25 -> 98.9 | V31: =iRegionComp!AF25 -> 97.2 | W31: =iRegionComp!AG25 -> 100 | X31: =iRegionComp!AH25 -> 100 | Y31: =iRegionComp!AI25 -> 100 | Z31: =iRegionComp!AJ25 -> 100 | AB31: =iRegionComp!AK25 -> 100 | AC31: =iRegionComp!AL25 -> 94.5 | AD31: =iRegionComp!AM25 -> 100 | AF31: =iRegionComp!AN25 -> 100 | AG31: =iRegionComp!AO25 -> 100 | AH31: =iRegionComp!AP25 -> 91.7 | AI31: =iRegionComp!AQ25 -> 100 | AN31: 91.7 | AO31: 100
B32: =IF(iRegionComp!AA26="",0,iRegionComp!AA26) -> 7 | C32: =iRegionComp!AB26 -> 0 | E32: =TRIM(iRegionComp!AC26) -> 1.1.4) 5G deployment | R32: =iRegionComp!AD26 -> 98.3 | T32: =iRegionComp!AE26 -> 98.3 | V32: =iRegionComp!AF26 -> 95.8 | W32: =iRegionComp!AG26 -> 100 | X32: =iRegionComp!AH26 -> 100 | Y32: =iRegionComp!AI26 -> 100 | Z32: =iRegionComp!AJ26 -> 100 | AB32: =iRegionComp!AK26 -> 83.3 | AC32: =iRegionComp!AL26 -> 100 | AD32: =iRegionComp!AM26 -> 100 | AF32: =iRegionComp!AN26 -> 100 | AG32: =iRegionComp!AO26 -> 100 | AH32: =iRegionComp!AP26 -> 100 | AI32: =iRegionComp!AQ26 -> 94.4 | AN32: 94.4 | AO32: 100
B33: =IF(iRegionComp!AA27="",0,iRegionComp!AA27) -> 8 | C33: =iRegionComp!AB27 -> 2 | E33: =TRIM(iRegionComp!AC27) -> 1.2) Quality | R33: =iRegionComp!AD27 -> 43.5 | T33: =iRegionComp!AE27 -> 43.5 | V33: =iRegionComp!AF27 -> 48.8 | W33: =iRegionComp!AG27 -> 40.4 | X33: =iRegionComp!AH27 -> 26 | Y33: =iRegionComp!AI27 -> 99.1 | Z33: =iRegionComp!AJ27 -> 34.4 | AB33: =iRegionComp!AK27 -> 29.3 | AC33: =iRegionComp!AL27 -> 39.5 | AD33: =iRegionComp!AM27 -> 46.6 | AF33: =iRegionComp!AN27 -> 59 | AG33: =iRegionComp!AO27 -> 39.8 | AH33: =iRegionComp!AP27 -> 34.4 | AI33: =iRegionComp!AQ27 -> 37.4 | AN33: =CHOOSE($AN$1,MIN(R33:Y33,AC33:AI33),MIN(R33:AI33),MIN(R33:Y33,AC33:AI33),MIN(R33:AB33,AC33:AI33)) -> 26 | AO33: =CHOOSE($AN$1,MAX(R33:Y33,AC33:AI33),MAX(R33:AI33),MAX(R33:Y33,AC33:AI33),MAX(R33:AB33,AC33:AI33)) -> 99.1
B34: =IF(iRegionComp!AA28="",0,iRegionComp!AA28) -> 9 | C34: =iRegionComp!AB28 -> 0 | E34: =TRIM(iRegionComp!AC28) -> 1.2.1) Internet upload speed | R34: =iRegionComp!AD28 -> 38.3 | T34: =iRegionComp!AE28 -> 38.3 | V34: =iRegionComp!AF28 -> 37.9 | W34: =iRegionComp!AG28 -> 41.6 | X34: =iRegionComp!AH28 -> 23.2 | Y34: =iRegionComp!AI28 -> 100 | Z34: =iRegionComp!AJ28 -> 27.2 | AB34: =iRegionComp!AK28 -> 14.3 | AC34: =iRegionComp!AL28 -> 38.1 | AD34: =iRegionComp!AM28 -> 41.8 | AF34: =iRegionComp!AN28 -> 55.3 | AG34: =iRegionComp!AO28 -> 33.3 | AH34: =iRegionComp!AP28 -> 24.7 | AI34: =iRegionComp!AQ28 -> 34.2 | AN34: 23.2 | AO34: 100
B35: =IF(iRegionComp!AA29="",0,iRegionComp!AA29) -> 10 | C35: =iRegionComp!AB29 -> 0 | E35: =TRIM(iRegionComp!AC29) -> 1.2.2) Internet download speed | R35: =iRegionComp!AD29 -> 42.5 | T35: =iRegionComp!AE29 -> 42.5 | V35: =iRegionComp!AF29 -> 38 | W35: =iRegionComp!AG29 -> 48.4 | X35: =iRegionComp!AH29 -> 10.5 | Y35: =iRegionComp!AI29 -> 100 | Z35: =iRegionComp!AJ29 -> 50.9 | AB35: =iRegionComp!AK29 -> 2.9 | AC35: =iRegionComp!AL29 -> 23.2 | AD35: =iRegionComp!AM29 -> 53.7 | AF35: =iRegionComp!AN29 -> 65 | AG35: =iRegionComp!AO29 -> 40.1 | AH35: =iRegionComp!AP29 -> 26.9 | AI35: =iRegionComp!AQ29 -> 31.8 | AN35: 10.5 | AO35: 100
B36: =IF(iRegionComp!AA30="",0,iRegionComp!AA30) -> 11 | C36: =iRegionComp!AB30 -> 0 | E36: =TRIM(iRegionComp!AC30) -> 1.2.3) Mobile broadband latency | R36: =iRegionComp!AD30 -> 47.8 | T36: =iRegionComp!AE30 -> 47.8 | V36: =iRegionComp!AF30 -> 55.8 | W36: =iRegionComp!AG30 -> 41 | X36: =iRegionComp!AH30 -> 35 | Y36: =iRegionComp!AI30 -> 95 | Z36: =iRegionComp!AJ30 -> 38.8 | AB36: =iRegionComp!AK30 -> 45 | AC36: =iRegionComp!AL30 -> 49.2 | AD36: =iRegionComp!AM30 -> 47.9 | AF36: =iRegionComp!AN30 -> 61.9 | AG36: =iRegionComp!AO30 -> 48.9 | AH36: =iRegionComp!AP30 -> 45 | AI36: =iRegionComp!AQ30 -> 35.6 | AN36: 35 | AO36: 95
B37: =IF(iRegionComp!AA31="",0,iRegionComp!AA31) -> 12 | C37: =iRegionComp!AB31 -> 0 | E37: =TRIM(iRegionComp!AC31) -> 1.2.4) Fixed broadband latency | R37: =iRegionComp!AD31 -> 48.2 | T37: =iRegionComp!AE31 -> 48.2 | V37: =iRegionComp!AF31 -> 73.5 | W37: =iRegionComp!AG31 -> 26.4 | X37: =iRegionComp!AH31 -> 45.5 | Y37: =iRegionComp!AI31 -> 100 | Z37: =iRegionComp!AJ31 -> 15.9 | AB37: =iRegionComp!AK31 -> 75.7 | AC37: =iRegionComp!AL31 -> 57.6 | AD37: =iRegionComp!AM31 -> 41.6 | AF37: =iRegionComp!AN31 -> 52.3 | AG37: =iRegionComp!AO31 -> 40.4 | AH37: =iRegionComp!AP31 -> 50 | AI37: =iRegionComp!AQ31 -> 51.5 | AN37: 26.4 | AO37: 100
B38: =IF(iRegionComp!AA32="",0,iRegionComp!AA32) -> 13 | C38: =iRegionComp!AB32 -> 2 | E38: =TRIM(iRegionComp!AC32) -> 1.3) Affordability | R38: =iRegionComp!AD32 -> 69.3 | T38: =iRegionComp!AE32 -> 69.3 | V38: =iRegionComp!AF32 -> 63.9 | W38: =iRegionComp!AG32 -> 82.9 | X38: =iRegionComp!AH32 -> 49.3 | Y38: =iRegionComp!AI32 -> 0.4 | Z38: =iRegionComp!AJ32 -> 84.1 | AB38: =iRegionComp!AK32 -> 36.5 | AC38: =iRegionComp!AL32 -> 60.1 | AD38: =iRegionComp!AM32 -> 76.7 | AF38: =iRegionComp!AN32 -> 70.3 | AG38: =iRegionComp!AO32 -> 77.5 | AH38: =iRegionComp!AP32 -> 68 | AI38: =iRegionComp!AQ32 -> 60.9 | AN38: 0.4 | AO38: 82.9
B39: =IF(iRegionComp!AA33="",0,iRegionComp!AA33) -> 14 | C39: =iRegionComp!AB33 -> 0 | E39: =TRIM(iRegionComp!AC33) -> 1.3.1) Mobile data affordability | R39: =iRegionComp!AD33 -> 74.6 | T39: =iRegionComp!AE33 -> 74.6 | V39: =iRegionComp!AF33 -> 71.5 | W39: =iRegionComp!AG33 -> 88.6 | X39: =iRegionComp!AH33 -> 56 | Y39: =iRegionComp!AI33 -> 0 | Z39: =iRegionComp!AJ33 -> 81.6 | AB39: =iRegionComp!AK33 -> 60.6 | AC39: =iRegionComp!AL33 -> 69.1 | AD39: =iRegionComp!AM33 -> 78.2 | AF39: =iRegionComp!AN33 -> 71.6 | AG39: =iRegionComp!AO33 -> 83.4 | AH39: =iRegionComp!AP33 -> 77.5 | AI39: =iRegionComp!AQ33 -> 67.2 | AN39: 0 | AO39: 88.6
B40: =IF(iRegionComp!AA34="",0,iRegionComp!AA34) -> 15 | C40: =iRegionComp!AB34 -> 0 | E40: =TRIM(iRegionComp!AC34) -> 1.3.2) Fixed broadband affordability | R40: =iRegionComp!AD34 -> 63.6 | T40: =iRegionComp!AE34 -> 63.6 | V40: =iRegionComp!AF34 -> 55.6 | W40: =iRegionComp!AG34 -> 76.7 | X40: =iRegionComp!AH34 -> 42 | Y40: =iRegionComp!AI34 -> 0.8 | Z40: =iRegionComp!AJ34 -> 86.9 | AB40: =iRegionComp!AK34 -> 10.1 | AC40: =iRegionComp!AL34 -> 50.4 | AD40: =iRegionComp!AM34 -> 75 | AF40: =iRegionComp!AN34 -> 68.9 | AG40: =iRegionComp!AO34 -> 71.1 | AH40: =iRegionComp!AP34 -> 57.7 | AI40: =iRegionComp!AQ34 -> 54.1 | AN40: 0.8 | AO40: 76.7
B41: =IF(iRegionComp!AA35="",0,iRegionComp!AA35) -> 17 | C41: =iRegionComp!AB35 -> 2 | E41: =TRIM(iRegionComp!AC35) -> 2.1) E-gov services for residents & businesses | R41: =iRegionComp!AD35 -> 68.2 | T41: =iRegionComp!AE35 -> 68.2 | V41: =iRegionComp!AF35 -> 67.4 | W41: =iRegionComp!AG35 -> 67.8 | X41: =iRegionComp!AH35 -> 67.7 | Y41: =iRegionComp!AI35 -> 64.3 | Z41: =iRegionComp!AJ35 -> 73.2 | AB41: =iRegionComp!AK35 -> 69.7 | AC41: =iRegionComp!AL35 -> 65.1 | AD41: =iRegionComp!AM35 -> 68.9 | AF41: =iRegionComp!AN35 -> 65.7 | AG41: =iRegionComp!AO35 -> 74.6 | AH41: =iRegionComp!AP35 -> 62.2 | AI41: =iRegionComp!AQ35 -> 66.8 | AN41: 62.2 | AO41: 74.6
B42: =IF(iRegionComp!AA36="",0,iRegionComp!AA36) -> 18 | C42: =iRegionComp!AB36 -> 0 | E42: =TRIM(iRegionComp!AC36) -> 2.1.1) Mobile digital national ID | R42: =iRegionComp!AD36 -> 20 | T42: =iRegionComp!AE36 -> 20 | V42: =iRegionComp!AF36 -> 16.7 | W42: =iRegionComp!AG36 -> 20 | X42: =iRegionComp!AH36 -> 33.3 | Y42: =iRegionComp!AI36 -> 0 | Z42: =iRegionComp!AJ36 -> 25 | AB42: =iRegionComp!AK36 -> 33.3 | AC42: =iRegionComp!AL36 -> 16.7 | AD42: =iRegionComp!AM36 -> 19 | AF42: =iRegionComp!AN36 -> 12.5 | AG42: =iRegionComp!AO36 -> 33.3 | AH42: =iRegionComp!AP36 -> 0 | AI42: =iRegionComp!AQ36 -> 22.2 | AN42: 0 | AO42: 33.3
B43: =IF(iRegionComp!AA37="",0,iRegionComp!AA37) -> 19 | C43: =iRegionComp!AB37 -> 0 | E43: =TRIM(iRegionComp!AC37) -> 2.1.2) E-gov service portal for residents | R43: =iRegionComp!AD37 -> 87.6 | T43: =iRegionComp!AE37 -> 87.6 | V43: =iRegionComp!AF37 -> 87.5 | W43: =iRegionComp!AG37 -> 86.4 | X43: =iRegionComp!AH37 -> 84.7 | Y43: =iRegionComp!AI37 -> 90 | Z43: =iRegionComp!AJ37 -> 92.3 | AB43: =iRegionComp!AK37 -> 75.3 | AC43: =iRegionComp!AL37 -> 84.8 | AD43: =iRegionComp!AM37 -> 90.1 | AF43: =iRegionComp!AN37 -> 88.3 | AG43: =iRegionComp!AO37 -> 89 | AH43: =iRegionComp!AP37 -> 84 | AI43: =iRegionComp!AQ37 -> 87.1 | AN43: 84 | AO43: 90.1
B44: =IF(iRegionComp!AA38="",0,iRegionComp!AA38) -> 20 | C44: =iRegionComp!AB38 -> 0 | E44: =TRIM(iRegionComp!AC38) -> 2.1.3) E-gov service portal for businesses | R44: =iRegionComp!AD38 -> 95 | T44: =iRegionComp!AE38 -> 95 | V44: =iRegionComp!AF38 -> 95.8 | W44: =iRegionComp!AG38 -> 95 | X44: =iRegionComp!AH38 -> 83.3 | Y44: =iRegionComp!AI38 -> 100 | Z44: =iRegionComp!AJ38 -> 100 | AB44: =iRegionComp!AK38 -> 100 | AC44: =iRegionComp!AL38 -> 91.7 | AD44: =iRegionComp!AM38 -> 95.2 | AF44: =iRegionComp!AN38 -> 93.8 | AG44: =iRegionComp!AO38 -> 100 | AH44: =iRegionComp!AP38 -> 100 | AI44: =iRegionComp!AQ38 -> 88.9 | AN44: 83.3 | AO44: 100
B45: =IF(iRegionComp!AA39="",0,iRegionComp!AA39) -> 21 | C45: =iRegionComp!AB39 -> 2 | E45: =TRIM(iRegionComp!AC39) -> 2.2) Digital finance | R45: =iRegionComp!AD39 -> 50.8 | T45: =iRegionComp!AE39 -> 50.8 | V45: =iRegionComp!AF39 -> 53.4 | W45: =iRegionComp!AG39 -> 47.1 | X45: =iRegionComp!AH39 -> 39.2 | Y45: =iRegionComp!AI39 -> 60.5 | Z45: =iRegionComp!AJ39 -> 58.5 | AB45: =iRegionComp!AK39 -> 47.7 | AC45: =iRegionComp!AL39 -> 46.9 | AD45: =iRegionComp!AM39 -> 52.3 | AF45: =iRegionComp!AN39 -> 54.2 | AG45: =iRegionComp!AO39 -> 48.2 | AH45: =iRegionComp!AP39 -> 46.6 | AI45: =iRegionComp!AQ39 -> 52.2 | AN45: 39.2 | AO45: 60.5
B46: =IF(iRegionComp!AA40="",0,iRegionComp!AA40) -> 22 | C46: =iRegionComp!AB40 -> 0 | E46: =TRIM(iRegionComp!AC40) -> 2.2.1) Digital platforms for banking and personal finance | R46: =iRegionComp!AD40 -> 55.9 | T46: =iRegionComp!AE40 -> 55.9 | V46: =iRegionComp!AF40 -> 61.6 | W46: =iRegionComp!AG40 -> 54.6 | X46: =iRegionComp!AH40 -> 52.2 | Y46: =iRegionComp!AI40 -> 89.1 | Z46: =iRegionComp!AJ40 -> 37 | AB46: =iRegionComp!AK40 -> 76.8 | AC46: =iRegionComp!AL40 -> 60.9 | AD46: =iRegionComp!AM40 -> 51.6 | AF46: =iRegionComp!AN40 -> 59.5 | AG46: =iRegionComp!AO40 -> 44.7 | AH46: =iRegionComp!AP40 -> 58.1 | AI46: =iRegionComp!AQ40 -> 63 | AN46: 44.7 | AO46: 89.1
B47: =IF(iRegionComp!AA41="",0,iRegionComp!AA41) -> 23 | C47: =iRegionComp!AB41 -> 0 | E47: =TRIM(iRegionComp!AC41) -> 2.2.2) Digital investment management tools | R47: =iRegionComp!AD41 -> 36.8 | T47: =iRegionComp!AE41 -> 36.8 | V47: =iRegionComp!AF41 -> 54.2 | W47: =iRegionComp!AG41 -> 14.8 | X47: =iRegionComp!AH41 -> 39.4 | Y47: =iRegionComp!AI41 -> 80.3 | Z47: =iRegionComp!AJ41 -> 26.8 | AB47: =iRegionComp!AK41 -> 78.9 | AC47: =iRegionComp!AL41 -> 54.5 | AD47: =iRegionComp!AM41 -> 25.8 | AF47: =iRegionComp!AN41 -> 22.2 | AG47: =iRegionComp!AO41 -> 30.1 | AH47: =iRegionComp!AP41 -> 38.7 | AI47: =iRegionComp!AQ41 -> 55.7 | AN47: 14.8 | AO47: 80.3
B48: =IF(iRegionComp!AA42="",0,iRegionComp!AA42) -> 24 | C48: =iRegionComp!AB42 -> 0 | E48: =TRIM(iRegionComp!AC42) -> 2.2.3) E-payments | R48: =iRegionComp!AD42 -> 54.1 | T48: =iRegionComp!AE42 -> 54.1 | V48: =iRegionComp!AF42 -> 46.3 | W48: =iRegionComp!AG42 -> 58.4 | X48: =iRegionComp!AH42 -> 28.7 | Y48: =iRegionComp!AI42 -> 27.2 | Z48: =iRegionComp!AJ42 -> 92.6 | AB48: =iRegionComp!AK42 -> 7.8 | AC48: =iRegionComp!AL42 -> 31.6 | AD48: =iRegionComp!AM42 -> 67.2 | AF48: =iRegionComp!AN42 -> 67 | AG48: =iRegionComp!AO42 -> 60.8 | AH48: =iRegionComp!AP42 -> 41.6 | AI48: =iRegionComp!AQ42 -> 41.5 | AN48: 27.2 | AO48: 67.2
B49: =IF(iRegionComp!AA43="",0,iRegionComp!AA43) -> 25 | C49: =iRegionComp!AB43 -> 2 | E49: =TRIM(iRegionComp!AC43) -> 2.3) Transportation | R49: =iRegionComp!AD43 -> 67.6 | T49: =iRegionComp!AE43 -> 67.6 | V49: =iRegionComp!AF43 -> 63.1 | W49: =iRegionComp!AG43 -> 85.9 | X49: =iRegionComp!AH43 -> 27.4 | Y49: =iRegionComp!AI43 -> 100 | Z49: =iRegionComp!AJ43 -> 57.7 | AB49: =iRegionComp!AK43 -> 39.3 | AC49: =iRegionComp!AL43 -> 44.9 | AD49: =iRegionComp!AM43 -> 78.2 | AF49: =iRegionComp!AN43 -> 84.6 | AG49: =iRegionComp!AO43 -> 73.2 | AH49: =iRegionComp!AP43 -> 57.1 | AI49: =iRegionComp!AQ43 -> 51.6 | AN49: 27.4 | AO49: 100
B50: =IF(iRegionComp!AA44="",0,iRegionComp!AA44) -> 26 | C50: =iRegionComp!AB44 -> 0 | E50: =TRIM(iRegionComp!AC44) -> 2.3.1) Integrated public transport apps | R50: =iRegionComp!AD44 -> 65.6 | T50: =iRegionComp!AE44 -> 65.6 | V50: =iRegionComp!AF44 -> 52.8 | W50: =iRegionComp!AG44 -> 86.7 | X50: =iRegionComp!AH44 -> 22.2 | Y50: =iRegionComp!AI44 -> 100 | Z50: =iRegionComp!AJ44 -> 75 | AB50: =iRegionComp!AK44 -> 44.4 | AC50: =iRegionComp!AL44 -> 33.4 | AD50: =iRegionComp!AM44 -> 77.8 | AF50: =iRegionComp!AN44 -> 87.5 | AG50: =iRegionComp!AO44 -> 74.1 | AH50: =iRegionComp!AP44 -> 41.7 | AI50: =iRegionComp!AQ44 -> 48.2 | AN50: 22.2 | AO50: 100
B51: =IF(iRegionComp!AA45="",0,iRegionComp!AA45) -> 27 | C51: =iRegionComp!AB45 -> 0 | E51: =TRIM(iRegionComp!AC45) -> 2.3.2) Digital identification at airports | R51: =iRegionComp!AD45 -> 70 | T51: =iRegionComp!AE45 -> 70 | V51: =iRegionComp!AF45 -> 75 | W51: =iRegionComp!AG45 -> 85 | X51: =iRegionComp!AH45 -> 33.3 | Y51: =iRegionComp!AI45 -> 100 | Z51: =iRegionComp!AJ45 -> 37.5 | AB51: =iRegionComp!AK45 -> 33.3 | AC51: =iRegionComp!AL45 -> 58.3 | AD51: =iRegionComp!AM45 -> 78.6 | AF51: =iRegionComp!AN45 -> 81.3 | AG51: =iRegionComp!AO45 -> 72.2 | AH51: =iRegionComp!AP45 -> 75 | AI51: =iRegionComp!AQ45 -> 55.6 | AN51: 33.3 | AO51: 100
B52: =IF(iRegionComp!AA46="",0,iRegionComp!AA46) -> 28 | C52: =iRegionComp!AB46 -> 2 | E52: =TRIM(iRegionComp!AC46) -> 2.4) Healthcare | R52: =iRegionComp!AD46 -> 71.6 | T52: =iRegionComp!AE46 -> 71.6 | V52: =iRegionComp!AF46 -> 67.9 | W52: =iRegionComp!AG46 -> 78.8 | X52: =iRegionComp!AH46 -> 50.5 | Y52: =iRegionComp!AI46 -> 81.6 | Z52: =iRegionComp!AJ46 -> 78.4 | AB52: =iRegionComp!AK46 -> 61.2 | AC52: =iRegionComp!AL46 -> 64.7 | AD52: =iRegionComp!AM46 -> 75.1 | AF52: =iRegionComp!AN46 -> 75.9 | AG52: =iRegionComp!AO46 -> 77 | AH52: =iRegionComp!AP46 -> 71.7 | AI52: =iRegionComp!AQ46 -> 62.5 | AN52: 50.5 | AO52: 81.6
B53: =IF(iRegionComp!AA47="",0,iRegionComp!AA47) -> 29 | C53: =iRegionComp!AB47 -> 0 | E53: =TRIM(iRegionComp!AC47) -> 2.4.1) Telehealth & telemedicine | R53: =iRegionComp!AD47 -> 52.9 | T53: =iRegionComp!AE47 -> 52.9 | V53: =iRegionComp!AF47 -> 60 | W53: =iRegionComp!AG47 -> 50.4 | X53: =iRegionComp!AH47 -> 46.1 | Y53: =iRegionComp!AI47 -> 100 | Z53: =iRegionComp!AJ47 -> 31.7 | AB53: =iRegionComp!AK47 -> 54.8 | AC53: =iRegionComp!AL47 -> 59 | AD53: =iRegionComp!AM47 -> 51 | AF53: =iRegionComp!AN47 -> 52.8 | AG53: =iRegionComp!AO47 -> 53.1 | AH53: =iRegionComp!AP47 -> 54 | AI53: =iRegionComp!AQ47 -> 52.5 | AN53: 46.1 | AO53: 100
B54: =IF(iRegionComp!AA48="",0,iRegionComp!AA48) -> 30 | C54: =iRegionComp!AB48 -> 0 | E54: =TRIM(iRegionComp!AC48) -> 2.4.2) Electronic health records | R54: =iRegionComp!AD48 -> 73.3 | T54: =iRegionComp!AE48 -> 73.3 | V54: =iRegionComp!AF48 -> 54.2 | W54: =iRegionComp!AG48 -> 85 | X54: =iRegionComp!AH48 -> 83.3 | Y54: =iRegionComp!AI48 -> 50 | Z54: =iRegionComp!AJ48 -> 100 | AB54: =iRegionComp!AK48 -> 33.3 | AC54: =iRegionComp!AL48 -> 75 | AD54: =iRegionComp!AM48 -> 78.6 | AF54: =iRegionComp!AN48 -> 75 | AG54: =iRegionComp!AO48 -> 77.8 | AH54: =iRegionComp!AP48 -> 62.5 | AI54: =iRegionComp!AQ48 -> 72.2 | AN54: 50 | AO54: 85
B55: =IF(iRegionComp!AA49="",0,iRegionComp!AA49) -> 31 | C55: =iRegionComp!AB49 -> 0 | E55: =TRIM(iRegionComp!AC49) -> 2.4.3) Pandemic-related applications | R55: =iRegionComp!AD49 -> 88.3 | T55: =iRegionComp!AE49 -> 88.3 | V55: =iRegionComp!AF49 -> 91.7 | W55: =iRegionComp!AG49 -> 100 | X55: =iRegionComp!AH49 -> 16.7 | Y55: =iRegionComp!AI49 -> 100 | Z55: =iRegionComp!AJ49 -> 100 | AB55: =iRegionComp!AK49 -> 100 | AC55: =iRegionComp!AL49 -> 58.3 | AD55: =iRegionComp!AM49 -> 95.2 | AF55: =iRegionComp!AN49 -> 100 | AG55: =iRegionComp!AO49 -> 100 | AH55: =iRegionComp!AP49 -> 100 | AI55: =iRegionComp!AQ49 -> 61.1 | AN55: 16.7 | AO55: 100
B56: =IF(iRegionComp!AA50="",0,iRegionComp!AA50) -> 32 | C56: =iRegionComp!AB50 -> 2 | E56: =TRIM(iRegionComp!AC50) -> 2.5) Education | R56: =iRegionComp!AD50 -> 73.3 | T56: =iRegionComp!AE50 -> 73.3 | V56: =iRegionComp!AF50 -> 62.5 | W56: =iRegionComp!AG50 -> 90 | X56: =iRegionComp!AH50 -> 33.3 | Y56: =iRegionComp!AI50 -> 50 | Z56: =iRegionComp!AJ50 -> 100 | AB56: =iRegionComp!AK50 -> 33.3 | AC56: =iRegionComp!AL50 -> 41.7 | AD56: =iRegionComp!AM50 -> 88.1 | AF56: =iRegionComp!AN50 -> 81.3 | AG56: =iRegionComp!AO50 -> 94.4 | AH56: =iRegionComp!AP50 -> 62.5 | AI56: =iRegionComp!AQ50 -> 50 | AN56: 33.3 | AO56: 94.4
B57: =IF(iRegionComp!AA51="",0,iRegionComp!AA51) -> 33 | C57: =iRegionComp!AB51 -> 0 | E57: =TRIM(iRegionComp!AC51) -> 2.5.1) Digital education | R57: =iRegionComp!AD51 -> 73.3 | T57: =iRegionComp!AE51 -> 73.3 | V57: =iRegionComp!AF51 -> 62.5 | W57: =iRegionComp!AG51 -> 90 | X57: =iRegionComp!AH51 -> 33.3 | Y57: =iRegionComp!AI51 -> 50 | Z57: =iRegionComp!AJ51 -> 100 | AB57: =iRegionComp!AK51 -> 33.3 | AC57: =iRegionComp!AL51 -> 41.7 | AD57: =iRegionComp!AM51 -> 88.1 | AF57: =iRegionComp!AN51 -> 81.3 | AG57: =iRegionComp!AO51 -> 94.4 | AH57: =iRegionComp!AP51 -> 62.5 | AI57: =iRegionComp!AQ51 -> 50 | AN57: 33.3 | AO57: 94.4
B58: =IF(iRegionComp!AA52="",0,iRegionComp!AA52) -> 34 | C58: =iRegionComp!AB52 -> 2 | E58: =TRIM(iRegionComp!AC52) -> 2.6) Retail and hospitality | R58: =iRegionComp!AD52 -> 33.9 | T58: =iRegionComp!AE52 -> 33.9 | V58: =iRegionComp!AF52 -> 24.5 | W58: =iRegionComp!AG52 -> 51.4 | X58: =iRegionComp!AH52 -> 13.4 | Y58: =iRegionComp!AI52 -> 56.4 | Z58: =iRegionComp!AJ52 -> 27.9 | AB58: =iRegionComp!AK52 -> 10.3 | AC58: =iRegionComp!AL52 -> 24.9 | AD58: =iRegionComp!AM52 -> 39.8 | AF58: =iRegionComp!AN52 -> 42.5 | AG58: =iRegionComp!AO52 -> 28.3 | AH58: =iRegionComp!AP52 -> 52.2 | AI58: =iRegionComp!AQ52 -> 23.6 | AN58: 13.4 | AO58: 56.4
B59: =IF(iRegionComp!AA53="",0,iRegionComp!AA53) -> 35 | C59: =iRegionComp!AB53 -> 0 | E59: =TRIM(iRegionComp!AC53) -> 2.6.1) E-commerce penetration | R59: =iRegionComp!AD53 -> 42 | T59: =iRegionComp!AE53 -> 42 | V59: =iRegionComp!AF53 -> 30.5 | W59: =iRegionComp!AG53 -> 60.2 | X59: =iRegionComp!AH53 -> 23.7 | Y59: =iRegionComp!AI53 -> 22.9 | Z59: =iRegionComp!AJ53 -> 49.3 | AB59: =iRegionComp!AK53 -> 18.3 | AC59: =iRegionComp!AL53 -> 31.3 | AD59: =iRegionComp!AM53 -> 48.4 | AF59: =iRegionComp!AN53 -> 46.3 | AG59: =iRegionComp!AO53 -> 41.6 | AH59: =iRegionComp!AP53 -> 53.9 | AI59: =iRegionComp!AQ53 -> 33.2 | AN59: 22.9 | AO59: 60.2
B60: =IF(iRegionComp!AA54="",0,iRegionComp!AA54) -> 36 | C60: =iRegionComp!AB54 -> 0 | E60: =TRIM(iRegionComp!AC54) -> 2.6.2) Digital tourist passes | R60: =iRegionComp!AD54 -> 23.3 | T60: =iRegionComp!AE54 -> 23.3 | V60: =iRegionComp!AF54 -> 16.7 | W60: =iRegionComp!AG54 -> 40 | X60: =iRegionComp!AH54 -> 0 | Y60: =iRegionComp!AI54 -> 100 | Z60: =iRegionComp!AJ54 -> 0 | AB60: =iRegionComp!AK54 -> 0 | AC60: =iRegionComp!AL54 -> 16.7 | AD60: =iRegionComp!AM54 -> 28.6 | AF60: =iRegionComp!AN54 -> 37.5 | AG60: =iRegionComp!AO54 -> 11.1 | AH60: =iRegionComp!AP54 -> 50 | AI60: =iRegionComp!AQ54 -> 11.1 | AN60: 0 | AO60: 100
B61: =IF(iRegionComp!AA55="",0,iRegionComp!AA55) -> 38 | C61: =iRegionComp!AB55 -> 2 | E61: =TRIM(iRegionComp!AC55) -> 3.1) Digital inclusion | R61: =iRegionComp!AD55 -> 69.5 | T61: =iRegionComp!AE55 -> 69.5 | V61: =iRegionComp!AF55 -> 66.9 | W61: =iRegionComp!AG55 -> 67.5 | X61: =iRegionComp!AH55 -> 72 | Y61: =iRegionComp!AI55 -> 94.3 | Z61: =iRegionComp!AJ55 -> 74.6 | AB61: =iRegionComp!AK55 -> 60.4 | AC61: =iRegionComp!AL55 -> 73 | AD61: =iRegionComp!AM55 -> 69.9 | AF61: =iRegionComp!AN55 -> 69.7 | AG61: =iRegionComp!AO55 -> 70.9 | AH61: =iRegionComp!AP55 -> 69.9 | AI61: =iRegionComp!AQ55 -> 67.8 | AN61: 66.9 | AO61: 94.3
B62: =IF(iRegionComp!AA56="",0,iRegionComp!AA56) -> 39 | C62: =iRegionComp!AB56 -> 0 | E62: =TRIM(iRegionComp!AC56) -> 3.1.1) Internet usage | R62: =iRegionComp!AD56 -> 76.2 | T62: =iRegionComp!AE56 -> 76.2 | V62: =iRegionComp!AF56 -> 68.8 | W62: =iRegionComp!AG56 -> 81.7 | X62: =iRegionComp!AH56 -> 63.9 | Y62: =iRegionComp!AI56 -> 100 | Z62: =iRegionComp!AJ56 -> 88.3 | AB62: =iRegionComp!AK56 -> 43.2 | AC62: =iRegionComp!AL56 -> 66.8 | AD62: =iRegionComp!AM56 -> 83.7 | AF62: =iRegionComp!AN56 -> 83.6 | AG62: =iRegionComp!AO56 -> 81.5 | AH62: =iRegionComp!AP56 -> 74.8 | AI62: =iRegionComp!AQ56 -> 65 | AN62: 63.9 | AO62: 100
B63: =IF(iRegionComp!AA57="",0,iRegionComp!AA57) -> 40 | C63: =iRegionComp!AB57 -> 0 | E63: =TRIM(iRegionComp!AC57) -> 3.1.2) Gap between female and male access to the internet | R63: =iRegionComp!AD57 -> 93.2 | T63: =iRegionComp!AE57 -> 93.2 | V63: =iRegionComp!AF57 -> 87.7 | W63: =iRegionComp!AG57 -> 95.1 | X63: =iRegionComp!AH57 -> 97.3 | Y63: =iRegionComp!AI57 -> 100 | Z63: =iRegionComp!AJ57 -> 100 | AB63: =iRegionComp!AK57 -> 59.7 | AC63: =iRegionComp!AL57 -> 96.9 | AD63: =iRegionComp!AM57 -> 96.9 | AF63: =iRegionComp!AN57 -> 95.1 | AG63: =iRegionComp!AO57 -> 98 | AH63: =iRegionComp!AP57 -> 96.6 | AI63: =iRegionComp!AQ57 -> 85.2 | AN63: 85.2 | AO63: 100
B64: =IF(iRegionComp!AA58="",0,iRegionComp!AA58) -> 41 | C64: =iRegionComp!AB58 -> 0 | E64: =TRIM(iRegionComp!AC58) -> 3.1.3) Digital skills | R64: =iRegionComp!AD58 -> 38.1 | T64: =iRegionComp!AE58 -> 38.1 | V64: =iRegionComp!AF58 -> 43.8 | W64: =iRegionComp!AG58 -> 23.5 | X64: =iRegionComp!AH58 -> 56.2 | Y64: =iRegionComp!AI58 -> 81.8 | Z64: =iRegionComp!AJ58 -> 33.1 | AB64: =iRegionComp!AK58 -> 81 | AC64: =iRegionComp!AL58 -> 56.3 | AD64: =iRegionComp!AM58 -> 26.8 | AF64: =iRegionComp!AN58 -> 28 | AG64: =iRegionComp!AO58 -> 31.7 | AH64: =iRegionComp!AP58 -> 37.4 | AI64: =iRegionComp!AQ58 -> 53.8 | AN64: 23.5 | AO64: 81.8
B65: =IF(iRegionComp!AA59="",0,iRegionComp!AA59) -> 42 | C65: =iRegionComp!AB59 -> 2 | E65: =TRIM(iRegionComp!AC59) -> 3.2) Government support | R65: =iRegionComp!AD59 -> 71.7 | T65: =iRegionComp!AE59 -> 71.7 | V65: =iRegionComp!AF59 -> 64.8 | W65: =iRegionComp!AG59 -> 79 | X65: =iRegionComp!AH59 -> 68.1 | Y65: =iRegionComp!AI59 -> 40.8 | Z65: =iRegionComp!AJ59 -> 84.4 | AB65: =iRegionComp!AK59 -> 54.1 | AC65: =iRegionComp!AL59 -> 60.3 | AD65: =iRegionComp!AM59 -> 77.4 | AF65: =iRegionComp!AN59 -> 74.3 | AG65: =iRegionComp!AO59 -> 77 | AH65: =iRegionComp!AP59 -> 69.2 | AI65: =iRegionComp!AQ59 -> 65.1 | AN65: 40.8 | AO65: 79
B66: =IF(iRegionComp!AA60="",0,iRegionComp!AA60) -> 43 | C66: =iRegionComp!AB60 -> 0 | E66: =TRIM(iRegionComp!AC60) -> 3.2.1) Data protection law | R66: =iRegionComp!AD60 -> 90 | T66: =iRegionComp!AE60 -> 90 | V66: =iRegionComp!AF60 -> 87.5 | W66: =iRegionComp!AG60 -> 100 | X66: =iRegionComp!AH60 -> 100 | Y66: =iRegionComp!AI60 -> 50 | Z66: =iRegionComp!AJ60 -> 75 | AB66: =iRegionComp!AK60 -> 66.7 | AC66: =iRegionComp!AL60 -> 91.7 | AD66: =iRegionComp!AM60 -> 92.9 | AF66: =iRegionComp!AN60 -> 93.8 | AG66: =iRegionComp!AO60 -> 94.4 | AH66: =iRegionComp!AP60 -> 87.5 | AI66: =iRegionComp!AQ60 -> 83.3 | AN66: 50 | AO66: 100
B67: =IF(iRegionComp!AA61="",0,iRegionComp!AA61) -> 44 | C67: =iRegionComp!AB61 -> 0 | E67: =TRIM(iRegionComp!AC61) -> 3.2.2) Cyber security preparedness | R67: =iRegionComp!AD61 -> 77.5 | T67: =iRegionComp!AE61 -> 77.5 | V67: =iRegionComp!AF61 -> 72.9 | W67: =iRegionComp!AG61 -> 77.5 | X67: =iRegionComp!AH61 -> 66.7 | Y67: =iRegionComp!AI61 -> 75 | Z67: =iRegionComp!AJ61 -> 100 | AB67: =iRegionComp!AK61 -> 58.3 | AC67: =iRegionComp!AL61 -> 70.8 | AD67: =iRegionComp!AM61 -> 82.1 | AF67: =iRegionComp!AN61 -> 81.3 | AG67: =iRegionComp!AO61 -> 83.3 | AH67: =iRegionComp!AP61 -> 62.5 | AI67: =iRegionComp!AQ61 -> 75 | AN67: 62.5 | AO67: 83.3
B68: =IF(iRegionComp!AA62="",0,iRegionComp!AA62) -> 45 | C68: =iRegionComp!AB62 -> 0 | E68: =TRIM(iRegionComp!AC62) -> 3.2.3) Cyber security risk awareness | R68: =iRegionComp!AD62 -> 65.8 | T68: =iRegionComp!AE62 -> 65.8 | V68: =iRegionComp!AF62 -> 64.6 | W68: =iRegionComp!AG62 -> 65 | X68: =iRegionComp!AH62 -> 58.3 | Y68: =iRegionComp!AI62 -> 50 | Z68: =iRegionComp!AJ62 -> 81.3 | AB68: =iRegionComp!AK62 -> 58.3 | AC68: =iRegionComp!AL62 -> 62.5 | AD68: =iRegionComp!AM62 -> 67.9 | AF68: =iRegionComp!AN62 -> 62.5 | AG68: =iRegionComp!AO62 -> 72.2 | AH68: =iRegionComp!AP62 -> 68.8 | AI68: =iRegionComp!AQ62 -> 61.1 | AN68: 50 | AO68: 72.2
B69: =IF(iRegionComp!AA63="",0,iRegionComp!AA63) -> 46 | C69: =iRegionComp!AB63 -> 0 | E69: =TRIM(iRegionComp!AC63) -> 3.2.4) Open data access and use | R69: =iRegionComp!AD63 -> 54.3 | T69: =iRegionComp!AE63 -> 54.3 | V69: =iRegionComp!AF63 -> 41.7 | W69: =iRegionComp!AG63 -> 66.4 | X69: =iRegionComp!AH63 -> 45.9 | Y69: =iRegionComp!AI63 -> 7.5 | Z69: =iRegionComp!AJ63 -> 80 | AB69: =iRegionComp!AK63 -> 31.7 | AC69: =iRegionComp!AL63 -> 26.3 | AD69: =iRegionComp!AM63 -> 65.6 | AF69: =iRegionComp!AN63 -> 55.7 | AG69: =iRegionComp!AO63 -> 59.7 | AH69: =iRegionComp!AP63 -> 58.8 | AI69: =iRegionComp!AQ63 -> 45.7 | AN69: 7.5 | AO69: 66.4
B70: =IF(iRegionComp!AA64="",0,iRegionComp!AA64) -> 47 | C70: =iRegionComp!AB64 -> 0 | E70: =TRIM(iRegionComp!AC64) -> 3.2.5) Internet freedom | R70: =iRegionComp!AD64 -> 70.7 | T70: =iRegionComp!AE64 -> 70.7 | V70: =iRegionComp!AF64 -> 57.2 | W70: =iRegionComp!AG64 -> 86.2 | X70: =iRegionComp!AH64 -> 69.4 | Y70: =iRegionComp!AI64 -> 21.4 | Z70: =iRegionComp!AJ64 -> 85.8 | AB70: =iRegionComp!AK64 -> 55.5 | AC70: =iRegionComp!AL64 -> 50.2 | AD70: =iRegionComp!AM64 -> 78.7 | AF70: =iRegionComp!AN64 -> 78.6 | AG70: =iRegionComp!AO64 -> 75.1 | AH70: =iRegionComp!AP64 -> 68.5 | AI70: =iRegionComp!AQ64 -> 60.3 | AN70: 21.4 | AO70: 86.2
B71: =IF(iRegionComp!AA65="",0,iRegionComp!AA65) -> 48 | C71: =iRegionComp!AB65 -> 2 | E71: =TRIM(iRegionComp!AC65) -> 3.3) Innovation ecosystem | R71: =iRegionComp!AD65 -> 49.1 | T71: =iRegionComp!AE65 -> 49.1 | V71: =iRegionComp!AF65 -> 41.2 | W71: =iRegionComp!AG65 -> 57.1 | X71: =iRegionComp!AH65 -> 23.6 | Y71: =iRegionComp!AI65 -> 57.4 | Z71: =iRegionComp!AJ65 -> 70 | AB71: =iRegionComp!AK65 -> 18.5 | AC71: =iRegionComp!AL65 -> 28.6 | AD71: =iRegionComp!AM65 -> 59.4 | AF71: =iRegionComp!AN65 -> 56.8 | AG71: =iRegionComp!AO65 -> 56.2 | AH71: =iRegionComp!AP65 -> 39.4 | AI71: =iRegionComp!AQ65 -> 39.6 | AN71: 23.6 | AO71: 59.4
B72: =IF(iRegionComp!AA66="",0,iRegionComp!AA66) -> 49 | C72: =iRegionComp!AB66 -> 0 | E72: =TRIM(iRegionComp!AC66) -> 3.3.1) AI readiness of government | R72: =iRegionComp!AD66 -> 59.8 | T72: =iRegionComp!AE66 -> 59.8 | V72: =iRegionComp!AF66 -> 49.5 | W72: =iRegionComp!AG66 -> 71.7 | X72: =iRegionComp!AH66 -> 14.9 | Y72: =iRegionComp!AI66 -> 69.2 | Z72: =iRegionComp!AJ66 -> 92.8 | AB72: =iRegionComp!AK66 -> 13.9 | AC72: =iRegionComp!AL66 -> 27.9 | AD72: =iRegionComp!AM66 -> 75.5 | AF72: =iRegionComp!AN66 -> 69.1 | AG72: =iRegionComp!AO66 -> 74.1 | AH72: =iRegionComp!AP66 -> 43.7 | AI72: =iRegionComp!AQ66 -> 44.5 | AN72: 14.9 | AO72: 75.5
B73: =IF(iRegionComp!AA67="",0,iRegionComp!AA67) -> 50 | C73: =iRegionComp!AB67 -> 0 | E73: =TRIM(iRegionComp!AC67) -> 3.3.2) Blockchain technology strategy | R73: =iRegionComp!AD67 -> 35.6 | T73: =iRegionComp!AE67 -> 35.6 | V73: =iRegionComp!AF67 -> 41.7 | W73: =iRegionComp!AG67 -> 40 | X73: =iRegionComp!AH67 -> 22.2 | Y73: =iRegionComp!AI67 -> 100 | Z73: =iRegionComp!AJ67 -> 0 | AB73: =iRegionComp!AK67 -> 33.3 | AC73: =iRegionComp!AL67 -> 27.8 | AD73: =iRegionComp!AM67 -> 38.1 | AF73: =iRegionComp!AN67 -> 54.2 | AG73: =iRegionComp!AO67 -> 25.9 | AH73: =iRegionComp!AP67 -> 8.3 | AI73: =iRegionComp!AQ67 -> 40.7 | AN73: 8.3 | AO73: 100
B74: =IF(iRegionComp!AA68="",0,iRegionComp!AA68) -> 51 | C74: =iRegionComp!AB68 -> 0 | E74: =TRIM(iRegionComp!AC68) -> 3.3.3) Tech startup ecosytem | R74: =iRegionComp!AD68 -> 13.9 | T74: =iRegionComp!AE68 -> 13.9 | V74: =iRegionComp!AF68 -> 12.4 | W74: =iRegionComp!AG68 -> 11.3 | X74: =iRegionComp!AH68 -> 7.2 | Y74: =iRegionComp!AI68 -> 2.7 | Z74: =iRegionComp!AJ68 -> 33.2 | AB74: =iRegionComp!AK68 -> 9.9 | AC74: =iRegionComp!AL68 -> 14.2 | AD74: =iRegionComp!AM68 -> 14.4 | AF74: =iRegionComp!AN68 -> 3 | AG74: =iRegionComp!AO68 -> 9.4 | AH74: =iRegionComp!AP68 -> 18.5 | AI74: =iRegionComp!AQ68 -> 26.2 | AN74: 2.7 | AO74: 26.2
B75: =IF(iRegionComp!AA69="",0,iRegionComp!AA69) -> 52 | C75: =iRegionComp!AB69 -> 0 | E75: =TRIM(iRegionComp!AC69) -> 3.3.4) Intellectual Property Rights | R75: =iRegionComp!AD69 -> 72.5 | T75: =iRegionComp!AE69 -> 72.5 | V75: =iRegionComp!AF69 -> 52.1 | W75: =iRegionComp!AG69 -> 92.5 | X75: =iRegionComp!AH69 -> 50 | Y75: =iRegionComp!AI69 -> 75 | Z75: =iRegionComp!AJ69 -> 100 | AB75: =iRegionComp!AK69 -> 16.7 | AC75: =iRegionComp!AL69 -> 41.7 | AD75: =iRegionComp!AM69 -> 89.3 | AF75: =iRegionComp!AN69 -> 90.6 | AG75: =iRegionComp!AO69 -> 86.1 | AH75: =iRegionComp!AP69 -> 62.5 | AI75: =iRegionComp!AQ69 -> 47.2 | AN75: 41.7 | AO75: 92.5
B76: =IF(iRegionComp!AA70="",0,iRegionComp!AA70) -> 53 | C76: =iRegionComp!AB70 -> 0 | E76: =TRIM(iRegionComp!AC70) -> 3.3.5) Business environment | R76: =iRegionComp!AD70 -> 63.8 | T76: =iRegionComp!AE70 -> 63.8 | V76: =iRegionComp!AF70 -> 54.6 | W76: =iRegionComp!AG70 -> 71.1 | X76: =iRegionComp!AH70 -> 28.4 | Y76: =iRegionComp!AI70 -> 66.7 | Z76: =iRegionComp!AJ70 -> 99.1 | AB76: =iRegionComp!AK70 -> 25.9 | AC76: =iRegionComp!AL70 -> 34 | AD76: =iRegionComp!AM70 -> 77.7 | AF76: =iRegionComp!AN70 -> 75.5 | AG76: =iRegionComp!AO70 -> 79.4 | AH76: =iRegionComp!AP70 -> 54.6 | AI76: =iRegionComp!AQ70 -> 42 | AN76: 28.4 | AO76: 79.4
B77: =IF(iRegionComp!AA71="",0,iRegionComp!AA71) -> 54 | C77: =iRegionComp!AB71 -> 2 | E77: =TRIM(iRegionComp!AC71) -> 3.4) Public attitude and engagement | R77: =iRegionComp!AD71 -> 44.9 | T77: =iRegionComp!AE71 -> 44.9 | V77: =iRegionComp!AF71 -> 50.6 | W77: =iRegionComp!AG71 -> 34.5 | X77: =iRegionComp!AH71 -> 49 | Y77: =iRegionComp!AI71 -> 89.7 | Z77: =iRegionComp!AJ71 -> 39.9 | AB77: =iRegionComp!AK71 -> 67.8 | AC77: =iRegionComp!AL71 -> 56.5 | AD77: =iRegionComp!AM71 -> 38.4 | AF77: =iRegionComp!AN71 -> 45.3 | AG77: =iRegionComp!AO71 -> 35.6 | AH77: =iRegionComp!AP71 -> 42.3 | AI77: =iRegionComp!AQ71 -> 55.1 | AN77: 34.5 | AO77: 89.7
B78: =IF(iRegionComp!AA72="",0,iRegionComp!AA72) -> 55 | C78: =iRegionComp!AB72 -> 0 | E78: =TRIM(iRegionComp!AC72) -> 3.4.1) Online public comfort | R78: =iRegionComp!AD72 -> 47.6 | T78: =iRegionComp!AE72 -> 47.6 | V78: =iRegionComp!AF72 -> 51.5 | W78: =iRegionComp!AG72 -> 38.5 | X78: =iRegionComp!AH72 -> 59.8 | Y78: =iRegionComp!AI72 -> 79.4 | Z78: =iRegionComp!AJ72 -> 41.2 | AB78: =iRegionComp!AK72 -> 59.8 | AC78: =iRegionComp!AL72 -> 62.7 | AD78: =iRegionComp!AM72 -> 41.5 | AF78: =iRegionComp!AN72 -> 50.4 | AG78: =iRegionComp!AO72 -> 36.3 | AH78: =iRegionComp!AP72 -> 44.9 | AI78: =iRegionComp!AQ72 -> 57.5 | AN78: 36.3 | AO78: 79.4
B79: =IF(iRegionComp!AA73="",0,iRegionComp!AA73) -> 56 | C79: =iRegionComp!AB73 -> 0 | E79: =TRIM(iRegionComp!AC73) -> 3.4.2) E-participation on government portals | R79: =iRegionComp!AD73 -> 42.3 | T79: =iRegionComp!AE73 -> 42.3 | V79: =iRegionComp!AF73 -> 49.7 | W79: =iRegionComp!AG73 -> 30.4 | X79: =iRegionComp!AH73 -> 38.2 | Y79: =iRegionComp!AI73 -> 100 | Z79: =iRegionComp!AJ73 -> 38.5 | AB79: =iRegionComp!AK73 -> 75.6 | AC79: =iRegionComp!AL73 -> 50.2 | AD79: =iRegionComp!AM73 -> 35.3 | AF79: =iRegionComp!AN73 -> 40.2 | AG79: =iRegionComp!AO73 -> 35 | AH79: =iRegionComp!AP73 -> 39.7 | AI79: =iRegionComp!AQ73 -> 52.7 | AN79: 30.4 | AO79: 100
B80: =IF(iRegionComp!AA74="",0,iRegionComp!AA74) -> 58 | C80: =iRegionComp!AB74 -> 2 | E80: =TRIM(iRegionComp!AC74) -> 4.1) Efficient resource management | R80: =iRegionComp!AD74 -> 76 | T80: =iRegionComp!AE74 -> 76 | V80: =iRegionComp!AF74 -> 72.2 | W80: =iRegionComp!AG74 -> 83.8 | X80: =iRegionComp!AH74 -> 40.3 | Y80: =iRegionComp!AI74 -> 100 | Z80: =iRegionComp!AJ74 -> 88.5 | AB80: =iRegionComp!AK74 -> 41.7 | AC80: =iRegionComp!AL74 -> 54.2 | AD80: =iRegionComp!AM74 -> 87.1 | AF80: =iRegionComp!AN74 -> 82.3 | AG80: =iRegionComp!AO74 -> 80.5 | AH80: =iRegionComp!AP74 -> 77.2 | AI80: =iRegionComp!AQ74 -> 65.3 | AN80: 40.3 | AO80: 100
B81: =IF(iRegionComp!AA75="",0,iRegionComp!AA75) -> 59 | C81: =iRegionComp!AB75 -> 0 | E81: =TRIM(iRegionComp!AC75) -> 4.1.1) Smart utility management | R81: =iRegionComp!AD75 -> 73.3 | T81: =iRegionComp!AE75 -> 73.3 | V81: =iRegionComp!AF75 -> 64.6 | W81: =iRegionComp!AG75 -> 77.5 | X81: =iRegionComp!AH75 -> 66.7 | Y81: =iRegionComp!AI75 -> 100 | Z81: =iRegionComp!AJ75 -> 87.5 | AB81: =iRegionComp!AK75 -> 50 | AC81: =iRegionComp!AL75 -> 58.3 | AD81: =iRegionComp!AM75 -> 81 | AF81: =iRegionComp!AN75 -> 71.9 | AG81: =iRegionComp!AO75 -> 75 | AH81: =iRegionComp!AP75 -> 68.8 | AI81: =iRegionComp!AQ75 -> 75 | AN81: 58.3 | AO81: 100
B82: =IF(iRegionComp!AA76="",0,iRegionComp!AA76) -> 60 | C82: =iRegionComp!AB76 -> 0 | E82: =TRIM(iRegionComp!AC76) -> 4.1.2) Smart urban agriculture | R82: =iRegionComp!AD76 -> 76.7 | T82: =iRegionComp!AE76 -> 76.7 | V82: =iRegionComp!AF76 -> 75 | W82: =iRegionComp!AG76 -> 90 | X82: =iRegionComp!AH76 -> 33.3 | Y82: =iRegionComp!AI76 -> 100 | Z82: =iRegionComp!AJ76 -> 75 | AB82: =iRegionComp!AK76 -> 33.3 | AC82: =iRegionComp!AL76 -> 50 | AD82: =iRegionComp!AM76 -> 90.5 | AF82: =iRegionComp!AN76 -> 100 | AG82: =iRegionComp!AO76 -> 66.7 | AH82: =iRegionComp!AP76 -> 100 | AI82: =iRegionComp!AQ76 -> 55.6 | AN82: 33.3 | AO82: 100
B83: =IF(iRegionComp!AA77="",0,iRegionComp!AA77) -> 61 | C83: =iRegionComp!AB77 -> 0 | E83: =TRIM(iRegionComp!AC77) -> 4.1.3) Smart construction | R83: =iRegionComp!AD77 -> 80 | T83: =iRegionComp!AE77 -> 80 | V83: =iRegionComp!AF77 -> 83.3 | W83: =iRegionComp!AG77 -> 90 | X83: =iRegionComp!AH77 -> 0 | Y83: =iRegionComp!AI77 -> 100 | Z83: =iRegionComp!AJ77 -> 100 | AB83: =iRegionComp!AK77 -> 33.3 | AC83: =iRegionComp!AL77 -> 50 | AD83: =iRegionComp!AM77 -> 95.2 | AF83: =iRegionComp!AN77 -> 87.5 | AG83: =iRegionComp!AO77 -> 100 | AH83: =iRegionComp!AP77 -> 75 | AI83: =iRegionComp!AQ77 -> 55.6 | AN83: 0 | AO83: 100
B84: =IF(iRegionComp!AA78="",0,iRegionComp!AA78) -> 62 | C84: =iRegionComp!AB78 -> 2 | E84: =TRIM(iRegionComp!AC78) -> 4.2) Emissions reduction | R84: =iRegionComp!AD78 -> 78 | T84: =iRegionComp!AE78 -> 78 | V84: =iRegionComp!AF78 -> 66.1 | W84: =iRegionComp!AG78 -> 93.9 | X84: =iRegionComp!AH78 -> 48.9 | Y84: =iRegionComp!AI78 -> 83.8 | Z84: =iRegionComp!AJ78 -> 94.3 | AB84: =iRegionComp!AK78 -> 36.2 | AC84: =iRegionComp!AL78 -> 60.3 | AD84: =iRegionComp!AM78 -> 89.1 | AF84: =iRegionComp!AN78 -> 92.3 | AG84: =iRegionComp!AO78 -> 87 | AH84: =iRegionComp!AP78 -> 57.7 | AI84: =iRegionComp!AQ78 -> 65.3 | AN84: 48.9 | AO84: 93.9
B85: =IF(iRegionComp!AA79="",0,iRegionComp!AA79) -> 63 | C85: =iRegionComp!AB79 -> 0 | E85: =TRIM(iRegionComp!AC79) -> 4.2.1) Net-zero emission | R85: =iRegionComp!AD79 -> 81.7 | T85: =iRegionComp!AE79 -> 81.7 | V85: =iRegionComp!AF79 -> 70.8 | W85: =iRegionComp!AG79 -> 100 | X85: =iRegionComp!AH79 -> 50 | Y85: =iRegionComp!AI79 -> 50 | Z85: =iRegionComp!AJ79 -> 100 | AB85: =iRegionComp!AK79 -> 50 | AC85: =iRegionComp!AL79 -> 58.3 | AD85: =iRegionComp!AM79 -> 92.9 | AF85: =iRegionComp!AN79 -> 93.8 | AG85: =iRegionComp!AO79 -> 83.3 | AH85: =iRegionComp!AP79 -> 62.5 | AI85: =iRegionComp!AQ79 -> 77.8 | AN85: 50 | AO85: 100
B86: =IF(iRegionComp!AA80="",0,iRegionComp!AA80) -> 64 | C86: =iRegionComp!AB80 -> 0 | E86: =TRIM(iRegionComp!AC80) -> 4.2.2) Traffic management | R86: =iRegionComp!AD80 -> 73.3 | T86: =iRegionComp!AE80 -> 73.3 | V86: =iRegionComp!AF80 -> 58.3 | W86: =iRegionComp!AG80 -> 84 | X86: =iRegionComp!AH80 -> 73.3 | Y86: =iRegionComp!AI80 -> 100 | Z86: =iRegionComp!AJ80 -> 85 | AB86: =iRegionComp!AK80 -> 26.7 | AC86: =iRegionComp!AL80 -> 70 | AD86: =iRegionComp!AM80 -> 81 | AF86: =iRegionComp!AN80 -> 90 | AG86: =iRegionComp!AO80 -> 84.4 | AH86: =iRegionComp!AP80 -> 40 | AI86: =iRegionComp!AQ80 -> 62.2 | AN86: 40 | AO86: 100
B87: =IF(iRegionComp!AA81="",0,iRegionComp!AA81) -> 65 | C87: =iRegionComp!AB81 -> 0 | E87: =TRIM(iRegionComp!AC81) -> 4.2.3) Support for autonomous vehicles | R87: =iRegionComp!AD81 -> 80 | T87: =iRegionComp!AE81 -> 80 | V87: =iRegionComp!AF81 -> 70.8 | W87: =iRegionComp!AG81 -> 100 | X87: =iRegionComp!AH81 -> 16.7 | Y87: =iRegionComp!AI81 -> 100 | Z87: =iRegionComp!AJ81 -> 100 | AB87: =iRegionComp!AK81 -> 33.3 | AC87: =iRegionComp!AL81 -> 50 | AD87: =iRegionComp!AM81 -> 95.2 | AF87: =iRegionComp!AN81 -> 93.8 | AG87: =iRegionComp!AO81 -> 94.4 | AH87: =iRegionComp!AP81 -> 75 | AI87: =iRegionComp!AQ81 -> 55.6 | AN87: 16.7 | AO87: 100
B88: =IF(iRegionComp!AA82="",0,iRegionComp!AA82) -> 66 | C88: =iRegionComp!AB82 -> 2 | E88: =TRIM(iRegionComp!AC82) -> 4.3) Pollution | R88: =iRegionComp!AD82 -> 57.8 | T88: =iRegionComp!AE82 -> 57.8 | V88: =iRegionComp!AF82 -> 57 | W88: =iRegionComp!AG82 -> 63.3 | X88: =iRegionComp!AH82 -> 50 | Y88: =iRegionComp!AI82 -> 16.7 | Z88: =iRegionComp!AJ82 -> 62.5 | AB88: =iRegionComp!AK82 -> 33.3 | AC88: =iRegionComp!AL82 -> 50 | AD88: =iRegionComp!AM82 -> 63.5 | AF88: =iRegionComp!AN82 -> 60.4 | AG88: =iRegionComp!AO82 -> 63 | AH88: =iRegionComp!AP82 -> 58.3 | AI88: =iRegionComp!AQ82 -> 50 | AN88: 16.7 | AO88: 63.5
B89: =IF(iRegionComp!AA83="",0,iRegionComp!AA83) -> 67 | C89: =iRegionComp!AB83 -> 0 | E89: =TRIM(iRegionComp!AC83) -> 4.3.1) Air pollution | R89: =iRegionComp!AD83 -> 57.8 | T89: =iRegionComp!AE83 -> 57.8 | V89: =iRegionComp!AF83 -> 57 | W89: =iRegionComp!AG83 -> 63.3 | X89: =iRegionComp!AH83 -> 50 | Y89: =iRegionComp!AI83 -> 16.7 | Z89: =iRegionComp!AJ83 -> 62.5 | AB89: =iRegionComp!AK83 -> 33.3 | AC89: =iRegionComp!AL83 -> 50 | AD89: =iRegionComp!AM83 -> 63.5 | AF89: =iRegionComp!AN83 -> 60.4 | AG89: =iRegionComp!AO83 -> 63 | AH89: =iRegionComp!AP83 -> 58.3 | AI89: =iRegionComp!AQ83 -> 50 | AN89: 16.7 | AO89: 63.5
B90: =IF(iRegionComp!AA84="",0,iRegionComp!AA84) -> 68 | C90: =iRegionComp!AB84 -> 2 | E90: =TRIM(iRegionComp!AC84) -> 4.4) Circular economy | R90: =iRegionComp!AD84 -> 48 | T90: =iRegionComp!AE84 -> 48 | V90: =iRegionComp!AF84 -> 45.4 | W90: =iRegionComp!AG84 -> 56.7 | X90: =iRegionComp!AH84 -> 38.1 | Y90: =iRegionComp!AI84 -> 0 | Z90: =iRegionComp!AJ84 -> 53.6 | AB90: =iRegionComp!AK84 -> 12.7 | AC90: =iRegionComp!AL84 -> 52.4 | AD90: =iRegionComp!AM84 -> 51.8 | AF90: =iRegionComp!AN84 -> 47 | AG90: =iRegionComp!AO84 -> 55.3 | AH90: =iRegionComp!AP84 -> 26.8 | AI90: =iRegionComp!AQ84 -> 51.1 | AN90: 0 | AO90: 56.7
B91: =IF(iRegionComp!AA85="",0,iRegionComp!AA85) -> 69 | C91: =iRegionComp!AB85 -> 0 | E91: =TRIM(iRegionComp!AC85) -> 4.4.1) Development of sharing economy | R91: =iRegionComp!AD85 -> 28.3 | T91: =iRegionComp!AE85 -> 28.3 | V91: =iRegionComp!AF85 -> 37.5 | W91: =iRegionComp!AG85 -> 30 | X91: =iRegionComp!AH85 -> 0 | Y91: =iRegionComp!AI85 -> 0 | Z91: =iRegionComp!AJ85 -> 25 | AB91: =iRegionComp!AK85 -> 0 | AC91: =iRegionComp!AL85 -> 33.3 | AD91: =iRegionComp!AM85 -> 31 | AF91: =iRegionComp!AN85 -> 37.5 | AG91: =iRegionComp!AO85 -> 27.8 | AH91: =iRegionComp!AP85 -> 12.5 | AI91: =iRegionComp!AQ85 -> 27.8 | AN91: 0 | AO91: 37.5
B92: =IF(iRegionComp!AA86="",0,iRegionComp!AA86) -> 70 | C92: =iRegionComp!AB86 -> 0 | E92: =TRIM(iRegionComp!AC86) -> 4.4.2) E-waste management | R92: =iRegionComp!AD86 -> 80 | T92: =iRegionComp!AE86 -> 80 | V92: =iRegionComp!AF86 -> 58.3 | W92: =iRegionComp!AG86 -> 100 | X92: =iRegionComp!AH86 -> 100 | Y92: =iRegionComp!AI86 -> 0 | Z92: =iRegionComp!AJ86 -> 100 | AB92: =iRegionComp!AK86 -> 33.3 | AC92: =iRegionComp!AL86 -> 83.3 | AD92: =iRegionComp!AM86 -> 85.7 | AF92: =iRegionComp!AN86 -> 62.5 | AG92: =iRegionComp!AO86 -> 100 | AH92: =iRegionComp!AP86 -> 50 | AI92: =iRegionComp!AQ86 -> 88.9 | AN92: 0 | AO92: 100
B93: =IF(iRegionComp!AA87="",0,iRegionComp!AA87) -> 0 | C93: =iRegionComp!AB87 -> 0 | E93: =TRIM(iRegionComp!AC87) ->  | R93: =iRegionComp!AD87 ->  | T93: =iRegionComp!AE87 ->  | V93: =iRegionComp!AF87 ->  | W93: =iRegionComp!AG87 ->  | X93: =iRegionComp!AH87 ->  | Y93: =iRegionComp!AI87 ->  | Z93: =iRegionComp!AJ87 ->  | AB93: =iRegionComp!AK87 ->  | AC93: =iRegionComp!AL87 ->  | AD93: =iRegionComp!AM87 ->  | AF93: =iRegionComp!AN87 ->  | AG93: =iRegionComp!AO87 ->  | AH93: =iRegionComp!AP87 ->  | AI93: =iRegionComp!AQ87 ->  | AN93: =CHOOSE($AN$1,MIN(R93:Y93,AC93:AI93),MIN(R93:AI93),MIN(R93:Y93,AC93:AI93),MIN(R93:AB93,AC93:AI93)) -> 0 | AO93: =CHOOSE($AN$1,MAX(R93:Y93,AC93:AI93),MAX(R93:AI93),MAX(R93:Y93,AC93:AI93),MAX(R93:AB93,AC93:AI93)) -> 0
B94: =IF(iRegionComp!AA88="",0,iRegionComp!AA88) -> 0 | C94: =iRegionComp!AB88 -> 0 | E94: =TRIM(iRegionComp!AC88) ->  | R94: =iRegionComp!AD88 ->  | T94: =iRegionComp!AE88 ->  | V94: =iRegionComp!AF88 ->  | W94: =iRegionComp!AG88 ->  | X94: =iRegionComp!AH88 ->  | Y94: =iRegionComp!AI88 ->  | Z94: =iRegionComp!AJ88 ->  | AB94: =iRegionComp!AK88 ->  | AC94: =iRegionComp!AL88 ->  | AD94: =iRegionComp!AM88 ->  | AF94: =iRegionComp!AN88 ->  | AG94: =iRegionComp!AO88 ->  | AH94: =iRegionComp!AP88 ->  | AI94: =iRegionComp!AQ88 ->  | AN94: 0 | AO94: 0
B95: =IF(iRegionComp!AA89="",0,iRegionComp!AA89) -> 0 | C95: =iRegionComp!AB89 -> 0 | E95: =TRIM(iRegionComp!AC89) ->  | R95: =iRegionComp!AD89 ->  | T95: =iRegionComp!AE89 ->  | V95: =iRegionComp!AF89 ->  | W95: =iRegionComp!AG89 ->  | X95: =iRegionComp!AH89 ->  | Y95: =iRegionComp!AI89 ->  | Z95: =iRegionComp!AJ89 ->  | AB95: =iRegionComp!AK89 ->  | AC95: =iRegionComp!AL89 ->  | AD95: =iRegionComp!AM89 ->  | AF95: =iRegionComp!AN89 ->  | AG95: =iRegionComp!AO89 ->  | AH95: =iRegionComp!AP89 ->  | AI95: =iRegionComp!AQ89 ->  | AN95: 0 | AO95: 0
B96: =IF(iRegionComp!AA90="",0,iRegionComp!AA90) -> 0 | C96: =iRegionComp!AB90 -> 0 | E96: =TRIM(iRegionComp!AC90) ->  | R96: =iRegionComp!AD90 ->  | T96: =iRegionComp!AE90 ->  | V96: =iRegionComp!AF90 ->  | W96: =iRegionComp!AG90 ->  | X96: =iRegionComp!AH90 ->  | Y96: =iRegionComp!AI90 ->  | Z96: =iRegionComp!AJ90 ->  | AB96: =iRegionComp!AK90 ->  | AC96: =iRegionComp!AL90 ->  | AD96: =iRegionComp!AM90 ->  | AF96: =iRegionComp!AN90 ->  | AG96: =iRegionComp!AO90 ->  | AH96: =iRegionComp!AP90 ->  | AI96: =iRegionComp!AQ90 ->  | AN96: 0 | AO96: 0
B97: =IF(iRegionComp!AA91="",0,iRegionComp!AA91) -> 0 | C97: =iRegionComp!AB91 -> 0 | E97: =TRIM(iRegionComp!AC91) ->  | R97: =iRegionComp!AD91 ->  | T97: =iRegionComp!AE91 ->  | V97: =iRegionComp!AF91 ->  | W97: =iRegionComp!AG91 ->  | X97: =iRegionComp!AH91 ->  | Y97: =iRegionComp!AI91 ->  | Z97: =iRegionComp!AJ91 ->  | AB97: =iRegionComp!AK91 ->  | AC97: =iRegionComp!AL91 ->  | AD97: =iRegionComp!AM91 ->  | AF97: =iRegionComp!AN91 ->  | AG97: =iRegionComp!AO91 ->  | AH97: =iRegionComp!AP91 ->  | AI97: =iRegionComp!AQ91 ->  | AN97: 0 | AO97: 0

Sheet Scatter
A1: =uxb_works!$B$92 -> Digital Cities Index | BA1: 1 | BB1: 7
B6: =uxb_works!$C$5 -> The active weight profile has been changed from its default setting
B8: =uxb_works!D67 -> There are 30 cities in the active filter set
B11: =iScatter!G1 -> OVERALL SCORE | H11: =iScatter!G2 -> OVERALL SCORE
B12: =IF(iScatter!B1=1,"",iScatter!F1) ->  | H12: =IF(iScatter!B2=1,"",iScatter!F2) -> 
S26: CORRELATION(X,Y)
R27: =IF(ISERROR(iScatter!B14),"n/a",iScatter!B14) -> 1

Sheet Correlations
A1: =uxb_works!B92 -> Digital Cities Index | BA1: 1 | BB1: 8
A4: =uxb_works!B111 -> 2
D6: =uxb_works!$C$5 -> The active weight profile has been changed from its default setting
D8: =uxb_works!D67 -> There are 30 cities in the active filter set
H22: Compare *
H23: =UPPER(iCorrel1!C6) -> OVERALL SCORE
H24: with
F25: Most postive correlations | K25: Most negative correlations
E26: =MAX(G26,L26) -> 22 | G26: =MAX(COUNTIF(E27:E66,"<>0"),1) -> 22 | L26: =MAX(COUNTIF(J27:J66,"<>0"),1) -> 4
E27: =iCorrel1!N8 -> 4 | F27: =TRIM(iCorrel1!O8) -> 4) SUSTAINABILITY | G27: =iCorrel1!P8 -> 0.92 | J27: =iCorrel1!T8 -> 3 | K27: =TRIM(iCorrel1!U8) -> BG_1.4) Gender Inequality Index | L27: =iCorrel1!V8 -> -0.85
E28: =iCorrel1!N9 -> 4 | F28: =TRIM(iCorrel1!O9) -> 1) CONNECTIVITY | G28: =iCorrel1!P9 -> 0.91 | J28: =iCorrel1!T9 -> 2 | K28: =TRIM(iCorrel1!U9) -> BG_1.2) Corruption | L28: =iCorrel1!V9 -> -0.78
E29: =iCorrel1!N10 -> 4 | F29: =TRIM(iCorrel1!O10) -> BG_1.3) Human Development Index | G29: =iCorrel1!P10 -> 0.9 | J29: =iCorrel1!T10 -> 1 | K29: =TRIM(iCorrel1!U10) -> 3.4) Public attitude and engagement | L29: =iCorrel1!V10 -> -0.41
E30: =iCorrel1!N11 -> 3 | F30: =TRIM(iCorrel1!O11) -> 2) SERVICES | G30: =iCorrel1!P11 -> 0.89 | J30: =iCorrel1!T11 -> 1 | K30: =TRIM(iCorrel1!U11) -> BG_1.1) Real GDP growth | L30: =iCorrel1!V11 -> -0.14
E31: =iCorrel1!N12 -> 3 | F31: =TRIM(iCorrel1!O12) -> 3.3) Innovation ecosystem | G31: =iCorrel1!P12 -> 0.88 | J31: =iCorrel1!T12 -> 0 | K31: =TRIM(iCorrel1!U12) ->  | L31: =iCorrel1!V12 -> 
E32: =iCorrel1!N13 -> 3 | F32: =TRIM(iCorrel1!O13) -> 4.1) Efficient resource management | G32: =iCorrel1!P13 -> 0.84 | J32: =iCorrel1!T13 -> 0 | K32: =TRIM(iCorrel1!U13) ->  | L32: =iCorrel1!V13 -> 
E33: =iCorrel1!N14 -> 3 | F33: =TRIM(iCorrel1!O14) -> 1.1) Digital infrastructure | G33: =iCorrel1!P14 -> 0.82 | J33: =iCorrel1!T14 -> 0 | K33: =TRIM(iCorrel1!U14) ->  | L33: =iCorrel1!V14 -> 
E34: =iCorrel1!N15 -> 3 | F34: =TRIM(iCorrel1!O15) -> 4.2) Emissions reduction | G34: =iCorrel1!P15 -> 0.82 | J34: =iCorrel1!T15 -> 0 | K34: =TRIM(iCorrel1!U15) ->  | L34: =iCorrel1!V15 -> 
E35: =iCorrel1!N16 -> 3 | F35: =TRIM(iCorrel1!O16) -> 3) CULTURE | G35: =iCorrel1!P16 -> 0.8 | J35: =iCorrel1!T16 -> 0 | K35: =TRIM(iCorrel1!U16) ->  | L35: =iCorrel1!V16 -> 
E36: =iCorrel1!N17 -> 1 | F36: =TRIM(iCorrel1!O17) -> 1.3) Affordability | G36: =iCorrel1!P17 -> 0.69 | J36: =iCorrel1!T17 -> 0 | K36: =TRIM(iCorrel1!U17) ->  | L36: =iCorrel1!V17 -> 
E37: =iCorrel1!N18 -> 1 | F37: =TRIM(iCorrel1!O18) -> 2.5) Education | G37: =iCorrel1!P18 -> 0.67 | J37: =iCorrel1!T18 -> 0 | K37: =TRIM(iCorrel1!U18) ->  | L37: =iCorrel1!V18 -> 
E38: =iCorrel1!N19 -> 1 | F38: =TRIM(iCorrel1!O19) -> BG_1.5) Per capita income | G38: =iCorrel1!P19 -> 0.66 | J38: =iCorrel1!T19 -> 0 | K38: =TRIM(iCorrel1!U19) ->  | L38: =iCorrel1!V19 -> 
E39: =iCorrel1!N20 -> 1 | F39: =TRIM(iCorrel1!O20) -> 2.3) Transportation | G39: =iCorrel1!P20 -> 0.62 | J39: =iCorrel1!T20 -> 0 | K39: =TRIM(iCorrel1!U20) ->  | L39: =iCorrel1!V20 -> 
E40: =iCorrel1!N21 -> 1 | F40: =TRIM(iCorrel1!O21) -> 3.2) Government support | G40: =iCorrel1!P21 -> 0.56 | J40: =iCorrel1!T21 -> 0 | K40: =TRIM(iCorrel1!U21) ->  | L40: =iCorrel1!V21 -> 
E41: =iCorrel1!N22 -> 1 | F41: =TRIM(iCorrel1!O22) -> 4.4) Circular economy | G41: =iCorrel1!P22 -> 0.56 | J41: =iCorrel1!T22 -> 0 | K41: =TRIM(iCorrel1!U22) ->  | L41: =iCorrel1!V22 -> 
E42: =iCorrel1!N23 -> 1 | F42: =TRIM(iCorrel1!O23) -> 2.4) Healthcare | G42: =iCorrel1!P23 -> 0.53 | J42: =iCorrel1!T23 -> 0 | K42: =TRIM(iCorrel1!U23) ->  | L42: =iCorrel1!V23 -> 
E43: =iCorrel1!N24 -> 1 | F43: =TRIM(iCorrel1!O24) -> 4.3) Pollution | G43: =iCorrel1!P24 -> 0.48 | J43: =iCorrel1!T24 -> 0 | K43: =TRIM(iCorrel1!U24) ->  | L43: =iCorrel1!V24 -> 
E44: =iCorrel1!N25 -> 1 | F44: =TRIM(iCorrel1!O25) -> 2.6) Retail and hospitality | G44: =iCorrel1!P25 -> 0.46 | J44: =iCorrel1!T25 -> 0 | K44: =TRIM(iCorrel1!U25) ->  | L44: =iCorrel1!V25 -> 
E45: =iCorrel1!N26 -> 1 | F45: =TRIM(iCorrel1!O26) -> 1.2) Quality | G45: =iCorrel1!P26 -> 0.43 | J45: =iCorrel1!T26 -> 0 | K45: =TRIM(iCorrel1!U26) ->  | L45: =iCorrel1!V26 -> 
E46: =iCorrel1!N27 -> 1 | F46: =TRIM(iCorrel1!O27) -> 2.2) Digital finance | G46: =iCorrel1!P27 -> 0.38 | J46: =iCorrel1!T27 -> 0 | K46: =TRIM(iCorrel1!U27) ->  | L46: =iCorrel1!V27 -> 
E47: =iCorrel1!N28 -> 1 | F47: =TRIM(iCorrel1!O28) -> 3.1) Digital inclusion | G47: =iCorrel1!P28 -> 0.11 | J47: =iCorrel1!T28 -> 0 | K47: =TRIM(iCorrel1!U28) ->  | L47: =iCorrel1!V28 -> 
E48: =iCorrel1!N29 -> 1 | F48: =TRIM(iCorrel1!O29) -> 2.1) E-gov services for residents & businesses | G48: =iCorrel1!P29 -> 0.05 | J48: =iCorrel1!T29 -> 0 | K48: =TRIM(iCorrel1!U29) ->  | L48: =iCorrel1!V29 -> 
E49: =iCorrel1!N30 -> 0 | F49: =TRIM(iCorrel1!O30) ->  | G49: =iCorrel1!P30 ->  | J49: =iCorrel1!T30 -> 0 | K49: =TRIM(iCorrel1!U30) ->  | L49: =iCorrel1!V30 -> 
E50: =iCorrel1!N31 -> 0 | F50: =TRIM(iCorrel1!O31) ->  | G50: =iCorrel1!P31 ->  | J50: =iCorrel1!T31 -> 0 | K50: =TRIM(iCorrel1!U31) ->  | L50: =iCorrel1!V31 -> 
E51: =iCorrel1!N32 -> 0 | F51: =TRIM(iCorrel1!O32) ->  | G51: =iCorrel1!P32 ->  | J51: =iCorrel1!T32 -> 0 | K51: =TRIM(iCorrel1!U32) ->  | L51: =iCorrel1!V32 -> 
E52: =iCorrel1!N33 -> 0 | F52: =TRIM(iCorrel1!O33) ->  | G52: =iCorrel1!P33 ->  | J52: =iCorrel1!T33 -> 0 | K52: =TRIM(iCorrel1!U33) ->  | L52: =iCorrel1!V33 -> 
E53: =iCorrel1!N34 -> 0 | F53: =TRIM(iCorrel1!O34) ->  | G53: =iCorrel1!P34 ->  | J53: =iCorrel1!T34 -> 0 | K53: =TRIM(iCorrel1!U34) ->  | L53: =iCorrel1!V34 -> 
E54: =iCorrel1!N35 -> 0 | F54: =TRIM(iCorrel1!O35) ->  | G54: =iCorrel1!P35 -> 0 | J54: =iCorrel1!T35 -> 0 | K54: =TRIM(iCorrel1!U35) ->  | L54: =iCorrel1!V35 -> 0
E55: =iCorrel1!N36 -> 0 | F55: =TRIM(iCorrel1!O36) ->  | G55: =iCorrel1!P36 -> 0 | J55: =iCorrel1!T36 -> 0 | K55: =TRIM(iCorrel1!U36) ->  | L55: =iCorrel1!V36 -> 0
E56: =iCorrel1!N37 -> 0 | F56: =TRIM(iCorrel1!O37) ->  | G56: =iCorrel1!P37 -> 0 | J56: =iCorrel1!T37 -> 0 | K56: =TRIM(iCorrel1!U37) ->  | L56: =iCorrel1!V37 -> 0
E57: =iCorrel1!N38 -> 0 | F57: =TRIM(iCorrel1!O38) ->  | G57: =iCorrel1!P38 -> 0 | J57: =iCorrel1!T38 -> 0 | K57: =TRIM(iCorrel1!U38) ->  | L57: =iCorrel1!V38 -> 0
E58: =iCorrel1!N39 -> 0 | F58: =TRIM(iCorrel1!O39) ->  | G58: =iCorrel1!P39 -> 0 | J58: =iCorrel1!T39 -> 0 | K58: =TRIM(iCorrel1!U39) ->  | L58: =iCorrel1!V39 -> 0
E59: =iCorrel1!N35 -> 0 | F59: =TRIM(iCorrel1!O35) ->  | G59: =iCorrel1!P35 -> 0 | J59: =iCorrel1!T35 -> 0 | K59: =TRIM(iCorrel1!U35) ->  | L59: =iCorrel1!V35 -> 0
E60: =iCorrel1!N36 -> 0 | F60: =TRIM(iCorrel1!O36) ->  | G60: =iCorrel1!P36 -> 0 | J60: =iCorrel1!T36 -> 0 | K60: =TRIM(iCorrel1!U36) ->  | L60: =iCorrel1!V36 -> 0
E61: =iCorrel1!N37 -> 0 | F61: =TRIM(iCorrel1!O37) ->  | G61: =iCorrel1!P37 -> 0 | J61: =iCorrel1!T37 -> 0 | K61: =TRIM(iCorrel1!U37) ->  | L61: =iCorrel1!V37 -> 0
E62: =iCorrel1!N38 -> 0 | F62: =TRIM(iCorrel1!O38) ->  | G62: =iCorrel1!P38 -> 0 | J62: =iCorrel1!T38 -> 0 | K62: =TRIM(iCorrel1!U38) ->  | L62: =iCorrel1!V38 -> 0
E63: =iCorrel1!N39 -> 0 | F63: =TRIM(iCorrel1!O39) ->  | G63: =iCorrel1!P39 -> 0 | J63: =iCorrel1!T39 -> 0 | K63: =TRIM(iCorrel1!U39) ->  | L63: =iCorrel1!V39 -> 0
E64: =iCorrel1!N40 -> 0 | F64: =TRIM(iCorrel1!O40) ->  | G64: =iCorrel1!P40 -> 0 | J64: =iCorrel1!T40 -> 0 | K64: =TRIM(iCorrel1!U40) ->  | L64: =iCorrel1!V40 -> 0
E65: =iCorrel1!N41 -> 0 | F65: =TRIM(iCorrel1!O41) ->  | G65: =iCorrel1!P41 -> 0 | J65: =iCorrel1!T41 -> 0 | K65: =TRIM(iCorrel1!U41) ->  | L65: =iCorrel1!V41 -> 0
E66: =iCorrel1!N42 -> 0 | F66: =TRIM(iCorrel1!O42) ->  | G66: =iCorrel1!P42 -> 0 | J66: =iCorrel1!T42 -> 0 | K66: =TRIM(iCorrel1!U42) ->  | L66: =iCorrel1!V42 -> 0

Sheet Scores
L1: 1 | N1: =uxb_works!$B$92 -> Digital Cities Index | AV1: =uxb_works!B52 -> 1 | AW1: 0 | AX1: 33.3 | AY1: 66.6 | AZ1: 100 | BA1: 1 | BB1: 9 | CC1: 1 | CD1: 4
O3: 0 | P3: =O3+1 -> 1 | Q3: =P3+1 -> 2 | R3: 3 | S3: 4 | T3: 5 | U3: 6 | V3: 7 | W3: 8 | X3: 9 | Y3: =X3+1 -> 10 | Z3: =Y3+1 -> 11 | AA3: =Z3+1 -> 12 | AB3: =AA3+1 -> 13 | AC3: =AB3+1 -> 14 | AD3: =AC3+1 -> 15 | AE3: =AD3+1 -> 16 | AF3: =AE3+1 -> 17 | AG3: =AF3+1 -> 18 | AH3: =AG3+1 -> 19 | AI3: =AH3+1 -> 20 | AJ3: =AI3+1 -> 21 | AK3: =AJ3+1 -> 22 | AL3: =AK3+1 -> 23 | AM3: =AL3+1 -> 24 | AN3: =AM3+1 -> 25 | AO3: =AN3+1 -> 26 | AP3: =AO3+1 -> 27 | AQ3: =AP3+1 -> 28 | AR3: =AQ3+1 -> 29 | AS3: =AR3+1 -> 30 | AT3: =#REF!+1 -> 
A4: =uxb_works!B111 -> 2 | N4: =uxb_works!O111 -> 0 | P4: =INDEX(tblTerritories!$V$3:$V$32,Scores!P3) -> 1 | Q4: =INDEX(tblTerritories!$V$3:$V$32,Scores!Q3) -> 2 | R4: =INDEX(tblTerritories!$V$3:$V$32,Scores!R3) -> 3 | S4: =INDEX(tblTerritories!$V$3:$V$32,Scores!S3) -> 4 | T4: =INDEX(tblTerritories!$V$3:$V$32,Scores!T3) -> 5 | U4: =INDEX(tblTerritories!$V$3:$V$32,Scores!U3) -> 6 | V4: =INDEX(tblTerritories!$V$3:$V$32,Scores!V3) -> 7 | W4: =INDEX(tblTerritories!$V$3:$V$32,Scores!W3) -> 8 | X4: =INDEX(tblTerritories!$V$3:$V$32,Scores!X3) -> 9 | Y4: =INDEX(tblTerritories!$V$3:$V$32,Scores!Y3) -> 10 | Z4: =INDEX(tblTerritories!$V$3:$V$32,Scores!Z3) -> 11 | AA4: =INDEX(tblTerritories!$V$3:$V$32,Scores!AA3) -> 12 | AB4: =INDEX(tblTerritories!$V$3:$V$32,Scores!AB3) -> 13 | AC4: =INDEX(tblTerritories!$V$3:$V$32,Scores!AC3) -> 14 | AD4: =INDEX(tblTerritories!$V$3:$V$32,Scores!AD3) -> 15 | AE4: =INDEX(tblTerritories!$V$3:$V$32,Scores!AE3) -> 16 | AF4: =INDEX(tblTerritories!$V$3:$V$32,Scores!AF3) -> 17 | AG4: =INDEX(tblTerritories!$V$3:$V$32,Scores!AG3) -> 18 | AH4: =INDEX(tblTerritories!$V$3:$V$32,Scores!AH3) -> 19 | AI4: =INDEX(tblTerritories!$V$3:$V$32,Scores!AI3) -> 20 | AJ4: =INDEX(tblTerritories!$V$3:$V$32,Scores!AJ3) -> 21 | AK4: =INDEX(tblTerritories!$V$3:$V$32,Scores!AK3) -> 22 | AL4: =INDEX(tblTerritories!$V$3:$V$32,Scores!AL3) -> 23 | AM4: =INDEX(tblTerritories!$V$3:$V$32,Scores!AM3) -> 24 | AN4: =INDEX(tblTerritories!$V$3:$V$32,Scores!AN3) -> 25 | AO4: =INDEX(tblTerritories!$V$3:$V$32,Scores!AO3) -> 26 | AP4: =INDEX(tblTerritories!$V$3:$V$32,Scores!AP3) -> 27 | AQ4: =INDEX(tblTerritories!$V$3:$V$32,Scores!AQ3) -> 28 | AR4: =INDEX(tblTerritories!$V$3:$V$32,Scores!AR3) -> 29 | AS4: =INDEX(tblTerritories!$V$3:$V$32,Scores!AS3) -> 30 | AT4: =IFERROR(INDEX(tblTerritories!$V$3:$V$32,Scores!AT3),0) -> 0 | AW4: =P4 -> 1 | AX4: =#REF! -> 
N6: =uxb_works!C5 -> The active weight profile has been changed from its default setting
N8: =uxb_works!D67 -> There are 30 cities in the active filter set
B10: =tblIndicators!A1 -> line | E10: =tblIndicators!B1 -> IS_BG | F10: =tblIndicators!G1 -> DEPTH | H10: =tblIndicators!AC1 -> Format | K10: =SUM(K11:K86) -> 70 | N10: Indicators | O10: =CHOOSE(uxb_works!$B$47,"Unit","Weight") -> Weight | P10: =IF(P$4="","",INDEX(tblTerritories!$C$3:$C$37,P$4)) -> Amsterdam | Q10: =IF(Q$4="","",INDEX(tblTerritories!$C$3:$C$37,Q$4)) -> Auckland | R10: =IF(R$4="","",INDEX(tblTerritories!$C$3:$C$37,R$4)) -> Bangkok | S10: =IF(S$4="","",INDEX(tblTerritories!$C$3:$C$37,S$4)) -> Barcelona | T10: =IF(T$4="","",INDEX(tblTerritories!$C$3:$C$37,T$4)) -> Beijing | U10: =IF(U$4="","",INDEX(tblTerritories!$C$3:$C$37,U$4)) -> Berlin | V10: =IF(V$4="","",INDEX(tblTerritories!$C$3:$C$37,V$4)) -> Buenos Aires | W10: =IF(W$4="","",INDEX(tblTerritories!$C$3:$C$37,W$4)) -> Copenhagen | X10: =IF(X$4="","",INDEX(tblTerritories!$C$3:$C$37,X$4)) -> Dallas | Y10: =IF(Y$4="","",INDEX(tblTerritories!$C$3:$C$37,Y$4)) -> Dubai | Z10: =IF(Z$4="","",INDEX(tblTerritories!$C$3:$C$37,Z$4)) -> Frankfurt | AA10: =IF(AA$4="","",INDEX(tblTerritories!$C$3:$C$37,AA$4)) -> Hong Kong | AB10: =IF(AB$4="","",INDEX(tblTerritories!$C$3:$C$37,AB$4)) -> Jakarta | AC10: =IF(AC$4="","",INDEX(tblTerritories!$C$3:$C$37,AC$4)) -> Kuala Lumpur | AD10: =IF(AD$4="","",INDEX(tblTerritories!$C$3:$C$37,AD$4)) -> London | AE10: =IF(AE$4="","",INDEX(tblTerritories!$C$3:$C$37,AE$4)) -> Madrid | AF10: =IF(AF$4="","",INDEX(tblTerritories!$C$3:$C$37,AF$4)) -> Manila | AG10: =IF(AG$4="","",INDEX(tblTerritories!$C$3:$C$37,AG$4)) -> Mexico City | AH10: =IF(AH$4="","",INDEX(tblTerritories!$C$3:$C$37,AH$4)) -> New Delhi | AI10: =IF(AI$4="","",INDEX(tblTerritories!$C$3:$C$37,AI$4)) -> New York | AJ10: =IF(AJ$4="","",INDEX(tblTerritories!$C$3:$C$37,AJ$4)) -> Paris | AK10: =IF(AK$4="","",INDEX(tblTerritories!$C$3:$C$37,AK$4)) -> Rome | AL10: =IF(AL$4="","",INDEX(tblTerritories!$C$3:$C$37,AL$4)) -> Sao Paulo | AM10: =IF(AM$4="","",INDEX(tblTerritories!$C$3:$C$37,AM$4)) -> Seoul | AN10: =IF(AN$4="","",INDEX(tblTerritories!$C$3:$C$37,AN$4)) -> Singapore | AO10: =IF(AO$4="","",INDEX(tblTerritories!$C$3:$C$37,AO$4)) -> Sydney | AP10: =IF(AP$4="","",INDEX(tblTerritories!$C$3:$C$37,AP$4)) -> Tokyo | AQ10: =IF(AQ$4="","",INDEX(tblTerritories!$C$3:$C$37,AQ$4)) -> Toronto | AR10: =IF(AR$4="","",INDEX(tblTerritories!$C$3:$C$37,AR$4)) -> Washington DC | AS10: =IF(AS$4="","",INDEX(tblTerritories!$C$3:$C$37,AS$4)) -> Zurich | AW10: =IF(P10="",0,1) -> 1 | AX10: =IF(#REF!="",0,1) -> 
B11: =tblIndicators!A2 -> 1 | E11: =tblIndicators!B2 -> 0 | F11: 5 | H11: =tblIndicators!AC2 -> #,##0.0 | K11: =IF(uxb_works!$B$46>=L11,1,0) -> 1 | L11: =IF(AND(uxb_works!$B$47=2,E12=1),0,tblIndicators!G2) -> 0 | N11: =iScores!N6 -> OVERALL SCORE | P11: =IF(P$4="","",CHOOSE(uxb_works!$B$47,IF(INDEX(aData,$B11,P$4)="","-",TEXT(INDEX(aData,$B11,P$4),$H11)),IFERROR(INDEX(aScoresRounded,$B11,P$4),""))) -> 74.6 | Q11: =IF(Q$4="","",CHOOSE(uxb_works!$B$47,IF(INDEX(aData,$B11,Q$4)="","-",TEXT(INDEX(aData,$B11,Q$4),$H11)),IFERROR(INDEX(aScoresRounded,$B11,Q$4),""))) -> 60.1 | R11: =IF(R$4="","",CHOOSE(uxb_works!$B$47,IF(INDEX(aData,$B11,R$4)="","-",TEXT(INDEX(aData,$B11,R$4),$H11)),IFERROR(INDEX(aScoresRounded,$B11,R$4),""))) -> 49.1 | S11: =IF(S$4="","",CHOOSE(uxb_works!$B$47,IF(INDEX(aData,$B11,S$4)="","-",TEXT(INDEX(aData,$B11,S$4),$H11)),IFERROR(INDEX(aScoresRounded,$B11,S$4),""))) -> 69.7 | T11: =IF(T$4="","",CHOOSE(uxb_works!$B$47,IF(INDEX(aData,$B11,T$4)="","-",TEXT(INDEX(aData,$B11,T$4),$H11)),IFERROR(INDEX(aScoresRounded,$B11,T$4),""))) -> 73.7 | U11: =IF(U$4="","",CHOOSE(uxb_works!$B$47,IF(INDEX(aData,$B11,U$4)="","-",TEXT(INDEX(aData,$B11,U$4),$H11)),IFERROR(INDEX(aScoresRounded,$B11,U$4),""))) -> 68.2 | V11: =IF(V$4="","",CHOOSE(uxb_works!$B$47,IF(INDEX(aData,$B11,V$4)="","-",TEXT(INDEX(aData,$B11,V$4),$H11)),IFERROR(INDEX(aScoresRounded,$B11,V$4),""))) -> 45.1 | W11: =IF(W$4="","",CHOOSE(uxb_works!$B$47,IF(INDEX(aData,$B11,W$4)="","-",TEXT(INDEX(aData,$B11,W$4),$H11)),IFERROR(INDEX(aScoresRounded,$B11,W$4),""))) -> 81.5 | X11: =IF(X$4="","",CHOOSE(uxb_works!$B$47,IF(INDEX(aData,$B11,X$4)="","-",TEXT(INDEX(aData,$B11,X$4),$H11)),IFERROR(INDEX(aScoresRounded,$B11,X$4),""))) -> 68.7 | Y11: =IF(Y$4="","",CHOOSE(uxb_works!$B$47,IF(INDEX(aData,$B11,Y$4)="","-",TEXT(INDEX(aData,$B11,Y$4),$H11)),IFERROR(INDEX(aScoresRounded,$B11,Y$4),""))) -> 63.8 | Z11: =IF(Z$4="","",CHOOSE(uxb_works!$B$47,IF(INDEX(aData,$B11,Z$4)="","-",TEXT(INDEX(aData,$B11,Z$4),$H11)),IFERROR(INDEX(aScoresRounded,$B11,Z$4),""))) -> 69.1 | AA11: =IF(AA$4="","",CHOOSE(uxb_works!$B$47,IF(INDEX(aData,$B11,AA$4)="","-",TEXT(INDEX(aData,$B11,AA$4),$H11)),IFERROR(INDEX(aScoresRounded,$B11,AA$4),""))) -> 68 | AB11: =IF(AB$4="","",CHOOSE(uxb_works!$B$47,IF(INDEX(aData,$B11,AB$4)="","-",TEXT(INDEX(aData,$B11,AB$4),$H11)),IFERROR(INDEX(aScoresRounded,$B11,AB$4),""))) -> 43.5 | AC11: =IF(AC$4="","",CHOOSE(uxb_works!$B$47,IF(INDEX(aData,$B11,AC$4)="","-",TEXT(INDEX(aData,$B11,AC$4),$H11)),IFERROR(INDEX(aScoresRounded,$B11,AC$4),""))) -> 58.2 | AD11: =IF(AD$4="","",CHOOSE(uxb_works!$B$47,IF(INDEX(aData,$B11,AD$4)="","-",TEXT(INDEX(aData,$B11,AD$4),$H11)),IFERROR(INDEX(aScoresRounded,$B11,AD$4),""))) -> 73.6 | AE11: =IF(AE$4="","",CHOOSE(uxb_works!$B$47,IF(INDEX(aData,$B11,AE$4)="","-",TEXT(INDEX(aData,$B11,AE$4),$H11)),IFERROR(INDEX(aScoresRounded,$B11,AE$4),""))) -> 63.2 | AF11: =IF(AF$4="","",CHOOSE(uxb_works!$B$47,IF(INDEX(aData,$B11,AF$4)="","-",TEXT(INDEX(aData,$B11,AF$4),$H11)),IFERROR(INDEX(aScoresRounded,$B11,AF$4),""))) -> 39.1 | AG11: =IF(AG$4="","",CHOOSE(uxb_works!$B$47,IF(INDEX(aData,$B11,AG$4)="","-",TEXT(INDEX(aData,$B11,AG$4),$H11)),IFERROR(INDEX(aScoresRounded,$B11,AG$4),""))) -> 42.6 | AH11: =IF(AH$4="","",CHOOSE(uxb_works!$B$47,IF(INDEX(aData,$B11,AH$4)="","-",TEXT(INDEX(aData,$B11,AH$4),$H11)),IFERROR(INDEX(aScoresRounded,$B11,AH$4),""))) -> 40.3 | AI11: =IF(AI$4="","",CHOOSE(uxb_works!$B$47,IF(INDEX(aData,$B11,AI$4)="","-",TEXT(INDEX(aData,$B11,AI$4),$H11)),IFERROR(INDEX(aScoresRounded,$B11,AI$4),""))) -> 73.3 | AJ11: =IF(AJ$4="","",CHOOSE(uxb_works!$B$47,IF(INDEX(aData,$B11,AJ$4)="","-",TEXT(INDEX(aData,$B11,AJ$4),$H11)),IFERROR(INDEX(aScoresRounded,$B11,AJ$4),""))) -> 70.2 | AK11: =IF(AK$4="","",CHOOSE(uxb_works!$B$47,IF(INDEX(aData,$B11,AK$4)="","-",TEXT(INDEX(aData,$B11,AK$4),$H11)),IFERROR(INDEX(aScoresRounded,$B11,AK$4),""))) -> 61.2 | AL11: =IF(AL$4="","",CHOOSE(uxb_works!$B$47,IF(INDEX(aData,$B11,AL$4)="","-",TEXT(INDEX(aData,$B11,AL$4),$H11)),IFERROR(INDEX(aScoresRounded,$B11,AL$4),""))) -> 50.7 | AM11: =IF(AM$4="","",CHOOSE(uxb_works!$B$47,IF(INDEX(aData,$B11,AM$4)="","-",TEXT(INDEX(aData,$B11,AM$4),$H11)),IFERROR(INDEX(aScoresRounded,$B11,AM$4),""))) -> 73.6 | AN11: =IF(AN$4="","",CHOOSE(uxb_works!$B$47,IF(INDEX(aData,$B11,AN$4)="","-",TEXT(INDEX(aData,$B11,AN$4),$H11)),IFERROR(INDEX(aScoresRounded,$B11,AN$4),""))) -> 71.4 | AO11: =IF(AO$4="","",CHOOSE(uxb_works!$B$47,IF(INDEX(aData,$B11,AO$4)="","-",TEXT(INDEX(aData,$B11,AO$4),$H11)),IFERROR(INDEX(aScoresRounded,$B11,AO$4),""))) -> 72.6 | AP11: =IF(AP$4="","",CHOOSE(uxb_works!$B$47,IF(INDEX(aData,$B11,AP$4)="","-",TEXT(INDEX(aData,$B11,AP$4),$H11)),IFERROR(INDEX(aScoresRounded,$B11,AP$4),""))) -> 63 | AQ11: =IF(AQ$4="","",CHOOSE(uxb_works!$B$47,IF(INDEX(aData,$B11,AQ$4)="","-",TEXT(INDEX(aData,$B11,AQ$4),$H11)),IFERROR(INDEX(aScoresRounded,$B11,AQ$4),""))) -> 70.1 | AR11: =IF(AR$4="","",CHOOSE(uxb_works!$B$47,IF(INDEX(aData,$B11,AR$4)="","-",TEXT(INDEX(aData,$B11,AR$4),$H11)),IFERROR(INDEX(aScoresRounded,$B11,AR$4),""))) -> 71.2 | AS11: =IF(AS$4="","",CHOOSE(uxb_works!$B$47,IF(INDEX(aData,$B11,AS$4)="","-",TEXT(INDEX(aData,$B11,AS$4),$H11)),IFERROR(INDEX(aScoresRounded,$B11,AS$4),""))) -> 70.1 | AW11: =CHOOSE($AV$1,0,IF(AW$10=0,0,IF(P11<=$AX$1,1,IF(P11<=$AY$1,2,3))),IF(AW$10=0,0,IF(P11<=$AX$1,4,IF(P11<=$AY$1,5,6)))) -> 0 | AX11: =CHOOSE($AV$1,0,IF(AX$10=0,0,IF(#REF!<=$AX$1,1,IF(#REF!<=#REF!,2,3))),IF(AX$10=0,0,IF(#REF!<=$AX$1,4,IF(#REF!<=#REF!,5,6)))) -> 0
B12: =tblIndicators!A3 -> 2 | E12: =tblIndicators!B3 -> 0 | F12: =iScores!F7 -> 1 | H12: =tblIndicators!AC3 -> #,##0.0 | K12: =IF(L12=0,0,IF(uxb_works!$B$46>=L12,1,0)) -> 1 | L12: =IF(AND(uxb_works!$B$47=2,E12=1),0,tblIndicators!G3) -> 1 | N12: =iScores!N7 -> 1) CONNECTIVITY | O12: =CHOOSE(uxb_works!$B$47,iData!I7,iScores!O7) -> 0.3 | P12: =IF(P$4="","",CHOOSE(uxb_works!$B$47,IF(INDEX(aData,$B12,P$4)="","-",TEXT(INDEX(aData,$B12,P$4),$H12)),IFERROR(INDEX(aScoresRounded,$B12,P$4),""))) -> 77 | Q12: =IF(Q$4="","",CHOOSE(uxb_works!$B$47,IF(INDEX(aData,$B12,Q$4)="","-",TEXT(INDEX(aData,$B12,Q$4),$H12)),IFERROR(INDEX(aScoresRounded,$B12,Q$4),""))) -> 59.7 | R12: =IF(R$4="","",CHOOSE(uxb_works!$B$47,IF(INDEX(aData,$B12,R$4)="","-",TEXT(INDEX(aData,$B12,R$4),$H12)),IFERROR(INDEX(aScoresRounded,$B12,R$4),""))) -> 55.3 | S12: =IF(S$4="","",CHOOSE(uxb_works!$B$47,IF(INDEX(aData,$B12,S$4)="","-",TEXT(INDEX(aData,$B12,S$4),$H12)),IFERROR(INDEX(aScoresRounded,$B12,S$4),""))) -> 61.6 | T12: =IF(T$4="","",CHOOSE(uxb_works!$B$47,IF(INDEX(aData,$B12,T$4)="","-",TEXT(INDEX(aData,$B12,T$4),$H12)),IFERROR(INDEX(aScoresRounded,$B12,T$4),""))) -> 80.7 | U12: =IF(U$4="","",CHOOSE(uxb_works!$B$47,IF(INDEX(aData,$B12,U$4)="","-",TEXT(INDEX(aData,$B12,U$4),$H12)),IFERROR(INDEX(aScoresRounded,$B12,U$4),""))) -> 65.9 | V12: =IF(V$4="","",CHOOSE(uxb_works!$B$47,IF(INDEX(aData,$B12,V$4)="","-",TEXT(INDEX(aData,$B12,V$4),$H12)),IFERROR(INDEX(aScoresRounded,$B12,V$4),""))) -> 40.8 | W12: =IF(W$4="","",CHOOSE(uxb_works!$B$47,IF(INDEX(aData,$B12,W$4)="","-",TEXT(INDEX(aData,$B12,W$4),$H12)),IFERROR(INDEX(aScoresRounded,$B12,W$4),""))) -> 85.4 | X12: =IF(X$4="","",CHOOSE(uxb_works!$B$47,IF(INDEX(aData,$B12,X$4)="","-",TEXT(INDEX(aData,$B12,X$4),$H12)),IFERROR(INDEX(aScoresRounded,$B12,X$4),""))) -> 74.2 | Y12: =IF(Y$4="","",CHOOSE(uxb_works!$B$47,IF(INDEX(aData,$B12,Y$4)="","-",TEXT(INDEX(aData,$B12,Y$4),$H12)),IFERROR(INDEX(aScoresRounded,$B12,Y$4),""))) -> 63.5 | Z12: =IF(Z$4="","",CHOOSE(uxb_works!$B$47,IF(INDEX(aData,$B12,Z$4)="","-",TEXT(INDEX(aData,$B12,Z$4),$H12)),IFERROR(INDEX(aScoresRounded,$B12,Z$4),""))) -> 71.2 | AA12: =IF(AA$4="","",CHOOSE(uxb_works!$B$47,IF(INDEX(aData,$B12,AA$4)="","-",TEXT(INDEX(aData,$B12,AA$4),$H12)),IFERROR(INDEX(aScoresRounded,$B12,AA$4),""))) -> 76.6 | AB12: =IF(AB$4="","",CHOOSE(uxb_works!$B$47,IF(INDEX(aData,$B12,AB$4)="","-",TEXT(INDEX(aData,$B12,AB$4),$H12)),IFERROR(INDEX(aScoresRounded,$B12,AB$4),""))) -> 48.1 | AC12: =IF(AC$4="","",CHOOSE(uxb_works!$B$47,IF(INDEX(aData,$B12,AC$4)="","-",TEXT(INDEX(aData,$B12,AC$4),$H12)),IFERROR(INDEX(aScoresRounded,$B12,AC$4),""))) -> 58.9 | AD12: =IF(AD$4="","",CHOOSE(uxb_works!$B$47,IF(INDEX(aData,$B12,AD$4)="","-",TEXT(INDEX(aData,$B12,AD$4),$H12)),IFERROR(INDEX(aScoresRounded,$B12,AD$4),""))) -> 71.3 | AE12: =IF(AE$4="","",CHOOSE(uxb_works!$B$47,IF(INDEX(aData,$B12,AE$4)="","-",TEXT(INDEX(aData,$B12,AE$4),$H12)),IFERROR(INDEX(aScoresRounded,$B12,AE$4),""))) -> 64.6 | AF12: =IF(AF$4="","",CHOOSE(uxb_works!$B$47,IF(INDEX(aData,$B12,AF$4)="","-",TEXT(INDEX(aData,$B12,AF$4),$H12)),IFERROR(INDEX(aScoresRounded,$B12,AF$4),""))) -> 43.8 | AG12: =IF(AG$4="","",CHOOSE(uxb_works!$B$47,IF(INDEX(aData,$B12,AG$4)="","-",TEXT(INDEX(aData,$B12,AG$4),$H12)),IFERROR(INDEX(aScoresRounded,$B12,AG$4),""))) -> 53 | AH12: =IF(AH$4="","",CHOOSE(uxb_works!$B$47,IF(INDEX(aData,$B12,AH$4)="","-",TEXT(INDEX(aData,$B12,AH$4),$H12)),IFERROR(INDEX(aScoresRounded,$B12,AH$4),""))) -> 28.4 | AI12: =IF(AI$4="","",CHOOSE(uxb_works!$B$47,IF(INDEX(aData,$B12,AI$4)="","-",TEXT(INDEX(aData,$B12,AI$4),$H12)),IFERROR(INDEX(aScoresRounded,$B12,AI$4),""))) -> 76.2 | AJ12: =IF(AJ$4="","",CHOOSE(uxb_works!$B$47,IF(INDEX(aData,$B12,AJ$4)="","-",TEXT(INDEX(aData,$B12,AJ$4),$H12)),IFERROR(INDEX(aScoresRounded,$B12,AJ$4),""))) -> 71.9 | AK12: =IF(AK$4="","",CHOOSE(uxb_works!$B$47,IF(INDEX(aData,$B12,AK$4)="","-",TEXT(INDEX(aData,$B12,AK$4),$H12)),IFERROR(INDEX(aScoresRounded,$B12,AK$4),""))) -> 64.9 | AL12: =IF(AL$4="","",CHOOSE(uxb_works!$B$47,IF(INDEX(aData,$B12,AL$4)="","-",TEXT(INDEX(aData,$B12,AL$4),$H12)),IFERROR(INDEX(aScoresRounded,$B12,AL$4),""))) -> 56.5 | AM12: =IF(AM$4="","",CHOOSE(uxb_works!$B$47,IF(INDEX(aData,$B12,AM$4)="","-",TEXT(INDEX(aData,$B12,AM$4),$H12)),IFERROR(INDEX(aScoresRounded,$B12,AM$4),""))) -> 75.3 | AN12: =IF(AN$4="","",CHOOSE(uxb_works!$B$47,IF(INDEX(aData,$B12,AN$4)="","-",TEXT(INDEX(aData,$B12,AN$4),$H12)),IFERROR(INDEX(aScoresRounded,$B12,AN$4),""))) -> 83.1 | AO12: =IF(AO$4="","",CHOOSE(uxb_works!$B$47,IF(INDEX(aData,$B12,AO$4)="","-",TEXT(INDEX(aData,$B12,AO$4),$H12)),IFERROR(INDEX(aScoresRounded,$B12,AO$4),""))) -> 78 | AP12: =IF(AP$4="","",CHOOSE(uxb_works!$B$47,IF(INDEX(aData,$B12,AP$4)="","-",TEXT(INDEX(aData,$B12,AP$4),$H12)),IFERROR(INDEX(aScoresRounded,$B12,AP$4),""))) -> 71.3 | AQ12: =IF(AQ$4="","",CHOOSE(uxb_works!$B$47,IF(INDEX(aData,$B12,AQ$4)="","-",TEXT(INDEX(aData,$B12,AQ$4),$H12)),IFERROR(INDEX(aScoresRounded,$B12,AQ$4),""))) -> 62.8 | AR12: =IF(AR$4="","",CHOOSE(uxb_works!$B$47,IF(INDEX(aData,$B12,AR$4)="","-",TEXT(INDEX(aData,$B12,AR$4),$H12)),IFERROR(INDEX(aScoresRounded,$B12,AR$4),""))) -> 75.6 | AS12: =IF(AS$4="","",CHOOSE(uxb_works!$B$47,IF(INDEX(aData,$B12,AS$4)="","-",TEXT(INDEX(aData,$B12,AS$4),$H12)),IFERROR(INDEX(aScoresRounded,$B12,AS$4),""))) -> 81 | AW12: =CHOOSE($AV$1,0,IF(AW$10=0,0,IF(P12<=$AX$1,1,IF(P12<=#REF!,2,3))),IF(AW$10=0,0,IF(P12<=$AX$1,4,IF(P12<=#REF!,5,6)))) -> 0 | AX12: =CHOOSE($AV$1,0,IF(AX$10=0,0,IF(#REF!<=$AX$1,1,IF(#REF!<=#REF!,2,3))),IF(AX$10=0,0,IF(#REF!<=$AX$1,4,IF(#REF!<=#REF!,5,6)))) -> 0
B13: =tblIndicators!A4 -> 3 | E13: =tblIndicators!B4 -> 0 | F13: =IF(AND(uxb_works!$B$47=2,E13=1),0,iScores!F8) -> 2 | H13: =tblIndicators!AC4 -> #,##0.0 | K13: =IF(L13=0,0,IF(uxb_works!$B$46>=L13,1,0)) -> 1 | L13: =IF(AND(uxb_works!$B$47=2,E13=1),0,tblIndicators!G4) -> 2 | N13: =iScores!N8 -> 1.1) Digital infrastructure | O13: =CHOOSE(uxb_works!$B$47,iData!I8,iScores!O8) -> 0.4444444444 | P13: =IF(P$4="","",CHOOSE(uxb_works!$B$47,IF(INDEX(aData,$B13,P$4)="","-",TEXT(INDEX(aData,$B13,P$4),$H13)),IFERROR(INDEX(aScoresRounded,$B13,P$4),""))) -> 84 | Q13: =IF(Q$4="","",CHOOSE(uxb_works!$B$47,IF(INDEX(aData,$B13,Q$4)="","-",TEXT(INDEX(aData,$B13,Q$4),$H13)),IFERROR(INDEX(aScoresRounded,$B13,Q$4),""))) -> 77.3 | R13: =IF(R$4="","",CHOOSE(uxb_works!$B$47,IF(INDEX(aData,$B13,R$4)="","-",TEXT(INDEX(aData,$B13,R$4),$H13)),IFERROR(INDEX(aScoresRounded,$B13,R$4),""))) -> 59 | S13: =IF(S$4="","",CHOOSE(uxb_works!$B$47,IF(INDEX(aData,$B13,S$4)="","-",TEXT(INDEX(aData,$B13,S$4),$H13)),IFERROR(INDEX(aScoresRounded,$B13,S$4),""))) -> 74.7 | T13: =IF(T$4="","",CHOOSE(uxb_works!$B$47,IF(INDEX(aData,$B13,T$4)="","-",TEXT(INDEX(aData,$B13,T$4),$H13)),IFERROR(INDEX(aScoresRounded,$B13,T$4),""))) -> 73.3 | U13: =IF(U$4="","",CHOOSE(uxb_works!$B$47,IF(INDEX(aData,$B13,U$4)="","-",TEXT(INDEX(aData,$B13,U$4),$H13)),IFERROR(INDEX(aScoresRounded,$B13,U$4),""))) -> 76.6 | V13: =IF(V$4="","",CHOOSE(uxb_works!$B$47,IF(INDEX(aData,$B13,V$4)="","-",TEXT(INDEX(aData,$B13,V$4),$H13)),IFERROR(INDEX(aScoresRounded,$B13,V$4),""))) -> 63.9 | W13: =IF(W$4="","",CHOOSE(uxb_works!$B$47,IF(INDEX(aData,$B13,W$4)="","-",TEXT(INDEX(aData,$B13,W$4),$H13)),IFERROR(INDEX(aScoresRounded,$B13,W$4),""))) -> 86.4 | X13: =IF(X$4="","",CHOOSE(uxb_works!$B$47,IF(INDEX(aData,$B13,X$4)="","-",TEXT(INDEX(aData,$B13,X$4),$H13)),IFERROR(INDEX(aScoresRounded,$B13,X$4),""))) -> 84.8 | Y13: =IF(Y$4="","",CHOOSE(uxb_works!$B$47,IF(INDEX(aData,$B13,Y$4)="","-",TEXT(INDEX(aData,$B13,Y$4),$H13)),IFERROR(INDEX(aScoresRounded,$B13,Y$4),""))) -> 93.1 | Z13: =IF(Z$4="","",CHOOSE(uxb_works!$B$47,IF(INDEX(aData,$B13,Z$4)="","-",TEXT(INDEX(aData,$B13,Z$4),$H13)),IFERROR(INDEX(aScoresRounded,$B13,Z$4),""))) -> 76.6 | AA13: =IF(AA$4="","",CHOOSE(uxb_works!$B$47,IF(INDEX(aData,$B13,AA$4)="","-",TEXT(INDEX(aData,$B13,AA$4),$H13)),IFERROR(INDEX(aScoresRounded,$B13,AA$4),""))) -> 84.4 | AB13: =IF(AB$4="","",CHOOSE(uxb_works!$B$47,IF(INDEX(aData,$B13,AB$4)="","-",TEXT(INDEX(aData,$B13,AB$4),$H13)),IFERROR(INDEX(aScoresRounded,$B13,AB$4),""))) -> 57 | AC13: =IF(AC$4="","",CHOOSE(uxb_works!$B$47,IF(INDEX(aData,$B13,AC$4)="","-",TEXT(INDEX(aData,$B13,AC$4),$H13)),IFERROR(INDEX(aScoresRounded,$B13,AC$4),""))) -> 67.2 | AD13: =IF(AD$4="","",CHOOSE(uxb_works!$B$47,IF(INDEX(aData,$B13,AD$4)="","-",TEXT(INDEX(aData,$B13,AD$4),$H13)),IFERROR(INDEX(aScoresRounded,$B13,AD$4),""))) -> 79.4 | AE13: =IF(AE$4="","",CHOOSE(uxb_works!$B$47,IF(INDEX(aData,$B13,AE$4)="","-",TEXT(INDEX(aData,$B13,AE$4),$H13)),IFERROR(INDEX(aScoresRounded,$B13,AE$4),""))) -> 74.7 | AF13: =IF(AF$4="","",CHOOSE(uxb_works!$B$47,IF(INDEX(aData,$B13,AF$4)="","-",TEXT(INDEX(aData,$B13,AF$4),$H13)),IFERROR(INDEX(aScoresRounded,$B13,AF$4),""))) -> 53.4 | AG13: =IF(AG$4="","",CHOOSE(uxb_works!$B$47,IF(INDEX(aData,$B13,AG$4)="","-",TEXT(INDEX(aData,$B13,AG$4),$H13)),IFERROR(INDEX(aScoresRounded,$B13,AG$4),""))) -> 60.7 | AH13: =IF(AH$4="","",CHOOSE(uxb_works!$B$47,IF(INDEX(aData,$B13,AH$4)="","-",TEXT(INDEX(aData,$B13,AH$4),$H13)),IFERROR(INDEX(aScoresRounded,$B13,AH$4),""))) -> 34.4 | AI13: =IF(AI$4="","",CHOOSE(uxb_works!$B$47,IF(INDEX(aData,$B13,AI$4)="","-",TEXT(INDEX(aData,$B13,AI$4),$H13)),IFERROR(INDEX(aScoresRounded,$B13,AI$4),""))) -> 84.8 | AJ13: =IF(AJ$4="","",CHOOSE(uxb_works!$B$47,IF(INDEX(aData,$B13,AJ$4)="","-",TEXT(INDEX(aData,$B13,AJ$4),$H13)),IFERROR(INDEX(aScoresRounded,$B13,AJ$4),""))) -> 80.4 | AK13: =IF(AK$4="","",CHOOSE(uxb_works!$B$47,IF(INDEX(aData,$B13,AK$4)="","-",TEXT(INDEX(aData,$B13,AK$4),$H13)),IFERROR(INDEX(aScoresRounded,$B13,AK$4),""))) -> 70.4 | AL13: =IF(AL$4="","",CHOOSE(uxb_works!$B$47,IF(INDEX(aData,$B13,AL$4)="","-",TEXT(INDEX(aData,$B13,AL$4),$H13)),IFERROR(INDEX(aScoresRounded,$B13,AL$4),""))) -> 63.8 | AM13: =IF(AM$4="","",CHOOSE(uxb_works!$B$47,IF(INDEX(aData,$B13,AM$4)="","-",TEXT(INDEX(aData,$B13,AM$4),$H13)),IFERROR(INDEX(aScoresRounded,$B13,AM$4),""))) -> 82.1 | AN13: =IF(AN$4="","",CHOOSE(uxb_works!$B$47,IF(INDEX(aData,$B13,AN$4)="","-",TEXT(INDEX(aData,$B13,AN$4),$H13)),IFERROR(INDEX(aScoresRounded,$B13,AN$4),""))) -> 78.7 | AO13: =IF(AO$4="","",CHOOSE(uxb_works!$B$47,IF(INDEX(aData,$B13,AO$4)="","-",TEXT(INDEX(aData,$B13,AO$4),$H13)),IFERROR(INDEX(aScoresRounded,$B13,AO$4),""))) -> 80.2 | AP13: =IF(AP$4="","",CHOOSE(uxb_works!$B$47,IF(INDEX(aData,$B13,AP$4)="","-",TEXT(INDEX(aData,$B13,AP$4),$H13)),IFERROR(INDEX(aScoresRounded,$B13,AP$4),""))) -> 93.9 | AQ13: =IF(AQ$4="","",CHOOSE(uxb_works!$B$47,IF(INDEX(aData,$B13,AQ$4)="","-",TEXT(INDEX(aData,$B13,AQ$4),$H13)),IFERROR(INDEX(aScoresRounded,$B13,AQ$4),""))) -> 74.3 | AR13: =IF(AR$4="","",CHOOSE(uxb_works!$B$47,IF(INDEX(aData,$B13,AR$4)="","-",TEXT(INDEX(aData,$B13,AR$4),$H13)),IFERROR(INDEX(aScoresRounded,$B13,AR$4),""))) -> 84.8 | AS13: =IF(AS$4="","",CHOOSE(uxb_works!$B$47,IF(INDEX(aData,$B13,AS$4)="","-",TEXT(INDEX(aData,$B13,AS$4),$H13)),IFERROR(INDEX(aScoresRounded,$B13,AS$4),""))) -> 81.4 | AW13: =CHOOSE($AV$1,0,IF(AW$10=0,0,IF(P13<=$AX$1,1,IF(P13<=#REF!,2,3))),IF(AW$10=0,0,IF(P13<=$AX$1,4,IF(P13<=#REF!,5,6)))) -> 0 | AX13: =CHOOSE($AV$1,0,IF(AX$10=0,0,IF(#REF!<=$AX$1,1,IF(#REF!<=#REF!,2,3))),IF(AX$10=0,0,IF(#REF!<=$AX$1,4,IF(#REF!<=#REF!,5,6)))) -> 0
B14: =tblIndicators!A5 -> 4 | E14: =tblIndicators!B5 -> 0 | F14: =IF(AND(uxb_works!$B$47=2,E14=1),0,iScores!F9) -> 3 | H14: =tblIndicators!AC5 -> #,##0.0 | K14: =IF(L14=0,0,IF(uxb_works!$B$46>=L14,1,0)) -> 1 | L14: =IF(AND(uxb_works!$B$47=2,E14=1),0,tblIndicators!G5) -> 3 | N14: =iScores!N9 -> 1.1.1) Mobile broadband subscriptions | O14: =CHOOSE(uxb_works!$B$47,iData!I9,iScores!O9) -> 0.2888888889 | P14: =IF(P$4="","",CHOOSE(uxb_works!$B$47,IF(INDEX(aData,$B14,P$4)="","-",TEXT(INDEX(aData,$B14,P$4),$H14)),IFERROR(INDEX(aScoresRounded,$B14,P$4),""))) -> 49.9 | Q14: =IF(Q$4="","",CHOOSE(uxb_works!$B$47,IF(INDEX(aData,$B14,Q$4)="","-",TEXT(INDEX(aData,$B14,Q$4),$H14)),IFERROR(INDEX(aScoresRounded,$B14,Q$4),""))) -> 42 | R14: =IF(R$4="","",CHOOSE(uxb_works!$B$47,IF(INDEX(aData,$B14,R$4)="","-",TEXT(INDEX(aData,$B14,R$4),$H14)),IFERROR(INDEX(aScoresRounded,$B14,R$4),""))) -> 32.6 | S14: =IF(S$4="","",CHOOSE(uxb_works!$B$47,IF(INDEX(aData,$B14,S$4)="","-",TEXT(INDEX(aData,$B14,S$4),$H14)),IFERROR(INDEX(aScoresRounded,$B14,S$4),""))) -> 34.4 | T14: =IF(T$4="","",CHOOSE(uxb_works!$B$47,IF(INDEX(aData,$B14,T$4)="","-",TEXT(INDEX(aData,$B14,T$4),$H14)),IFERROR(INDEX(aScoresRounded,$B14,T$4),""))) -> 30 | U14: =IF(U$4="","",CHOOSE(uxb_works!$B$47,IF(INDEX(aData,$B14,U$4)="","-",TEXT(INDEX(aData,$B14,U$4),$H14)),IFERROR(INDEX(aScoresRounded,$B14,U$4),""))) -> 25.6 | V14: =IF(V$4="","",CHOOSE(uxb_works!$B$47,IF(INDEX(aData,$B14,V$4)="","-",TEXT(INDEX(aData,$B14,V$4),$H14)),IFERROR(INDEX(aScoresRounded,$B14,V$4),""))) -> 18.8 | W14: =IF(W$4="","",CHOOSE(uxb_works!$B$47,IF(INDEX(aData,$B14,W$4)="","-",TEXT(INDEX(aData,$B14,W$4),$H14)),IFERROR(INDEX(aScoresRounded,$B14,W$4),""))) -> 57 | X14: =IF(X$4="","",CHOOSE(uxb_works!$B$47,IF(INDEX(aData,$B14,X$4)="","-",TEXT(INDEX(aData,$B14,X$4),$H14)),IFERROR(INDEX(aScoresRounded,$B14,X$4),""))) -> 65.1 | Y14: =IF(Y$4="","",CHOOSE(uxb_works!$B$47,IF(INDEX(aData,$B14,Y$4)="","-",TEXT(INDEX(aData,$B14,Y$4),$H14)),IFERROR(INDEX(aScoresRounded,$B14,Y$4),""))) -> 100 | Z14: =IF(Z$4="","",CHOOSE(uxb_works!$B$47,IF(INDEX(aData,$B14,Z$4)="","-",TEXT(INDEX(aData,$B14,Z$4),$H14)),IFERROR(INDEX(aScoresRounded,$B14,Z$4),""))) -> 25.6 | AA14: =IF(AA$4="","",CHOOSE(uxb_works!$B$47,IF(INDEX(aData,$B14,AA$4)="","-",TEXT(INDEX(aData,$B14,AA$4),$H14)),IFERROR(INDEX(aScoresRounded,$B14,AA$4),""))) -> 60.5 | AB14: =IF(AB$4="","",CHOOSE(uxb_works!$B$47,IF(INDEX(aData,$B14,AB$4)="","-",TEXT(INDEX(aData,$B14,AB$4),$H14)),IFERROR(INDEX(aScoresRounded,$B14,AB$4),""))) -> 24.1 | AC14: =IF(AC$4="","",CHOOSE(uxb_works!$B$47,IF(INDEX(aData,$B14,AC$4)="","-",TEXT(INDEX(aData,$B14,AC$4),$H14)),IFERROR(INDEX(aScoresRounded,$B14,AC$4),""))) -> 48.5 | AD14: =IF(AD$4="","",CHOOSE(uxb_works!$B$47,IF(INDEX(aData,$B14,AD$4)="","-",TEXT(INDEX(aData,$B14,AD$4),$H14)),IFERROR(INDEX(aScoresRounded,$B14,AD$4),""))) -> 39.4 | AE14: =IF(AE$4="","",CHOOSE(uxb_works!$B$47,IF(INDEX(aData,$B14,AE$4)="","-",TEXT(INDEX(aData,$B14,AE$4),$H14)),IFERROR(INDEX(aScoresRounded,$B14,AE$4),""))) -> 34.4 | AF14: =IF(AF$4="","",CHOOSE(uxb_works!$B$47,IF(INDEX(aData,$B14,AF$4)="","-",TEXT(INDEX(aData,$B14,AF$4),$H14)),IFERROR(INDEX(aScoresRounded,$B14,AF$4),""))) -> 8.8 | AG14: =IF(AG$4="","",CHOOSE(uxb_works!$B$47,IF(INDEX(aData,$B14,AG$4)="","-",TEXT(INDEX(aData,$B14,AG$4),$H14)),IFERROR(INDEX(aScoresRounded,$B14,AG$4),""))) -> 15.4 | AH14: =IF(AH$4="","",CHOOSE(uxb_works!$B$47,IF(INDEX(aData,$B14,AH$4)="","-",TEXT(INDEX(aData,$B14,AH$4),$H14)),IFERROR(INDEX(aScoresRounded,$B14,AH$4),""))) -> 0 | AI14: =IF(AI$4="","",CHOOSE(uxb_works!$B$47,IF(INDEX(aData,$B14,AI$4)="","-",TEXT(INDEX(aData,$B14,AI$4),$H14)),IFERROR(INDEX(aScoresRounded,$B14,AI$4),""))) -> 65.1 | AJ14: =IF(AJ$4="","",CHOOSE(uxb_works!$B$47,IF(INDEX(aData,$B14,AJ$4)="","-",TEXT(INDEX(aData,$B14,AJ$4),$H14)),IFERROR(INDEX(aScoresRounded,$B14,AJ$4),""))) -> 32.1 | AK14: =IF(AK$4="","",CHOOSE(uxb_works!$B$47,IF(INDEX(aData,$B14,AK$4)="","-",TEXT(INDEX(aData,$B14,AK$4),$H14)),IFERROR(INDEX(aScoresRounded,$B14,AK$4),""))) -> 26.9 | AL14: =IF(AL$4="","",CHOOSE(uxb_works!$B$47,IF(INDEX(aData,$B14,AL$4)="","-",TEXT(INDEX(aData,$B14,AL$4),$H14)),IFERROR(INDEX(aScoresRounded,$B14,AL$4),""))) -> 25.2 | AM14: =IF(AM$4="","",CHOOSE(uxb_works!$B$47,IF(INDEX(aData,$B14,AM$4)="","-",TEXT(INDEX(aData,$B14,AM$4),$H14)),IFERROR(INDEX(aScoresRounded,$B14,AM$4),""))) -> 43.5 | AN14: =IF(AN$4="","",CHOOSE(uxb_works!$B$47,IF(INDEX(aData,$B14,AN$4)="","-",TEXT(INDEX(aData,$B14,AN$4),$H14)),IFERROR(INDEX(aScoresRounded,$B14,AN$4),""))) -> 62 | AO14: =IF(AO$4="","",CHOOSE(uxb_works!$B$47,IF(INDEX(aData,$B14,AO$4)="","-",TEXT(INDEX(aData,$B14,AO$4),$H14)),IFERROR(INDEX(aScoresRounded,$B14,AO$4),""))) -> 51.6 | AP14: =IF(AP$4="","",CHOOSE(uxb_works!$B$47,IF(INDEX(aData,$B14,AP$4)="","-",TEXT(INDEX(aData,$B14,AP$4),$H14)),IFERROR(INDEX(aScoresRounded,$B14,AP$4),""))) -> 100 | AQ14: =IF(AQ$4="","",CHOOSE(uxb_works!$B$47,IF(INDEX(aData,$B14,AQ$4)="","-",TEXT(INDEX(aData,$B14,AQ$4),$H14)),IFERROR(INDEX(aScoresRounded,$B14,AQ$4),""))) -> 19.8 | AR14: =IF(AR$4="","",CHOOSE(uxb_works!$B$47,IF(INDEX(aData,$B14,AR$4)="","-",TEXT(INDEX(aData,$B14,AR$4),$H14)),IFERROR(INDEX(aScoresRounded,$B14,AR$4),""))) -> 65.1 | AS14: =IF(AS$4="","",CHOOSE(uxb_works!$B$47,IF(INDEX(aData,$B14,AS$4)="","-",TEXT(INDEX(aData,$B14,AS$4),$H14)),IFERROR(INDEX(aScoresRounded,$B14,AS$4),""))) -> 36.2 | AW14: =CHOOSE($AV$1,0,IF(AW$10=0,0,IF(P14<=$AX$1,1,IF(P14<=#REF!,2,3))),IF(AW$10=0,0,IF(P14<=$AX$1,4,IF(P14<=#REF!,5,6)))) -> 0 | AX14: =CHOOSE($AV$1,0,IF(AX$10=0,0,IF(#REF!<=$AX$1,1,IF(#REF!<=#REF!,2,3))),IF(AX$10=0,0,IF(#REF!<=$AX$1,4,IF(#REF!<=#REF!,5,6)))) -> 0
B15: =tblIndicators!A6 -> 5 | E15: =tblIndicators!B6 -> 0 | F15: =IF(AND(uxb_works!$B$47=2,E15=1),0,iScores!F10) -> 3 | H15: =tblIndicators!AC6 -> #,##0.0 | K15: =IF(L15=0,0,IF(uxb_works!$B$46>=L15,1,0)) -> 1 | L15: =IF(AND(uxb_works!$B$47=2,E15=1),0,tblIndicators!G6) -> 3 | N15: =iScores!N10 -> 1.1.2) Fixed broadband susbcriptions | O15: =CHOOSE(uxb_works!$B$47,iData!I10,iScores!O10) -> 0.2222222222 | P15: =IF(P$4="","",CHOOSE(uxb_works!$B$47,IF(INDEX(aData,$B15,P$4)="","-",TEXT(INDEX(aData,$B15,P$4),$H15)),IFERROR(INDEX(aScoresRounded,$B15,P$4),""))) -> 93.4 | Q15: =IF(Q$4="","",CHOOSE(uxb_works!$B$47,IF(INDEX(aData,$B15,Q$4)="","-",TEXT(INDEX(aData,$B15,Q$4),$H15)),IFERROR(INDEX(aScoresRounded,$B15,Q$4),""))) -> 73.1 | R15: =IF(R$4="","",CHOOSE(uxb_works!$B$47,IF(INDEX(aData,$B15,R$4)="","-",TEXT(INDEX(aData,$B15,R$4),$H15)),IFERROR(INDEX(aScoresRounded,$B15,R$4),""))) -> 33.1 | S15: =IF(S$4="","",CHOOSE(uxb_works!$B$47,IF(INDEX(aData,$B15,S$4)="","-",TEXT(INDEX(aData,$B15,S$4),$H15)),IFERROR(INDEX(aScoresRounded,$B15,S$4),""))) -> 71.3 | T15: =IF(T$4="","",CHOOSE(uxb_works!$B$47,IF(INDEX(aData,$B15,T$4)="","-",TEXT(INDEX(aData,$B15,T$4),$H15)),IFERROR(INDEX(aScoresRounded,$B15,T$4),""))) -> 70.6 | U15: =IF(U$4="","",CHOOSE(uxb_works!$B$47,IF(INDEX(aData,$B15,U$4)="","-",TEXT(INDEX(aData,$B15,U$4),$H15)),IFERROR(INDEX(aScoresRounded,$B15,U$4),""))) -> 91.4 | V15: =IF(V$4="","",CHOOSE(uxb_works!$B$47,IF(INDEX(aData,$B15,V$4)="","-",TEXT(INDEX(aData,$B15,V$4),$H15)),IFERROR(INDEX(aScoresRounded,$B15,V$4),""))) -> 43.3 | W15: =IF(W$4="","",CHOOSE(uxb_works!$B$47,IF(INDEX(aData,$B15,W$4)="","-",TEXT(INDEX(aData,$B15,W$4),$H15)),IFERROR(INDEX(aScoresRounded,$B15,W$4),""))) -> 94.5 | X15: =IF(X$4="","",CHOOSE(uxb_works!$B$47,IF(INDEX(aData,$B15,X$4)="","-",TEXT(INDEX(aData,$B15,X$4),$H15)),IFERROR(INDEX(aScoresRounded,$B15,X$4),""))) -> 76.8 | Y15: =IF(Y$4="","",CHOOSE(uxb_works!$B$47,IF(INDEX(aData,$B15,Y$4)="","-",TEXT(INDEX(aData,$B15,Y$4),$H15)),IFERROR(INDEX(aScoresRounded,$B15,Y$4),""))) -> 68.9 | Z15: =IF(Z$4="","",CHOOSE(uxb_works!$B$47,IF(INDEX(aData,$B15,Z$4)="","-",TEXT(INDEX(aData,$B15,Z$4),$H15)),IFERROR(INDEX(aScoresRounded,$B15,Z$4),""))) -> 91.4 | AA15: =IF(AA$4="","",CHOOSE(uxb_works!$B$47,IF(INDEX(aData,$B15,AA$4)="","-",TEXT(INDEX(aData,$B15,AA$4),$H15)),IFERROR(INDEX(aScoresRounded,$B15,AA$4),""))) -> 81 | AB15: =IF(AB$4="","",CHOOSE(uxb_works!$B$47,IF(INDEX(aData,$B15,AB$4)="","-",TEXT(INDEX(aData,$B15,AB$4),$H15)),IFERROR(INDEX(aScoresRounded,$B15,AB$4),""))) -> 5.1 | AC15: =IF(AC$4="","",CHOOSE(uxb_works!$B$47,IF(INDEX(aData,$B15,AC$4)="","-",TEXT(INDEX(aData,$B15,AC$4),$H15)),IFERROR(INDEX(aScoresRounded,$B15,AC$4),""))) -> 19.4 | AD15: =IF(AD$4="","",CHOOSE(uxb_works!$B$47,IF(INDEX(aData,$B15,AD$4)="","-",TEXT(INDEX(aData,$B15,AD$4),$H15)),IFERROR(INDEX(aScoresRounded,$B15,AD$4),""))) -> 85.9 | AE15: =IF(AE$4="","",CHOOSE(uxb_works!$B$47,IF(INDEX(aData,$B15,AE$4)="","-",TEXT(INDEX(aData,$B15,AE$4),$H15)),IFERROR(INDEX(aScoresRounded,$B15,AE$4),""))) -> 71.3 | AF15: =IF(AF$4="","",CHOOSE(uxb_works!$B$47,IF(INDEX(aData,$B15,AF$4)="","-",TEXT(INDEX(aData,$B15,AF$4),$H15)),IFERROR(INDEX(aScoresRounded,$B15,AF$4),""))) -> 8.6 | AG15: =IF(AG$4="","",CHOOSE(uxb_works!$B$47,IF(INDEX(aData,$B15,AG$4)="","-",TEXT(INDEX(aData,$B15,AG$4),$H15)),IFERROR(INDEX(aScoresRounded,$B15,AG$4),""))) -> 32.9 | AH15: =IF(AH$4="","",CHOOSE(uxb_works!$B$47,IF(INDEX(aData,$B15,AH$4)="","-",TEXT(INDEX(aData,$B15,AH$4),$H15)),IFERROR(INDEX(aScoresRounded,$B15,AH$4),""))) -> 0 | AI15: =IF(AI$4="","",CHOOSE(uxb_works!$B$47,IF(INDEX(aData,$B15,AI$4)="","-",TEXT(INDEX(aData,$B15,AI$4),$H15)),IFERROR(INDEX(aScoresRounded,$B15,AI$4),""))) -> 76.8 | AJ15: =IF(AJ$4="","",CHOOSE(uxb_works!$B$47,IF(INDEX(aData,$B15,AJ$4)="","-",TEXT(INDEX(aData,$B15,AJ$4),$H15)),IFERROR(INDEX(aScoresRounded,$B15,AJ$4),""))) -> 100 | AK15: =IF(AK$4="","",CHOOSE(uxb_works!$B$47,IF(INDEX(aData,$B15,AK$4)="","-",TEXT(INDEX(aData,$B15,AK$4),$H15)),IFERROR(INDEX(aScoresRounded,$B15,AK$4),""))) -> 61.6 | AL15: =IF(AL$4="","",CHOOSE(uxb_works!$B$47,IF(INDEX(aData,$B15,AL$4)="","-",TEXT(INDEX(aData,$B15,AL$4),$H15)),IFERROR(INDEX(aScoresRounded,$B15,AL$4),""))) -> 34.2 | AM15: =IF(AM$4="","",CHOOSE(uxb_works!$B$47,IF(INDEX(aData,$B15,AM$4)="","-",TEXT(INDEX(aData,$B15,AM$4),$H15)),IFERROR(INDEX(aScoresRounded,$B15,AM$4),""))) -> 92.7 | AN15: =IF(AN$4="","",CHOOSE(uxb_works!$B$47,IF(INDEX(aData,$B15,AN$4)="","-",TEXT(INDEX(aData,$B15,AN$4),$H15)),IFERROR(INDEX(aScoresRounded,$B15,AN$4),""))) -> 53.6 | AO15: =IF(AO$4="","",CHOOSE(uxb_works!$B$47,IF(INDEX(aData,$B15,AO$4)="","-",TEXT(INDEX(aData,$B15,AO$4),$H15)),IFERROR(INDEX(aScoresRounded,$B15,AO$4),""))) -> 74 | AP15: =IF(AP$4="","",CHOOSE(uxb_works!$B$47,IF(INDEX(aData,$B15,AP$4)="","-",TEXT(INDEX(aData,$B15,AP$4),$H15)),IFERROR(INDEX(aScoresRounded,$B15,AP$4),""))) -> 72.6 | AQ15: =IF(AQ$4="","",CHOOSE(uxb_works!$B$47,IF(INDEX(aData,$B15,AQ$4)="","-",TEXT(INDEX(aData,$B15,AQ$4),$H15)),IFERROR(INDEX(aScoresRounded,$B15,AQ$4),""))) -> 88.7 | AR15: =IF(AR$4="","",CHOOSE(uxb_works!$B$47,IF(INDEX(aData,$B15,AR$4)="","-",TEXT(INDEX(aData,$B15,AR$4),$H15)),IFERROR(INDEX(aScoresRounded,$B15,AR$4),""))) -> 76.8 | AS15: =IF(AS$4="","",CHOOSE(uxb_works!$B$47,IF(INDEX(aData,$B15,AS$4)="","-",TEXT(INDEX(aData,$B15,AS$4),$H15)),IFERROR(INDEX(aScoresRounded,$B15,AS$4),""))) -> 99.1 | AW15: =CHOOSE($AV$1,0,IF(AW$10=0,0,IF(P15<=$AX$1,1,IF(P15<=#REF!,2,3))),IF(AW$10=0,0,IF(P15<=$AX$1,4,IF(P15<=#REF!,5,6)))) -> 0 | AX15: =CHOOSE($AV$1,0,IF(AX$10=0,0,IF(#REF!<=$AX$1,1,IF(#REF!<=#REF!,2,3))),IF(AX$10=0,0,IF(#REF!<=$AX$1,4,IF(#REF!<=#REF!,5,6)))) -> 0
B16: =tblIndicators!A7 -> 6 | E16: =tblIndicators!B7 -> 0 | F16: =IF(AND(uxb_works!$B$47=2,E16=1),0,iScores!F11) -> 3 | H16: =tblIndicators!AC7 -> #,##0 | K16: =IF(L16=0,0,IF(uxb_works!$B$46>=L16,1,0)) -> 1 | L16: =IF(AND(uxb_works!$B$47=2,E16=1),0,tblIndicators!G7) -> 3 | N16: =iScores!N11 -> 1.1.3) 5G readiness | O16: =CHOOSE(uxb_works!$B$47,iData!I11,iScores!O11) -> 0.2 | P16: =IF(P$4="","",CHOOSE(uxb_works!$B$47,IF(INDEX(aData,$B16,P$4)="","-",TEXT(INDEX(aData,$B16,P$4),$H16)),IFERROR(INDEX(aScoresRounded,$B16,P$4),""))) -> 100 | Q16: =IF(Q$4="","",CHOOSE(uxb_works!$B$47,IF(INDEX(aData,$B16,Q$4)="","-",TEXT(INDEX(aData,$B16,Q$4),$H16)),IFERROR(INDEX(aScoresRounded,$B16,Q$4),""))) -> 100 | R16: =IF(R$4="","",CHOOSE(uxb_works!$B$47,IF(INDEX(aData,$B16,R$4)="","-",TEXT(INDEX(aData,$B16,R$4),$H16)),IFERROR(INDEX(aScoresRounded,$B16,R$4),""))) -> 66.7 | S16: =IF(S$4="","",CHOOSE(uxb_works!$B$47,IF(INDEX(aData,$B16,S$4)="","-",TEXT(INDEX(aData,$B16,S$4),$H16)),IFERROR(INDEX(aScoresRounded,$B16,S$4),""))) -> 100 | T16: =IF(T$4="","",CHOOSE(uxb_works!$B$47,IF(INDEX(aData,$B16,T$4)="","-",TEXT(INDEX(aData,$B16,T$4),$H16)),IFERROR(INDEX(aScoresRounded,$B16,T$4),""))) -> 100 | U16: =IF(U$4="","",CHOOSE(uxb_works!$B$47,IF(INDEX(aData,$B16,U$4)="","-",TEXT(INDEX(aData,$B16,U$4),$H16)),IFERROR(INDEX(aScoresRounded,$B16,U$4),""))) -> 100 | V16: =IF(V$4="","",CHOOSE(uxb_works!$B$47,IF(INDEX(aData,$B16,V$4)="","-",TEXT(INDEX(aData,$B16,V$4),$H16)),IFERROR(INDEX(aScoresRounded,$B16,V$4),""))) -> 100 | W16: =IF(W$4="","",CHOOSE(uxb_works!$B$47,IF(INDEX(aData,$B16,W$4)="","-",TEXT(INDEX(aData,$B16,W$4),$H16)),IFERROR(INDEX(aScoresRounded,$B16,W$4),""))) -> 100 | X16: =IF(X$4="","",CHOOSE(uxb_works!$B$47,IF(INDEX(aData,$B16,X$4)="","-",TEXT(INDEX(aData,$B16,X$4),$H16)),IFERROR(INDEX(aScoresRounded,$B16,X$4),""))) -> 100 | Y16: =IF(Y$4="","",CHOOSE(uxb_works!$B$47,IF(INDEX(aData,$B16,Y$4)="","-",TEXT(INDEX(aData,$B16,Y$4),$H16)),IFERROR(INDEX(aScoresRounded,$B16,Y$4),""))) -> 100 | Z16: =IF(Z$4="","",CHOOSE(uxb_works!$B$47,IF(INDEX(aData,$B16,Z$4)="","-",TEXT(INDEX(aData,$B16,Z$4),$H16)),IFERROR(INDEX(aScoresRounded,$B16,Z$4),""))) -> 100 | AA16: =IF(AA$4="","",CHOOSE(uxb_works!$B$47,IF(INDEX(aData,$B16,AA$4)="","-",TEXT(INDEX(aData,$B16,AA$4),$H16)),IFERROR(INDEX(aScoresRounded,$B16,AA$4),""))) -> 100 | AB16: =IF(AB$4="","",CHOOSE(uxb_works!$B$47,IF(INDEX(aData,$B16,AB$4)="","-",TEXT(INDEX(aData,$B16,AB$4),$H16)),IFERROR(INDEX(aScoresRounded,$B16,AB$4),""))) -> 100 | AC16: =IF(AC$4="","",CHOOSE(uxb_works!$B$47,IF(INDEX(aData,$B16,AC$4)="","-",TEXT(INDEX(aData,$B16,AC$4),$H16)),IFERROR(INDEX(aScoresRounded,$B16,AC$4),""))) -> 100 | AD16: =IF(AD$4="","",CHOOSE(uxb_works!$B$47,IF(INDEX(aData,$B16,AD$4)="","-",TEXT(INDEX(aData,$B16,AD$4),$H16)),IFERROR(INDEX(aScoresRounded,$B16,AD$4),""))) -> 100 | AE16: =IF(AE$4="","",CHOOSE(uxb_works!$B$47,IF(INDEX(aData,$B16,AE$4)="","-",TEXT(INDEX(aData,$B16,AE$4),$H16)),IFERROR(INDEX(aScoresRounded,$B16,AE$4),""))) -> 100 | AF16: =IF(AF$4="","",CHOOSE(uxb_works!$B$47,IF(INDEX(aData,$B16,AF$4)="","-",TEXT(INDEX(aData,$B16,AF$4),$H16)),IFERROR(INDEX(aScoresRounded,$B16,AF$4),""))) -> 100 | AG16: =IF(AG$4="","",CHOOSE(uxb_works!$B$47,IF(INDEX(aData,$B16,AG$4)="","-",TEXT(INDEX(aData,$B16,AG$4),$H16)),IFERROR(INDEX(aScoresRounded,$B16,AG$4),""))) -> 100 | AH16: =IF(AH$4="","",CHOOSE(uxb_works!$B$47,IF(INDEX(aData,$B16,AH$4)="","-",TEXT(INDEX(aData,$B16,AH$4),$H16)),IFERROR(INDEX(aScoresRounded,$B16,AH$4),""))) -> 100 | AI16: =IF(AI$4="","",CHOOSE(uxb_works!$B$47,IF(INDEX(aData,$B16,AI$4)="","-",TEXT(INDEX(aData,$B16,AI$4),$H16)),IFERROR(INDEX(aScoresRounded,$B16,AI$4),""))) -> 100 | AJ16: =IF(AJ$4="","",CHOOSE(uxb_works!$B$47,IF(INDEX(aData,$B16,AJ$4)="","-",TEXT(INDEX(aData,$B16,AJ$4),$H16)),IFERROR(INDEX(aScoresRounded,$B16,AJ$4),""))) -> 100 | AK16: =IF(AK$4="","",CHOOSE(uxb_works!$B$47,IF(INDEX(aData,$B16,AK$4)="","-",TEXT(INDEX(aData,$B16,AK$4),$H16)),IFERROR(INDEX(aScoresRounded,$B16,AK$4),""))) -> 100 | AL16: =IF(AL$4="","",CHOOSE(uxb_works!$B$47,IF(INDEX(aData,$B16,AL$4)="","-",TEXT(INDEX(aData,$B16,AL$4),$H16)),IFERROR(INDEX(aScoresRounded,$B16,AL$4),""))) -> 100 | AM16: =IF(AM$4="","",CHOOSE(uxb_works!$B$47,IF(INDEX(aData,$B16,AM$4)="","-",TEXT(INDEX(aData,$B16,AM$4),$H16)),IFERROR(INDEX(aScoresRounded,$B16,AM$4),""))) -> 100 | AN16: =IF(AN$4="","",CHOOSE(uxb_works!$B$47,IF(INDEX(aData,$B16,AN$4)="","-",TEXT(INDEX(aData,$B16,AN$4),$H16)),IFERROR(INDEX(aScoresRounded,$B16,AN$4),""))) -> 100 | AO16: =IF(AO$4="","",CHOOSE(uxb_works!$B$47,IF(INDEX(aData,$B16,AO$4)="","-",TEXT(INDEX(aData,$B16,AO$4),$H16)),IFERROR(INDEX(aScoresRounded,$B16,AO$4),""))) -> 100 | AP16: =IF(AP$4="","",CHOOSE(uxb_works!$B$47,IF(INDEX(aData,$B16,AP$4)="","-",TEXT(INDEX(aData,$B16,AP$4),$H16)),IFERROR(INDEX(aScoresRounded,$B16,AP$4),""))) -> 100 | AQ16: =IF(AQ$4="","",CHOOSE(uxb_works!$B$47,IF(INDEX(aData,$B16,AQ$4)="","-",TEXT(INDEX(aData,$B16,AQ$4),$H16)),IFERROR(INDEX(aScoresRounded,$B16,AQ$4),""))) -> 100 | AR16: =IF(AR$4="","",CHOOSE(uxb_works!$B$47,IF(INDEX(aData,$B16,AR$4)="","-",TEXT(INDEX(aData,$B16,AR$4),$H16)),IFERROR(INDEX(aScoresRounded,$B16,AR$4),""))) -> 100 | AS16: =IF(AS$4="","",CHOOSE(uxb_works!$B$47,IF(INDEX(aData,$B16,AS$4)="","-",TEXT(INDEX(aData,$B16,AS$4),$H16)),IFERROR(INDEX(aScoresRounded,$B16,AS$4),""))) -> 100 | AW16: =CHOOSE($AV$1,0,IF(AW$10=0,0,IF(P16<=$AX$1,1,IF(P16<=#REF!,2,3))),IF(AW$10=0,0,IF(P16<=$AX$1,4,IF(P16<=#REF!,5,6)))) -> 0 | AX16: =CHOOSE($AV$1,0,IF(AX$10=0,0,IF(#REF!<=$AX$1,1,IF(#REF!<=#REF!,2,3))),IF(AX$10=0,0,IF(#REF!<=$AX$1,4,IF(#REF!<=#REF!,5,6)))) -> 0
B17: =tblIndicators!A8 -> 7 | E17: =tblIndicators!B8 -> 0 | F17: =IF(AND(uxb_works!$B$47=2,E17=1),0,iScores!F12) -> 3 | H17: =tblIndicators!AC8 -> #,##0 | K17: =IF(L17=0,0,IF(uxb_works!$B$46>=L17,1,0)) -> 1 | L17: =IF(AND(uxb_works!$B$47=2,E17=1),0,tblIndicators!G8) -> 3 | N17: =iScores!N12 -> 1.1.4) 5G deployment | O17: =CHOOSE(uxb_works!$B$47,iData!I12,iScores!O12) -> 0.2888888889 | P17: =IF(P$4="","",CHOOSE(uxb_works!$B$47,IF(INDEX(aData,$B17,P$4)="","-",TEXT(INDEX(aData,$B17,P$4),$H17)),IFERROR(INDEX(aScoresRounded,$B17,P$4),""))) -> 100 | Q17: =IF(Q$4="","",CHOOSE(uxb_works!$B$47,IF(INDEX(aData,$B17,Q$4)="","-",TEXT(INDEX(aData,$B17,Q$4),$H17)),IFERROR(INDEX(aScoresRounded,$B17,Q$4),""))) -> 100 | R17: =IF(R$4="","",CHOOSE(uxb_works!$B$47,IF(INDEX(aData,$B17,R$4)="","-",TEXT(INDEX(aData,$B17,R$4),$H17)),IFERROR(INDEX(aScoresRounded,$B17,R$4),""))) -> 100 | S17: =IF(S$4="","",CHOOSE(uxb_works!$B$47,IF(INDEX(aData,$B17,S$4)="","-",TEXT(INDEX(aData,$B17,S$4),$H17)),IFERROR(INDEX(aScoresRounded,$B17,S$4),""))) -> 100 | T17: =IF(T$4="","",CHOOSE(uxb_works!$B$47,IF(INDEX(aData,$B17,T$4)="","-",TEXT(INDEX(aData,$B17,T$4),$H17)),IFERROR(INDEX(aScoresRounded,$B17,T$4),""))) -> 100 | U17: =IF(U$4="","",CHOOSE(uxb_works!$B$47,IF(INDEX(aData,$B17,U$4)="","-",TEXT(INDEX(aData,$B17,U$4),$H17)),IFERROR(INDEX(aScoresRounded,$B17,U$4),""))) -> 100 | V17: =IF(V$4="","",CHOOSE(uxb_works!$B$47,IF(INDEX(aData,$B17,V$4)="","-",TEXT(INDEX(aData,$B17,V$4),$H17)),IFERROR(INDEX(aScoresRounded,$B17,V$4),""))) -> 100 | W17: =IF(W$4="","",CHOOSE(uxb_works!$B$47,IF(INDEX(aData,$B17,W$4)="","-",TEXT(INDEX(aData,$B17,W$4),$H17)),IFERROR(INDEX(aScoresRounded,$B17,W$4),""))) -> 100 | X17: =IF(X$4="","",CHOOSE(uxb_works!$B$47,IF(INDEX(aData,$B17,X$4)="","-",TEXT(INDEX(aData,$B17,X$4),$H17)),IFERROR(INDEX(aScoresRounded,$B17,X$4),""))) -> 100 | Y17: =IF(Y$4="","",CHOOSE(uxb_works!$B$47,IF(INDEX(aData,$B17,Y$4)="","-",TEXT(INDEX(aData,$B17,Y$4),$H17)),IFERROR(INDEX(aScoresRounded,$B17,Y$4),""))) -> 100 | Z17: =IF(Z$4="","",CHOOSE(uxb_works!$B$47,IF(INDEX(aData,$B17,Z$4)="","-",TEXT(INDEX(aData,$B17,Z$4),$H17)),IFERROR(INDEX(aScoresRounded,$B17,Z$4),""))) -> 100 | AA17: =IF(AA$4="","",CHOOSE(uxb_works!$B$47,IF(INDEX(aData,$B17,AA$4)="","-",TEXT(INDEX(aData,$B17,AA$4),$H17)),IFERROR(INDEX(aScoresRounded,$B17,AA$4),""))) -> 100 | AB17: =IF(AB$4="","",CHOOSE(uxb_works!$B$47,IF(INDEX(aData,$B17,AB$4)="","-",TEXT(INDEX(aData,$B17,AB$4),$H17)),IFERROR(INDEX(aScoresRounded,$B17,AB$4),""))) -> 100 | AC17: =IF(AC$4="","",CHOOSE(uxb_works!$B$47,IF(INDEX(aData,$B17,AC$4)="","-",TEXT(INDEX(aData,$B17,AC$4),$H17)),IFERROR(INDEX(aScoresRounded,$B17,AC$4),""))) -> 100 | AD17: =IF(AD$4="","",CHOOSE(uxb_works!$B$47,IF(INDEX(aData,$B17,AD$4)="","-",TEXT(INDEX(aData,$B17,AD$4),$H17)),IFERROR(INDEX(aScoresRounded,$B17,AD$4),""))) -> 100 | AE17: =IF(AE$4="","",CHOOSE(uxb_works!$B$47,IF(INDEX(aData,$B17,AE$4)="","-",TEXT(INDEX(aData,$B17,AE$4),$H17)),IFERROR(INDEX(aScoresRounded,$B17,AE$4),""))) -> 100 | AF17: =IF(AF$4="","",CHOOSE(uxb_works!$B$47,IF(INDEX(aData,$B17,AF$4)="","-",TEXT(INDEX(aData,$B17,AF$4),$H17)),IFERROR(INDEX(aScoresRounded,$B17,AF$4),""))) -> 100 | AG17: =IF(AG$4="","",CHOOSE(uxb_works!$B$47,IF(INDEX(aData,$B17,AG$4)="","-",TEXT(INDEX(aData,$B17,AG$4),$H17)),IFERROR(INDEX(aScoresRounded,$B17,AG$4),""))) -> 100 | AH17: =IF(AH$4="","",CHOOSE(uxb_works!$B$47,IF(INDEX(aData,$B17,AH$4)="","-",TEXT(INDEX(aData,$B17,AH$4),$H17)),IFERROR(INDEX(aScoresRounded,$B17,AH$4),""))) -> 50 | AI17: =IF(AI$4="","",CHOOSE(uxb_works!$B$47,IF(INDEX(aData,$B17,AI$4)="","-",TEXT(INDEX(aData,$B17,AI$4),$H17)),IFERROR(INDEX(aScoresRounded,$B17,AI$4),""))) -> 100 | AJ17: =IF(AJ$4="","",CHOOSE(uxb_works!$B$47,IF(INDEX(aData,$B17,AJ$4)="","-",TEXT(INDEX(aData,$B17,AJ$4),$H17)),IFERROR(INDEX(aScoresRounded,$B17,AJ$4),""))) -> 100 | AK17: =IF(AK$4="","",CHOOSE(uxb_works!$B$47,IF(INDEX(aData,$B17,AK$4)="","-",TEXT(INDEX(aData,$B17,AK$4),$H17)),IFERROR(INDEX(aScoresRounded,$B17,AK$4),""))) -> 100 | AL17: =IF(AL$4="","",CHOOSE(uxb_works!$B$47,IF(INDEX(aData,$B17,AL$4)="","-",TEXT(INDEX(aData,$B17,AL$4),$H17)),IFERROR(INDEX(aScoresRounded,$B17,AL$4),""))) -> 100 | AM17: =IF(AM$4="","",CHOOSE(uxb_works!$B$47,IF(INDEX(aData,$B17,AM$4)="","-",TEXT(INDEX(aData,$B17,AM$4),$H17)),IFERROR(INDEX(aScoresRounded,$B17,AM$4),""))) -> 100 | AN17: =IF(AN$4="","",CHOOSE(uxb_works!$B$47,IF(INDEX(aData,$B17,AN$4)="","-",TEXT(INDEX(aData,$B17,AN$4),$H17)),IFERROR(INDEX(aScoresRounded,$B17,AN$4),""))) -> 100 | AO17: =IF(AO$4="","",CHOOSE(uxb_works!$B$47,IF(INDEX(aData,$B17,AO$4)="","-",TEXT(INDEX(aData,$B17,AO$4),$H17)),IFERROR(INDEX(aScoresRounded,$B17,AO$4),""))) -> 100 | AP17: =IF(AP$4="","",CHOOSE(uxb_works!$B$47,IF(INDEX(aData,$B17,AP$4)="","-",TEXT(INDEX(aData,$B17,AP$4),$H17)),IFERROR(INDEX(aScoresRounded,$B17,AP$4),""))) -> 100 | AQ17: =IF(AQ$4="","",CHOOSE(uxb_works!$B$47,IF(INDEX(aData,$B17,AQ$4)="","-",TEXT(INDEX(aData,$B17,AQ$4),$H17)),IFERROR(INDEX(aScoresRounded,$B17,AQ$4),""))) -> 100 | AR17: =IF(AR$4="","",CHOOSE(uxb_works!$B$47,IF(INDEX(aData,$B17,AR$4)="","-",TEXT(INDEX(aData,$B17,AR$4),$H17)),IFERROR(INDEX(aScoresRounded,$B17,AR$4),""))) -> 100 | AS17: =IF(AS$4="","",CHOOSE(uxb_works!$B$47,IF(INDEX(aData,$B17,AS$4)="","-",TEXT(INDEX(aData,$B17,AS$4),$H17)),IFERROR(INDEX(aScoresRounded,$B17,AS$4),""))) -> 100 | AW17: =CHOOSE($AV$1,0,IF(AW$10=0,0,IF(P17<=$AX$1,1,IF(P17<=#REF!,2,3))),IF(AW$10=0,0,IF(P17<=$AX$1,4,IF(P17<=#REF!,5,6)))) -> 0 | AX17: =CHOOSE($AV$1,0,IF(AX$10=0,0,IF(#REF!<=$AX$1,1,IF(#REF!<=#REF!,2,3))),IF(AX$10=0,0,IF(#REF!<=$AX$1,4,IF(#REF!<=#REF!,5,6)))) -> 0
B18: =tblIndicators!A9 -> 8 | E18: =tblIndicators!B9 -> 0 | F18: =IF(AND(uxb_works!$B$47=2,E18=1),0,iScores!F13) -> 2 | H18: =tblIndicators!AC9 -> #,##0.0 | K18: =IF(L18=0,0,IF(uxb_works!$B$46>=L18,1,0)) -> 1 | L18: =IF(AND(uxb_works!$B$47=2,E18=1),0,tblIndicators!G9) -> 2 | N18: =iScores!N13 -> 1.2) Quality | O18: =CHOOSE(uxb_works!$B$47,iData!I13,iScores!O13) -> 0.2222222222 | P18: =IF(P$4="","",CHOOSE(uxb_works!$B$47,IF(INDEX(aData,$B18,P$4)="","-",TEXT(INDEX(aData,$B18,P$4),$H18)),IFERROR(INDEX(aScoresRounded,$B18,P$4),""))) -> 66.7 | Q18: =IF(Q$4="","",CHOOSE(uxb_works!$B$47,IF(INDEX(aData,$B18,Q$4)="","-",TEXT(INDEX(aData,$B18,Q$4),$H18)),IFERROR(INDEX(aScoresRounded,$B18,Q$4),""))) -> 44.1 | R18: =IF(R$4="","",CHOOSE(uxb_works!$B$47,IF(INDEX(aData,$B18,R$4)="","-",TEXT(INDEX(aData,$B18,R$4),$H18)),IFERROR(INDEX(aScoresRounded,$B18,R$4),""))) -> 50.9 | S18: =IF(S$4="","",CHOOSE(uxb_works!$B$47,IF(INDEX(aData,$B18,S$4)="","-",TEXT(INDEX(aData,$B18,S$4),$H18)),IFERROR(INDEX(aScoresRounded,$B18,S$4),""))) -> 22.6 | T18: =IF(T$4="","",CHOOSE(uxb_works!$B$47,IF(INDEX(aData,$B18,T$4)="","-",TEXT(INDEX(aData,$B18,T$4),$H18)),IFERROR(INDEX(aScoresRounded,$B18,T$4),""))) -> 75 | U18: =IF(U$4="","",CHOOSE(uxb_works!$B$47,IF(INDEX(aData,$B18,U$4)="","-",TEXT(INDEX(aData,$B18,U$4),$H18)),IFERROR(INDEX(aScoresRounded,$B18,U$4),""))) -> 36.4 | V18: =IF(V$4="","",CHOOSE(uxb_works!$B$47,IF(INDEX(aData,$B18,V$4)="","-",TEXT(INDEX(aData,$B18,V$4),$H18)),IFERROR(INDEX(aScoresRounded,$B18,V$4),""))) -> 17.9 | W18: =IF(W$4="","",CHOOSE(uxb_works!$B$47,IF(INDEX(aData,$B18,W$4)="","-",TEXT(INDEX(aData,$B18,W$4),$H18)),IFERROR(INDEX(aScoresRounded,$B18,W$4),""))) -> 70.9 | X18: =IF(X$4="","",CHOOSE(uxb_works!$B$47,IF(INDEX(aData,$B18,X$4)="","-",TEXT(INDEX(aData,$B18,X$4),$H18)),IFERROR(INDEX(aScoresRounded,$B18,X$4),""))) -> 29.9 | Y18: =IF(Y$4="","",CHOOSE(uxb_works!$B$47,IF(INDEX(aData,$B18,Y$4)="","-",TEXT(INDEX(aData,$B18,Y$4),$H18)),IFERROR(INDEX(aScoresRounded,$B18,Y$4),""))) -> 99.1 | Z18: =IF(Z$4="","",CHOOSE(uxb_works!$B$47,IF(INDEX(aData,$B18,Z$4)="","-",TEXT(INDEX(aData,$B18,Z$4),$H18)),IFERROR(INDEX(aScoresRounded,$B18,Z$4),""))) -> 36.4 | AA18: =IF(AA$4="","",CHOOSE(uxb_works!$B$47,IF(INDEX(aData,$B18,AA$4)="","-",TEXT(INDEX(aData,$B18,AA$4),$H18)),IFERROR(INDEX(aScoresRounded,$B18,AA$4),""))) -> 58.1 | AB18: =IF(AB$4="","",CHOOSE(uxb_works!$B$47,IF(INDEX(aData,$B18,AB$4)="","-",TEXT(INDEX(aData,$B18,AB$4),$H18)),IFERROR(INDEX(aScoresRounded,$B18,AB$4),""))) -> 33.8 | AC18: =IF(AC$4="","",CHOOSE(uxb_works!$B$47,IF(INDEX(aData,$B18,AC$4)="","-",TEXT(INDEX(aData,$B18,AC$4),$H18)),IFERROR(INDEX(aScoresRounded,$B18,AC$4),""))) -> 32.9 | AD18: =IF(AD$4="","",CHOOSE(uxb_works!$B$47,IF(INDEX(aData,$B18,AD$4)="","-",TEXT(INDEX(aData,$B18,AD$4),$H18)),IFERROR(INDEX(aScoresRounded,$B18,AD$4),""))) -> 21 | AE18: =IF(AE$4="","",CHOOSE(uxb_works!$B$47,IF(INDEX(aData,$B18,AE$4)="","-",TEXT(INDEX(aData,$B18,AE$4),$H18)),IFERROR(INDEX(aScoresRounded,$B18,AE$4),""))) -> 22.6 | AF18: =IF(AF$4="","",CHOOSE(uxb_works!$B$47,IF(INDEX(aData,$B18,AF$4)="","-",TEXT(INDEX(aData,$B18,AF$4),$H18)),IFERROR(INDEX(aScoresRounded,$B18,AF$4),""))) -> 34.7 | AG18: =IF(AG$4="","",CHOOSE(uxb_works!$B$47,IF(INDEX(aData,$B18,AG$4)="","-",TEXT(INDEX(aData,$B18,AG$4),$H18)),IFERROR(INDEX(aScoresRounded,$B18,AG$4),""))) -> 22.9 | AH18: =IF(AH$4="","",CHOOSE(uxb_works!$B$47,IF(INDEX(aData,$B18,AH$4)="","-",TEXT(INDEX(aData,$B18,AH$4),$H18)),IFERROR(INDEX(aScoresRounded,$B18,AH$4),""))) -> 19.3 | AI18: =IF(AI$4="","",CHOOSE(uxb_works!$B$47,IF(INDEX(aData,$B18,AI$4)="","-",TEXT(INDEX(aData,$B18,AI$4),$H18)),IFERROR(INDEX(aScoresRounded,$B18,AI$4),""))) -> 29.9 | AJ18: =IF(AJ$4="","",CHOOSE(uxb_works!$B$47,IF(INDEX(aData,$B18,AJ$4)="","-",TEXT(INDEX(aData,$B18,AJ$4),$H18)),IFERROR(INDEX(aScoresRounded,$B18,AJ$4),""))) -> 31.1 | AK18: =IF(AK$4="","",CHOOSE(uxb_works!$B$47,IF(INDEX(aData,$B18,AK$4)="","-",TEXT(INDEX(aData,$B18,AK$4),$H18)),IFERROR(INDEX(aScoresRounded,$B18,AK$4),""))) -> 19.6 | AL18: =IF(AL$4="","",CHOOSE(uxb_works!$B$47,IF(INDEX(aData,$B18,AL$4)="","-",TEXT(INDEX(aData,$B18,AL$4),$H18)),IFERROR(INDEX(aScoresRounded,$B18,AL$4),""))) -> 37.1 | AM18: =IF(AM$4="","",CHOOSE(uxb_works!$B$47,IF(INDEX(aData,$B18,AM$4)="","-",TEXT(INDEX(aData,$B18,AM$4),$H18)),IFERROR(INDEX(aScoresRounded,$B18,AM$4),""))) -> 74.8 | AN18: =IF(AN$4="","",CHOOSE(uxb_works!$B$47,IF(INDEX(aData,$B18,AN$4)="","-",TEXT(INDEX(aData,$B18,AN$4),$H18)),IFERROR(INDEX(aScoresRounded,$B18,AN$4),""))) -> 77.6 | AO18: =IF(AO$4="","",CHOOSE(uxb_works!$B$47,IF(INDEX(aData,$B18,AO$4)="","-",TEXT(INDEX(aData,$B18,AO$4),$H18)),IFERROR(INDEX(aScoresRounded,$B18,AO$4),""))) -> 58.3 | AP18: =IF(AP$4="","",CHOOSE(uxb_works!$B$47,IF(INDEX(aData,$B18,AP$4)="","-",TEXT(INDEX(aData,$B18,AP$4),$H18)),IFERROR(INDEX(aScoresRounded,$B18,AP$4),""))) -> 25.5 | AQ18: =IF(AQ$4="","",CHOOSE(uxb_works!$B$47,IF(INDEX(aData,$B18,AQ$4)="","-",TEXT(INDEX(aData,$B18,AQ$4),$H18)),IFERROR(INDEX(aScoresRounded,$B18,AQ$4),""))) -> 48 | AR18: =IF(AR$4="","",CHOOSE(uxb_works!$B$47,IF(INDEX(aData,$B18,AR$4)="","-",TEXT(INDEX(aData,$B18,AR$4),$H18)),IFERROR(INDEX(aScoresRounded,$B18,AR$4),""))) -> 29.9 | AS18: =IF(AS$4="","",CHOOSE(uxb_works!$B$47,IF(INDEX(aData,$B18,AS$4)="","-",TEXT(INDEX(aData,$B18,AS$4),$H18)),IFERROR(INDEX(aScoresRounded,$B18,AS$4),""))) -> 76.5 | AW18: =CHOOSE($AV$1,0,IF(AW$10=0,0,IF(P18<=$AX$1,1,IF(P18<=#REF!,2,3))),IF(AW$10=0,0,IF(P18<=$AX$1,4,IF(P18<=#REF!,5,6)))) -> 0 | AX18: =CHOOSE($AV$1,0,IF(AX$10=0,0,IF(#REF!<=$AX$1,1,IF(#REF!<=#REF!,2,3))),IF(AX$10=0,0,IF(#REF!<=$AX$1,4,IF(#REF!<=#REF!,5,6)))) -> 0
B19: =tblIndicators!A10 -> 9 | E19: =tblIndicators!B10 -> 0 | F19: =IF(AND(uxb_works!$B$47=2,E19=1),0,iScores!F14) -> 3 | H19: =tblIndicators!AC10 -> #,##0.00 | K19: =IF(L19=0,0,IF(uxb_works!$B$46>=L19,1,0)) -> 1 | L19: =IF(AND(uxb_works!$B$47=2,E19=1),0,tblIndicators!G10) -> 3 | N19: =iScores!N14 -> 1.2.1) Internet upload speed | O19: =CHOOSE(uxb_works!$B$47,iData!I14,iScores!O14) -> 0.2857142857 | P19: =IF(P$4="","",CHOOSE(uxb_works!$B$47,IF(INDEX(aData,$B19,P$4)="","-",TEXT(INDEX(aData,$B19,P$4),$H19)),IFERROR(INDEX(aScoresRounded,$B19,P$4),""))) -> 53.9 | Q19: =IF(Q$4="","",CHOOSE(uxb_works!$B$47,IF(INDEX(aData,$B19,Q$4)="","-",TEXT(INDEX(aData,$B19,Q$4),$H19)),IFERROR(INDEX(aScoresRounded,$B19,Q$4),""))) -> 35.1 | R19: =IF(R$4="","",CHOOSE(uxb_works!$B$47,IF(INDEX(aData,$B19,R$4)="","-",TEXT(INDEX(aData,$B19,R$4),$H19)),IFERROR(INDEX(aScoresRounded,$B19,R$4),""))) -> 42.9 | S19: =IF(S$4="","",CHOOSE(uxb_works!$B$47,IF(INDEX(aData,$B19,S$4)="","-",TEXT(INDEX(aData,$B19,S$4),$H19)),IFERROR(INDEX(aScoresRounded,$B19,S$4),""))) -> 31.9 | T19: =IF(T$4="","",CHOOSE(uxb_works!$B$47,IF(INDEX(aData,$B19,T$4)="","-",TEXT(INDEX(aData,$B19,T$4),$H19)),IFERROR(INDEX(aScoresRounded,$B19,T$4),""))) -> 93.2 | U19: =IF(U$4="","",CHOOSE(uxb_works!$B$47,IF(INDEX(aData,$B19,U$4)="","-",TEXT(INDEX(aData,$B19,U$4),$H19)),IFERROR(INDEX(aScoresRounded,$B19,U$4),""))) -> 36.5 | V19: =IF(V$4="","",CHOOSE(uxb_works!$B$47,IF(INDEX(aData,$B19,V$4)="","-",TEXT(INDEX(aData,$B19,V$4),$H19)),IFERROR(INDEX(aScoresRounded,$B19,V$4),""))) -> 19.6 | W19: =IF(W$4="","",CHOOSE(uxb_works!$B$47,IF(INDEX(aData,$B19,W$4)="","-",TEXT(INDEX(aData,$B19,W$4),$H19)),IFERROR(INDEX(aScoresRounded,$B19,W$4),""))) -> 66.2 | X19: =IF(X$4="","",CHOOSE(uxb_works!$B$47,IF(INDEX(aData,$B19,X$4)="","-",TEXT(INDEX(aData,$B19,X$4),$H19)),IFERROR(INDEX(aScoresRounded,$B19,X$4),""))) -> 27.5 | Y19: =IF(Y$4="","",CHOOSE(uxb_works!$B$47,IF(INDEX(aData,$B19,Y$4)="","-",TEXT(INDEX(aData,$B19,Y$4),$H19)),IFERROR(INDEX(aScoresRounded,$B19,Y$4),""))) -> 100 | Z19: =IF(Z$4="","",CHOOSE(uxb_works!$B$47,IF(INDEX(aData,$B19,Z$4)="","-",TEXT(INDEX(aData,$B19,Z$4),$H19)),IFERROR(INDEX(aScoresRounded,$B19,Z$4),""))) -> 36.5 | AA19: =IF(AA$4="","",CHOOSE(uxb_works!$B$47,IF(INDEX(aData,$B19,AA$4)="","-",TEXT(INDEX(aData,$B19,AA$4),$H19)),IFERROR(INDEX(aScoresRounded,$B19,AA$4),""))) -> 32.4 | AB19: =IF(AB$4="","",CHOOSE(uxb_works!$B$47,IF(INDEX(aData,$B19,AB$4)="","-",TEXT(INDEX(aData,$B19,AB$4),$H19)),IFERROR(INDEX(aScoresRounded,$B19,AB$4),""))) -> 32.7 | AC19: =IF(AC$4="","",CHOOSE(uxb_works!$B$47,IF(INDEX(aData,$B19,AC$4)="","-",TEXT(INDEX(aData,$B19,AC$4),$H19)),IFERROR(INDEX(aScoresRounded,$B19,AC$4),""))) -> 22.8 | AD19: =IF(AD$4="","",CHOOSE(uxb_works!$B$47,IF(INDEX(aData,$B19,AD$4)="","-",TEXT(INDEX(aData,$B19,AD$4),$H19)),IFERROR(INDEX(aScoresRounded,$B19,AD$4),""))) -> 23.9 | AE19: =IF(AE$4="","",CHOOSE(uxb_works!$B$47,IF(INDEX(aData,$B19,AE$4)="","-",TEXT(INDEX(aData,$B19,AE$4),$H19)),IFERROR(INDEX(aScoresRounded,$B19,AE$4),""))) -> 31.9 | AF19: =IF(AF$4="","",CHOOSE(uxb_works!$B$47,IF(INDEX(aData,$B19,AF$4)="","-",TEXT(INDEX(aData,$B19,AF$4),$H19)),IFERROR(INDEX(aScoresRounded,$B19,AF$4),""))) -> 10.2 | AG19: =IF(AG$4="","",CHOOSE(uxb_works!$B$47,IF(INDEX(aData,$B19,AG$4)="","-",TEXT(INDEX(aData,$B19,AG$4),$H19)),IFERROR(INDEX(aScoresRounded,$B19,AG$4),""))) -> 28.2 | AH19: =IF(AH$4="","",CHOOSE(uxb_works!$B$47,IF(INDEX(aData,$B19,AH$4)="","-",TEXT(INDEX(aData,$B19,AH$4),$H19)),IFERROR(INDEX(aScoresRounded,$B19,AH$4),""))) -> 0 | AI19: =IF(AI$4="","",CHOOSE(uxb_works!$B$47,IF(INDEX(aData,$B19,AI$4)="","-",TEXT(INDEX(aData,$B19,AI$4),$H19)),IFERROR(INDEX(aScoresRounded,$B19,AI$4),""))) -> 27.5 | AJ19: =IF(AJ$4="","",CHOOSE(uxb_works!$B$47,IF(INDEX(aData,$B19,AJ$4)="","-",TEXT(INDEX(aData,$B19,AJ$4),$H19)),IFERROR(INDEX(aScoresRounded,$B19,AJ$4),""))) -> 21.7 | AK19: =IF(AK$4="","",CHOOSE(uxb_works!$B$47,IF(INDEX(aData,$B19,AK$4)="","-",TEXT(INDEX(aData,$B19,AK$4),$H19)),IFERROR(INDEX(aScoresRounded,$B19,AK$4),""))) -> 30.3 | AL19: =IF(AL$4="","",CHOOSE(uxb_works!$B$47,IF(INDEX(aData,$B19,AL$4)="","-",TEXT(INDEX(aData,$B19,AL$4),$H19)),IFERROR(INDEX(aScoresRounded,$B19,AL$4),""))) -> 21.7 | AM19: =IF(AM$4="","",CHOOSE(uxb_works!$B$47,IF(INDEX(aData,$B19,AM$4)="","-",TEXT(INDEX(aData,$B19,AM$4),$H19)),IFERROR(INDEX(aScoresRounded,$B19,AM$4),""))) -> 58 | AN19: =IF(AN$4="","",CHOOSE(uxb_works!$B$47,IF(INDEX(aData,$B19,AN$4)="","-",TEXT(INDEX(aData,$B19,AN$4),$H19)),IFERROR(INDEX(aScoresRounded,$B19,AN$4),""))) -> 62.7 | AO19: =IF(AO$4="","",CHOOSE(uxb_works!$B$47,IF(INDEX(aData,$B19,AO$4)="","-",TEXT(INDEX(aData,$B19,AO$4),$H19)),IFERROR(INDEX(aScoresRounded,$B19,AO$4),""))) -> 37.7 | AP19: =IF(AP$4="","",CHOOSE(uxb_works!$B$47,IF(INDEX(aData,$B19,AP$4)="","-",TEXT(INDEX(aData,$B19,AP$4),$H19)),IFERROR(INDEX(aScoresRounded,$B19,AP$4),""))) -> 26.9 | AQ19: =IF(AQ$4="","",CHOOSE(uxb_works!$B$47,IF(INDEX(aData,$B19,AQ$4)="","-",TEXT(INDEX(aData,$B19,AQ$4),$H19)),IFERROR(INDEX(aScoresRounded,$B19,AQ$4),""))) -> 26.1 | AR19: =IF(AR$4="","",CHOOSE(uxb_works!$B$47,IF(INDEX(aData,$B19,AR$4)="","-",TEXT(INDEX(aData,$B19,AR$4),$H19)),IFERROR(INDEX(aScoresRounded,$B19,AR$4),""))) -> 27.5 | AS19: =IF(AS$4="","",CHOOSE(uxb_works!$B$47,IF(INDEX(aData,$B19,AS$4)="","-",TEXT(INDEX(aData,$B19,AS$4),$H19)),IFERROR(INDEX(aScoresRounded,$B19,AS$4),""))) -> 82.9 | AW19: =CHOOSE($AV$1,0,IF(AW$10=0,0,IF(P19<=$AX$1,1,IF(P19<=#REF!,2,3))),IF(AW$10=0,0,IF(P19<=$AX$1,4,IF(P19<=#REF!,5,6)))) -> 0 | AX19: =CHOOSE($AV$1,0,IF(AX$10=0,0,IF(#REF!<=$AX$1,1,IF(#REF!<=#REF!,2,3))),IF(AX$10=0,0,IF(#REF!<=$AX$1,4,IF(#REF!<=#REF!,5,6)))) -> 0
B20: =tblIndicators!A11 -> 10 | E20: =tblIndicators!B11 -> 0 | F20: =IF(AND(uxb_works!$B$47=2,E20=1),0,iScores!F15) -> 3 | H20: =tblIndicators!AC11 -> #,##0.00 | K20: =IF(L20=0,0,IF(uxb_works!$B$46>=L20,1,0)) -> 1 | L20: =IF(AND(uxb_works!$B$47=2,E20=1),0,tblIndicators!G11) -> 3 | N20: =iScores!N15 -> 1.2.2) Internet download speed | O20: =CHOOSE(uxb_works!$B$47,iData!I15,iScores!O15) -> 0.3214285714 | P20: =IF(P$4="","",CHOOSE(uxb_works!$B$47,IF(INDEX(aData,$B20,P$4)="","-",TEXT(INDEX(aData,$B20,P$4),$H20)),IFERROR(INDEX(aScoresRounded,$B20,P$4),""))) -> 90.4 | Q20: =IF(Q$4="","",CHOOSE(uxb_works!$B$47,IF(INDEX(aData,$B20,Q$4)="","-",TEXT(INDEX(aData,$B20,Q$4),$H20)),IFERROR(INDEX(aScoresRounded,$B20,Q$4),""))) -> 34.7 | R20: =IF(R$4="","",CHOOSE(uxb_works!$B$47,IF(INDEX(aData,$B20,R$4)="","-",TEXT(INDEX(aData,$B20,R$4),$H20)),IFERROR(INDEX(aScoresRounded,$B20,R$4),""))) -> 20.7 | S20: =IF(S$4="","",CHOOSE(uxb_works!$B$47,IF(INDEX(aData,$B20,S$4)="","-",TEXT(INDEX(aData,$B20,S$4),$H20)),IFERROR(INDEX(aScoresRounded,$B20,S$4),""))) -> 24.5 | T20: =IF(T$4="","",CHOOSE(uxb_works!$B$47,IF(INDEX(aData,$B20,T$4)="","-",TEXT(INDEX(aData,$B20,T$4),$H20)),IFERROR(INDEX(aScoresRounded,$B20,T$4),""))) -> 75.3 | U20: =IF(U$4="","",CHOOSE(uxb_works!$B$47,IF(INDEX(aData,$B20,U$4)="","-",TEXT(INDEX(aData,$B20,U$4),$H20)),IFERROR(INDEX(aScoresRounded,$B20,U$4),""))) -> 44.3 | V20: =IF(V$4="","",CHOOSE(uxb_works!$B$47,IF(INDEX(aData,$B20,V$4)="","-",TEXT(INDEX(aData,$B20,V$4),$H20)),IFERROR(INDEX(aScoresRounded,$B20,V$4),""))) -> 10 | W20: =IF(W$4="","",CHOOSE(uxb_works!$B$47,IF(INDEX(aData,$B20,W$4)="","-",TEXT(INDEX(aData,$B20,W$4),$H20)),IFERROR(INDEX(aScoresRounded,$B20,W$4),""))) -> 72.1 | X20: =IF(X$4="","",CHOOSE(uxb_works!$B$47,IF(INDEX(aData,$B20,X$4)="","-",TEXT(INDEX(aData,$B20,X$4),$H20)),IFERROR(INDEX(aScoresRounded,$B20,X$4),""))) -> 45.9 | Y20: =IF(Y$4="","",CHOOSE(uxb_works!$B$47,IF(INDEX(aData,$B20,Y$4)="","-",TEXT(INDEX(aData,$B20,Y$4),$H20)),IFERROR(INDEX(aScoresRounded,$B20,Y$4),""))) -> 100 | Z20: =IF(Z$4="","",CHOOSE(uxb_works!$B$47,IF(INDEX(aData,$B20,Z$4)="","-",TEXT(INDEX(aData,$B20,Z$4),$H20)),IFERROR(INDEX(aScoresRounded,$B20,Z$4),""))) -> 44.3 | AA20: =IF(AA$4="","",CHOOSE(uxb_works!$B$47,IF(INDEX(aData,$B20,AA$4)="","-",TEXT(INDEX(aData,$B20,AA$4),$H20)),IFERROR(INDEX(aScoresRounded,$B20,AA$4),""))) -> 35.2 | AB20: =IF(AB$4="","",CHOOSE(uxb_works!$B$47,IF(INDEX(aData,$B20,AB$4)="","-",TEXT(INDEX(aData,$B20,AB$4),$H20)),IFERROR(INDEX(aScoresRounded,$B20,AB$4),""))) -> 3.1 | AC20: =IF(AC$4="","",CHOOSE(uxb_works!$B$47,IF(INDEX(aData,$B20,AC$4)="","-",TEXT(INDEX(aData,$B20,AC$4),$H20)),IFERROR(INDEX(aScoresRounded,$B20,AC$4),""))) -> 11.9 | AD20: =IF(AD$4="","",CHOOSE(uxb_works!$B$47,IF(INDEX(aData,$B20,AD$4)="","-",TEXT(INDEX(aData,$B20,AD$4),$H20)),IFERROR(INDEX(aScoresRounded,$B20,AD$4),""))) -> 35.9 | AE20: =IF(AE$4="","",CHOOSE(uxb_works!$B$47,IF(INDEX(aData,$B20,AE$4)="","-",TEXT(INDEX(aData,$B20,AE$4),$H20)),IFERROR(INDEX(aScoresRounded,$B20,AE$4),""))) -> 24.5 | AF20: =IF(AF$4="","",CHOOSE(uxb_works!$B$47,IF(INDEX(aData,$B20,AF$4)="","-",TEXT(INDEX(aData,$B20,AF$4),$H20)),IFERROR(INDEX(aScoresRounded,$B20,AF$4),""))) -> 5.5 | AG20: =IF(AG$4="","",CHOOSE(uxb_works!$B$47,IF(INDEX(aData,$B20,AG$4)="","-",TEXT(INDEX(aData,$B20,AG$4),$H20)),IFERROR(INDEX(aScoresRounded,$B20,AG$4),""))) -> 10.9 | AH20: =IF(AH$4="","",CHOOSE(uxb_works!$B$47,IF(INDEX(aData,$B20,AH$4)="","-",TEXT(INDEX(aData,$B20,AH$4),$H20)),IFERROR(INDEX(aScoresRounded,$B20,AH$4),""))) -> 0 | AI20: =IF(AI$4="","",CHOOSE(uxb_works!$B$47,IF(INDEX(aData,$B20,AI$4)="","-",TEXT(INDEX(aData,$B20,AI$4),$H20)),IFERROR(INDEX(aScoresRounded,$B20,AI$4),""))) -> 45.9 | AJ20: =IF(AJ$4="","",CHOOSE(uxb_works!$B$47,IF(INDEX(aData,$B20,AJ$4)="","-",TEXT(INDEX(aData,$B20,AJ$4),$H20)),IFERROR(INDEX(aScoresRounded,$B20,AJ$4),""))) -> 45.3 | AK20: =IF(AK$4="","",CHOOSE(uxb_works!$B$47,IF(INDEX(aData,$B20,AK$4)="","-",TEXT(INDEX(aData,$B20,AK$4),$H20)),IFERROR(INDEX(aScoresRounded,$B20,AK$4),""))) -> 25.3 | AL20: =IF(AL$4="","",CHOOSE(uxb_works!$B$47,IF(INDEX(aData,$B20,AL$4)="","-",TEXT(INDEX(aData,$B20,AL$4),$H20)),IFERROR(INDEX(aScoresRounded,$B20,AL$4),""))) -> 10.6 | AM20: =IF(AM$4="","",CHOOSE(uxb_works!$B$47,IF(INDEX(aData,$B20,AM$4)="","-",TEXT(INDEX(aData,$B20,AM$4),$H20)),IFERROR(INDEX(aScoresRounded,$B20,AM$4),""))) -> 98.8 | AN20: =IF(AN$4="","",CHOOSE(uxb_works!$B$47,IF(INDEX(aData,$B20,AN$4)="","-",TEXT(INDEX(aData,$B20,AN$4),$H20)),IFERROR(INDEX(aScoresRounded,$B20,AN$4),""))) -> 63.4 | AO20: =IF(AO$4="","",CHOOSE(uxb_works!$B$47,IF(INDEX(aData,$B20,AO$4)="","-",TEXT(INDEX(aData,$B20,AO$4),$H20)),IFERROR(INDEX(aScoresRounded,$B20,AO$4),""))) -> 76 | AP20: =IF(AP$4="","",CHOOSE(uxb_works!$B$47,IF(INDEX(aData,$B20,AP$4)="","-",TEXT(INDEX(aData,$B20,AP$4),$H20)),IFERROR(INDEX(aScoresRounded,$B20,AP$4),""))) -> 31.3 | AQ20: =IF(AQ$4="","",CHOOSE(uxb_works!$B$47,IF(INDEX(aData,$B20,AQ$4)="","-",TEXT(INDEX(aData,$B20,AQ$4),$H20)),IFERROR(INDEX(aScoresRounded,$B20,AQ$4),""))) -> 65.7 | AR20: =IF(AR$4="","",CHOOSE(uxb_works!$B$47,IF(INDEX(aData,$B20,AR$4)="","-",TEXT(INDEX(aData,$B20,AR$4),$H20)),IFERROR(INDEX(aScoresRounded,$B20,AR$4),""))) -> 45.9 | AS20: =IF(AS$4="","",CHOOSE(uxb_works!$B$47,IF(INDEX(aData,$B20,AS$4)="","-",TEXT(INDEX(aData,$B20,AS$4),$H20)),IFERROR(INDEX(aScoresRounded,$B20,AS$4),""))) -> 77.4 | AW20: =CHOOSE($AV$1,0,IF(AW$10=0,0,IF(P20<=$AX$1,1,IF(P20<=#REF!,2,3))),IF(AW$10=0,0,IF(P20<=$AX$1,4,IF(P20<=#REF!,5,6)))) -> 0 | AX20: =CHOOSE($AV$1,0,IF(AX$10=0,0,IF(#REF!<=$AX$1,1,IF(#REF!<=#REF!,2,3))),IF(AX$10=0,0,IF(#REF!<=$AX$1,4,IF(#REF!<=#REF!,5,6)))) -> 0
B21: =tblIndicators!A12 -> 11 | E21: =tblIndicators!B12 -> 0 | F21: =IF(AND(uxb_works!$B$47=2,E21=1),0,iScores!F16) -> 3 | H21: =tblIndicators!AC12 -> #,##0 | K21: =IF(L21=0,0,IF(uxb_works!$B$46>=L21,1,0)) -> 1 | L21: =IF(AND(uxb_works!$B$47=2,E21=1),0,tblIndicators!G12) -> 3 | N21: =iScores!N16 -> 1.2.3) Mobile broadband latency | O21: =CHOOSE(uxb_works!$B$47,iData!I16,iScores!O16) -> 0.1785714286 | P21: =IF(P$4="","",CHOOSE(uxb_works!$B$47,IF(INDEX(aData,$B21,P$4)="","-",TEXT(INDEX(aData,$B21,P$4),$H21)),IFERROR(INDEX(aScoresRounded,$B21,P$4),""))) -> 70 | Q21: =IF(Q$4="","",CHOOSE(uxb_works!$B$47,IF(INDEX(aData,$B21,Q$4)="","-",TEXT(INDEX(aData,$B21,Q$4),$H21)),IFERROR(INDEX(aScoresRounded,$B21,Q$4),""))) -> 30 | R21: =IF(R$4="","",CHOOSE(uxb_works!$B$47,IF(INDEX(aData,$B21,R$4)="","-",TEXT(INDEX(aData,$B21,R$4),$H21)),IFERROR(INDEX(aScoresRounded,$B21,R$4),""))) -> 70 | S21: =IF(S$4="","",CHOOSE(uxb_works!$B$47,IF(INDEX(aData,$B21,S$4)="","-",TEXT(INDEX(aData,$B21,S$4),$H21)),IFERROR(INDEX(aScoresRounded,$B21,S$4),""))) -> 10 | T21: =IF(T$4="","",CHOOSE(uxb_works!$B$47,IF(INDEX(aData,$B21,T$4)="","-",TEXT(INDEX(aData,$B21,T$4),$H21)),IFERROR(INDEX(aScoresRounded,$B21,T$4),""))) -> 70 | U21: =IF(U$4="","",CHOOSE(uxb_works!$B$47,IF(INDEX(aData,$B21,U$4)="","-",TEXT(INDEX(aData,$B21,U$4),$H21)),IFERROR(INDEX(aScoresRounded,$B21,U$4),""))) -> 55 | V21: =IF(V$4="","",CHOOSE(uxb_works!$B$47,IF(INDEX(aData,$B21,V$4)="","-",TEXT(INDEX(aData,$B21,V$4),$H21)),IFERROR(INDEX(aScoresRounded,$B21,V$4),""))) -> 40 | W21: =IF(W$4="","",CHOOSE(uxb_works!$B$47,IF(INDEX(aData,$B21,W$4)="","-",TEXT(INDEX(aData,$B21,W$4),$H21)),IFERROR(INDEX(aScoresRounded,$B21,W$4),""))) -> 85 | X21: =IF(X$4="","",CHOOSE(uxb_works!$B$47,IF(INDEX(aData,$B21,X$4)="","-",TEXT(INDEX(aData,$B21,X$4),$H21)),IFERROR(INDEX(aScoresRounded,$B21,X$4),""))) -> 30 | Y21: =IF(Y$4="","",CHOOSE(uxb_works!$B$47,IF(INDEX(aData,$B21,Y$4)="","-",TEXT(INDEX(aData,$B21,Y$4),$H21)),IFERROR(INDEX(aScoresRounded,$B21,Y$4),""))) -> 95 | Z21: =IF(Z$4="","",CHOOSE(uxb_works!$B$47,IF(INDEX(aData,$B21,Z$4)="","-",TEXT(INDEX(aData,$B21,Z$4),$H21)),IFERROR(INDEX(aScoresRounded,$B21,Z$4),""))) -> 55 | AA21: =IF(AA$4="","",CHOOSE(uxb_works!$B$47,IF(INDEX(aData,$B21,AA$4)="","-",TEXT(INDEX(aData,$B21,AA$4),$H21)),IFERROR(INDEX(aScoresRounded,$B21,AA$4),""))) -> 90 | AB21: =IF(AB$4="","",CHOOSE(uxb_works!$B$47,IF(INDEX(aData,$B21,AB$4)="","-",TEXT(INDEX(aData,$B21,AB$4),$H21)),IFERROR(INDEX(aScoresRounded,$B21,AB$4),""))) -> 55 | AC21: =IF(AC$4="","",CHOOSE(uxb_works!$B$47,IF(INDEX(aData,$B21,AC$4)="","-",TEXT(INDEX(aData,$B21,AC$4),$H21)),IFERROR(INDEX(aScoresRounded,$B21,AC$4),""))) -> 50 | AD21: =IF(AD$4="","",CHOOSE(uxb_works!$B$47,IF(INDEX(aData,$B21,AD$4)="","-",TEXT(INDEX(aData,$B21,AD$4),$H21)),IFERROR(INDEX(aScoresRounded,$B21,AD$4),""))) -> 15 | AE21: =IF(AE$4="","",CHOOSE(uxb_works!$B$47,IF(INDEX(aData,$B21,AE$4)="","-",TEXT(INDEX(aData,$B21,AE$4),$H21)),IFERROR(INDEX(aScoresRounded,$B21,AE$4),""))) -> 10 | AF21: =IF(AF$4="","",CHOOSE(uxb_works!$B$47,IF(INDEX(aData,$B21,AF$4)="","-",TEXT(INDEX(aData,$B21,AF$4),$H21)),IFERROR(INDEX(aScoresRounded,$B21,AF$4),""))) -> 70 | AG21: =IF(AG$4="","",CHOOSE(uxb_works!$B$47,IF(INDEX(aData,$B21,AG$4)="","-",TEXT(INDEX(aData,$B21,AG$4),$H21)),IFERROR(INDEX(aScoresRounded,$B21,AG$4),""))) -> 20 | AH21: =IF(AH$4="","",CHOOSE(uxb_works!$B$47,IF(INDEX(aData,$B21,AH$4)="","-",TEXT(INDEX(aData,$B21,AH$4),$H21)),IFERROR(INDEX(aScoresRounded,$B21,AH$4),""))) -> 10 | AI21: =IF(AI$4="","",CHOOSE(uxb_works!$B$47,IF(INDEX(aData,$B21,AI$4)="","-",TEXT(INDEX(aData,$B21,AI$4),$H21)),IFERROR(INDEX(aScoresRounded,$B21,AI$4),""))) -> 30 | AJ21: =IF(AJ$4="","",CHOOSE(uxb_works!$B$47,IF(INDEX(aData,$B21,AJ$4)="","-",TEXT(INDEX(aData,$B21,AJ$4),$H21)),IFERROR(INDEX(aScoresRounded,$B21,AJ$4),""))) -> 25 | AK21: =IF(AK$4="","",CHOOSE(uxb_works!$B$47,IF(INDEX(aData,$B21,AK$4)="","-",TEXT(INDEX(aData,$B21,AK$4),$H21)),IFERROR(INDEX(aScoresRounded,$B21,AK$4),""))) -> 5 | AL21: =IF(AL$4="","",CHOOSE(uxb_works!$B$47,IF(INDEX(aData,$B21,AL$4)="","-",TEXT(INDEX(aData,$B21,AL$4),$H21)),IFERROR(INDEX(aScoresRounded,$B21,AL$4),""))) -> 45 | AM21: =IF(AM$4="","",CHOOSE(uxb_works!$B$47,IF(INDEX(aData,$B21,AM$4)="","-",TEXT(INDEX(aData,$B21,AM$4),$H21)),IFERROR(INDEX(aScoresRounded,$B21,AM$4),""))) -> 50 | AN21: =IF(AN$4="","",CHOOSE(uxb_works!$B$47,IF(INDEX(aData,$B21,AN$4)="","-",TEXT(INDEX(aData,$B21,AN$4),$H21)),IFERROR(INDEX(aScoresRounded,$B21,AN$4),""))) -> 100 | AO21: =IF(AO$4="","",CHOOSE(uxb_works!$B$47,IF(INDEX(aData,$B21,AO$4)="","-",TEXT(INDEX(aData,$B21,AO$4),$H21)),IFERROR(INDEX(aScoresRounded,$B21,AO$4),""))) -> 75 | AP21: =IF(AP$4="","",CHOOSE(uxb_works!$B$47,IF(INDEX(aData,$B21,AP$4)="","-",TEXT(INDEX(aData,$B21,AP$4),$H21)),IFERROR(INDEX(aScoresRounded,$B21,AP$4),""))) -> 0 | AQ21: =IF(AQ$4="","",CHOOSE(uxb_works!$B$47,IF(INDEX(aData,$B21,AQ$4)="","-",TEXT(INDEX(aData,$B21,AQ$4),$H21)),IFERROR(INDEX(aScoresRounded,$B21,AQ$4),""))) -> 65 | AR21: =IF(AR$4="","",CHOOSE(uxb_works!$B$47,IF(INDEX(aData,$B21,AR$4)="","-",TEXT(INDEX(aData,$B21,AR$4),$H21)),IFERROR(INDEX(aScoresRounded,$B21,AR$4),""))) -> 30 | AS21: =IF(AS$4="","",CHOOSE(uxb_works!$B$47,IF(INDEX(aData,$B21,AS$4)="","-",TEXT(INDEX(aData,$B21,AS$4),$H21)),IFERROR(INDEX(aScoresRounded,$B21,AS$4),""))) -> 80 | AW21: =CHOOSE($AV$1,0,IF(AW$10=0,0,IF(P21<=$AX$1,1,IF(P21<=#REF!,2,3))),IF(AW$10=0,0,IF(P21<=$AX$1,4,IF(P21<=#REF!,5,6)))) -> 0 | AX21: =CHOOSE($AV$1,0,IF(AX$10=0,0,IF(#REF!<=$AX$1,1,IF(#REF!<=#REF!,2,3))),IF(AX$10=0,0,IF(#REF!<=$AX$1,4,IF(#REF!<=#REF!,5,6)))) -> 0
B22: =tblIndicators!A13 -> 12 | E22: =tblIndicators!B13 -> 0 | F22: =IF(AND(uxb_works!$B$47=2,E22=1),0,iScores!F17) -> 3 | H22: =tblIndicators!AC13 -> #,##0 | K22: =IF(L22=0,0,IF(uxb_works!$B$46>=L22,1,0)) -> 1 | L22: =IF(AND(uxb_works!$B$47=2,E22=1),0,tblIndicators!G13) -> 3 | N22: =iScores!N17 -> 1.2.4) Fixed broadband latency | O22: =CHOOSE(uxb_works!$B$47,iData!I17,iScores!O17) -> 0.2142857143 | P22: =IF(P$4="","",CHOOSE(uxb_works!$B$47,IF(INDEX(aData,$B22,P$4)="","-",TEXT(INDEX(aData,$B22,P$4),$H22)),IFERROR(INDEX(aScoresRounded,$B22,P$4),""))) -> 45.5 | Q22: =IF(Q$4="","",CHOOSE(uxb_works!$B$47,IF(INDEX(aData,$B22,Q$4)="","-",TEXT(INDEX(aData,$B22,Q$4),$H22)),IFERROR(INDEX(aScoresRounded,$B22,Q$4),""))) -> 81.8 | R22: =IF(R$4="","",CHOOSE(uxb_works!$B$47,IF(INDEX(aData,$B22,R$4)="","-",TEXT(INDEX(aData,$B22,R$4),$H22)),IFERROR(INDEX(aScoresRounded,$B22,R$4),""))) -> 90.9 | S22: =IF(S$4="","",CHOOSE(uxb_works!$B$47,IF(INDEX(aData,$B22,S$4)="","-",TEXT(INDEX(aData,$B22,S$4),$H22)),IFERROR(INDEX(aScoresRounded,$B22,S$4),""))) -> 18.2 | T22: =IF(T$4="","",CHOOSE(uxb_works!$B$47,IF(INDEX(aData,$B22,T$4)="","-",TEXT(INDEX(aData,$B22,T$4),$H22)),IFERROR(INDEX(aScoresRounded,$B22,T$4),""))) -> 54.5 | U22: =IF(U$4="","",CHOOSE(uxb_works!$B$47,IF(INDEX(aData,$B22,U$4)="","-",TEXT(INDEX(aData,$B22,U$4),$H22)),IFERROR(INDEX(aScoresRounded,$B22,U$4),""))) -> 9.1 | V22: =IF(V$4="","",CHOOSE(uxb_works!$B$47,IF(INDEX(aData,$B22,V$4)="","-",TEXT(INDEX(aData,$B22,V$4),$H22)),IFERROR(INDEX(aScoresRounded,$B22,V$4),""))) -> 9.1 | W22: =IF(W$4="","",CHOOSE(uxb_works!$B$47,IF(INDEX(aData,$B22,W$4)="","-",TEXT(INDEX(aData,$B22,W$4),$H22)),IFERROR(INDEX(aScoresRounded,$B22,W$4),""))) -> 63.6 | X22: =IF(X$4="","",CHOOSE(uxb_works!$B$47,IF(INDEX(aData,$B22,X$4)="","-",TEXT(INDEX(aData,$B22,X$4),$H22)),IFERROR(INDEX(aScoresRounded,$B22,X$4),""))) -> 9.1 | Y22: =IF(Y$4="","",CHOOSE(uxb_works!$B$47,IF(INDEX(aData,$B22,Y$4)="","-",TEXT(INDEX(aData,$B22,Y$4),$H22)),IFERROR(INDEX(aScoresRounded,$B22,Y$4),""))) -> 100 | Z22: =IF(Z$4="","",CHOOSE(uxb_works!$B$47,IF(INDEX(aData,$B22,Z$4)="","-",TEXT(INDEX(aData,$B22,Z$4),$H22)),IFERROR(INDEX(aScoresRounded,$B22,Z$4),""))) -> 9.1 | AA22: =IF(AA$4="","",CHOOSE(uxb_works!$B$47,IF(INDEX(aData,$B22,AA$4)="","-",TEXT(INDEX(aData,$B22,AA$4),$H22)),IFERROR(INDEX(aScoresRounded,$B22,AA$4),""))) -> 100 | AB22: =IF(AB$4="","",CHOOSE(uxb_works!$B$47,IF(INDEX(aData,$B22,AB$4)="","-",TEXT(INDEX(aData,$B22,AB$4),$H22)),IFERROR(INDEX(aScoresRounded,$B22,AB$4),""))) -> 63.6 | AC22: =IF(AC$4="","",CHOOSE(uxb_works!$B$47,IF(INDEX(aData,$B22,AC$4)="","-",TEXT(INDEX(aData,$B22,AC$4),$H22)),IFERROR(INDEX(aScoresRounded,$B22,AC$4),""))) -> 63.6 | AD22: =IF(AD$4="","",CHOOSE(uxb_works!$B$47,IF(INDEX(aData,$B22,AD$4)="","-",TEXT(INDEX(aData,$B22,AD$4),$H22)),IFERROR(INDEX(aScoresRounded,$B22,AD$4),""))) -> 0 | AE22: =IF(AE$4="","",CHOOSE(uxb_works!$B$47,IF(INDEX(aData,$B22,AE$4)="","-",TEXT(INDEX(aData,$B22,AE$4),$H22)),IFERROR(INDEX(aScoresRounded,$B22,AE$4),""))) -> 18.2 | AF22: =IF(AF$4="","",CHOOSE(uxb_works!$B$47,IF(INDEX(aData,$B22,AF$4)="","-",TEXT(INDEX(aData,$B22,AF$4),$H22)),IFERROR(INDEX(aScoresRounded,$B22,AF$4),""))) -> 81.8 | AG22: =IF(AG$4="","",CHOOSE(uxb_works!$B$47,IF(INDEX(aData,$B22,AG$4)="","-",TEXT(INDEX(aData,$B22,AG$4),$H22)),IFERROR(INDEX(aScoresRounded,$B22,AG$4),""))) -> 36.4 | AH22: =IF(AH$4="","",CHOOSE(uxb_works!$B$47,IF(INDEX(aData,$B22,AH$4)="","-",TEXT(INDEX(aData,$B22,AH$4),$H22)),IFERROR(INDEX(aScoresRounded,$B22,AH$4),""))) -> 81.8 | AI22: =IF(AI$4="","",CHOOSE(uxb_works!$B$47,IF(INDEX(aData,$B22,AI$4)="","-",TEXT(INDEX(aData,$B22,AI$4),$H22)),IFERROR(INDEX(aScoresRounded,$B22,AI$4),""))) -> 9.1 | AJ22: =IF(AJ$4="","",CHOOSE(uxb_works!$B$47,IF(INDEX(aData,$B22,AJ$4)="","-",TEXT(INDEX(aData,$B22,AJ$4),$H22)),IFERROR(INDEX(aScoresRounded,$B22,AJ$4),""))) -> 27.3 | AK22: =IF(AK$4="","",CHOOSE(uxb_works!$B$47,IF(INDEX(aData,$B22,AK$4)="","-",TEXT(INDEX(aData,$B22,AK$4),$H22)),IFERROR(INDEX(aScoresRounded,$B22,AK$4),""))) -> 9.1 | AL22: =IF(AL$4="","",CHOOSE(uxb_works!$B$47,IF(INDEX(aData,$B22,AL$4)="","-",TEXT(INDEX(aData,$B22,AL$4),$H22)),IFERROR(INDEX(aScoresRounded,$B22,AL$4),""))) -> 90.9 | AM22: =IF(AM$4="","",CHOOSE(uxb_works!$B$47,IF(INDEX(aData,$B22,AM$4)="","-",TEXT(INDEX(aData,$B22,AM$4),$H22)),IFERROR(INDEX(aScoresRounded,$B22,AM$4),""))) -> 81.8 | AN22: =IF(AN$4="","",CHOOSE(uxb_works!$B$47,IF(INDEX(aData,$B22,AN$4)="","-",TEXT(INDEX(aData,$B22,AN$4),$H22)),IFERROR(INDEX(aScoresRounded,$B22,AN$4),""))) -> 100 | AO22: =IF(AO$4="","",CHOOSE(uxb_works!$B$47,IF(INDEX(aData,$B22,AO$4)="","-",TEXT(INDEX(aData,$B22,AO$4),$H22)),IFERROR(INDEX(aScoresRounded,$B22,AO$4),""))) -> 45.5 | AP22: =IF(AP$4="","",CHOOSE(uxb_works!$B$47,IF(INDEX(aData,$B22,AP$4)="","-",TEXT(INDEX(aData,$B22,AP$4),$H22)),IFERROR(INDEX(aScoresRounded,$B22,AP$4),""))) -> 36.4 | AQ22: =IF(AQ$4="","",CHOOSE(uxb_works!$B$47,IF(INDEX(aData,$B22,AQ$4)="","-",TEXT(INDEX(aData,$B22,AQ$4),$H22)),IFERROR(INDEX(aScoresRounded,$B22,AQ$4),""))) -> 36.4 | AR22: =IF(AR$4="","",CHOOSE(uxb_works!$B$47,IF(INDEX(aData,$B22,AR$4)="","-",TEXT(INDEX(aData,$B22,AR$4),$H22)),IFERROR(INDEX(aScoresRounded,$B22,AR$4),""))) -> 9.1 | AS22: =IF(AS$4="","",CHOOSE(uxb_works!$B$47,IF(INDEX(aData,$B22,AS$4)="","-",TEXT(INDEX(aData,$B22,AS$4),$H22)),IFERROR(INDEX(aScoresRounded,$B22,AS$4),""))) -> 63.6 | AW22: =CHOOSE($AV$1,0,IF(AW$10=0,0,IF(P22<=$AX$1,1,IF(P22<=#REF!,2,3))),IF(AW$10=0,0,IF(P22<=$AX$1,4,IF(P22<=#REF!,5,6)))) -> 0 | AX22: =CHOOSE($AV$1,0,IF(AX$10=0,0,IF(#REF!<=$AX$1,1,IF(#REF!<=#REF!,2,3))),IF(AX$10=0,0,IF(#REF!<=$AX$1,4,IF(#REF!<=#REF!,5,6)))) -> 0
B23: =tblIndicators!A14 -> 13 | E23: =tblIndicators!B14 -> 0 | F23: =IF(AND(uxb_works!$B$47=2,E23=1),0,iScores!F18) -> 2 | H23: =tblIndicators!AC14 -> #,##0.0 | K23: =IF(L23=0,0,IF(uxb_works!$B$46>=L23,1,0)) -> 1 | L23: =IF(AND(uxb_works!$B$47=2,E23=1),0,tblIndicators!G14) -> 2 | N23: =iScores!N18 -> 1.3) Affordability | O23: =CHOOSE(uxb_works!$B$47,iData!I18,iScores!O18) -> 0.3333333333 | P23: =IF(P$4="","",CHOOSE(uxb_works!$B$47,IF(INDEX(aData,$B23,P$4)="","-",TEXT(INDEX(aData,$B23,P$4),$H23)),IFERROR(INDEX(aScoresRounded,$B23,P$4),""))) -> 74.6 | Q23: =IF(Q$4="","",CHOOSE(uxb_works!$B$47,IF(INDEX(aData,$B23,Q$4)="","-",TEXT(INDEX(aData,$B23,Q$4),$H23)),IFERROR(INDEX(aScoresRounded,$B23,Q$4),""))) -> 46.8 | R23: =IF(R$4="","",CHOOSE(uxb_works!$B$47,IF(INDEX(aData,$B23,R$4)="","-",TEXT(INDEX(aData,$B23,R$4),$H23)),IFERROR(INDEX(aScoresRounded,$B23,R$4),""))) -> 53.4 | S23: =IF(S$4="","",CHOOSE(uxb_works!$B$47,IF(INDEX(aData,$B23,S$4)="","-",TEXT(INDEX(aData,$B23,S$4),$H23)),IFERROR(INDEX(aScoresRounded,$B23,S$4),""))) -> 70.2 | T23: =IF(T$4="","",CHOOSE(uxb_works!$B$47,IF(INDEX(aData,$B23,T$4)="","-",TEXT(INDEX(aData,$B23,T$4),$H23)),IFERROR(INDEX(aScoresRounded,$B23,T$4),""))) -> 94.4 | U23: =IF(U$4="","",CHOOSE(uxb_works!$B$47,IF(INDEX(aData,$B23,U$4)="","-",TEXT(INDEX(aData,$B23,U$4),$H23)),IFERROR(INDEX(aScoresRounded,$B23,U$4),""))) -> 71.3 | V23: =IF(V$4="","",CHOOSE(uxb_works!$B$47,IF(INDEX(aData,$B23,V$4)="","-",TEXT(INDEX(aData,$B23,V$4),$H23)),IFERROR(INDEX(aScoresRounded,$B23,V$4),""))) -> 25.1 | W23: =IF(W$4="","",CHOOSE(uxb_works!$B$47,IF(INDEX(aData,$B23,W$4)="","-",TEXT(INDEX(aData,$B23,W$4),$H23)),IFERROR(INDEX(aScoresRounded,$B23,W$4),""))) -> 93.9 | X23: =IF(X$4="","",CHOOSE(uxb_works!$B$47,IF(INDEX(aData,$B23,X$4)="","-",TEXT(INDEX(aData,$B23,X$4),$H23)),IFERROR(INDEX(aScoresRounded,$B23,X$4),""))) -> 89.8 | Y23: =IF(Y$4="","",CHOOSE(uxb_works!$B$47,IF(INDEX(aData,$B23,Y$4)="","-",TEXT(INDEX(aData,$B23,Y$4),$H23)),IFERROR(INDEX(aScoresRounded,$B23,Y$4),""))) -> 0.4 | Z23: =IF(Z$4="","",CHOOSE(uxb_works!$B$47,IF(INDEX(aData,$B23,Z$4)="","-",TEXT(INDEX(aData,$B23,Z$4),$H23)),IFERROR(INDEX(aScoresRounded,$B23,Z$4),""))) -> 87.1 | AA23: =IF(AA$4="","",CHOOSE(uxb_works!$B$47,IF(INDEX(aData,$B23,AA$4)="","-",TEXT(INDEX(aData,$B23,AA$4),$H23)),IFERROR(INDEX(aScoresRounded,$B23,AA$4),""))) -> 78.5 | AB23: =IF(AB$4="","",CHOOSE(uxb_works!$B$47,IF(INDEX(aData,$B23,AB$4)="","-",TEXT(INDEX(aData,$B23,AB$4),$H23)),IFERROR(INDEX(aScoresRounded,$B23,AB$4),""))) -> 45.8 | AC23: =IF(AC$4="","",CHOOSE(uxb_works!$B$47,IF(INDEX(aData,$B23,AC$4)="","-",TEXT(INDEX(aData,$B23,AC$4),$H23)),IFERROR(INDEX(aScoresRounded,$B23,AC$4),""))) -> 65.1 | AD23: =IF(AD$4="","",CHOOSE(uxb_works!$B$47,IF(INDEX(aData,$B23,AD$4)="","-",TEXT(INDEX(aData,$B23,AD$4),$H23)),IFERROR(INDEX(aScoresRounded,$B23,AD$4),""))) -> 93.9 | AE23: =IF(AE$4="","",CHOOSE(uxb_works!$B$47,IF(INDEX(aData,$B23,AE$4)="","-",TEXT(INDEX(aData,$B23,AE$4),$H23)),IFERROR(INDEX(aScoresRounded,$B23,AE$4),""))) -> 79.2 | AF23: =IF(AF$4="","",CHOOSE(uxb_works!$B$47,IF(INDEX(aData,$B23,AF$4)="","-",TEXT(INDEX(aData,$B23,AF$4),$H23)),IFERROR(INDEX(aScoresRounded,$B23,AF$4),""))) -> 37.1 | AG23: =IF(AG$4="","",CHOOSE(uxb_works!$B$47,IF(INDEX(aData,$B23,AG$4)="","-",TEXT(INDEX(aData,$B23,AG$4),$H23)),IFERROR(INDEX(aScoresRounded,$B23,AG$4),""))) -> 63 | AH23: =IF(AH$4="","",CHOOSE(uxb_works!$B$47,IF(INDEX(aData,$B23,AH$4)="","-",TEXT(INDEX(aData,$B23,AH$4),$H23)),IFERROR(INDEX(aScoresRounded,$B23,AH$4),""))) -> 26.5 | AI23: =IF(AI$4="","",CHOOSE(uxb_works!$B$47,IF(INDEX(aData,$B23,AI$4)="","-",TEXT(INDEX(aData,$B23,AI$4),$H23)),IFERROR(INDEX(aScoresRounded,$B23,AI$4),""))) -> 95.7 | AJ23: =IF(AJ$4="","",CHOOSE(uxb_works!$B$47,IF(INDEX(aData,$B23,AJ$4)="","-",TEXT(INDEX(aData,$B23,AJ$4),$H23)),IFERROR(INDEX(aScoresRounded,$B23,AJ$4),""))) -> 87.7 | AK23: =IF(AK$4="","",CHOOSE(uxb_works!$B$47,IF(INDEX(aData,$B23,AK$4)="","-",TEXT(INDEX(aData,$B23,AK$4),$H23)),IFERROR(INDEX(aScoresRounded,$B23,AK$4),""))) -> 87.8 | AL23: =IF(AL$4="","",CHOOSE(uxb_works!$B$47,IF(INDEX(aData,$B23,AL$4)="","-",TEXT(INDEX(aData,$B23,AL$4),$H23)),IFERROR(INDEX(aScoresRounded,$B23,AL$4),""))) -> 59.7 | AM23: =IF(AM$4="","",CHOOSE(uxb_works!$B$47,IF(INDEX(aData,$B23,AM$4)="","-",TEXT(INDEX(aData,$B23,AM$4),$H23)),IFERROR(INDEX(aScoresRounded,$B23,AM$4),""))) -> 66.6 | AN23: =IF(AN$4="","",CHOOSE(uxb_works!$B$47,IF(INDEX(aData,$B23,AN$4)="","-",TEXT(INDEX(aData,$B23,AN$4),$H23)),IFERROR(INDEX(aScoresRounded,$B23,AN$4),""))) -> 92.5 | AO23: =IF(AO$4="","",CHOOSE(uxb_works!$B$47,IF(INDEX(aData,$B23,AO$4)="","-",TEXT(INDEX(aData,$B23,AO$4),$H23)),IFERROR(INDEX(aScoresRounded,$B23,AO$4),""))) -> 88.2 | AP23: =IF(AP$4="","",CHOOSE(uxb_works!$B$47,IF(INDEX(aData,$B23,AP$4)="","-",TEXT(INDEX(aData,$B23,AP$4),$H23)),IFERROR(INDEX(aScoresRounded,$B23,AP$4),""))) -> 71.5 | AQ23: =IF(AQ$4="","",CHOOSE(uxb_works!$B$47,IF(INDEX(aData,$B23,AQ$4)="","-",TEXT(INDEX(aData,$B23,AQ$4),$H23)),IFERROR(INDEX(aScoresRounded,$B23,AQ$4),""))) -> 57.2 | AR23: =IF(AR$4="","",CHOOSE(uxb_works!$B$47,IF(INDEX(aData,$B23,AR$4)="","-",TEXT(INDEX(aData,$B23,AR$4),$H23)),IFERROR(INDEX(aScoresRounded,$B23,AR$4),""))) -> 93.8 | AS23: =IF(AS$4="","",CHOOSE(uxb_works!$B$47,IF(INDEX(aData,$B23,AS$4)="","-",TEXT(INDEX(aData,$B23,AS$4),$H23)),IFERROR(INDEX(aScoresRounded,$B23,AS$4),""))) -> 83.5 | AW23: =CHOOSE($AV$1,0,IF(AW$10=0,0,IF(P23<=$AX$1,1,IF(P23<=#REF!,2,3))),IF(AW$10=0,0,IF(P23<=$AX$1,4,IF(P23<=#REF!,5,6)))) -> 0 | AX23: =CHOOSE($AV$1,0,IF(AX$10=0,0,IF(#REF!<=$AX$1,1,IF(#REF!<=#REF!,2,3))),IF(AX$10=0,0,IF(#REF!<=$AX$1,4,IF(#REF!<=#REF!,5,6)))) -> 0
B24: =tblIndicators!A15 -> 14 | E24: =tblIndicators!B15 -> 0 | F24: =IF(AND(uxb_works!$B$47=2,E24=1),0,iScores!F19) -> 3 | H24: =tblIndicators!AC15 -> #,##0.000 | K24: =IF(L24=0,0,IF(uxb_works!$B$46>=L24,1,0)) -> 1 | L24: =IF(AND(uxb_works!$B$47=2,E24=1),0,tblIndicators!G15) -> 3 | N24: =iScores!N19 -> 1.3.1) Mobile data affordability | O24: =CHOOSE(uxb_works!$B$47,iData!I19,iScores!O19) -> 0.5217164471 | P24: =IF(P$4="","",CHOOSE(uxb_works!$B$47,IF(INDEX(aData,$B24,P$4)="","-",TEXT(INDEX(aData,$B24,P$4),$H24)),IFERROR(INDEX(aScoresRounded,$B24,P$4),""))) -> 80.6 | Q24: =IF(Q$4="","",CHOOSE(uxb_works!$B$47,IF(INDEX(aData,$B24,Q$4)="","-",TEXT(INDEX(aData,$B24,Q$4),$H24)),IFERROR(INDEX(aScoresRounded,$B24,Q$4),""))) -> 33 | R24: =IF(R$4="","",CHOOSE(uxb_works!$B$47,IF(INDEX(aData,$B24,R$4)="","-",TEXT(INDEX(aData,$B24,R$4),$H24)),IFERROR(INDEX(aScoresRounded,$B24,R$4),""))) -> 69.6 | S24: =IF(S$4="","",CHOOSE(uxb_works!$B$47,IF(INDEX(aData,$B24,S$4)="","-",TEXT(INDEX(aData,$B24,S$4),$H24)),IFERROR(INDEX(aScoresRounded,$B24,S$4),""))) -> 88.7 | T24: =IF(T$4="","",CHOOSE(uxb_works!$B$47,IF(INDEX(aData,$B24,T$4)="","-",TEXT(INDEX(aData,$B24,T$4),$H24)),IFERROR(INDEX(aScoresRounded,$B24,T$4),""))) -> 93.4 | U24: =IF(U$4="","",CHOOSE(uxb_works!$B$47,IF(INDEX(aData,$B24,U$4)="","-",TEXT(INDEX(aData,$B24,U$4),$H24)),IFERROR(INDEX(aScoresRounded,$B24,U$4),""))) -> 69.6 | V24: =IF(V$4="","",CHOOSE(uxb_works!$B$47,IF(INDEX(aData,$B24,V$4)="","-",TEXT(INDEX(aData,$B24,V$4),$H24)),IFERROR(INDEX(aScoresRounded,$B24,V$4),""))) -> 45 | W24: =IF(W$4="","",CHOOSE(uxb_works!$B$47,IF(INDEX(aData,$B24,W$4)="","-",TEXT(INDEX(aData,$B24,W$4),$H24)),IFERROR(INDEX(aScoresRounded,$B24,W$4),""))) -> 97.2 | X24: =IF(X$4="","",CHOOSE(uxb_works!$B$47,IF(INDEX(aData,$B24,X$4)="","-",TEXT(INDEX(aData,$B24,X$4),$H24)),IFERROR(INDEX(aScoresRounded,$B24,X$4),""))) -> 87.6 | Y24: =IF(Y$4="","",CHOOSE(uxb_works!$B$47,IF(INDEX(aData,$B24,Y$4)="","-",TEXT(INDEX(aData,$B24,Y$4),$H24)),IFERROR(INDEX(aScoresRounded,$B24,Y$4),""))) -> 0 | Z24: =IF(Z$4="","",CHOOSE(uxb_works!$B$47,IF(INDEX(aData,$B24,Z$4)="","-",TEXT(INDEX(aData,$B24,Z$4),$H24)),IFERROR(INDEX(aScoresRounded,$B24,Z$4),""))) -> 82.7 | AA24: =IF(AA$4="","",CHOOSE(uxb_works!$B$47,IF(INDEX(aData,$B24,AA$4)="","-",TEXT(INDEX(aData,$B24,AA$4),$H24)),IFERROR(INDEX(aScoresRounded,$B24,AA$4),""))) -> 88.2 | AB24: =IF(AB$4="","",CHOOSE(uxb_works!$B$47,IF(INDEX(aData,$B24,AB$4)="","-",TEXT(INDEX(aData,$B24,AB$4),$H24)),IFERROR(INDEX(aScoresRounded,$B24,AB$4),""))) -> 85.2 | AC24: =IF(AC$4="","",CHOOSE(uxb_works!$B$47,IF(INDEX(aData,$B24,AC$4)="","-",TEXT(INDEX(aData,$B24,AC$4),$H24)),IFERROR(INDEX(aScoresRounded,$B24,AC$4),""))) -> 83.6 | AD24: =IF(AD$4="","",CHOOSE(uxb_works!$B$47,IF(INDEX(aData,$B24,AD$4)="","-",TEXT(INDEX(aData,$B24,AD$4),$H24)),IFERROR(INDEX(aScoresRounded,$B24,AD$4),""))) -> 94.5 | AE24: =IF(AE$4="","",CHOOSE(uxb_works!$B$47,IF(INDEX(aData,$B24,AE$4)="","-",TEXT(INDEX(aData,$B24,AE$4),$H24)),IFERROR(INDEX(aScoresRounded,$B24,AE$4),""))) -> 90.8 | AF24: =IF(AF$4="","",CHOOSE(uxb_works!$B$47,IF(INDEX(aData,$B24,AF$4)="","-",TEXT(INDEX(aData,$B24,AF$4),$H24)),IFERROR(INDEX(aScoresRounded,$B24,AF$4),""))) -> 45.9 | AG24: =IF(AG$4="","",CHOOSE(uxb_works!$B$47,IF(INDEX(aData,$B24,AG$4)="","-",TEXT(INDEX(aData,$B24,AG$4),$H24)),IFERROR(INDEX(aScoresRounded,$B24,AG$4),""))) -> 48.9 | AH24: =IF(AH$4="","",CHOOSE(uxb_works!$B$47,IF(INDEX(aData,$B24,AH$4)="","-",TEXT(INDEX(aData,$B24,AH$4),$H24)),IFERROR(INDEX(aScoresRounded,$B24,AH$4),""))) -> 50.7 | AI24: =IF(AI$4="","",CHOOSE(uxb_works!$B$47,IF(INDEX(aData,$B24,AI$4)="","-",TEXT(INDEX(aData,$B24,AI$4),$H24)),IFERROR(INDEX(aScoresRounded,$B24,AI$4),""))) -> 91.7 | AJ24: =IF(AJ$4="","",CHOOSE(uxb_works!$B$47,IF(INDEX(aData,$B24,AJ$4)="","-",TEXT(INDEX(aData,$B24,AJ$4),$H24)),IFERROR(INDEX(aScoresRounded,$B24,AJ$4),""))) -> 100 | AK24: =IF(AK$4="","",CHOOSE(uxb_works!$B$47,IF(INDEX(aData,$B24,AK$4)="","-",TEXT(INDEX(aData,$B24,AK$4),$H24)),IFERROR(INDEX(aScoresRounded,$B24,AK$4),""))) -> 100 | AL24: =IF(AL$4="","",CHOOSE(uxb_works!$B$47,IF(INDEX(aData,$B24,AL$4)="","-",TEXT(INDEX(aData,$B24,AL$4),$H24)),IFERROR(INDEX(aScoresRounded,$B24,AL$4),""))) -> 74 | AM24: =IF(AM$4="","",CHOOSE(uxb_works!$B$47,IF(INDEX(aData,$B24,AM$4)="","-",TEXT(INDEX(aData,$B24,AM$4),$H24)),IFERROR(INDEX(aScoresRounded,$B24,AM$4),""))) -> 43.5 | AN24: =IF(AN$4="","",CHOOSE(uxb_works!$B$47,IF(INDEX(aData,$B24,AN$4)="","-",TEXT(INDEX(aData,$B24,AN$4),$H24)),IFERROR(INDEX(aScoresRounded,$B24,AN$4),""))) -> 94.8 | AO24: =IF(AO$4="","",CHOOSE(uxb_works!$B$47,IF(INDEX(aData,$B24,AO$4)="","-",TEXT(INDEX(aData,$B24,AO$4),$H24)),IFERROR(INDEX(aScoresRounded,$B24,AO$4),""))) -> 97.4 | AP24: =IF(AP$4="","",CHOOSE(uxb_works!$B$47,IF(INDEX(aData,$B24,AP$4)="","-",TEXT(INDEX(aData,$B24,AP$4),$H24)),IFERROR(INDEX(aScoresRounded,$B24,AP$4),""))) -> 72.5 | AQ24: =IF(AQ$4="","",CHOOSE(uxb_works!$B$47,IF(INDEX(aData,$B24,AQ$4)="","-",TEXT(INDEX(aData,$B24,AQ$4),$H24)),IFERROR(INDEX(aScoresRounded,$B24,AQ$4),""))) -> 55.4 | AR24: =IF(AR$4="","",CHOOSE(uxb_works!$B$47,IF(INDEX(aData,$B24,AR$4)="","-",TEXT(INDEX(aData,$B24,AR$4),$H24)),IFERROR(INDEX(aScoresRounded,$B24,AR$4),""))) -> 91.5 | AS24: =IF(AS$4="","",CHOOSE(uxb_works!$B$47,IF(INDEX(aData,$B24,AS$4)="","-",TEXT(INDEX(aData,$B24,AS$4),$H24)),IFERROR(INDEX(aScoresRounded,$B24,AS$4),""))) -> 81.9 | AW24: =CHOOSE($AV$1,0,IF(AW$10=0,0,IF(P24<=$AX$1,1,IF(P24<=#REF!,2,3))),IF(AW$10=0,0,IF(P24<=$AX$1,4,IF(P24<=#REF!,5,6)))) -> 0 | AX24: =CHOOSE($AV$1,0,IF(AX$10=0,0,IF(#REF!<=$AX$1,1,IF(#REF!<=#REF!,2,3))),IF(AX$10=0,0,IF(#REF!<=$AX$1,4,IF(#REF!<=#REF!,5,6)))) -> 0
B25: =tblIndicators!A16 -> 15 | E25: =tblIndicators!B16 -> 0 | F25: =IF(AND(uxb_works!$B$47=2,E25=1),0,iScores!F20) -> 3 | H25: =tblIndicators!AC16 -> #,##0.00 | K25: =IF(L25=0,0,IF(uxb_works!$B$46>=L25,1,0)) -> 1 | L25: =IF(AND(uxb_works!$B$47=2,E25=1),0,tblIndicators!G16) -> 3 | N25: =iScores!N20 -> 1.3.2) Fixed broadband affordability | O25: =CHOOSE(uxb_works!$B$47,iData!I20,iScores!O20) -> 0.4782835529 | P25: =IF(P$4="","",CHOOSE(uxb_works!$B$47,IF(INDEX(aData,$B25,P$4)="","-",TEXT(INDEX(aData,$B25,P$4),$H25)),IFERROR(INDEX(aScoresRounded,$B25,P$4),""))) -> 67.9 | Q25: =IF(Q$4="","",CHOOSE(uxb_works!$B$47,IF(INDEX(aData,$B25,Q$4)="","-",TEXT(INDEX(aData,$B25,Q$4),$H25)),IFERROR(INDEX(aScoresRounded,$B25,Q$4),""))) -> 61.9 | R25: =IF(R$4="","",CHOOSE(uxb_works!$B$47,IF(INDEX(aData,$B25,R$4)="","-",TEXT(INDEX(aData,$B25,R$4),$H25)),IFERROR(INDEX(aScoresRounded,$B25,R$4),""))) -> 35.7 | S25: =IF(S$4="","",CHOOSE(uxb_works!$B$47,IF(INDEX(aData,$B25,S$4)="","-",TEXT(INDEX(aData,$B25,S$4),$H25)),IFERROR(INDEX(aScoresRounded,$B25,S$4),""))) -> 49.9 | T25: =IF(T$4="","",CHOOSE(uxb_works!$B$47,IF(INDEX(aData,$B25,T$4)="","-",TEXT(INDEX(aData,$B25,T$4),$H25)),IFERROR(INDEX(aScoresRounded,$B25,T$4),""))) -> 95.6 | U25: =IF(U$4="","",CHOOSE(uxb_works!$B$47,IF(INDEX(aData,$B25,U$4)="","-",TEXT(INDEX(aData,$B25,U$4),$H25)),IFERROR(INDEX(aScoresRounded,$B25,U$4),""))) -> 73.1 | V25: =IF(V$4="","",CHOOSE(uxb_works!$B$47,IF(INDEX(aData,$B25,V$4)="","-",TEXT(INDEX(aData,$B25,V$4),$H25)),IFERROR(INDEX(aScoresRounded,$B25,V$4),""))) -> 3.5 | W25: =IF(W$4="","",CHOOSE(uxb_works!$B$47,IF(INDEX(aData,$B25,W$4)="","-",TEXT(INDEX(aData,$B25,W$4),$H25)),IFERROR(INDEX(aScoresRounded,$B25,W$4),""))) -> 90.2 | X25: =IF(X$4="","",CHOOSE(uxb_works!$B$47,IF(INDEX(aData,$B25,X$4)="","-",TEXT(INDEX(aData,$B25,X$4),$H25)),IFERROR(INDEX(aScoresRounded,$B25,X$4),""))) -> 92.1 | Y25: =IF(Y$4="","",CHOOSE(uxb_works!$B$47,IF(INDEX(aData,$B25,Y$4)="","-",TEXT(INDEX(aData,$B25,Y$4),$H25)),IFERROR(INDEX(aScoresRounded,$B25,Y$4),""))) -> 0.8 | Z25: =IF(Z$4="","",CHOOSE(uxb_works!$B$47,IF(INDEX(aData,$B25,Z$4)="","-",TEXT(INDEX(aData,$B25,Z$4),$H25)),IFERROR(INDEX(aScoresRounded,$B25,Z$4),""))) -> 91.9 | AA25: =IF(AA$4="","",CHOOSE(uxb_works!$B$47,IF(INDEX(aData,$B25,AA$4)="","-",TEXT(INDEX(aData,$B25,AA$4),$H25)),IFERROR(INDEX(aScoresRounded,$B25,AA$4),""))) -> 67.9 | AB25: =IF(AB$4="","",CHOOSE(uxb_works!$B$47,IF(INDEX(aData,$B25,AB$4)="","-",TEXT(INDEX(aData,$B25,AB$4),$H25)),IFERROR(INDEX(aScoresRounded,$B25,AB$4),""))) -> 2.8 | AC25: =IF(AC$4="","",CHOOSE(uxb_works!$B$47,IF(INDEX(aData,$B25,AC$4)="","-",TEXT(INDEX(aData,$B25,AC$4),$H25)),IFERROR(INDEX(aScoresRounded,$B25,AC$4),""))) -> 44.9 | AD25: =IF(AD$4="","",CHOOSE(uxb_works!$B$47,IF(INDEX(aData,$B25,AD$4)="","-",TEXT(INDEX(aData,$B25,AD$4),$H25)),IFERROR(INDEX(aScoresRounded,$B25,AD$4),""))) -> 93.4 | AE25: =IF(AE$4="","",CHOOSE(uxb_works!$B$47,IF(INDEX(aData,$B25,AE$4)="","-",TEXT(INDEX(aData,$B25,AE$4),$H25)),IFERROR(INDEX(aScoresRounded,$B25,AE$4),""))) -> 66.7 | AF25: =IF(AF$4="","",CHOOSE(uxb_works!$B$47,IF(INDEX(aData,$B25,AF$4)="","-",TEXT(INDEX(aData,$B25,AF$4),$H25)),IFERROR(INDEX(aScoresRounded,$B25,AF$4),""))) -> 27.5 | AG25: =IF(AG$4="","",CHOOSE(uxb_works!$B$47,IF(INDEX(aData,$B25,AG$4)="","-",TEXT(INDEX(aData,$B25,AG$4),$H25)),IFERROR(INDEX(aScoresRounded,$B25,AG$4),""))) -> 78.4 | AH25: =IF(AH$4="","",CHOOSE(uxb_works!$B$47,IF(INDEX(aData,$B25,AH$4)="","-",TEXT(INDEX(aData,$B25,AH$4),$H25)),IFERROR(INDEX(aScoresRounded,$B25,AH$4),""))) -> 0 | AI25: =IF(AI$4="","",CHOOSE(uxb_works!$B$47,IF(INDEX(aData,$B25,AI$4)="","-",TEXT(INDEX(aData,$B25,AI$4),$H25)),IFERROR(INDEX(aScoresRounded,$B25,AI$4),""))) -> 100 | AJ25: =IF(AJ$4="","",CHOOSE(uxb_works!$B$47,IF(INDEX(aData,$B25,AJ$4)="","-",TEXT(INDEX(aData,$B25,AJ$4),$H25)),IFERROR(INDEX(aScoresRounded,$B25,AJ$4),""))) -> 74.2 | AK25: =IF(AK$4="","",CHOOSE(uxb_works!$B$47,IF(INDEX(aData,$B25,AK$4)="","-",TEXT(INDEX(aData,$B25,AK$4),$H25)),IFERROR(INDEX(aScoresRounded,$B25,AK$4),""))) -> 74.6 | AL25: =IF(AL$4="","",CHOOSE(uxb_works!$B$47,IF(INDEX(aData,$B25,AL$4)="","-",TEXT(INDEX(aData,$B25,AL$4),$H25)),IFERROR(INDEX(aScoresRounded,$B25,AL$4),""))) -> 44.1 | AM25: =IF(AM$4="","",CHOOSE(uxb_works!$B$47,IF(INDEX(aData,$B25,AM$4)="","-",TEXT(INDEX(aData,$B25,AM$4),$H25)),IFERROR(INDEX(aScoresRounded,$B25,AM$4),""))) -> 91.8 | AN25: =IF(AN$4="","",CHOOSE(uxb_works!$B$47,IF(INDEX(aData,$B25,AN$4)="","-",TEXT(INDEX(aData,$B25,AN$4),$H25)),IFERROR(INDEX(aScoresRounded,$B25,AN$4),""))) -> 90 | AO25: =IF(AO$4="","",CHOOSE(uxb_works!$B$47,IF(INDEX(aData,$B25,AO$4)="","-",TEXT(INDEX(aData,$B25,AO$4),$H25)),IFERROR(INDEX(aScoresRounded,$B25,AO$4),""))) -> 78.2 | AP25: =IF(AP$4="","",CHOOSE(uxb_works!$B$47,IF(INDEX(aData,$B25,AP$4)="","-",TEXT(INDEX(aData,$B25,AP$4),$H25)),IFERROR(INDEX(aScoresRounded,$B25,AP$4),""))) -> 70.5 | AQ25: =IF(AQ$4="","",CHOOSE(uxb_works!$B$47,IF(INDEX(aData,$B25,AQ$4)="","-",TEXT(INDEX(aData,$B25,AQ$4),$H25)),IFERROR(INDEX(aScoresRounded,$B25,AQ$4),""))) -> 59.2 | AR25: =IF(AR$4="","",CHOOSE(uxb_works!$B$47,IF(INDEX(aData,$B25,AR$4)="","-",TEXT(INDEX(aData,$B25,AR$4),$H25)),IFERROR(INDEX(aScoresRounded,$B25,AR$4),""))) -> 96.4 | AS25: =IF(AS$4="","",CHOOSE(uxb_works!$B$47,IF(INDEX(aData,$B25,AS$4)="","-",TEXT(INDEX(aData,$B25,AS$4),$H25)),IFERROR(INDEX(aScoresRounded,$B25,AS$4),""))) -> 85.3 | AW25: =CHOOSE($AV$1,0,IF(AW$10=0,0,IF(P25<=$AX$1,1,IF(P25<=#REF!,2,3))),IF(AW$10=0,0,IF(P25<=$AX$1,4,IF(P25<=#REF!,5,6)))) -> 0 | AX25: =CHOOSE($AV$1,0,IF(AX$10=0,0,IF(#REF!<=$AX$1,1,IF(#REF!<=#REF!,2,3))),IF(AX$10=0,0,IF(#REF!<=$AX$1,4,IF(#REF!<=#REF!,5,6)))) -> 0
B26: =tblIndicators!A17 -> 16 | E26: =tblIndicators!B17 -> 0 | F26: =IF(AND(uxb_works!$B$47=2,E26=1),0,iScores!F21) -> 1 | H26: =tblIndicators!AC17 -> #,##0.0 | K26: =IF(L26=0,0,IF(uxb_works!$B$46>=L26,1,0)) -> 1 | L26: =IF(AND(uxb_works!$B$47=2,E26=1),0,tblIndicators!G17) -> 1 | N26: =iScores!N21 -> 2) SERVICES | O26: =CHOOSE(uxb_works!$B$47,iData!I21,iScores!O21) -> 0.28 | P26: =IF(P$4="","",CHOOSE(uxb_works!$B$47,IF(INDEX(aData,$B26,P$4)="","-",TEXT(INDEX(aData,$B26,P$4),$H26)),IFERROR(INDEX(aScoresRounded,$B26,P$4),""))) -> 73.2 | Q26: =IF(Q$4="","",CHOOSE(uxb_works!$B$47,IF(INDEX(aData,$B26,Q$4)="","-",TEXT(INDEX(aData,$B26,Q$4),$H26)),IFERROR(INDEX(aScoresRounded,$B26,Q$4),""))) -> 49.5 | R26: =IF(R$4="","",CHOOSE(uxb_works!$B$47,IF(INDEX(aData,$B26,R$4)="","-",TEXT(INDEX(aData,$B26,R$4),$H26)),IFERROR(INDEX(aScoresRounded,$B26,R$4),""))) -> 52.6 | S26: =IF(S$4="","",CHOOSE(uxb_works!$B$47,IF(INDEX(aData,$B26,S$4)="","-",TEXT(INDEX(aData,$B26,S$4),$H26)),IFERROR(INDEX(aScoresRounded,$B26,S$4),""))) -> 72 | T26: =IF(T$4="","",CHOOSE(uxb_works!$B$47,IF(INDEX(aData,$B26,T$4)="","-",TEXT(INDEX(aData,$B26,T$4),$H26)),IFERROR(INDEX(aScoresRounded,$B26,T$4),""))) -> 68.3 | U26: =IF(U$4="","",CHOOSE(uxb_works!$B$47,IF(INDEX(aData,$B26,U$4)="","-",TEXT(INDEX(aData,$B26,U$4),$H26)),IFERROR(INDEX(aScoresRounded,$B26,U$4),""))) -> 73.8 | V26: =IF(V$4="","",CHOOSE(uxb_works!$B$47,IF(INDEX(aData,$B26,V$4)="","-",TEXT(INDEX(aData,$B26,V$4),$H26)),IFERROR(INDEX(aScoresRounded,$B26,V$4),""))) -> 42.2 | W26: =IF(W$4="","",CHOOSE(uxb_works!$B$47,IF(INDEX(aData,$B26,W$4)="","-",TEXT(INDEX(aData,$B26,W$4),$H26)),IFERROR(INDEX(aScoresRounded,$B26,W$4),""))) -> 79.3 | X26: =IF(X$4="","",CHOOSE(uxb_works!$B$47,IF(INDEX(aData,$B26,X$4)="","-",TEXT(INDEX(aData,$B26,X$4),$H26)),IFERROR(INDEX(aScoresRounded,$B26,X$4),""))) -> 67.5 | Y26: =IF(Y$4="","",CHOOSE(uxb_works!$B$47,IF(INDEX(aData,$B26,Y$4)="","-",TEXT(INDEX(aData,$B26,Y$4),$H26)),IFERROR(INDEX(aScoresRounded,$B26,Y$4),""))) -> 69.8 | Z26: =IF(Z$4="","",CHOOSE(uxb_works!$B$47,IF(INDEX(aData,$B26,Z$4)="","-",TEXT(INDEX(aData,$B26,Z$4),$H26)),IFERROR(INDEX(aScoresRounded,$B26,Z$4),""))) -> 69.9 | AA26: =IF(AA$4="","",CHOOSE(uxb_works!$B$47,IF(INDEX(aData,$B26,AA$4)="","-",TEXT(INDEX(aData,$B26,AA$4),$H26)),IFERROR(INDEX(aScoresRounded,$B26,AA$4),""))) -> 70.2 | AB26: =IF(AB$4="","",CHOOSE(uxb_works!$B$47,IF(INDEX(aData,$B26,AB$4)="","-",TEXT(INDEX(aData,$B26,AB$4),$H26)),IFERROR(INDEX(aScoresRounded,$B26,AB$4),""))) -> 42.5 | AC26: =IF(AC$4="","",CHOOSE(uxb_works!$B$47,IF(INDEX(aData,$B26,AC$4)="","-",TEXT(INDEX(aData,$B26,AC$4),$H26)),IFERROR(INDEX(aScoresRounded,$B26,AC$4),""))) -> 52.6 | AD26: =IF(AD$4="","",CHOOSE(uxb_works!$B$47,IF(INDEX(aData,$B26,AD$4)="","-",TEXT(INDEX(aData,$B26,AD$4),$H26)),IFERROR(INDEX(aScoresRounded,$B26,AD$4),""))) -> 73.5 | AE26: =IF(AE$4="","",CHOOSE(uxb_works!$B$47,IF(INDEX(aData,$B26,AE$4)="","-",TEXT(INDEX(aData,$B26,AE$4),$H26)),IFERROR(INDEX(aScoresRounded,$B26,AE$4),""))) -> 61.5 | AF26: =IF(AF$4="","",CHOOSE(uxb_works!$B$47,IF(INDEX(aData,$B26,AF$4)="","-",TEXT(INDEX(aData,$B26,AF$4),$H26)),IFERROR(INDEX(aScoresRounded,$B26,AF$4),""))) -> 36.5 | AG26: =IF(AG$4="","",CHOOSE(uxb_works!$B$47,IF(INDEX(aData,$B26,AG$4)="","-",TEXT(INDEX(aData,$B26,AG$4),$H26)),IFERROR(INDEX(aScoresRounded,$B26,AG$4),""))) -> 34.4 | AH26: =IF(AH$4="","",CHOOSE(uxb_works!$B$47,IF(INDEX(aData,$B26,AH$4)="","-",TEXT(INDEX(aData,$B26,AH$4),$H26)),IFERROR(INDEX(aScoresRounded,$B26,AH$4),""))) -> 54.3 | AI26: =IF(AI$4="","",CHOOSE(uxb_works!$B$47,IF(INDEX(aData,$B26,AI$4)="","-",TEXT(INDEX(aData,$B26,AI$4),$H26)),IFERROR(INDEX(aScoresRounded,$B26,AI$4),""))) -> 67.2 | AJ26: =IF(AJ$4="","",CHOOSE(uxb_works!$B$47,IF(INDEX(aData,$B26,AJ$4)="","-",TEXT(INDEX(aData,$B26,AJ$4),$H26)),IFERROR(INDEX(aScoresRounded,$B26,AJ$4),""))) -> 72.5 | AK26: =IF(AK$4="","",CHOOSE(uxb_works!$B$47,IF(INDEX(aData,$B26,AK$4)="","-",TEXT(INDEX(aData,$B26,AK$4),$H26)),IFERROR(INDEX(aScoresRounded,$B26,AK$4),""))) -> 65.3 | AL26: =IF(AL$4="","",CHOOSE(uxb_works!$B$47,IF(INDEX(aData,$B26,AL$4)="","-",TEXT(INDEX(aData,$B26,AL$4),$H26)),IFERROR(INDEX(aScoresRounded,$B26,AL$4),""))) -> 41.3 | AM26: =IF(AM$4="","",CHOOSE(uxb_works!$B$47,IF(INDEX(aData,$B26,AM$4)="","-",TEXT(INDEX(aData,$B26,AM$4),$H26)),IFERROR(INDEX(aScoresRounded,$B26,AM$4),""))) -> 62.5 | AN26: =IF(AN$4="","",CHOOSE(uxb_works!$B$47,IF(INDEX(aData,$B26,AN$4)="","-",TEXT(INDEX(aData,$B26,AN$4),$H26)),IFERROR(INDEX(aScoresRounded,$B26,AN$4),""))) -> 72.7 | AO26: =IF(AO$4="","",CHOOSE(uxb_works!$B$47,IF(INDEX(aData,$B26,AO$4)="","-",TEXT(INDEX(aData,$B26,AO$4),$H26)),IFERROR(INDEX(aScoresRounded,$B26,AO$4),""))) -> 70.8 | AP26: =IF(AP$4="","",CHOOSE(uxb_works!$B$47,IF(INDEX(aData,$B26,AP$4)="","-",TEXT(INDEX(aData,$B26,AP$4),$H26)),IFERROR(INDEX(aScoresRounded,$B26,AP$4),""))) -> 52.8 | AQ26: =IF(AQ$4="","",CHOOSE(uxb_works!$B$47,IF(INDEX(aData,$B26,AQ$4)="","-",TEXT(INDEX(aData,$B26,AQ$4),$H26)),IFERROR(INDEX(aScoresRounded,$B26,AQ$4),""))) -> 64 | AR26: =IF(AR$4="","",CHOOSE(uxb_works!$B$47,IF(INDEX(aData,$B26,AR$4)="","-",TEXT(INDEX(aData,$B26,AR$4),$H26)),IFERROR(INDEX(aScoresRounded,$B26,AR$4),""))) -> 64.9 | AS26: =IF(AS$4="","",CHOOSE(uxb_works!$B$47,IF(INDEX(aData,$B26,AS$4)="","-",TEXT(INDEX(aData,$B26,AS$4),$H26)),IFERROR(INDEX(aScoresRounded,$B26,AS$4),""))) -> 65.7 | AW26: =CHOOSE($AV$1,0,IF(AW$10=0,0,IF(P26<=$AX$1,1,IF(P26<=#REF!,2,3))),IF(AW$10=0,0,IF(P26<=$AX$1,4,IF(P26<=#REF!,5,6)))) -> 0 | AX26: =CHOOSE($AV$1,0,IF(AX$10=0,0,IF(#REF!<=$AX$1,1,IF(#REF!<=#REF!,2,3))),IF(AX$10=0,0,IF(#REF!<=$AX$1,4,IF(#REF!<=#REF!,5,6)))) -> 0
B27: =tblIndicators!A18 -> 17 | E27: =tblIndicators!B18 -> 0 | F27: =IF(AND(uxb_works!$B$47=2,E27=1),0,iScores!F22) -> 2 | H27: =tblIndicators!AC18 -> #,##0.0 | K27: =IF(L27=0,0,IF(uxb_works!$B$46>=L27,1,0)) -> 1 | L27: =IF(AND(uxb_works!$B$47=2,E27=1),0,tblIndicators!G18) -> 2 | N27: =iScores!N22 -> 2.1) E-gov services for residents & businesses | O27: =CHOOSE(uxb_works!$B$47,iData!I22,iScores!O22) -> 0.1923076923 | P27: =IF(P$4="","",CHOOSE(uxb_works!$B$47,IF(INDEX(aData,$B27,P$4)="","-",TEXT(INDEX(aData,$B27,P$4),$H27)),IFERROR(INDEX(aScoresRounded,$B27,P$4),""))) -> 48.6 | Q27: =IF(Q$4="","",CHOOSE(uxb_works!$B$47,IF(INDEX(aData,$B27,Q$4)="","-",TEXT(INDEX(aData,$B27,Q$4),$H27)),IFERROR(INDEX(aScoresRounded,$B27,Q$4),""))) -> 65.4 | R27: =IF(R$4="","",CHOOSE(uxb_works!$B$47,IF(INDEX(aData,$B27,R$4)="","-",TEXT(INDEX(aData,$B27,R$4),$H27)),IFERROR(INDEX(aScoresRounded,$B27,R$4),""))) -> 60.4 | S27: =IF(S$4="","",CHOOSE(uxb_works!$B$47,IF(INDEX(aData,$B27,S$4)="","-",TEXT(INDEX(aData,$B27,S$4),$H27)),IFERROR(INDEX(aScoresRounded,$B27,S$4),""))) -> 63.9 | T27: =IF(T$4="","",CHOOSE(uxb_works!$B$47,IF(INDEX(aData,$B27,T$4)="","-",TEXT(INDEX(aData,$B27,T$4),$H27)),IFERROR(INDEX(aScoresRounded,$B27,T$4),""))) -> 64.6 | U27: =IF(U$4="","",CHOOSE(uxb_works!$B$47,IF(INDEX(aData,$B27,U$4)="","-",TEXT(INDEX(aData,$B27,U$4),$H27)),IFERROR(INDEX(aScoresRounded,$B27,U$4),""))) -> 90.7 | V27: =IF(V$4="","",CHOOSE(uxb_works!$B$47,IF(INDEX(aData,$B27,V$4)="","-",TEXT(INDEX(aData,$B27,V$4),$H27)),IFERROR(INDEX(aScoresRounded,$B27,V$4),""))) -> 46.4 | W27: =IF(W$4="","",CHOOSE(uxb_works!$B$47,IF(INDEX(aData,$B27,W$4)="","-",TEXT(INDEX(aData,$B27,W$4),$H27)),IFERROR(INDEX(aScoresRounded,$B27,W$4),""))) -> 66.8 | X27: =IF(X$4="","",CHOOSE(uxb_works!$B$47,IF(INDEX(aData,$B27,X$4)="","-",TEXT(INDEX(aData,$B27,X$4),$H27)),IFERROR(INDEX(aScoresRounded,$B27,X$4),""))) -> 66.1 | Y27: =IF(Y$4="","",CHOOSE(uxb_works!$B$47,IF(INDEX(aData,$B27,Y$4)="","-",TEXT(INDEX(aData,$B27,Y$4),$H27)),IFERROR(INDEX(aScoresRounded,$B27,Y$4),""))) -> 64.3 | Z27: =IF(Z$4="","",CHOOSE(uxb_works!$B$47,IF(INDEX(aData,$B27,Z$4)="","-",TEXT(INDEX(aData,$B27,Z$4),$H27)),IFERROR(INDEX(aScoresRounded,$B27,Z$4),""))) -> 90.7 | AA27: =IF(AA$4="","",CHOOSE(uxb_works!$B$47,IF(INDEX(aData,$B27,AA$4)="","-",TEXT(INDEX(aData,$B27,AA$4),$H27)),IFERROR(INDEX(aScoresRounded,$B27,AA$4),""))) -> 65.7 | AB27: =IF(AB$4="","",CHOOSE(uxb_works!$B$47,IF(INDEX(aData,$B27,AB$4)="","-",TEXT(INDEX(aData,$B27,AB$4),$H27)),IFERROR(INDEX(aScoresRounded,$B27,AB$4),""))) -> 56.4 | AC27: =IF(AC$4="","",CHOOSE(uxb_works!$B$47,IF(INDEX(aData,$B27,AC$4)="","-",TEXT(INDEX(aData,$B27,AC$4),$H27)),IFERROR(INDEX(aScoresRounded,$B27,AC$4),""))) -> 62.5 | AD27: =IF(AD$4="","",CHOOSE(uxb_works!$B$47,IF(INDEX(aData,$B27,AD$4)="","-",TEXT(INDEX(aData,$B27,AD$4),$H27)),IFERROR(INDEX(aScoresRounded,$B27,AD$4),""))) -> 66.4 | AE27: =IF(AE$4="","",CHOOSE(uxb_works!$B$47,IF(INDEX(aData,$B27,AE$4)="","-",TEXT(INDEX(aData,$B27,AE$4),$H27)),IFERROR(INDEX(aScoresRounded,$B27,AE$4),""))) -> 63.9 | AF27: =IF(AF$4="","",CHOOSE(uxb_works!$B$47,IF(INDEX(aData,$B27,AF$4)="","-",TEXT(INDEX(aData,$B27,AF$4),$H27)),IFERROR(INDEX(aScoresRounded,$B27,AF$4),""))) -> 58.2 | AG27: =IF(AG$4="","",CHOOSE(uxb_works!$B$47,IF(INDEX(aData,$B27,AG$4)="","-",TEXT(INDEX(aData,$B27,AG$4),$H27)),IFERROR(INDEX(aScoresRounded,$B27,AG$4),""))) -> 61.4 | AH27: =IF(AH$4="","",CHOOSE(uxb_works!$B$47,IF(INDEX(aData,$B27,AH$4)="","-",TEXT(INDEX(aData,$B27,AH$4),$H27)),IFERROR(INDEX(aScoresRounded,$B27,AH$4),""))) -> 94.6 | AI27: =IF(AI$4="","",CHOOSE(uxb_works!$B$47,IF(INDEX(aData,$B27,AI$4)="","-",TEXT(INDEX(aData,$B27,AI$4),$H27)),IFERROR(INDEX(aScoresRounded,$B27,AI$4),""))) -> 66.1 | AJ27: =IF(AJ$4="","",CHOOSE(uxb_works!$B$47,IF(INDEX(aData,$B27,AJ$4)="","-",TEXT(INDEX(aData,$B27,AJ$4),$H27)),IFERROR(INDEX(aScoresRounded,$B27,AJ$4),""))) -> 63.6 | AK27: =IF(AK$4="","",CHOOSE(uxb_works!$B$47,IF(INDEX(aData,$B27,AK$4)="","-",TEXT(INDEX(aData,$B27,AK$4),$H27)),IFERROR(INDEX(aScoresRounded,$B27,AK$4),""))) -> 61.8 | AL27: =IF(AL$4="","",CHOOSE(uxb_works!$B$47,IF(INDEX(aData,$B27,AL$4)="","-",TEXT(INDEX(aData,$B27,AL$4),$H27)),IFERROR(INDEX(aScoresRounded,$B27,AL$4),""))) -> 95.4 | AM27: =IF(AM$4="","",CHOOSE(uxb_works!$B$47,IF(INDEX(aData,$B27,AM$4)="","-",TEXT(INDEX(aData,$B27,AM$4),$H27)),IFERROR(INDEX(aScoresRounded,$B27,AM$4),""))) -> 51.8 | AN27: =IF(AN$4="","",CHOOSE(uxb_works!$B$47,IF(INDEX(aData,$B27,AN$4)="","-",TEXT(INDEX(aData,$B27,AN$4),$H27)),IFERROR(INDEX(aScoresRounded,$B27,AN$4),""))) -> 98.6 | AO27: =IF(AO$4="","",CHOOSE(uxb_works!$B$47,IF(INDEX(aData,$B27,AO$4)="","-",TEXT(INDEX(aData,$B27,AO$4),$H27)),IFERROR(INDEX(aScoresRounded,$B27,AO$4),""))) -> 66.1 | AP27: =IF(AP$4="","",CHOOSE(uxb_works!$B$47,IF(INDEX(aData,$B27,AP$4)="","-",TEXT(INDEX(aData,$B27,AP$4),$H27)),IFERROR(INDEX(aScoresRounded,$B27,AP$4),""))) -> 64.6 | AQ27: =IF(AQ$4="","",CHOOSE(uxb_works!$B$47,IF(INDEX(aData,$B27,AQ$4)="","-",TEXT(INDEX(aData,$B27,AQ$4),$H27)),IFERROR(INDEX(aScoresRounded,$B27,AQ$4),""))) -> 94.3 | AR27: =IF(AR$4="","",CHOOSE(uxb_works!$B$47,IF(INDEX(aData,$B27,AR$4)="","-",TEXT(INDEX(aData,$B27,AR$4),$H27)),IFERROR(INDEX(aScoresRounded,$B27,AR$4),""))) -> 66.1 | AS27: =IF(AS$4="","",CHOOSE(uxb_works!$B$47,IF(INDEX(aData,$B27,AS$4)="","-",TEXT(INDEX(aData,$B27,AS$4),$H27)),IFERROR(INDEX(aScoresRounded,$B27,AS$4),""))) -> 61.8 | AW27: =CHOOSE($AV$1,0,IF(AW$10=0,0,IF(P27<=$AX$1,1,IF(P27<=#REF!,2,3))),IF(AW$10=0,0,IF(P27<=$AX$1,4,IF(P27<=#REF!,5,6)))) -> 0 | AX27: =CHOOSE($AV$1,0,IF(AX$10=0,0,IF(#REF!<=$AX$1,1,IF(#REF!<=#REF!,2,3))),IF(AX$10=0,0,IF(#REF!<=$AX$1,4,IF(#REF!<=#REF!,5,6)))) -> 0
B28: =tblIndicators!A19 -> 18 | E28: =tblIndicators!B19 -> 0 | F28: =IF(AND(uxb_works!$B$47=2,E28=1),0,iScores!F23) -> 3 | H28: =tblIndicators!AC19 -> #,##0 | K28: =IF(L28=0,0,IF(uxb_works!$B$46>=L28,1,0)) -> 1 | L28: =IF(AND(uxb_works!$B$47=2,E28=1),0,tblIndicators!G19) -> 3 | N28: =iScores!N23 -> 2.1.1) Mobile digital national ID | O28: =CHOOSE(uxb_works!$B$47,iData!I23,iScores!O23) -> 0.3214285714 | P28: =IF(P$4="","",CHOOSE(uxb_works!$B$47,IF(INDEX(aData,$B28,P$4)="","-",TEXT(INDEX(aData,$B28,P$4),$H28)),IFERROR(INDEX(aScoresRounded,$B28,P$4),""))) -> 0 | Q28: =IF(Q$4="","",CHOOSE(uxb_works!$B$47,IF(INDEX(aData,$B28,Q$4)="","-",TEXT(INDEX(aData,$B28,Q$4),$H28)),IFERROR(INDEX(aScoresRounded,$B28,Q$4),""))) -> 0 | R28: =IF(R$4="","",CHOOSE(uxb_works!$B$47,IF(INDEX(aData,$B28,R$4)="","-",TEXT(INDEX(aData,$B28,R$4),$H28)),IFERROR(INDEX(aScoresRounded,$B28,R$4),""))) -> 0 | S28: =IF(S$4="","",CHOOSE(uxb_works!$B$47,IF(INDEX(aData,$B28,S$4)="","-",TEXT(INDEX(aData,$B28,S$4),$H28)),IFERROR(INDEX(aScoresRounded,$B28,S$4),""))) -> 0 | T28: =IF(T$4="","",CHOOSE(uxb_works!$B$47,IF(INDEX(aData,$B28,T$4)="","-",TEXT(INDEX(aData,$B28,T$4),$H28)),IFERROR(INDEX(aScoresRounded,$B28,T$4),""))) -> 0 | U28: =IF(U$4="","",CHOOSE(uxb_works!$B$47,IF(INDEX(aData,$B28,U$4)="","-",TEXT(INDEX(aData,$B28,U$4),$H28)),IFERROR(INDEX(aScoresRounded,$B28,U$4),""))) -> 100 | V28: =IF(V$4="","",CHOOSE(uxb_works!$B$47,IF(INDEX(aData,$B28,V$4)="","-",TEXT(INDEX(aData,$B28,V$4),$H28)),IFERROR(INDEX(aScoresRounded,$B28,V$4),""))) -> 0 | W28: =IF(W$4="","",CHOOSE(uxb_works!$B$47,IF(INDEX(aData,$B28,W$4)="","-",TEXT(INDEX(aData,$B28,W$4),$H28)),IFERROR(INDEX(aScoresRounded,$B28,W$4),""))) -> 0 | X28: =IF(X$4="","",CHOOSE(uxb_works!$B$47,IF(INDEX(aData,$B28,X$4)="","-",TEXT(INDEX(aData,$B28,X$4),$H28)),IFERROR(INDEX(aScoresRounded,$B28,X$4),""))) -> 0 | Y28: =IF(Y$4="","",CHOOSE(uxb_works!$B$47,IF(INDEX(aData,$B28,Y$4)="","-",TEXT(INDEX(aData,$B28,Y$4),$H28)),IFERROR(INDEX(aScoresRounded,$B28,Y$4),""))) -> 0 | Z28: =IF(Z$4="","",CHOOSE(uxb_works!$B$47,IF(INDEX(aData,$B28,Z$4)="","-",TEXT(INDEX(aData,$B28,Z$4),$H28)),IFERROR(INDEX(aScoresRounded,$B28,Z$4),""))) -> 100 | AA28: =IF(AA$4="","",CHOOSE(uxb_works!$B$47,IF(INDEX(aData,$B28,AA$4)="","-",TEXT(INDEX(aData,$B28,AA$4),$H28)),IFERROR(INDEX(aScoresRounded,$B28,AA$4),""))) -> 0 | AB28: =IF(AB$4="","",CHOOSE(uxb_works!$B$47,IF(INDEX(aData,$B28,AB$4)="","-",TEXT(INDEX(aData,$B28,AB$4),$H28)),IFERROR(INDEX(aScoresRounded,$B28,AB$4),""))) -> 0 | AC28: =IF(AC$4="","",CHOOSE(uxb_works!$B$47,IF(INDEX(aData,$B28,AC$4)="","-",TEXT(INDEX(aData,$B28,AC$4),$H28)),IFERROR(INDEX(aScoresRounded,$B28,AC$4),""))) -> 0 | AD28: =IF(AD$4="","",CHOOSE(uxb_works!$B$47,IF(INDEX(aData,$B28,AD$4)="","-",TEXT(INDEX(aData,$B28,AD$4),$H28)),IFERROR(INDEX(aScoresRounded,$B28,AD$4),""))) -> 0 | AE28: =IF(AE$4="","",CHOOSE(uxb_works!$B$47,IF(INDEX(aData,$B28,AE$4)="","-",TEXT(INDEX(aData,$B28,AE$4),$H28)),IFERROR(INDEX(aScoresRounded,$B28,AE$4),""))) -> 0 | AF28: =IF(AF$4="","",CHOOSE(uxb_works!$B$47,IF(INDEX(aData,$B28,AF$4)="","-",TEXT(INDEX(aData,$B28,AF$4),$H28)),IFERROR(INDEX(aScoresRounded,$B28,AF$4),""))) -> 0 | AG28: =IF(AG$4="","",CHOOSE(uxb_works!$B$47,IF(INDEX(aData,$B28,AG$4)="","-",TEXT(INDEX(aData,$B28,AG$4),$H28)),IFERROR(INDEX(aScoresRounded,$B28,AG$4),""))) -> 0 | AH28: =IF(AH$4="","",CHOOSE(uxb_works!$B$47,IF(INDEX(aData,$B28,AH$4)="","-",TEXT(INDEX(aData,$B28,AH$4),$H28)),IFERROR(INDEX(aScoresRounded,$B28,AH$4),""))) -> 100 | AI28: =IF(AI$4="","",CHOOSE(uxb_works!$B$47,IF(INDEX(aData,$B28,AI$4)="","-",TEXT(INDEX(aData,$B28,AI$4),$H28)),IFERROR(INDEX(aScoresRounded,$B28,AI$4),""))) -> 0 | AJ28: =IF(AJ$4="","",CHOOSE(uxb_works!$B$47,IF(INDEX(aData,$B28,AJ$4)="","-",TEXT(INDEX(aData,$B28,AJ$4),$H28)),IFERROR(INDEX(aScoresRounded,$B28,AJ$4),""))) -> 0 | AK28: =IF(AK$4="","",CHOOSE(uxb_works!$B$47,IF(INDEX(aData,$B28,AK$4)="","-",TEXT(INDEX(aData,$B28,AK$4),$H28)),IFERROR(INDEX(aScoresRounded,$B28,AK$4),""))) -> 0 | AL28: =IF(AL$4="","",CHOOSE(uxb_works!$B$47,IF(INDEX(aData,$B28,AL$4)="","-",TEXT(INDEX(aData,$B28,AL$4),$H28)),IFERROR(INDEX(aScoresRounded,$B28,AL$4),""))) -> 100 | AM28: =IF(AM$4="","",CHOOSE(uxb_works!$B$47,IF(INDEX(aData,$B28,AM$4)="","-",TEXT(INDEX(aData,$B28,AM$4),$H28)),IFERROR(INDEX(aScoresRounded,$B28,AM$4),""))) -> 0 | AN28: =IF(AN$4="","",CHOOSE(uxb_works!$B$47,IF(INDEX(aData,$B28,AN$4)="","-",TEXT(INDEX(aData,$B28,AN$4),$H28)),IFERROR(INDEX(aScoresRounded,$B28,AN$4),""))) -> 100 | AO28: =IF(AO$4="","",CHOOSE(uxb_works!$B$47,IF(INDEX(aData,$B28,AO$4)="","-",TEXT(INDEX(aData,$B28,AO$4),$H28)),IFERROR(INDEX(aScoresRounded,$B28,AO$4),""))) -> 0 | AP28: =IF(AP$4="","",CHOOSE(uxb_works!$B$47,IF(INDEX(aData,$B28,AP$4)="","-",TEXT(INDEX(aData,$B28,AP$4),$H28)),IFERROR(INDEX(aScoresRounded,$B28,AP$4),""))) -> 0 | AQ28: =IF(AQ$4="","",CHOOSE(uxb_works!$B$47,IF(INDEX(aData,$B28,AQ$4)="","-",TEXT(INDEX(aData,$B28,AQ$4),$H28)),IFERROR(INDEX(aScoresRounded,$B28,AQ$4),""))) -> 100 | AR28: =IF(AR$4="","",CHOOSE(uxb_works!$B$47,IF(INDEX(aData,$B28,AR$4)="","-",TEXT(INDEX(aData,$B28,AR$4),$H28)),IFERROR(INDEX(aScoresRounded,$B28,AR$4),""))) -> 0 | AS28: =IF(AS$4="","",CHOOSE(uxb_works!$B$47,IF(INDEX(aData,$B28,AS$4)="","-",TEXT(INDEX(aData,$B28,AS$4),$H28)),IFERROR(INDEX(aScoresRounded,$B28,AS$4),""))) -> 0 | AW28: =CHOOSE($AV$1,0,IF(AW$10=0,0,IF(P28<=$AX$1,1,IF(P28<=#REF!,2,3))),IF(AW$10=0,0,IF(P28<=$AX$1,4,IF(P28<=#REF!,5,6)))) -> 0 | AX28: =CHOOSE($AV$1,0,IF(AX$10=0,0,IF(#REF!<=$AX$1,1,IF(#REF!<=#REF!,2,3))),IF(AX$10=0,0,IF(#REF!<=$AX$1,4,IF(#REF!<=#REF!,5,6)))) -> 0
B29: =tblIndicators!A20 -> 19 | E29: =tblIndicators!B20 -> 0 | F29: =IF(AND(uxb_works!$B$47=2,E29=1),0,iScores!F24) -> 3 | H29: =tblIndicators!AC20 -> #,##0.000 | K29: =IF(L29=0,0,IF(uxb_works!$B$46>=L29,1,0)) -> 1 | L29: =IF(AND(uxb_works!$B$47=2,E29=1),0,tblIndicators!G20) -> 3 | N29: =iScores!N24 -> 2.1.2) E-gov service portal for residents | O29: =CHOOSE(uxb_works!$B$47,iData!I24,iScores!O24) -> 0.3571428571 | P29: =IF(P$4="","",CHOOSE(uxb_works!$B$47,IF(INDEX(aData,$B29,P$4)="","-",TEXT(INDEX(aData,$B29,P$4),$H29)),IFERROR(INDEX(aScoresRounded,$B29,P$4),""))) -> 91 | Q29: =IF(Q$4="","",CHOOSE(uxb_works!$B$47,IF(INDEX(aData,$B29,Q$4)="","-",TEXT(INDEX(aData,$B29,Q$4),$H29)),IFERROR(INDEX(aScoresRounded,$B29,Q$4),""))) -> 93 | R29: =IF(R$4="","",CHOOSE(uxb_works!$B$47,IF(INDEX(aData,$B29,R$4)="","-",TEXT(INDEX(aData,$B29,R$4),$H29)),IFERROR(INDEX(aScoresRounded,$B29,R$4),""))) -> 79 | S29: =IF(S$4="","",CHOOSE(uxb_works!$B$47,IF(INDEX(aData,$B29,S$4)="","-",TEXT(INDEX(aData,$B29,S$4),$H29)),IFERROR(INDEX(aScoresRounded,$B29,S$4),""))) -> 89 | T29: =IF(T$4="","",CHOOSE(uxb_works!$B$47,IF(INDEX(aData,$B29,T$4)="","-",TEXT(INDEX(aData,$B29,T$4),$H29)),IFERROR(INDEX(aScoresRounded,$B29,T$4),""))) -> 91 | U29: =IF(U$4="","",CHOOSE(uxb_works!$B$47,IF(INDEX(aData,$B29,U$4)="","-",TEXT(INDEX(aData,$B29,U$4),$H29)),IFERROR(INDEX(aScoresRounded,$B29,U$4),""))) -> 74 | V29: =IF(V$4="","",CHOOSE(uxb_works!$B$47,IF(INDEX(aData,$B29,V$4)="","-",TEXT(INDEX(aData,$B29,V$4),$H29)),IFERROR(INDEX(aScoresRounded,$B29,V$4),""))) -> 85 | W29: =IF(W$4="","",CHOOSE(uxb_works!$B$47,IF(INDEX(aData,$B29,W$4)="","-",TEXT(INDEX(aData,$B29,W$4),$H29)),IFERROR(INDEX(aScoresRounded,$B29,W$4),""))) -> 97 | X29: =IF(X$4="","",CHOOSE(uxb_works!$B$47,IF(INDEX(aData,$B29,X$4)="","-",TEXT(INDEX(aData,$B29,X$4),$H29)),IFERROR(INDEX(aScoresRounded,$B29,X$4),""))) -> 95 | Y29: =IF(Y$4="","",CHOOSE(uxb_works!$B$47,IF(INDEX(aData,$B29,Y$4)="","-",TEXT(INDEX(aData,$B29,Y$4),$H29)),IFERROR(INDEX(aScoresRounded,$B29,Y$4),""))) -> 90 | Z29: =IF(Z$4="","",CHOOSE(uxb_works!$B$47,IF(INDEX(aData,$B29,Z$4)="","-",TEXT(INDEX(aData,$B29,Z$4),$H29)),IFERROR(INDEX(aScoresRounded,$B29,Z$4),""))) -> 74 | AA29: =IF(AA$4="","",CHOOSE(uxb_works!$B$47,IF(INDEX(aData,$B29,AA$4)="","-",TEXT(INDEX(aData,$B29,AA$4),$H29)),IFERROR(INDEX(aScoresRounded,$B29,AA$4),""))) -> 94 | AB29: =IF(AB$4="","",CHOOSE(uxb_works!$B$47,IF(INDEX(aData,$B29,AB$4)="","-",TEXT(INDEX(aData,$B29,AB$4),$H29)),IFERROR(INDEX(aScoresRounded,$B29,AB$4),""))) -> 68 | AC29: =IF(AC$4="","",CHOOSE(uxb_works!$B$47,IF(INDEX(aData,$B29,AC$4)="","-",TEXT(INDEX(aData,$B29,AC$4),$H29)),IFERROR(INDEX(aScoresRounded,$B29,AC$4),""))) -> 85 | AD29: =IF(AD$4="","",CHOOSE(uxb_works!$B$47,IF(INDEX(aData,$B29,AD$4)="","-",TEXT(INDEX(aData,$B29,AD$4),$H29)),IFERROR(INDEX(aScoresRounded,$B29,AD$4),""))) -> 96 | AE29: =IF(AE$4="","",CHOOSE(uxb_works!$B$47,IF(INDEX(aData,$B29,AE$4)="","-",TEXT(INDEX(aData,$B29,AE$4),$H29)),IFERROR(INDEX(aScoresRounded,$B29,AE$4),""))) -> 89 | AF29: =IF(AF$4="","",CHOOSE(uxb_works!$B$47,IF(INDEX(aData,$B29,AF$4)="","-",TEXT(INDEX(aData,$B29,AF$4),$H29)),IFERROR(INDEX(aScoresRounded,$B29,AF$4),""))) -> 73 | AG29: =IF(AG$4="","",CHOOSE(uxb_works!$B$47,IF(INDEX(aData,$B29,AG$4)="","-",TEXT(INDEX(aData,$B29,AG$4),$H29)),IFERROR(INDEX(aScoresRounded,$B29,AG$4),""))) -> 82 | AH29: =IF(AH$4="","",CHOOSE(uxb_works!$B$47,IF(INDEX(aData,$B29,AH$4)="","-",TEXT(INDEX(aData,$B29,AH$4),$H29)),IFERROR(INDEX(aScoresRounded,$B29,AH$4),""))) -> 85 | AI29: =IF(AI$4="","",CHOOSE(uxb_works!$B$47,IF(INDEX(aData,$B29,AI$4)="","-",TEXT(INDEX(aData,$B29,AI$4),$H29)),IFERROR(INDEX(aScoresRounded,$B29,AI$4),""))) -> 95 | AJ29: =IF(AJ$4="","",CHOOSE(uxb_works!$B$47,IF(INDEX(aData,$B29,AJ$4)="","-",TEXT(INDEX(aData,$B29,AJ$4),$H29)),IFERROR(INDEX(aScoresRounded,$B29,AJ$4),""))) -> 88 | AK29: =IF(AK$4="","",CHOOSE(uxb_works!$B$47,IF(INDEX(aData,$B29,AK$4)="","-",TEXT(INDEX(aData,$B29,AK$4),$H29)),IFERROR(INDEX(aScoresRounded,$B29,AK$4),""))) -> 83 | AL29: =IF(AL$4="","",CHOOSE(uxb_works!$B$47,IF(INDEX(aData,$B29,AL$4)="","-",TEXT(INDEX(aData,$B29,AL$4),$H29)),IFERROR(INDEX(aScoresRounded,$B29,AL$4),""))) -> 87 | AM29: =IF(AM$4="","",CHOOSE(uxb_works!$B$47,IF(INDEX(aData,$B29,AM$4)="","-",TEXT(INDEX(aData,$B29,AM$4),$H29)),IFERROR(INDEX(aScoresRounded,$B29,AM$4),""))) -> 100 | AN29: =IF(AN$4="","",CHOOSE(uxb_works!$B$47,IF(INDEX(aData,$B29,AN$4)="","-",TEXT(INDEX(aData,$B29,AN$4),$H29)),IFERROR(INDEX(aScoresRounded,$B29,AN$4),""))) -> 96 | AO29: =IF(AO$4="","",CHOOSE(uxb_works!$B$47,IF(INDEX(aData,$B29,AO$4)="","-",TEXT(INDEX(aData,$B29,AO$4),$H29)),IFERROR(INDEX(aScoresRounded,$B29,AO$4),""))) -> 95 | AP29: =IF(AP$4="","",CHOOSE(uxb_works!$B$47,IF(INDEX(aData,$B29,AP$4)="","-",TEXT(INDEX(aData,$B29,AP$4),$H29)),IFERROR(INDEX(aScoresRounded,$B29,AP$4),""))) -> 91 | AQ29: =IF(AQ$4="","",CHOOSE(uxb_works!$B$47,IF(INDEX(aData,$B29,AQ$4)="","-",TEXT(INDEX(aData,$B29,AQ$4),$H29)),IFERROR(INDEX(aScoresRounded,$B29,AQ$4),""))) -> 84 | AR29: =IF(AR$4="","",CHOOSE(uxb_works!$B$47,IF(INDEX(aData,$B29,AR$4)="","-",TEXT(INDEX(aData,$B29,AR$4),$H29)),IFERROR(INDEX(aScoresRounded,$B29,AR$4),""))) -> 95 | AS29: =IF(AS$4="","",CHOOSE(uxb_works!$B$47,IF(INDEX(aData,$B29,AS$4)="","-",TEXT(INDEX(aData,$B29,AS$4),$H29)),IFERROR(INDEX(aScoresRounded,$B29,AS$4),""))) -> 83 | AW29: =CHOOSE($AV$1,0,IF(AW$10=0,0,IF(P29<=$AX$1,1,IF(P29<=#REF!,2,3))),IF(AW$10=0,0,IF(P29<=$AX$1,4,IF(P29<=#REF!,5,6)))) -> 0 | AX29: =CHOOSE($AV$1,0,IF(AX$10=0,0,IF(#REF!<=$AX$1,1,IF(#REF!<=#REF!,2,3))),IF(AX$10=0,0,IF(#REF!<=$AX$1,4,IF(#REF!<=#REF!,5,6)))) -> 0
B30: =tblIndicators!A21 -> 20 | E30: =tblIndicators!B21 -> 0 | F30: =IF(AND(uxb_works!$B$47=2,E30=1),0,iScores!F25) -> 3 | H30: =tblIndicators!AC21 -> #,##0 | K30: =IF(L30=0,0,IF(uxb_works!$B$46>=L30,1,0)) -> 1 | L30: =IF(AND(uxb_works!$B$47=2,E30=1),0,tblIndicators!G21) -> 3 | N30: =iScores!N25 -> 2.1.3) E-gov service portal for businesses | O30: =CHOOSE(uxb_works!$B$47,iData!I25,iScores!O25) -> 0.3214285714 | P30: =IF(P$4="","",CHOOSE(uxb_works!$B$47,IF(INDEX(aData,$B30,P$4)="","-",TEXT(INDEX(aData,$B30,P$4),$H30)),IFERROR(INDEX(aScoresRounded,$B30,P$4),""))) -> 50 | Q30: =IF(Q$4="","",CHOOSE(uxb_works!$B$47,IF(INDEX(aData,$B30,Q$4)="","-",TEXT(INDEX(aData,$B30,Q$4),$H30)),IFERROR(INDEX(aScoresRounded,$B30,Q$4),""))) -> 100 | R30: =IF(R$4="","",CHOOSE(uxb_works!$B$47,IF(INDEX(aData,$B30,R$4)="","-",TEXT(INDEX(aData,$B30,R$4),$H30)),IFERROR(INDEX(aScoresRounded,$B30,R$4),""))) -> 100 | S30: =IF(S$4="","",CHOOSE(uxb_works!$B$47,IF(INDEX(aData,$B30,S$4)="","-",TEXT(INDEX(aData,$B30,S$4),$H30)),IFERROR(INDEX(aScoresRounded,$B30,S$4),""))) -> 100 | T30: =IF(T$4="","",CHOOSE(uxb_works!$B$47,IF(INDEX(aData,$B30,T$4)="","-",TEXT(INDEX(aData,$B30,T$4),$H30)),IFERROR(INDEX(aScoresRounded,$B30,T$4),""))) -> 100 | U30: =IF(U$4="","",CHOOSE(uxb_works!$B$47,IF(INDEX(aData,$B30,U$4)="","-",TEXT(INDEX(aData,$B30,U$4),$H30)),IFERROR(INDEX(aScoresRounded,$B30,U$4),""))) -> 100 | V30: =IF(V$4="","",CHOOSE(uxb_works!$B$47,IF(INDEX(aData,$B30,V$4)="","-",TEXT(INDEX(aData,$B30,V$4),$H30)),IFERROR(INDEX(aScoresRounded,$B30,V$4),""))) -> 50 | W30: =IF(W$4="","",CHOOSE(uxb_works!$B$47,IF(INDEX(aData,$B30,W$4)="","-",TEXT(INDEX(aData,$B30,W$4),$H30)),IFERROR(INDEX(aScoresRounded,$B30,W$4),""))) -> 100 | X30: =IF(X$4="","",CHOOSE(uxb_works!$B$47,IF(INDEX(aData,$B30,X$4)="","-",TEXT(INDEX(aData,$B30,X$4),$H30)),IFERROR(INDEX(aScoresRounded,$B30,X$4),""))) -> 100 | Y30: =IF(Y$4="","",CHOOSE(uxb_works!$B$47,IF(INDEX(aData,$B30,Y$4)="","-",TEXT(INDEX(aData,$B30,Y$4),$H30)),IFERROR(INDEX(aScoresRounded,$B30,Y$4),""))) -> 100 | Z30: =IF(Z$4="","",CHOOSE(uxb_works!$B$47,IF(INDEX(aData,$B30,Z$4)="","-",TEXT(INDEX(aData,$B30,Z$4),$H30)),IFERROR(INDEX(aScoresRounded,$B30,Z$4),""))) -> 100 | AA30: =IF(AA$4="","",CHOOSE(uxb_works!$B$47,IF(INDEX(aData,$B30,AA$4)="","-",TEXT(INDEX(aData,$B30,AA$4),$H30)),IFERROR(INDEX(aScoresRounded,$B30,AA$4),""))) -> 100 | AB30: =IF(AB$4="","",CHOOSE(uxb_works!$B$47,IF(INDEX(aData,$B30,AB$4)="","-",TEXT(INDEX(aData,$B30,AB$4),$H30)),IFERROR(INDEX(aScoresRounded,$B30,AB$4),""))) -> 100 | AC30: =IF(AC$4="","",CHOOSE(uxb_works!$B$47,IF(INDEX(aData,$B30,AC$4)="","-",TEXT(INDEX(aData,$B30,AC$4),$H30)),IFERROR(INDEX(aScoresRounded,$B30,AC$4),""))) -> 100 | AD30: =IF(AD$4="","",CHOOSE(uxb_works!$B$47,IF(INDEX(aData,$B30,AD$4)="","-",TEXT(INDEX(aData,$B30,AD$4),$H30)),IFERROR(INDEX(aScoresRounded,$B30,AD$4),""))) -> 100 | AE30: =IF(AE$4="","",CHOOSE(uxb_works!$B$47,IF(INDEX(aData,$B30,AE$4)="","-",TEXT(INDEX(aData,$B30,AE$4),$H30)),IFERROR(INDEX(aScoresRounded,$B30,AE$4),""))) -> 100 | AF30: =IF(AF$4="","",CHOOSE(uxb_works!$B$47,IF(INDEX(aData,$B30,AF$4)="","-",TEXT(INDEX(aData,$B30,AF$4),$H30)),IFERROR(INDEX(aScoresRounded,$B30,AF$4),""))) -> 100 | AG30: =IF(AG$4="","",CHOOSE(uxb_works!$B$47,IF(INDEX(aData,$B30,AG$4)="","-",TEXT(INDEX(aData,$B30,AG$4),$H30)),IFERROR(INDEX(aScoresRounded,$B30,AG$4),""))) -> 100 | AH30: =IF(AH$4="","",CHOOSE(uxb_works!$B$47,IF(INDEX(aData,$B30,AH$4)="","-",TEXT(INDEX(aData,$B30,AH$4),$H30)),IFERROR(INDEX(aScoresRounded,$B30,AH$4),""))) -> 100 | AI30: =IF(AI$4="","",CHOOSE(uxb_works!$B$47,IF(INDEX(aData,$B30,AI$4)="","-",TEXT(INDEX(aData,$B30,AI$4),$H30)),IFERROR(INDEX(aScoresRounded,$B30,AI$4),""))) -> 100 | AJ30: =IF(AJ$4="","",CHOOSE(uxb_works!$B$47,IF(INDEX(aData,$B30,AJ$4)="","-",TEXT(INDEX(aData,$B30,AJ$4),$H30)),IFERROR(INDEX(aScoresRounded,$B30,AJ$4),""))) -> 100 | AK30: =IF(AK$4="","",CHOOSE(uxb_works!$B$47,IF(INDEX(aData,$B30,AK$4)="","-",TEXT(INDEX(aData,$B30,AK$4),$H30)),IFERROR(INDEX(aScoresRounded,$B30,AK$4),""))) -> 100 | AL30: =IF(AL$4="","",CHOOSE(uxb_works!$B$47,IF(INDEX(aData,$B30,AL$4)="","-",TEXT(INDEX(aData,$B30,AL$4),$H30)),IFERROR(INDEX(aScoresRounded,$B30,AL$4),""))) -> 100 | AM30: =IF(AM$4="","",CHOOSE(uxb_works!$B$47,IF(INDEX(aData,$B30,AM$4)="","-",TEXT(INDEX(aData,$B30,AM$4),$H30)),IFERROR(INDEX(aScoresRounded,$B30,AM$4),""))) -> 50 | AN30: =IF(AN$4="","",CHOOSE(uxb_works!$B$47,IF(INDEX(aData,$B30,AN$4)="","-",TEXT(INDEX(aData,$B30,AN$4),$H30)),IFERROR(INDEX(aScoresRounded,$B30,AN$4),""))) -> 100 | AO30: =IF(AO$4="","",CHOOSE(uxb_works!$B$47,IF(INDEX(aData,$B30,AO$4)="","-",TEXT(INDEX(aData,$B30,AO$4),$H30)),IFERROR(INDEX(aScoresRounded,$B30,AO$4),""))) -> 100 | AP30: =IF(AP$4="","",CHOOSE(uxb_works!$B$47,IF(INDEX(aData,$B30,AP$4)="","-",TEXT(INDEX(aData,$B30,AP$4),$H30)),IFERROR(INDEX(aScoresRounded,$B30,AP$4),""))) -> 100 | AQ30: =IF(AQ$4="","",CHOOSE(uxb_works!$B$47,IF(INDEX(aData,$B30,AQ$4)="","-",TEXT(INDEX(aData,$B30,AQ$4),$H30)),IFERROR(INDEX(aScoresRounded,$B30,AQ$4),""))) -> 100 | AR30: =IF(AR$4="","",CHOOSE(uxb_works!$B$47,IF(INDEX(aData,$B30,AR$4)="","-",TEXT(INDEX(aData,$B30,AR$4),$H30)),IFERROR(INDEX(aScoresRounded,$B30,AR$4),""))) -> 100 | AS30: =IF(AS$4="","",CHOOSE(uxb_works!$B$47,IF(INDEX(aData,$B30,AS$4)="","-",TEXT(INDEX(aData,$B30,AS$4),$H30)),IFERROR(INDEX(aScoresRounded,$B30,AS$4),""))) -> 100 | AW30: =CHOOSE($AV$1,0,IF(AW$10=0,0,IF(P30<=$AX$1,1,IF(P30<=#REF!,2,3))),IF(AW$10=0,0,IF(P30<=$AX$1,4,IF(P30<=#REF!,5,6)))) -> 0 | AX30: =CHOOSE($AV$1,0,IF(AX$10=0,0,IF(#REF!<=$AX$1,1,IF(#REF!<=#REF!,2,3))),IF(AX$10=0,0,IF(#REF!<=$AX$1,4,IF(#REF!<=#REF!,5,6)))) -> 0
B31: =tblIndicators!A22 -> 21 | E31: =tblIndicators!B22 -> 0 | F31: =IF(AND(uxb_works!$B$47=2,E31=1),0,iScores!F26) -> 2 | H31: =tblIndicators!AC22 -> #,##0.0 | K31: =IF(L31=0,0,IF(uxb_works!$B$46>=L31,1,0)) -> 1 | L31: =IF(AND(uxb_works!$B$47=2,E31=1),0,tblIndicators!G22) -> 2 | N31: =iScores!N26 -> 2.2) Digital finance | O31: =CHOOSE(uxb_works!$B$47,iData!I26,iScores!O26) -> 0.1538461538 | P31: =IF(P$4="","",CHOOSE(uxb_works!$B$47,IF(INDEX(aData,$B31,P$4)="","-",TEXT(INDEX(aData,$B31,P$4),$H31)),IFERROR(INDEX(aScoresRounded,$B31,P$4),""))) -> 58.5 | Q31: =IF(Q$4="","",CHOOSE(uxb_works!$B$47,IF(INDEX(aData,$B31,Q$4)="","-",TEXT(INDEX(aData,$B31,Q$4),$H31)),IFERROR(INDEX(aScoresRounded,$B31,Q$4),""))) -> 65.6 | R31: =IF(R$4="","",CHOOSE(uxb_works!$B$47,IF(INDEX(aData,$B31,R$4)="","-",TEXT(INDEX(aData,$B31,R$4),$H31)),IFERROR(INDEX(aScoresRounded,$B31,R$4),""))) -> 51.1 | S31: =IF(S$4="","",CHOOSE(uxb_works!$B$47,IF(INDEX(aData,$B31,S$4)="","-",TEXT(INDEX(aData,$B31,S$4),$H31)),IFERROR(INDEX(aScoresRounded,$B31,S$4),""))) -> 37.8 | T31: =IF(T$4="","",CHOOSE(uxb_works!$B$47,IF(INDEX(aData,$B31,T$4)="","-",TEXT(INDEX(aData,$B31,T$4),$H31)),IFERROR(INDEX(aScoresRounded,$B31,T$4),""))) -> 87.4 | U31: =IF(U$4="","",CHOOSE(uxb_works!$B$47,IF(INDEX(aData,$B31,U$4)="","-",TEXT(INDEX(aData,$B31,U$4),$H31)),IFERROR(INDEX(aScoresRounded,$B31,U$4),""))) -> 29.6 | V31: =IF(V$4="","",CHOOSE(uxb_works!$B$47,IF(INDEX(aData,$B31,V$4)="","-",TEXT(INDEX(aData,$B31,V$4),$H31)),IFERROR(INDEX(aScoresRounded,$B31,V$4),""))) -> 39.3 | W31: =IF(W$4="","",CHOOSE(uxb_works!$B$47,IF(INDEX(aData,$B31,W$4)="","-",TEXT(INDEX(aData,$B31,W$4),$H31)),IFERROR(INDEX(aScoresRounded,$B31,W$4),""))) -> 66.2 | X31: =IF(X$4="","",CHOOSE(uxb_works!$B$47,IF(INDEX(aData,$B31,X$4)="","-",TEXT(INDEX(aData,$B31,X$4),$H31)),IFERROR(INDEX(aScoresRounded,$B31,X$4),""))) -> 57.3 | Y31: =IF(Y$4="","",CHOOSE(uxb_works!$B$47,IF(INDEX(aData,$B31,Y$4)="","-",TEXT(INDEX(aData,$B31,Y$4),$H31)),IFERROR(INDEX(aScoresRounded,$B31,Y$4),""))) -> 60.5 | Z31: =IF(Z$4="","",CHOOSE(uxb_works!$B$47,IF(INDEX(aData,$B31,Z$4)="","-",TEXT(INDEX(aData,$B31,Z$4),$H31)),IFERROR(INDEX(aScoresRounded,$B31,Z$4),""))) -> 37 | AA31: =IF(AA$4="","",CHOOSE(uxb_works!$B$47,IF(INDEX(aData,$B31,AA$4)="","-",TEXT(INDEX(aData,$B31,AA$4),$H31)),IFERROR(INDEX(aScoresRounded,$B31,AA$4),""))) -> 68.5 | AB31: =IF(AB$4="","",CHOOSE(uxb_works!$B$47,IF(INDEX(aData,$B31,AB$4)="","-",TEXT(INDEX(aData,$B31,AB$4),$H31)),IFERROR(INDEX(aScoresRounded,$B31,AB$4),""))) -> 51.6 | AC31: =IF(AC$4="","",CHOOSE(uxb_works!$B$47,IF(INDEX(aData,$B31,AC$4)="","-",TEXT(INDEX(aData,$B31,AC$4),$H31)),IFERROR(INDEX(aScoresRounded,$B31,AC$4),""))) -> 25.1 | AD31: =IF(AD$4="","",CHOOSE(uxb_works!$B$47,IF(INDEX(aData,$B31,AD$4)="","-",TEXT(INDEX(aData,$B31,AD$4),$H31)),IFERROR(INDEX(aScoresRounded,$B31,AD$4),""))) -> 46.5 | AE31: =IF(AE$4="","",CHOOSE(uxb_works!$B$47,IF(INDEX(aData,$B31,AE$4)="","-",TEXT(INDEX(aData,$B31,AE$4),$H31)),IFERROR(INDEX(aScoresRounded,$B31,AE$4),""))) -> 35.9 | AF31: =IF(AF$4="","",CHOOSE(uxb_works!$B$47,IF(INDEX(aData,$B31,AF$4)="","-",TEXT(INDEX(aData,$B31,AF$4),$H31)),IFERROR(INDEX(aScoresRounded,$B31,AF$4),""))) -> 26 | AG31: =IF(AG$4="","",CHOOSE(uxb_works!$B$47,IF(INDEX(aData,$B31,AG$4)="","-",TEXT(INDEX(aData,$B31,AG$4),$H31)),IFERROR(INDEX(aScoresRounded,$B31,AG$4),""))) -> 30.7 | AH31: =IF(AH$4="","",CHOOSE(uxb_works!$B$47,IF(INDEX(aData,$B31,AH$4)="","-",TEXT(INDEX(aData,$B31,AH$4),$H31)),IFERROR(INDEX(aScoresRounded,$B31,AH$4),""))) -> 65.5 | AI31: =IF(AI$4="","",CHOOSE(uxb_works!$B$47,IF(INDEX(aData,$B31,AI$4)="","-",TEXT(INDEX(aData,$B31,AI$4),$H31)),IFERROR(INDEX(aScoresRounded,$B31,AI$4),""))) -> 57 | AJ31: =IF(AJ$4="","",CHOOSE(uxb_works!$B$47,IF(INDEX(aData,$B31,AJ$4)="","-",TEXT(INDEX(aData,$B31,AJ$4),$H31)),IFERROR(INDEX(aScoresRounded,$B31,AJ$4),""))) -> 62.9 | AK31: =IF(AK$4="","",CHOOSE(uxb_works!$B$47,IF(INDEX(aData,$B31,AK$4)="","-",TEXT(INDEX(aData,$B31,AK$4),$H31)),IFERROR(INDEX(aScoresRounded,$B31,AK$4),""))) -> 37.7 | AL31: =IF(AL$4="","",CHOOSE(uxb_works!$B$47,IF(INDEX(aData,$B31,AL$4)="","-",TEXT(INDEX(aData,$B31,AL$4),$H31)),IFERROR(INDEX(aScoresRounded,$B31,AL$4),""))) -> 47.7 | AM31: =IF(AM$4="","",CHOOSE(uxb_works!$B$47,IF(INDEX(aData,$B31,AM$4)="","-",TEXT(INDEX(aData,$B31,AM$4),$H31)),IFERROR(INDEX(aScoresRounded,$B31,AM$4),""))) -> 83.3 | AN31: =IF(AN$4="","",CHOOSE(uxb_works!$B$47,IF(INDEX(aData,$B31,AN$4)="","-",TEXT(INDEX(aData,$B31,AN$4),$H31)),IFERROR(INDEX(aScoresRounded,$B31,AN$4),""))) -> 60.3 | AO31: =IF(AO$4="","",CHOOSE(uxb_works!$B$47,IF(INDEX(aData,$B31,AO$4)="","-",TEXT(INDEX(aData,$B31,AO$4),$H31)),IFERROR(INDEX(aScoresRounded,$B31,AO$4),""))) -> 49 | AP31: =IF(AP$4="","",CHOOSE(uxb_works!$B$47,IF(INDEX(aData,$B31,AP$4)="","-",TEXT(INDEX(aData,$B31,AP$4),$H31)),IFERROR(INDEX(aScoresRounded,$B31,AP$4),""))) -> 6.9 | AQ31: =IF(AQ$4="","",CHOOSE(uxb_works!$B$47,IF(INDEX(aData,$B31,AQ$4)="","-",TEXT(INDEX(aData,$B31,AQ$4),$H31)),IFERROR(INDEX(aScoresRounded,$B31,AQ$4),""))) -> 58.7 | AR31: =IF(AR$4="","",CHOOSE(uxb_works!$B$47,IF(INDEX(aData,$B31,AR$4)="","-",TEXT(INDEX(aData,$B31,AR$4),$H31)),IFERROR(INDEX(aScoresRounded,$B31,AR$4),""))) -> 60.8 | AS31: =IF(AS$4="","",CHOOSE(uxb_works!$B$47,IF(INDEX(aData,$B31,AS$4)="","-",TEXT(INDEX(aData,$B31,AS$4),$H31)),IFERROR(INDEX(aScoresRounded,$B31,AS$4),""))) -> 59 | AW31: =CHOOSE($AV$1,0,IF(AW$10=0,0,IF(P31<=$AX$1,1,IF(P31<=#REF!,2,3))),IF(AW$10=0,0,IF(P31<=$AX$1,4,IF(P31<=#REF!,5,6)))) -> 0 | AX31: =CHOOSE($AV$1,0,IF(AX$10=0,0,IF(#REF!<=$AX$1,1,IF(#REF!<=#REF!,2,3))),IF(AX$10=0,0,IF(#REF!<=$AX$1,4,IF(#REF!<=#REF!,5,6)))) -> 0
B32: =tblIndicators!A23 -> 22 | E32: =tblIndicators!B23 -> 0 | F32: =IF(AND(uxb_works!$B$47=2,E32=1),0,iScores!F27) -> 3 | H32: =tblIndicators!AC23 -> #,##0 | K32: =IF(L32=0,0,IF(uxb_works!$B$46>=L32,1,0)) -> 1 | L32: =IF(AND(uxb_works!$B$47=2,E32=1),0,tblIndicators!G23) -> 3 | N32: =iScores!N27 -> 2.2.1) Digital platforms for banking and personal finance | O32: =CHOOSE(uxb_works!$B$47,iData!I27,iScores!O27) -> 0.3428571429 | P32: =IF(P$4="","",CHOOSE(uxb_works!$B$47,IF(INDEX(aData,$B32,P$4)="","-",TEXT(INDEX(aData,$B32,P$4),$H32)),IFERROR(INDEX(aScoresRounded,$B32,P$4),""))) -> 56.5 | Q32: =IF(Q$4="","",CHOOSE(uxb_works!$B$47,IF(INDEX(aData,$B32,Q$4)="","-",TEXT(INDEX(aData,$B32,Q$4),$H32)),IFERROR(INDEX(aScoresRounded,$B32,Q$4),""))) -> 69.6 | R32: =IF(R$4="","",CHOOSE(uxb_works!$B$47,IF(INDEX(aData,$B32,R$4)="","-",TEXT(INDEX(aData,$B32,R$4),$H32)),IFERROR(INDEX(aScoresRounded,$B32,R$4),""))) -> 89.1 | S32: =IF(S$4="","",CHOOSE(uxb_works!$B$47,IF(INDEX(aData,$B32,S$4)="","-",TEXT(INDEX(aData,$B32,S$4),$H32)),IFERROR(INDEX(aScoresRounded,$B32,S$4),""))) -> 54.3 | T32: =IF(T$4="","",CHOOSE(uxb_works!$B$47,IF(INDEX(aData,$B32,T$4)="","-",TEXT(INDEX(aData,$B32,T$4),$H32)),IFERROR(INDEX(aScoresRounded,$B32,T$4),""))) -> 95.7 | U32: =IF(U$4="","",CHOOSE(uxb_works!$B$47,IF(INDEX(aData,$B32,U$4)="","-",TEXT(INDEX(aData,$B32,U$4),$H32)),IFERROR(INDEX(aScoresRounded,$B32,U$4),""))) -> 45.7 | V32: =IF(V$4="","",CHOOSE(uxb_works!$B$47,IF(INDEX(aData,$B32,V$4)="","-",TEXT(INDEX(aData,$B32,V$4),$H32)),IFERROR(INDEX(aScoresRounded,$B32,V$4),""))) -> 47.8 | W32: =IF(W$4="","",CHOOSE(uxb_works!$B$47,IF(INDEX(aData,$B32,W$4)="","-",TEXT(INDEX(aData,$B32,W$4),$H32)),IFERROR(INDEX(aScoresRounded,$B32,W$4),""))) -> 69.6 | X32: =IF(X$4="","",CHOOSE(uxb_works!$B$47,IF(INDEX(aData,$B32,X$4)="","-",TEXT(INDEX(aData,$B32,X$4),$H32)),IFERROR(INDEX(aScoresRounded,$B32,X$4),""))) -> 34.8 | Y32: =IF(Y$4="","",CHOOSE(uxb_works!$B$47,IF(INDEX(aData,$B32,Y$4)="","-",TEXT(INDEX(aData,$B32,Y$4),$H32)),IFERROR(INDEX(aScoresRounded,$B32,Y$4),""))) -> 89.1 | Z32: =IF(Z$4="","",CHOOSE(uxb_works!$B$47,IF(INDEX(aData,$B32,Z$4)="","-",TEXT(INDEX(aData,$B32,Z$4),$H32)),IFERROR(INDEX(aScoresRounded,$B32,Z$4),""))) -> 58.7 | AA32: =IF(AA$4="","",CHOOSE(uxb_works!$B$47,IF(INDEX(aData,$B32,AA$4)="","-",TEXT(INDEX(aData,$B32,AA$4),$H32)),IFERROR(INDEX(aScoresRounded,$B32,AA$4),""))) -> 45.7 | AB32: =IF(AB$4="","",CHOOSE(uxb_works!$B$47,IF(INDEX(aData,$B32,AB$4)="","-",TEXT(INDEX(aData,$B32,AB$4),$H32)),IFERROR(INDEX(aScoresRounded,$B32,AB$4),""))) -> 91.3 | AC32: =IF(AC$4="","",CHOOSE(uxb_works!$B$47,IF(INDEX(aData,$B32,AC$4)="","-",TEXT(INDEX(aData,$B32,AC$4),$H32)),IFERROR(INDEX(aScoresRounded,$B32,AC$4),""))) -> 23.9 | AD32: =IF(AD$4="","",CHOOSE(uxb_works!$B$47,IF(INDEX(aData,$B32,AD$4)="","-",TEXT(INDEX(aData,$B32,AD$4),$H32)),IFERROR(INDEX(aScoresRounded,$B32,AD$4),""))) -> 30.4 | AE32: =IF(AE$4="","",CHOOSE(uxb_works!$B$47,IF(INDEX(aData,$B32,AE$4)="","-",TEXT(INDEX(aData,$B32,AE$4),$H32)),IFERROR(INDEX(aScoresRounded,$B32,AE$4),""))) -> 47.8 | AF32: =IF(AF$4="","",CHOOSE(uxb_works!$B$47,IF(INDEX(aData,$B32,AF$4)="","-",TEXT(INDEX(aData,$B32,AF$4),$H32)),IFERROR(INDEX(aScoresRounded,$B32,AF$4),""))) -> 39.1 | AG32: =IF(AG$4="","",CHOOSE(uxb_works!$B$47,IF(INDEX(aData,$B32,AG$4)="","-",TEXT(INDEX(aData,$B32,AG$4),$H32)),IFERROR(INDEX(aScoresRounded,$B32,AG$4),""))) -> 50 | AH32: =IF(AH$4="","",CHOOSE(uxb_works!$B$47,IF(INDEX(aData,$B32,AH$4)="","-",TEXT(INDEX(aData,$B32,AH$4),$H32)),IFERROR(INDEX(aScoresRounded,$B32,AH$4),""))) -> 100 | AI32: =IF(AI$4="","",CHOOSE(uxb_works!$B$47,IF(INDEX(aData,$B32,AI$4)="","-",TEXT(INDEX(aData,$B32,AI$4),$H32)),IFERROR(INDEX(aScoresRounded,$B32,AI$4),""))) -> 34.8 | AJ32: =IF(AJ$4="","",CHOOSE(uxb_works!$B$47,IF(INDEX(aData,$B32,AJ$4)="","-",TEXT(INDEX(aData,$B32,AJ$4),$H32)),IFERROR(INDEX(aScoresRounded,$B32,AJ$4),""))) -> 73.9 | AK32: =IF(AK$4="","",CHOOSE(uxb_works!$B$47,IF(INDEX(aData,$B32,AK$4)="","-",TEXT(INDEX(aData,$B32,AK$4),$H32)),IFERROR(INDEX(aScoresRounded,$B32,AK$4),""))) -> 56.5 | AL32: =IF(AL$4="","",CHOOSE(uxb_works!$B$47,IF(INDEX(aData,$B32,AL$4)="","-",TEXT(INDEX(aData,$B32,AL$4),$H32)),IFERROR(INDEX(aScoresRounded,$B32,AL$4),""))) -> 58.7 | AM32: =IF(AM$4="","",CHOOSE(uxb_works!$B$47,IF(INDEX(aData,$B32,AM$4)="","-",TEXT(INDEX(aData,$B32,AM$4),$H32)),IFERROR(INDEX(aScoresRounded,$B32,AM$4),""))) -> 89.1 | AN32: =IF(AN$4="","",CHOOSE(uxb_works!$B$47,IF(INDEX(aData,$B32,AN$4)="","-",TEXT(INDEX(aData,$B32,AN$4),$H32)),IFERROR(INDEX(aScoresRounded,$B32,AN$4),""))) -> 71.7 | AO32: =IF(AO$4="","",CHOOSE(uxb_works!$B$47,IF(INDEX(aData,$B32,AO$4)="","-",TEXT(INDEX(aData,$B32,AO$4),$H32)),IFERROR(INDEX(aScoresRounded,$B32,AO$4),""))) -> 23.9 | AP32: =IF(AP$4="","",CHOOSE(uxb_works!$B$47,IF(INDEX(aData,$B32,AP$4)="","-",TEXT(INDEX(aData,$B32,AP$4),$H32)),IFERROR(INDEX(aScoresRounded,$B32,AP$4),""))) -> 0 | AQ32: =IF(AQ$4="","",CHOOSE(uxb_works!$B$47,IF(INDEX(aData,$B32,AQ$4)="","-",TEXT(INDEX(aData,$B32,AQ$4),$H32)),IFERROR(INDEX(aScoresRounded,$B32,AQ$4),""))) -> 37 | AR32: =IF(AR$4="","",CHOOSE(uxb_works!$B$47,IF(INDEX(aData,$B32,AR$4)="","-",TEXT(INDEX(aData,$B32,AR$4),$H32)),IFERROR(INDEX(aScoresRounded,$B32,AR$4),""))) -> 41.3 | AS32: =IF(AS$4="","",CHOOSE(uxb_works!$B$47,IF(INDEX(aData,$B32,AS$4)="","-",TEXT(INDEX(aData,$B32,AS$4),$H32)),IFERROR(INDEX(aScoresRounded,$B32,AS$4),""))) -> 52.2 | AW32: =CHOOSE($AV$1,0,IF(AW$10=0,0,IF(P32<=$AX$1,1,IF(P32<=#REF!,2,3))),IF(AW$10=0,0,IF(P32<=$AX$1,4,IF(P32<=#REF!,5,6)))) -> 0 | AX32: =CHOOSE($AV$1,0,IF(AX$10=0,0,IF(#REF!<=$AX$1,1,IF(#REF!<=#REF!,2,3))),IF(AX$10=0,0,IF(#REF!<=$AX$1,4,IF(#REF!<=#REF!,5,6)))) -> 0
B33: =tblIndicators!A24 -> 23 | E33: =tblIndicators!B24 -> 0 | F33: =IF(AND(uxb_works!$B$47=2,E33=1),0,iScores!F28) -> 3 | H33: =tblIndicators!AC24 -> #,##0 | K33: =IF(L33=0,0,IF(uxb_works!$B$46>=L33,1,0)) -> 1 | L33: =IF(AND(uxb_works!$B$47=2,E33=1),0,tblIndicators!G24) -> 3 | N33: =iScores!N28 -> 2.2.2) Digital investment management tools | O33: =CHOOSE(uxb_works!$B$47,iData!I28,iScores!O28) -> 0.2285714286 | P33: =IF(P$4="","",CHOOSE(uxb_works!$B$47,IF(INDEX(aData,$B33,P$4)="","-",TEXT(INDEX(aData,$B33,P$4),$H33)),IFERROR(INDEX(aScoresRounded,$B33,P$4),""))) -> 5.6 | Q33: =IF(Q$4="","",CHOOSE(uxb_works!$B$47,IF(INDEX(aData,$B33,Q$4)="","-",TEXT(INDEX(aData,$B33,Q$4),$H33)),IFERROR(INDEX(aScoresRounded,$B33,Q$4),""))) -> 19.7 | R33: =IF(R$4="","",CHOOSE(uxb_works!$B$47,IF(INDEX(aData,$B33,R$4)="","-",TEXT(INDEX(aData,$B33,R$4),$H33)),IFERROR(INDEX(aScoresRounded,$B33,R$4),""))) -> 84.5 | S33: =IF(S$4="","",CHOOSE(uxb_works!$B$47,IF(INDEX(aData,$B33,S$4)="","-",TEXT(INDEX(aData,$B33,S$4),$H33)),IFERROR(INDEX(aScoresRounded,$B33,S$4),""))) -> 26.8 | T33: =IF(T$4="","",CHOOSE(uxb_works!$B$47,IF(INDEX(aData,$B33,T$4)="","-",TEXT(INDEX(aData,$B33,T$4),$H33)),IFERROR(INDEX(aScoresRounded,$B33,T$4),""))) -> 83.1 | U33: =IF(U$4="","",CHOOSE(uxb_works!$B$47,IF(INDEX(aData,$B33,U$4)="","-",TEXT(INDEX(aData,$B33,U$4),$H33)),IFERROR(INDEX(aScoresRounded,$B33,U$4),""))) -> 0 | V33: =IF(V$4="","",CHOOSE(uxb_works!$B$47,IF(INDEX(aData,$B33,V$4)="","-",TEXT(INDEX(aData,$B33,V$4),$H33)),IFERROR(INDEX(aScoresRounded,$B33,V$4),""))) -> 32.4 | W33: =IF(W$4="","",CHOOSE(uxb_works!$B$47,IF(INDEX(aData,$B33,W$4)="","-",TEXT(INDEX(aData,$B33,W$4),$H33)),IFERROR(INDEX(aScoresRounded,$B33,W$4),""))) -> 11.3 | X33: =IF(X$4="","",CHOOSE(uxb_works!$B$47,IF(INDEX(aData,$B33,X$4)="","-",TEXT(INDEX(aData,$B33,X$4),$H33)),IFERROR(INDEX(aScoresRounded,$B33,X$4),""))) -> 29.6 | Y33: =IF(Y$4="","",CHOOSE(uxb_works!$B$47,IF(INDEX(aData,$B33,Y$4)="","-",TEXT(INDEX(aData,$B33,Y$4),$H33)),IFERROR(INDEX(aScoresRounded,$B33,Y$4),""))) -> 80.3 | Z33: =IF(Z$4="","",CHOOSE(uxb_works!$B$47,IF(INDEX(aData,$B33,Z$4)="","-",TEXT(INDEX(aData,$B33,Z$4),$H33)),IFERROR(INDEX(aScoresRounded,$B33,Z$4),""))) -> 12.7 | AA33: =IF(AA$4="","",CHOOSE(uxb_works!$B$47,IF(INDEX(aData,$B33,AA$4)="","-",TEXT(INDEX(aData,$B33,AA$4),$H33)),IFERROR(INDEX(aScoresRounded,$B33,AA$4),""))) -> 49.3 | AB33: =IF(AB$4="","",CHOOSE(uxb_works!$B$47,IF(INDEX(aData,$B33,AB$4)="","-",TEXT(INDEX(aData,$B33,AB$4),$H33)),IFERROR(INDEX(aScoresRounded,$B33,AB$4),""))) -> 88.7 | AC33: =IF(AC$4="","",CHOOSE(uxb_works!$B$47,IF(INDEX(aData,$B33,AC$4)="","-",TEXT(INDEX(aData,$B33,AC$4),$H33)),IFERROR(INDEX(aScoresRounded,$B33,AC$4),""))) -> 40.8 | AD33: =IF(AD$4="","",CHOOSE(uxb_works!$B$47,IF(INDEX(aData,$B33,AD$4)="","-",TEXT(INDEX(aData,$B33,AD$4),$H33)),IFERROR(INDEX(aScoresRounded,$B33,AD$4),""))) -> 5.6 | AE33: =IF(AE$4="","",CHOOSE(uxb_works!$B$47,IF(INDEX(aData,$B33,AE$4)="","-",TEXT(INDEX(aData,$B33,AE$4),$H33)),IFERROR(INDEX(aScoresRounded,$B33,AE$4),""))) -> 28.2 | AF33: =IF(AF$4="","",CHOOSE(uxb_works!$B$47,IF(INDEX(aData,$B33,AF$4)="","-",TEXT(INDEX(aData,$B33,AF$4),$H33)),IFERROR(INDEX(aScoresRounded,$B33,AF$4),""))) -> 47.9 | AG33: =IF(AG$4="","",CHOOSE(uxb_works!$B$47,IF(INDEX(aData,$B33,AG$4)="","-",TEXT(INDEX(aData,$B33,AG$4),$H33)),IFERROR(INDEX(aScoresRounded,$B33,AG$4),""))) -> 39.4 | AH33: =IF(AH$4="","",CHOOSE(uxb_works!$B$47,IF(INDEX(aData,$B33,AH$4)="","-",TEXT(INDEX(aData,$B33,AH$4),$H33)),IFERROR(INDEX(aScoresRounded,$B33,AH$4),""))) -> 100 | AI33: =IF(AI$4="","",CHOOSE(uxb_works!$B$47,IF(INDEX(aData,$B33,AI$4)="","-",TEXT(INDEX(aData,$B33,AI$4),$H33)),IFERROR(INDEX(aScoresRounded,$B33,AI$4),""))) -> 28.2 | AJ33: =IF(AJ$4="","",CHOOSE(uxb_works!$B$47,IF(INDEX(aData,$B33,AJ$4)="","-",TEXT(INDEX(aData,$B33,AJ$4),$H33)),IFERROR(INDEX(aScoresRounded,$B33,AJ$4),""))) -> 16.9 | AK33: =IF(AK$4="","",CHOOSE(uxb_works!$B$47,IF(INDEX(aData,$B33,AK$4)="","-",TEXT(INDEX(aData,$B33,AK$4),$H33)),IFERROR(INDEX(aScoresRounded,$B33,AK$4),""))) -> 16.9 | AL33: =IF(AL$4="","",CHOOSE(uxb_works!$B$47,IF(INDEX(aData,$B33,AL$4)="","-",TEXT(INDEX(aData,$B33,AL$4),$H33)),IFERROR(INDEX(aScoresRounded,$B33,AL$4),""))) -> 46.5 | AM33: =IF(AM$4="","",CHOOSE(uxb_works!$B$47,IF(INDEX(aData,$B33,AM$4)="","-",TEXT(INDEX(aData,$B33,AM$4),$H33)),IFERROR(INDEX(aScoresRounded,$B33,AM$4),""))) -> 67.6 | AN33: =IF(AN$4="","",CHOOSE(uxb_works!$B$47,IF(INDEX(aData,$B33,AN$4)="","-",TEXT(INDEX(aData,$B33,AN$4),$H33)),IFERROR(INDEX(aScoresRounded,$B33,AN$4),""))) -> 46.5 | AO33: =IF(AO$4="","",CHOOSE(uxb_works!$B$47,IF(INDEX(aData,$B33,AO$4)="","-",TEXT(INDEX(aData,$B33,AO$4),$H33)),IFERROR(INDEX(aScoresRounded,$B33,AO$4),""))) -> 7 | AP33: =IF(AP$4="","",CHOOSE(uxb_works!$B$47,IF(INDEX(aData,$B33,AP$4)="","-",TEXT(INDEX(aData,$B33,AP$4),$H33)),IFERROR(INDEX(aScoresRounded,$B33,AP$4),""))) -> 15.5 | AQ33: =IF(AQ$4="","",CHOOSE(uxb_works!$B$47,IF(INDEX(aData,$B33,AQ$4)="","-",TEXT(INDEX(aData,$B33,AQ$4),$H33)),IFERROR(INDEX(aScoresRounded,$B33,AQ$4),""))) -> 14.1 | AR33: =IF(AR$4="","",CHOOSE(uxb_works!$B$47,IF(INDEX(aData,$B33,AR$4)="","-",TEXT(INDEX(aData,$B33,AR$4),$H33)),IFERROR(INDEX(aScoresRounded,$B33,AR$4),""))) -> 35.2 | AS33: =IF(AS$4="","",CHOOSE(uxb_works!$B$47,IF(INDEX(aData,$B33,AS$4)="","-",TEXT(INDEX(aData,$B33,AS$4),$H33)),IFERROR(INDEX(aScoresRounded,$B33,AS$4),""))) -> 23.9 | AW33: =CHOOSE($AV$1,0,IF(AW$10=0,0,IF(P33<=$AX$1,1,IF(P33<=#REF!,2,3))),IF(AW$10=0,0,IF(P33<=$AX$1,4,IF(P33<=#REF!,5,6)))) -> 0 | AX33: =CHOOSE($AV$1,0,IF(AX$10=0,0,IF(#REF!<=$AX$1,1,IF(#REF!<=#REF!,2,3))),IF(AX$10=0,0,IF(#REF!<=$AX$1,4,IF(#REF!<=#REF!,5,6)))) -> 0
B34: =tblIndicators!A25 -> 24 | E34: =tblIndicators!B25 -> 0 | F34: =IF(AND(uxb_works!$B$47=2,E34=1),0,iScores!F29) -> 3 | H34: =tblIndicators!AC25 -> #,##0.0 | K34: =IF(L34=0,0,IF(uxb_works!$B$46>=L34,1,0)) -> 1 | L34: =IF(AND(uxb_works!$B$47=2,E34=1),0,tblIndicators!G25) -> 3 | N34: =iScores!N29 -> 2.2.3) E-payments | O34: =CHOOSE(uxb_works!$B$47,iData!I29,iScores!O29) -> 0.4285714286 | P34: =IF(P$4="","",CHOOSE(uxb_works!$B$47,IF(INDEX(aData,$B34,P$4)="","-",TEXT(INDEX(aData,$B34,P$4),$H34)),IFERROR(INDEX(aScoresRounded,$B34,P$4),""))) -> 88.3 | Q34: =IF(Q$4="","",CHOOSE(uxb_works!$B$47,IF(INDEX(aData,$B34,Q$4)="","-",TEXT(INDEX(aData,$B34,Q$4),$H34)),IFERROR(INDEX(aScoresRounded,$B34,Q$4),""))) -> 86.8 | R34: =IF(R$4="","",CHOOSE(uxb_works!$B$47,IF(INDEX(aData,$B34,R$4)="","-",TEXT(INDEX(aData,$B34,R$4),$H34)),IFERROR(INDEX(aScoresRounded,$B34,R$4),""))) -> 2.9 | S34: =IF(S$4="","",CHOOSE(uxb_works!$B$47,IF(INDEX(aData,$B34,S$4)="","-",TEXT(INDEX(aData,$B34,S$4),$H34)),IFERROR(INDEX(aScoresRounded,$B34,S$4),""))) -> 30.5 | T34: =IF(T$4="","",CHOOSE(uxb_works!$B$47,IF(INDEX(aData,$B34,T$4)="","-",TEXT(INDEX(aData,$B34,T$4),$H34)),IFERROR(INDEX(aScoresRounded,$B34,T$4),""))) -> 83.1 | U34: =IF(U$4="","",CHOOSE(uxb_works!$B$47,IF(INDEX(aData,$B34,U$4)="","-",TEXT(INDEX(aData,$B34,U$4),$H34)),IFERROR(INDEX(aScoresRounded,$B34,U$4),""))) -> 32.7 | V34: =IF(V$4="","",CHOOSE(uxb_works!$B$47,IF(INDEX(aData,$B34,V$4)="","-",TEXT(INDEX(aData,$B34,V$4),$H34)),IFERROR(INDEX(aScoresRounded,$B34,V$4),""))) -> 36.1 | W34: =IF(W$4="","",CHOOSE(uxb_works!$B$47,IF(INDEX(aData,$B34,W$4)="","-",TEXT(INDEX(aData,$B34,W$4),$H34)),IFERROR(INDEX(aScoresRounded,$B34,W$4),""))) -> 92.8 | X34: =IF(X$4="","",CHOOSE(uxb_works!$B$47,IF(INDEX(aData,$B34,X$4)="","-",TEXT(INDEX(aData,$B34,X$4),$H34)),IFERROR(INDEX(aScoresRounded,$B34,X$4),""))) -> 90.1 | Y34: =IF(Y$4="","",CHOOSE(uxb_works!$B$47,IF(INDEX(aData,$B34,Y$4)="","-",TEXT(INDEX(aData,$B34,Y$4),$H34)),IFERROR(INDEX(aScoresRounded,$B34,Y$4),""))) -> 27.2 | Z34: =IF(Z$4="","",CHOOSE(uxb_works!$B$47,IF(INDEX(aData,$B34,Z$4)="","-",TEXT(INDEX(aData,$B34,Z$4),$H34)),IFERROR(INDEX(aScoresRounded,$B34,Z$4),""))) -> 32.7 | AA34: =IF(AA$4="","",CHOOSE(uxb_works!$B$47,IF(INDEX(aData,$B34,AA$4)="","-",TEXT(INDEX(aData,$B34,AA$4),$H34)),IFERROR(INDEX(aScoresRounded,$B34,AA$4),""))) -> 97.1 | AB34: =IF(AB$4="","",CHOOSE(uxb_works!$B$47,IF(INDEX(aData,$B34,AB$4)="","-",TEXT(INDEX(aData,$B34,AB$4),$H34)),IFERROR(INDEX(aScoresRounded,$B34,AB$4),""))) -> 0 | AC34: =IF(AC$4="","",CHOOSE(uxb_works!$B$47,IF(INDEX(aData,$B34,AC$4)="","-",TEXT(INDEX(aData,$B34,AC$4),$H34)),IFERROR(INDEX(aScoresRounded,$B34,AC$4),""))) -> 17.6 | AD34: =IF(AD$4="","",CHOOSE(uxb_works!$B$47,IF(INDEX(aData,$B34,AD$4)="","-",TEXT(INDEX(aData,$B34,AD$4),$H34)),IFERROR(INDEX(aScoresRounded,$B34,AD$4),""))) -> 81.1 | AE34: =IF(AE$4="","",CHOOSE(uxb_works!$B$47,IF(INDEX(aData,$B34,AE$4)="","-",TEXT(INDEX(aData,$B34,AE$4),$H34)),IFERROR(INDEX(aScoresRounded,$B34,AE$4),""))) -> 30.5 | AF34: =IF(AF$4="","",CHOOSE(uxb_works!$B$47,IF(INDEX(aData,$B34,AF$4)="","-",TEXT(INDEX(aData,$B34,AF$4),$H34)),IFERROR(INDEX(aScoresRounded,$B34,AF$4),""))) -> 3.9 | AG34: =IF(AG$4="","",CHOOSE(uxb_works!$B$47,IF(INDEX(aData,$B34,AG$4)="","-",TEXT(INDEX(aData,$B34,AG$4),$H34)),IFERROR(INDEX(aScoresRounded,$B34,AG$4),""))) -> 10.6 | AH34: =IF(AH$4="","",CHOOSE(uxb_works!$B$47,IF(INDEX(aData,$B34,AH$4)="","-",TEXT(INDEX(aData,$B34,AH$4),$H34)),IFERROR(INDEX(aScoresRounded,$B34,AH$4),""))) -> 19.4 | AI34: =IF(AI$4="","",CHOOSE(uxb_works!$B$47,IF(INDEX(aData,$B34,AI$4)="","-",TEXT(INDEX(aData,$B34,AI$4),$H34)),IFERROR(INDEX(aScoresRounded,$B34,AI$4),""))) -> 90.1 | AJ34: =IF(AJ$4="","",CHOOSE(uxb_works!$B$47,IF(INDEX(aData,$B34,AJ$4)="","-",TEXT(INDEX(aData,$B34,AJ$4),$H34)),IFERROR(INDEX(aScoresRounded,$B34,AJ$4),""))) -> 78.5 | AK34: =IF(AK$4="","",CHOOSE(uxb_works!$B$47,IF(INDEX(aData,$B34,AK$4)="","-",TEXT(INDEX(aData,$B34,AK$4),$H34)),IFERROR(INDEX(aScoresRounded,$B34,AK$4),""))) -> 33.8 | AL34: =IF(AL$4="","",CHOOSE(uxb_works!$B$47,IF(INDEX(aData,$B34,AL$4)="","-",TEXT(INDEX(aData,$B34,AL$4),$H34)),IFERROR(INDEX(aScoresRounded,$B34,AL$4),""))) -> 39.4 | AM34: =IF(AM$4="","",CHOOSE(uxb_works!$B$47,IF(INDEX(aData,$B34,AM$4)="","-",TEXT(INDEX(aData,$B34,AM$4),$H34)),IFERROR(INDEX(aScoresRounded,$B34,AM$4),""))) -> 87 | AN34: =IF(AN$4="","",CHOOSE(uxb_works!$B$47,IF(INDEX(aData,$B34,AN$4)="","-",TEXT(INDEX(aData,$B34,AN$4),$H34)),IFERROR(INDEX(aScoresRounded,$B34,AN$4),""))) -> 58.5 | AO34: =IF(AO$4="","",CHOOSE(uxb_works!$B$47,IF(INDEX(aData,$B34,AO$4)="","-",TEXT(INDEX(aData,$B34,AO$4),$H34)),IFERROR(INDEX(aScoresRounded,$B34,AO$4),""))) -> 91.4 | AP34: =IF(AP$4="","",CHOOSE(uxb_works!$B$47,IF(INDEX(aData,$B34,AP$4)="","-",TEXT(INDEX(aData,$B34,AP$4),$H34)),IFERROR(INDEX(aScoresRounded,$B34,AP$4),""))) -> 7.9 | AQ34: =IF(AQ$4="","",CHOOSE(uxb_works!$B$47,IF(INDEX(aData,$B34,AQ$4)="","-",TEXT(INDEX(aData,$B34,AQ$4),$H34)),IFERROR(INDEX(aScoresRounded,$B34,AQ$4),""))) -> 100 | AR34: =IF(AR$4="","",CHOOSE(uxb_works!$B$47,IF(INDEX(aData,$B34,AR$4)="","-",TEXT(INDEX(aData,$B34,AR$4),$H34)),IFERROR(INDEX(aScoresRounded,$B34,AR$4),""))) -> 90.1 | AS34: =IF(AS$4="","",CHOOSE(uxb_works!$B$47,IF(INDEX(aData,$B34,AS$4)="","-",TEXT(INDEX(aData,$B34,AS$4),$H34)),IFERROR(INDEX(aScoresRounded,$B34,AS$4),""))) -> 83.1 | AW34: =CHOOSE($AV$1,0,IF(AW$10=0,0,IF(P34<=$AX$1,1,IF(P34<=#REF!,2,3))),IF(AW$10=0,0,IF(P34<=$AX$1,4,IF(P34<=#REF!,5,6)))) -> 0 | AX34: =CHOOSE($AV$1,0,IF(AX$10=0,0,IF(#REF!<=$AX$1,1,IF(#REF!<=#REF!,2,3))),IF(AX$10=0,0,IF(#REF!<=$AX$1,4,IF(#REF!<=#REF!,5,6)))) -> 0
B35: =tblIndicators!A26 -> 25 | E35: =tblIndicators!B26 -> 0 | F35: =IF(AND(uxb_works!$B$47=2,E35=1),0,iScores!F30) -> 2 | H35: =tblIndicators!AC26 -> #,##0.0 | K35: =IF(L35=0,0,IF(uxb_works!$B$46>=L35,1,0)) -> 1 | L35: =IF(AND(uxb_works!$B$47=2,E35=1),0,tblIndicators!G26) -> 2 | N35: =iScores!N30 -> 2.3) Transportation | O35: =CHOOSE(uxb_works!$B$47,iData!I30,iScores!O30) -> 0.1923076923 | P35: =IF(P$4="","",CHOOSE(uxb_works!$B$47,IF(INDEX(aData,$B35,P$4)="","-",TEXT(INDEX(aData,$B35,P$4),$H35)),IFERROR(INDEX(aScoresRounded,$B35,P$4),""))) -> 100 | Q35: =IF(Q$4="","",CHOOSE(uxb_works!$B$47,IF(INDEX(aData,$B35,Q$4)="","-",TEXT(INDEX(aData,$B35,Q$4),$H35)),IFERROR(INDEX(aScoresRounded,$B35,Q$4),""))) -> 41 | R35: =IF(R$4="","",CHOOSE(uxb_works!$B$47,IF(INDEX(aData,$B35,R$4)="","-",TEXT(INDEX(aData,$B35,R$4),$H35)),IFERROR(INDEX(aScoresRounded,$B35,R$4),""))) -> 23.1 | S35: =IF(S$4="","",CHOOSE(uxb_works!$B$47,IF(INDEX(aData,$B35,S$4)="","-",TEXT(INDEX(aData,$B35,S$4),$H35)),IFERROR(INDEX(aScoresRounded,$B35,S$4),""))) -> 100 | T35: =IF(T$4="","",CHOOSE(uxb_works!$B$47,IF(INDEX(aData,$B35,T$4)="","-",TEXT(INDEX(aData,$B35,T$4),$H35)),IFERROR(INDEX(aScoresRounded,$B35,T$4),""))) -> 82.1 | U35: =IF(U$4="","",CHOOSE(uxb_works!$B$47,IF(INDEX(aData,$B35,U$4)="","-",TEXT(INDEX(aData,$B35,U$4),$H35)),IFERROR(INDEX(aScoresRounded,$B35,U$4),""))) -> 76.9 | V35: =IF(V$4="","",CHOOSE(uxb_works!$B$47,IF(INDEX(aData,$B35,V$4)="","-",TEXT(INDEX(aData,$B35,V$4),$H35)),IFERROR(INDEX(aScoresRounded,$B35,V$4),""))) -> 59 | W35: =IF(W$4="","",CHOOSE(uxb_works!$B$47,IF(INDEX(aData,$B35,W$4)="","-",TEXT(INDEX(aData,$B35,W$4),$H35)),IFERROR(INDEX(aScoresRounded,$B35,W$4),""))) -> 59 | X35: =IF(X$4="","",CHOOSE(uxb_works!$B$47,IF(INDEX(aData,$B35,X$4)="","-",TEXT(INDEX(aData,$B35,X$4),$H35)),IFERROR(INDEX(aScoresRounded,$B35,X$4),""))) -> 76.9 | Y35: =IF(Y$4="","",CHOOSE(uxb_works!$B$47,IF(INDEX(aData,$B35,Y$4)="","-",TEXT(INDEX(aData,$B35,Y$4),$H35)),IFERROR(INDEX(aScoresRounded,$B35,Y$4),""))) -> 100 | Z35: =IF(Z$4="","",CHOOSE(uxb_works!$B$47,IF(INDEX(aData,$B35,Z$4)="","-",TEXT(INDEX(aData,$B35,Z$4),$H35)),IFERROR(INDEX(aScoresRounded,$B35,Z$4),""))) -> 100 | AA35: =IF(AA$4="","",CHOOSE(uxb_works!$B$47,IF(INDEX(aData,$B35,AA$4)="","-",TEXT(INDEX(aData,$B35,AA$4),$H35)),IFERROR(INDEX(aScoresRounded,$B35,AA$4),""))) -> 82.1 | AB35: =IF(AB$4="","",CHOOSE(uxb_works!$B$47,IF(INDEX(aData,$B35,AB$4)="","-",TEXT(INDEX(aData,$B35,AB$4),$H35)),IFERROR(INDEX(aScoresRounded,$B35,AB$4),""))) -> 76.9 | AC35: =IF(AC$4="","",CHOOSE(uxb_works!$B$47,IF(INDEX(aData,$B35,AC$4)="","-",TEXT(INDEX(aData,$B35,AC$4),$H35)),IFERROR(INDEX(aScoresRounded,$B35,AC$4),""))) -> 82.1 | AD35: =IF(AD$4="","",CHOOSE(uxb_works!$B$47,IF(INDEX(aData,$B35,AD$4)="","-",TEXT(INDEX(aData,$B35,AD$4),$H35)),IFERROR(INDEX(aScoresRounded,$B35,AD$4),""))) -> 82.1 | AE35: =IF(AE$4="","",CHOOSE(uxb_works!$B$47,IF(INDEX(aData,$B35,AE$4)="","-",TEXT(INDEX(aData,$B35,AE$4),$H35)),IFERROR(INDEX(aScoresRounded,$B35,AE$4),""))) -> 64.1 | AF35: =IF(AF$4="","",CHOOSE(uxb_works!$B$47,IF(INDEX(aData,$B35,AF$4)="","-",TEXT(INDEX(aData,$B35,AF$4),$H35)),IFERROR(INDEX(aScoresRounded,$B35,AF$4),""))) -> 23.1 | AG35: =IF(AG$4="","",CHOOSE(uxb_works!$B$47,IF(INDEX(aData,$B35,AG$4)="","-",TEXT(INDEX(aData,$B35,AG$4),$H35)),IFERROR(INDEX(aScoresRounded,$B35,AG$4),""))) -> 23.1 | AH35: =IF(AH$4="","",CHOOSE(uxb_works!$B$47,IF(INDEX(aData,$B35,AH$4)="","-",TEXT(INDEX(aData,$B35,AH$4),$H35)),IFERROR(INDEX(aScoresRounded,$B35,AH$4),""))) -> 17.9 | AI35: =IF(AI$4="","",CHOOSE(uxb_works!$B$47,IF(INDEX(aData,$B35,AI$4)="","-",TEXT(INDEX(aData,$B35,AI$4),$H35)),IFERROR(INDEX(aScoresRounded,$B35,AI$4),""))) -> 59 | AJ35: =IF(AJ$4="","",CHOOSE(uxb_works!$B$47,IF(INDEX(aData,$B35,AJ$4)="","-",TEXT(INDEX(aData,$B35,AJ$4),$H35)),IFERROR(INDEX(aScoresRounded,$B35,AJ$4),""))) -> 100 | AK35: =IF(AK$4="","",CHOOSE(uxb_works!$B$47,IF(INDEX(aData,$B35,AK$4)="","-",TEXT(INDEX(aData,$B35,AK$4),$H35)),IFERROR(INDEX(aScoresRounded,$B35,AK$4),""))) -> 100 | AL35: =IF(AL$4="","",CHOOSE(uxb_works!$B$47,IF(INDEX(aData,$B35,AL$4)="","-",TEXT(INDEX(aData,$B35,AL$4),$H35)),IFERROR(INDEX(aScoresRounded,$B35,AL$4),""))) -> 0 | AM35: =IF(AM$4="","",CHOOSE(uxb_works!$B$47,IF(INDEX(aData,$B35,AM$4)="","-",TEXT(INDEX(aData,$B35,AM$4),$H35)),IFERROR(INDEX(aScoresRounded,$B35,AM$4),""))) -> 82.1 | AN35: =IF(AN$4="","",CHOOSE(uxb_works!$B$47,IF(INDEX(aData,$B35,AN$4)="","-",TEXT(INDEX(aData,$B35,AN$4),$H35)),IFERROR(INDEX(aScoresRounded,$B35,AN$4),""))) -> 82.1 | AO35: =IF(AO$4="","",CHOOSE(uxb_works!$B$47,IF(INDEX(aData,$B35,AO$4)="","-",TEXT(INDEX(aData,$B35,AO$4),$H35)),IFERROR(INDEX(aScoresRounded,$B35,AO$4),""))) -> 100 | AP35: =IF(AP$4="","",CHOOSE(uxb_works!$B$47,IF(INDEX(aData,$B35,AP$4)="","-",TEXT(INDEX(aData,$B35,AP$4),$H35)),IFERROR(INDEX(aScoresRounded,$B35,AP$4),""))) -> 64.1 | AQ35: =IF(AQ$4="","",CHOOSE(uxb_works!$B$47,IF(INDEX(aData,$B35,AQ$4)="","-",TEXT(INDEX(aData,$B35,AQ$4),$H35)),IFERROR(INDEX(aScoresRounded,$B35,AQ$4),""))) -> 35.9 | AR35: =IF(AR$4="","",CHOOSE(uxb_works!$B$47,IF(INDEX(aData,$B35,AR$4)="","-",TEXT(INDEX(aData,$B35,AR$4),$H35)),IFERROR(INDEX(aScoresRounded,$B35,AR$4),""))) -> 59 | AS35: =IF(AS$4="","",CHOOSE(uxb_works!$B$47,IF(INDEX(aData,$B35,AS$4)="","-",TEXT(INDEX(aData,$B35,AS$4),$H35)),IFERROR(INDEX(aScoresRounded,$B35,AS$4),""))) -> 76.9 | AW35: =CHOOSE($AV$1,0,IF(AW$10=0,0,IF(P35<=$AX$1,1,IF(P35<=#REF!,2,3))),IF(AW$10=0,0,IF(P35<=$AX$1,4,IF(P35<=#REF!,5,6)))) -> 0 | AX35: =CHOOSE($AV$1,0,IF(AX$10=0,0,IF(#REF!<=$AX$1,1,IF(#REF!<=#REF!,2,3))),IF(AX$10=0,0,IF(#REF!<=$AX$1,4,IF(#REF!<=#REF!,5,6)))) -> 0
B36: =tblIndicators!A27 -> 26 | E36: =tblIndicators!B27 -> 0 | F36: =IF(AND(uxb_works!$B$47=2,E36=1),0,iScores!F31) -> 3 | H36: =tblIndicators!AC27 -> #,##0 | K36: =IF(L36=0,0,IF(uxb_works!$B$46>=L36,1,0)) -> 1 | L36: =IF(AND(uxb_works!$B$47=2,E36=1),0,tblIndicators!G27) -> 3 | N36: =iScores!N31 -> 2.3.1) Integrated public transport apps | O36: =CHOOSE(uxb_works!$B$47,iData!I31,iScores!O31) -> 0.5384615385 | P36: =IF(P$4="","",CHOOSE(uxb_works!$B$47,IF(INDEX(aData,$B36,P$4)="","-",TEXT(INDEX(aData,$B36,P$4),$H36)),IFERROR(INDEX(aScoresRounded,$B36,P$4),""))) -> 100 | Q36: =IF(Q$4="","",CHOOSE(uxb_works!$B$47,IF(INDEX(aData,$B36,Q$4)="","-",TEXT(INDEX(aData,$B36,Q$4),$H36)),IFERROR(INDEX(aScoresRounded,$B36,Q$4),""))) -> 33.3 | R36: =IF(R$4="","",CHOOSE(uxb_works!$B$47,IF(INDEX(aData,$B36,R$4)="","-",TEXT(INDEX(aData,$B36,R$4),$H36)),IFERROR(INDEX(aScoresRounded,$B36,R$4),""))) -> 0 | S36: =IF(S$4="","",CHOOSE(uxb_works!$B$47,IF(INDEX(aData,$B36,S$4)="","-",TEXT(INDEX(aData,$B36,S$4),$H36)),IFERROR(INDEX(aScoresRounded,$B36,S$4),""))) -> 100 | T36: =IF(T$4="","",CHOOSE(uxb_works!$B$47,IF(INDEX(aData,$B36,T$4)="","-",TEXT(INDEX(aData,$B36,T$4),$H36)),IFERROR(INDEX(aScoresRounded,$B36,T$4),""))) -> 66.7 | U36: =IF(U$4="","",CHOOSE(uxb_works!$B$47,IF(INDEX(aData,$B36,U$4)="","-",TEXT(INDEX(aData,$B36,U$4),$H36)),IFERROR(INDEX(aScoresRounded,$B36,U$4),""))) -> 100 | V36: =IF(V$4="","",CHOOSE(uxb_works!$B$47,IF(INDEX(aData,$B36,V$4)="","-",TEXT(INDEX(aData,$B36,V$4),$H36)),IFERROR(INDEX(aScoresRounded,$B36,V$4),""))) -> 66.7 | W36: =IF(W$4="","",CHOOSE(uxb_works!$B$47,IF(INDEX(aData,$B36,W$4)="","-",TEXT(INDEX(aData,$B36,W$4),$H36)),IFERROR(INDEX(aScoresRounded,$B36,W$4),""))) -> 66.7 | X36: =IF(X$4="","",CHOOSE(uxb_works!$B$47,IF(INDEX(aData,$B36,X$4)="","-",TEXT(INDEX(aData,$B36,X$4),$H36)),IFERROR(INDEX(aScoresRounded,$B36,X$4),""))) -> 100 | Y36: =IF(Y$4="","",CHOOSE(uxb_works!$B$47,IF(INDEX(aData,$B36,Y$4)="","-",TEXT(INDEX(aData,$B36,Y$4),$H36)),IFERROR(INDEX(aScoresRounded,$B36,Y$4),""))) -> 100 | Z36: =IF(Z$4="","",CHOOSE(uxb_works!$B$47,IF(INDEX(aData,$B36,Z$4)="","-",TEXT(INDEX(aData,$B36,Z$4),$H36)),IFERROR(INDEX(aScoresRounded,$B36,Z$4),""))) -> 100 | AA36: =IF(AA$4="","",CHOOSE(uxb_works!$B$47,IF(INDEX(aData,$B36,AA$4)="","-",TEXT(INDEX(aData,$B36,AA$4),$H36)),IFERROR(INDEX(aScoresRounded,$B36,AA$4),""))) -> 66.7 | AB36: =IF(AB$4="","",CHOOSE(uxb_works!$B$47,IF(INDEX(aData,$B36,AB$4)="","-",TEXT(INDEX(aData,$B36,AB$4),$H36)),IFERROR(INDEX(aScoresRounded,$B36,AB$4),""))) -> 100 | AC36: =IF(AC$4="","",CHOOSE(uxb_works!$B$47,IF(INDEX(aData,$B36,AC$4)="","-",TEXT(INDEX(aData,$B36,AC$4),$H36)),IFERROR(INDEX(aScoresRounded,$B36,AC$4),""))) -> 66.7 | AD36: =IF(AD$4="","",CHOOSE(uxb_works!$B$47,IF(INDEX(aData,$B36,AD$4)="","-",TEXT(INDEX(aData,$B36,AD$4),$H36)),IFERROR(INDEX(aScoresRounded,$B36,AD$4),""))) -> 66.7 | AE36: =IF(AE$4="","",CHOOSE(uxb_works!$B$47,IF(INDEX(aData,$B36,AE$4)="","-",TEXT(INDEX(aData,$B36,AE$4),$H36)),IFERROR(INDEX(aScoresRounded,$B36,AE$4),""))) -> 33.3 | AF36: =IF(AF$4="","",CHOOSE(uxb_works!$B$47,IF(INDEX(aData,$B36,AF$4)="","-",TEXT(INDEX(aData,$B36,AF$4),$H36)),IFERROR(INDEX(aScoresRounded,$B36,AF$4),""))) -> 0 | AG36: =IF(AG$4="","",CHOOSE(uxb_works!$B$47,IF(INDEX(aData,$B36,AG$4)="","-",TEXT(INDEX(aData,$B36,AG$4),$H36)),IFERROR(INDEX(aScoresRounded,$B36,AG$4),""))) -> 0 | AH36: =IF(AH$4="","",CHOOSE(uxb_works!$B$47,IF(INDEX(aData,$B36,AH$4)="","-",TEXT(INDEX(aData,$B36,AH$4),$H36)),IFERROR(INDEX(aScoresRounded,$B36,AH$4),""))) -> 33.3 | AI36: =IF(AI$4="","",CHOOSE(uxb_works!$B$47,IF(INDEX(aData,$B36,AI$4)="","-",TEXT(INDEX(aData,$B36,AI$4),$H36)),IFERROR(INDEX(aScoresRounded,$B36,AI$4),""))) -> 66.7 | AJ36: =IF(AJ$4="","",CHOOSE(uxb_works!$B$47,IF(INDEX(aData,$B36,AJ$4)="","-",TEXT(INDEX(aData,$B36,AJ$4),$H36)),IFERROR(INDEX(aScoresRounded,$B36,AJ$4),""))) -> 100 | AK36: =IF(AK$4="","",CHOOSE(uxb_works!$B$47,IF(INDEX(aData,$B36,AK$4)="","-",TEXT(INDEX(aData,$B36,AK$4),$H36)),IFERROR(INDEX(aScoresRounded,$B36,AK$4),""))) -> 100 | AL36: =IF(AL$4="","",CHOOSE(uxb_works!$B$47,IF(INDEX(aData,$B36,AL$4)="","-",TEXT(INDEX(aData,$B36,AL$4),$H36)),IFERROR(INDEX(aScoresRounded,$B36,AL$4),""))) -> 0 | AM36: =IF(AM$4="","",CHOOSE(uxb_works!$B$47,IF(INDEX(aData,$B36,AM$4)="","-",TEXT(INDEX(aData,$B36,AM$4),$H36)),IFERROR(INDEX(aScoresRounded,$B36,AM$4),""))) -> 66.7 | AN36: =IF(AN$4="","",CHOOSE(uxb_works!$B$47,IF(INDEX(aData,$B36,AN$4)="","-",TEXT(INDEX(aData,$B36,AN$4),$H36)),IFERROR(INDEX(aScoresRounded,$B36,AN$4),""))) -> 66.7 | AO36: =IF(AO$4="","",CHOOSE(uxb_works!$B$47,IF(INDEX(aData,$B36,AO$4)="","-",TEXT(INDEX(aData,$B36,AO$4),$H36)),IFERROR(INDEX(aScoresRounded,$B36,AO$4),""))) -> 100 | AP36: =IF(AP$4="","",CHOOSE(uxb_works!$B$47,IF(INDEX(aData,$B36,AP$4)="","-",TEXT(INDEX(aData,$B36,AP$4),$H36)),IFERROR(INDEX(aScoresRounded,$B36,AP$4),""))) -> 33.3 | AQ36: =IF(AQ$4="","",CHOOSE(uxb_works!$B$47,IF(INDEX(aData,$B36,AQ$4)="","-",TEXT(INDEX(aData,$B36,AQ$4),$H36)),IFERROR(INDEX(aScoresRounded,$B36,AQ$4),""))) -> 66.7 | AR36: =IF(AR$4="","",CHOOSE(uxb_works!$B$47,IF(INDEX(aData,$B36,AR$4)="","-",TEXT(INDEX(aData,$B36,AR$4),$H36)),IFERROR(INDEX(aScoresRounded,$B36,AR$4),""))) -> 66.7 | AS36: =IF(AS$4="","",CHOOSE(uxb_works!$B$47,IF(INDEX(aData,$B36,AS$4)="","-",TEXT(INDEX(aData,$B36,AS$4),$H36)),IFERROR(INDEX(aScoresRounded,$B36,AS$4),""))) -> 100 | AW36: =CHOOSE($AV$1,0,IF(AW$10=0,0,IF(P36<=$AX$1,1,IF(P36<=#REF!,2,3))),IF(AW$10=0,0,IF(P36<=$AX$1,4,IF(P36<=#REF!,5,6)))) -> 0 | AX36: =CHOOSE($AV$1,0,IF(AX$10=0,0,IF(#REF!<=$AX$1,1,IF(#REF!<=#REF!,2,3))),IF(AX$10=0,0,IF(#REF!<=$AX$1,4,IF(#REF!<=#REF!,5,6)))) -> 0
B37: =tblIndicators!A28 -> 27 | E37: =tblIndicators!B28 -> 0 | F37: =IF(AND(uxb_works!$B$47=2,E37=1),0,iScores!F32) -> 3 | H37: =tblIndicators!AC28 -> #,##0 | K37: =IF(L37=0,0,IF(uxb_works!$B$46>=L37,1,0)) -> 1 | L37: =IF(AND(uxb_works!$B$47=2,E37=1),0,tblIndicators!G28) -> 3 | N37: =iScores!N32 -> 2.3.2) Digital identification at airports | O37: =CHOOSE(uxb_works!$B$47,iData!I32,iScores!O32) -> 0.4615384615 | P37: =IF(P$4="","",CHOOSE(uxb_works!$B$47,IF(INDEX(aData,$B37,P$4)="","-",TEXT(INDEX(aData,$B37,P$4),$H37)),IFERROR(INDEX(aScoresRounded,$B37,P$4),""))) -> 100 | Q37: =IF(Q$4="","",CHOOSE(uxb_works!$B$47,IF(INDEX(aData,$B37,Q$4)="","-",TEXT(INDEX(aData,$B37,Q$4),$H37)),IFERROR(INDEX(aScoresRounded,$B37,Q$4),""))) -> 50 | R37: =IF(R$4="","",CHOOSE(uxb_works!$B$47,IF(INDEX(aData,$B37,R$4)="","-",TEXT(INDEX(aData,$B37,R$4),$H37)),IFERROR(INDEX(aScoresRounded,$B37,R$4),""))) -> 50 | S37: =IF(S$4="","",CHOOSE(uxb_works!$B$47,IF(INDEX(aData,$B37,S$4)="","-",TEXT(INDEX(aData,$B37,S$4),$H37)),IFERROR(INDEX(aScoresRounded,$B37,S$4),""))) -> 100 | T37: =IF(T$4="","",CHOOSE(uxb_works!$B$47,IF(INDEX(aData,$B37,T$4)="","-",TEXT(INDEX(aData,$B37,T$4),$H37)),IFERROR(INDEX(aScoresRounded,$B37,T$4),""))) -> 100 | U37: =IF(U$4="","",CHOOSE(uxb_works!$B$47,IF(INDEX(aData,$B37,U$4)="","-",TEXT(INDEX(aData,$B37,U$4),$H37)),IFERROR(INDEX(aScoresRounded,$B37,U$4),""))) -> 50 | V37: =IF(V$4="","",CHOOSE(uxb_works!$B$47,IF(INDEX(aData,$B37,V$4)="","-",TEXT(INDEX(aData,$B37,V$4),$H37)),IFERROR(INDEX(aScoresRounded,$B37,V$4),""))) -> 50 | W37: =IF(W$4="","",CHOOSE(uxb_works!$B$47,IF(INDEX(aData,$B37,W$4)="","-",TEXT(INDEX(aData,$B37,W$4),$H37)),IFERROR(INDEX(aScoresRounded,$B37,W$4),""))) -> 50 | X37: =IF(X$4="","",CHOOSE(uxb_works!$B$47,IF(INDEX(aData,$B37,X$4)="","-",TEXT(INDEX(aData,$B37,X$4),$H37)),IFERROR(INDEX(aScoresRounded,$B37,X$4),""))) -> 50 | Y37: =IF(Y$4="","",CHOOSE(uxb_works!$B$47,IF(INDEX(aData,$B37,Y$4)="","-",TEXT(INDEX(aData,$B37,Y$4),$H37)),IFERROR(INDEX(aScoresRounded,$B37,Y$4),""))) -> 100 | Z37: =IF(Z$4="","",CHOOSE(uxb_works!$B$47,IF(INDEX(aData,$B37,Z$4)="","-",TEXT(INDEX(aData,$B37,Z$4),$H37)),IFERROR(INDEX(aScoresRounded,$B37,Z$4),""))) -> 100 | AA37: =IF(AA$4="","",CHOOSE(uxb_works!$B$47,IF(INDEX(aData,$B37,AA$4)="","-",TEXT(INDEX(aData,$B37,AA$4),$H37)),IFERROR(INDEX(aScoresRounded,$B37,AA$4),""))) -> 100 | AB37: =IF(AB$4="","",CHOOSE(uxb_works!$B$47,IF(INDEX(aData,$B37,AB$4)="","-",TEXT(INDEX(aData,$B37,AB$4),$H37)),IFERROR(INDEX(aScoresRounded,$B37,AB$4),""))) -> 50 | AC37: =IF(AC$4="","",CHOOSE(uxb_works!$B$47,IF(INDEX(aData,$B37,AC$4)="","-",TEXT(INDEX(aData,$B37,AC$4),$H37)),IFERROR(INDEX(aScoresRounded,$B37,AC$4),""))) -> 100 | AD37: =IF(AD$4="","",CHOOSE(uxb_works!$B$47,IF(INDEX(aData,$B37,AD$4)="","-",TEXT(INDEX(aData,$B37,AD$4),$H37)),IFERROR(INDEX(aScoresRounded,$B37,AD$4),""))) -> 100 | AE37: =IF(AE$4="","",CHOOSE(uxb_works!$B$47,IF(INDEX(aData,$B37,AE$4)="","-",TEXT(INDEX(aData,$B37,AE$4),$H37)),IFERROR(INDEX(aScoresRounded,$B37,AE$4),""))) -> 100 | AF37: =IF(AF$4="","",CHOOSE(uxb_works!$B$47,IF(INDEX(aData,$B37,AF$4)="","-",TEXT(INDEX(aData,$B37,AF$4),$H37)),IFERROR(INDEX(aScoresRounded,$B37,AF$4),""))) -> 50 | AG37: =IF(AG$4="","",CHOOSE(uxb_works!$B$47,IF(INDEX(aData,$B37,AG$4)="","-",TEXT(INDEX(aData,$B37,AG$4),$H37)),IFERROR(INDEX(aScoresRounded,$B37,AG$4),""))) -> 50 | AH37: =IF(AH$4="","",CHOOSE(uxb_works!$B$47,IF(INDEX(aData,$B37,AH$4)="","-",TEXT(INDEX(aData,$B37,AH$4),$H37)),IFERROR(INDEX(aScoresRounded,$B37,AH$4),""))) -> 0 | AI37: =IF(AI$4="","",CHOOSE(uxb_works!$B$47,IF(INDEX(aData,$B37,AI$4)="","-",TEXT(INDEX(aData,$B37,AI$4),$H37)),IFERROR(INDEX(aScoresRounded,$B37,AI$4),""))) -> 50 | AJ37: =IF(AJ$4="","",CHOOSE(uxb_works!$B$47,IF(INDEX(aData,$B37,AJ$4)="","-",TEXT(INDEX(aData,$B37,AJ$4),$H37)),IFERROR(INDEX(aScoresRounded,$B37,AJ$4),""))) -> 100 | AK37: =IF(AK$4="","",CHOOSE(uxb_works!$B$47,IF(INDEX(aData,$B37,AK$4)="","-",TEXT(INDEX(aData,$B37,AK$4),$H37)),IFERROR(INDEX(aScoresRounded,$B37,AK$4),""))) -> 100 | AL37: =IF(AL$4="","",CHOOSE(uxb_works!$B$47,IF(INDEX(aData,$B37,AL$4)="","-",TEXT(INDEX(aData,$B37,AL$4),$H37)),IFERROR(INDEX(aScoresRounded,$B37,AL$4),""))) -> 0 | AM37: =IF(AM$4="","",CHOOSE(uxb_works!$B$47,IF(INDEX(aData,$B37,AM$4)="","-",TEXT(INDEX(aData,$B37,AM$4),$H37)),IFERROR(INDEX(aScoresRounded,$B37,AM$4),""))) -> 100 | AN37: =IF(AN$4="","",CHOOSE(uxb_works!$B$47,IF(INDEX(aData,$B37,AN$4)="","-",TEXT(INDEX(aData,$B37,AN$4),$H37)),IFERROR(INDEX(aScoresRounded,$B37,AN$4),""))) -> 100 | AO37: =IF(AO$4="","",CHOOSE(uxb_works!$B$47,IF(INDEX(aData,$B37,AO$4)="","-",TEXT(INDEX(aData,$B37,AO$4),$H37)),IFERROR(INDEX(aScoresRounded,$B37,AO$4),""))) -> 100 | AP37: =IF(AP$4="","",CHOOSE(uxb_works!$B$47,IF(INDEX(aData,$B37,AP$4)="","-",TEXT(INDEX(aData,$B37,AP$4),$H37)),IFERROR(INDEX(aScoresRounded,$B37,AP$4),""))) -> 100 | AQ37: =IF(AQ$4="","",CHOOSE(uxb_works!$B$47,IF(INDEX(aData,$B37,AQ$4)="","-",TEXT(INDEX(aData,$B37,AQ$4),$H37)),IFERROR(INDEX(aScoresRounded,$B37,AQ$4),""))) -> 0 | AR37: =IF(AR$4="","",CHOOSE(uxb_works!$B$47,IF(INDEX(aData,$B37,AR$4)="","-",TEXT(INDEX(aData,$B37,AR$4),$H37)),IFERROR(INDEX(aScoresRounded,$B37,AR$4),""))) -> 50 | AS37: =IF(AS$4="","",CHOOSE(uxb_works!$B$47,IF(INDEX(aData,$B37,AS$4)="","-",TEXT(INDEX(aData,$B37,AS$4),$H37)),IFERROR(INDEX(aScoresRounded,$B37,AS$4),""))) -> 50 | AW37: =CHOOSE($AV$1,0,IF(AW$10=0,0,IF(P37<=$AX$1,1,IF(P37<=#REF!,2,3))),IF(AW$10=0,0,IF(P37<=$AX$1,4,IF(P37<=#REF!,5,6)))) -> 0 | AX37: =CHOOSE($AV$1,0,IF(AX$10=0,0,IF(#REF!<=$AX$1,1,IF(#REF!<=#REF!,2,3))),IF(AX$10=0,0,IF(#REF!<=$AX$1,4,IF(#REF!<=#REF!,5,6)))) -> 0
B38: =tblIndicators!A29 -> 28 | E38: =tblIndicators!B29 -> 0 | F38: =IF(AND(uxb_works!$B$47=2,E38=1),0,iScores!F33) -> 2 | H38: =tblIndicators!AC29 -> #,##0.0 | K38: =IF(L38=0,0,IF(uxb_works!$B$46>=L38,1,0)) -> 1 | L38: =IF(AND(uxb_works!$B$47=2,E38=1),0,tblIndicators!G29) -> 2 | N38: =iScores!N33 -> 2.4) Healthcare | O38: =CHOOSE(uxb_works!$B$47,iData!I33,iScores!O33) -> 0.1538461538 | P38: =IF(P$4="","",CHOOSE(uxb_works!$B$47,IF(INDEX(aData,$B38,P$4)="","-",TEXT(INDEX(aData,$B38,P$4),$H38)),IFERROR(INDEX(aScoresRounded,$B38,P$4),""))) -> 91.6 | Q38: =IF(Q$4="","",CHOOSE(uxb_works!$B$47,IF(INDEX(aData,$B38,Q$4)="","-",TEXT(INDEX(aData,$B38,Q$4),$H38)),IFERROR(INDEX(aScoresRounded,$B38,Q$4),""))) -> 54.1 | R38: =IF(R$4="","",CHOOSE(uxb_works!$B$47,IF(INDEX(aData,$B38,R$4)="","-",TEXT(INDEX(aData,$B38,R$4),$H38)),IFERROR(INDEX(aScoresRounded,$B38,R$4),""))) -> 59.5 | S38: =IF(S$4="","",CHOOSE(uxb_works!$B$47,IF(INDEX(aData,$B38,S$4)="","-",TEXT(INDEX(aData,$B38,S$4),$H38)),IFERROR(INDEX(aScoresRounded,$B38,S$4),""))) -> 97 | T38: =IF(T$4="","",CHOOSE(uxb_works!$B$47,IF(INDEX(aData,$B38,T$4)="","-",TEXT(INDEX(aData,$B38,T$4),$H38)),IFERROR(INDEX(aScoresRounded,$B38,T$4),""))) -> 97.8 | U38: =IF(U$4="","",CHOOSE(uxb_works!$B$47,IF(INDEX(aData,$B38,U$4)="","-",TEXT(INDEX(aData,$B38,U$4),$H38)),IFERROR(INDEX(aScoresRounded,$B38,U$4),""))) -> 68.3 | V38: =IF(V$4="","",CHOOSE(uxb_works!$B$47,IF(INDEX(aData,$B38,V$4)="","-",TEXT(INDEX(aData,$B38,V$4),$H38)),IFERROR(INDEX(aScoresRounded,$B38,V$4),""))) -> 80.4 | W38: =IF(W$4="","",CHOOSE(uxb_works!$B$47,IF(INDEX(aData,$B38,W$4)="","-",TEXT(INDEX(aData,$B38,W$4),$H38)),IFERROR(INDEX(aScoresRounded,$B38,W$4),""))) -> 92.2 | X38: =IF(X$4="","",CHOOSE(uxb_works!$B$47,IF(INDEX(aData,$B38,X$4)="","-",TEXT(INDEX(aData,$B38,X$4),$H38)),IFERROR(INDEX(aScoresRounded,$B38,X$4),""))) -> 73.2 | Y38: =IF(Y$4="","",CHOOSE(uxb_works!$B$47,IF(INDEX(aData,$B38,Y$4)="","-",TEXT(INDEX(aData,$B38,Y$4),$H38)),IFERROR(INDEX(aScoresRounded,$B38,Y$4),""))) -> 81.6 | Z38: =IF(Z$4="","",CHOOSE(uxb_works!$B$47,IF(INDEX(aData,$B38,Z$4)="","-",TEXT(INDEX(aData,$B38,Z$4),$H38)),IFERROR(INDEX(aScoresRounded,$B38,Z$4),""))) -> 50 | AA38: =IF(AA$4="","",CHOOSE(uxb_works!$B$47,IF(INDEX(aData,$B38,AA$4)="","-",TEXT(INDEX(aData,$B38,AA$4),$H38)),IFERROR(INDEX(aScoresRounded,$B38,AA$4),""))) -> 77.2 | AB38: =IF(AB$4="","",CHOOSE(uxb_works!$B$47,IF(INDEX(aData,$B38,AB$4)="","-",TEXT(INDEX(aData,$B38,AB$4),$H38)),IFERROR(INDEX(aScoresRounded,$B38,AB$4),""))) -> 42.6 | AC38: =IF(AC$4="","",CHOOSE(uxb_works!$B$47,IF(INDEX(aData,$B38,AC$4)="","-",TEXT(INDEX(aData,$B38,AC$4),$H38)),IFERROR(INDEX(aScoresRounded,$B38,AC$4),""))) -> 79.4 | AD38: =IF(AD$4="","",CHOOSE(uxb_works!$B$47,IF(INDEX(aData,$B38,AD$4)="","-",TEXT(INDEX(aData,$B38,AD$4),$H38)),IFERROR(INDEX(aScoresRounded,$B38,AD$4),""))) -> 91.8 | AE38: =IF(AE$4="","",CHOOSE(uxb_works!$B$47,IF(INDEX(aData,$B38,AE$4)="","-",TEXT(INDEX(aData,$B38,AE$4),$H38)),IFERROR(INDEX(aScoresRounded,$B38,AE$4),""))) -> 75.7 | AF38: =IF(AF$4="","",CHOOSE(uxb_works!$B$47,IF(INDEX(aData,$B38,AF$4)="","-",TEXT(INDEX(aData,$B38,AF$4),$H38)),IFERROR(INDEX(aScoresRounded,$B38,AF$4),""))) -> 59.5 | AG38: =IF(AG$4="","",CHOOSE(uxb_works!$B$47,IF(INDEX(aData,$B38,AG$4)="","-",TEXT(INDEX(aData,$B38,AG$4),$H38)),IFERROR(INDEX(aScoresRounded,$B38,AG$4),""))) -> 26.7 | AH38: =IF(AH$4="","",CHOOSE(uxb_works!$B$47,IF(INDEX(aData,$B38,AH$4)="","-",TEXT(INDEX(aData,$B38,AH$4),$H38)),IFERROR(INDEX(aScoresRounded,$B38,AH$4),""))) -> 81.4 | AI38: =IF(AI$4="","",CHOOSE(uxb_works!$B$47,IF(INDEX(aData,$B38,AI$4)="","-",TEXT(INDEX(aData,$B38,AI$4),$H38)),IFERROR(INDEX(aScoresRounded,$B38,AI$4),""))) -> 94.2 | AJ38: =IF(AJ$4="","",CHOOSE(uxb_works!$B$47,IF(INDEX(aData,$B38,AJ$4)="","-",TEXT(INDEX(aData,$B38,AJ$4),$H38)),IFERROR(INDEX(aScoresRounded,$B38,AJ$4),""))) -> 75.9 | AK38: =IF(AK$4="","",CHOOSE(uxb_works!$B$47,IF(INDEX(aData,$B38,AK$4)="","-",TEXT(INDEX(aData,$B38,AK$4),$H38)),IFERROR(INDEX(aScoresRounded,$B38,AK$4),""))) -> 72.8 | AL38: =IF(AL$4="","",CHOOSE(uxb_works!$B$47,IF(INDEX(aData,$B38,AL$4)="","-",TEXT(INDEX(aData,$B38,AL$4),$H38)),IFERROR(INDEX(aScoresRounded,$B38,AL$4),""))) -> 44.5 | AM38: =IF(AM$4="","",CHOOSE(uxb_works!$B$47,IF(INDEX(aData,$B38,AM$4)="","-",TEXT(INDEX(aData,$B38,AM$4),$H38)),IFERROR(INDEX(aScoresRounded,$B38,AM$4),""))) -> 43.9 | AN38: =IF(AN$4="","",CHOOSE(uxb_works!$B$47,IF(INDEX(aData,$B38,AN$4)="","-",TEXT(INDEX(aData,$B38,AN$4),$H38)),IFERROR(INDEX(aScoresRounded,$B38,AN$4),""))) -> 75.9 | AO38: =IF(AO$4="","",CHOOSE(uxb_works!$B$47,IF(INDEX(aData,$B38,AO$4)="","-",TEXT(INDEX(aData,$B38,AO$4),$H38)),IFERROR(INDEX(aScoresRounded,$B38,AO$4),""))) -> 92 | AP38: =IF(AP$4="","",CHOOSE(uxb_works!$B$47,IF(INDEX(aData,$B38,AP$4)="","-",TEXT(INDEX(aData,$B38,AP$4),$H38)),IFERROR(INDEX(aScoresRounded,$B38,AP$4),""))) -> 51 | AQ38: =IF(AQ$4="","",CHOOSE(uxb_works!$B$47,IF(INDEX(aData,$B38,AQ$4)="","-",TEXT(INDEX(aData,$B38,AQ$4),$H38)),IFERROR(INDEX(aScoresRounded,$B38,AQ$4),""))) -> 70.8 | AR38: =IF(AR$4="","",CHOOSE(uxb_works!$B$47,IF(INDEX(aData,$B38,AR$4)="","-",TEXT(INDEX(aData,$B38,AR$4),$H38)),IFERROR(INDEX(aScoresRounded,$B38,AR$4),""))) -> 75.5 | AS38: =IF(AS$4="","",CHOOSE(uxb_works!$B$47,IF(INDEX(aData,$B38,AS$4)="","-",TEXT(INDEX(aData,$B38,AS$4),$H38)),IFERROR(INDEX(aScoresRounded,$B38,AS$4),""))) -> 72.8 | AW38: =CHOOSE($AV$1,0,IF(AW$10=0,0,IF(P38<=$AX$1,1,IF(P38<=#REF!,2,3))),IF(AW$10=0,0,IF(P38<=$AX$1,4,IF(P38<=#REF!,5,6)))) -> 0 | AX38: =CHOOSE($AV$1,0,IF(AX$10=0,0,IF(#REF!<=$AX$1,1,IF(#REF!<=#REF!,2,3))),IF(AX$10=0,0,IF(#REF!<=$AX$1,4,IF(#REF!<=#REF!,5,6)))) -> 0
B39: =tblIndicators!A30 -> 29 | E39: =tblIndicators!B30 -> 0 | F39: =IF(AND(uxb_works!$B$47=2,E39=1),0,iScores!F34) -> 3 | H39: =tblIndicators!AC30 -> #,##0.00 | K39: =IF(L39=0,0,IF(uxb_works!$B$46>=L39,1,0)) -> 1 | L39: =IF(AND(uxb_works!$B$47=2,E39=1),0,tblIndicators!G30) -> 3 | N39: =iScores!N34 -> 2.4.1) Telehealth & telemedicine | O39: =CHOOSE(uxb_works!$B$47,iData!I34,iScores!O34) -> 0.3157894737 | P39: =IF(P$4="","",CHOOSE(uxb_works!$B$47,IF(INDEX(aData,$B39,P$4)="","-",TEXT(INDEX(aData,$B39,P$4),$H39)),IFERROR(INDEX(aScoresRounded,$B39,P$4),""))) -> 73.2 | Q39: =IF(Q$4="","",CHOOSE(uxb_works!$B$47,IF(INDEX(aData,$B39,Q$4)="","-",TEXT(INDEX(aData,$B39,Q$4),$H39)),IFERROR(INDEX(aScoresRounded,$B39,Q$4),""))) -> 71.3 | R39: =IF(R$4="","",CHOOSE(uxb_works!$B$47,IF(INDEX(aData,$B39,R$4)="","-",TEXT(INDEX(aData,$B39,R$4),$H39)),IFERROR(INDEX(aScoresRounded,$B39,R$4),""))) -> 29.9 | S39: =IF(S$4="","",CHOOSE(uxb_works!$B$47,IF(INDEX(aData,$B39,S$4)="","-",TEXT(INDEX(aData,$B39,S$4),$H39)),IFERROR(INDEX(aScoresRounded,$B39,S$4),""))) -> 90.4 | T39: =IF(T$4="","",CHOOSE(uxb_works!$B$47,IF(INDEX(aData,$B39,T$4)="","-",TEXT(INDEX(aData,$B39,T$4),$H39)),IFERROR(INDEX(aScoresRounded,$B39,T$4),""))) -> 93 | U39: =IF(U$4="","",CHOOSE(uxb_works!$B$47,IF(INDEX(aData,$B39,U$4)="","-",TEXT(INDEX(aData,$B39,U$4),$H39)),IFERROR(INDEX(aScoresRounded,$B39,U$4),""))) -> 58 | V39: =IF(V$4="","",CHOOSE(uxb_works!$B$47,IF(INDEX(aData,$B39,V$4)="","-",TEXT(INDEX(aData,$B39,V$4),$H39)),IFERROR(INDEX(aScoresRounded,$B39,V$4),""))) -> 87.9 | W39: =IF(W$4="","",CHOOSE(uxb_works!$B$47,IF(INDEX(aData,$B39,W$4)="","-",TEXT(INDEX(aData,$B39,W$4),$H39)),IFERROR(INDEX(aScoresRounded,$B39,W$4),""))) -> 75.2 | X39: =IF(X$4="","",CHOOSE(uxb_works!$B$47,IF(INDEX(aData,$B39,X$4)="","-",TEXT(INDEX(aData,$B39,X$4),$H39)),IFERROR(INDEX(aScoresRounded,$B39,X$4),""))) -> 15.3 | Y39: =IF(Y$4="","",CHOOSE(uxb_works!$B$47,IF(INDEX(aData,$B39,Y$4)="","-",TEXT(INDEX(aData,$B39,Y$4),$H39)),IFERROR(INDEX(aScoresRounded,$B39,Y$4),""))) -> 100 | Z39: =IF(Z$4="","",CHOOSE(uxb_works!$B$47,IF(INDEX(aData,$B39,Z$4)="","-",TEXT(INDEX(aData,$B39,Z$4),$H39)),IFERROR(INDEX(aScoresRounded,$B39,Z$4),""))) -> 0 | AA39: =IF(AA$4="","",CHOOSE(uxb_works!$B$47,IF(INDEX(aData,$B39,AA$4)="","-",TEXT(INDEX(aData,$B39,AA$4),$H39)),IFERROR(INDEX(aScoresRounded,$B39,AA$4),""))) -> 86 | AB39: =IF(AB$4="","",CHOOSE(uxb_works!$B$47,IF(INDEX(aData,$B39,AB$4)="","-",TEXT(INDEX(aData,$B39,AB$4),$H39)),IFERROR(INDEX(aScoresRounded,$B39,AB$4),""))) -> 35 | AC39: =IF(AC$4="","",CHOOSE(uxb_works!$B$47,IF(INDEX(aData,$B39,AC$4)="","-",TEXT(INDEX(aData,$B39,AC$4),$H39)),IFERROR(INDEX(aScoresRounded,$B39,AC$4),""))) -> 93 | AD39: =IF(AD$4="","",CHOOSE(uxb_works!$B$47,IF(INDEX(aData,$B39,AD$4)="","-",TEXT(INDEX(aData,$B39,AD$4),$H39)),IFERROR(INDEX(aScoresRounded,$B39,AD$4),""))) -> 73.9 | AE39: =IF(AE$4="","",CHOOSE(uxb_works!$B$47,IF(INDEX(aData,$B39,AE$4)="","-",TEXT(INDEX(aData,$B39,AE$4),$H39)),IFERROR(INDEX(aScoresRounded,$B39,AE$4),""))) -> 22.9 | AF39: =IF(AF$4="","",CHOOSE(uxb_works!$B$47,IF(INDEX(aData,$B39,AF$4)="","-",TEXT(INDEX(aData,$B39,AF$4),$H39)),IFERROR(INDEX(aScoresRounded,$B39,AF$4),""))) -> 29.9 | AG39: =IF(AG$4="","",CHOOSE(uxb_works!$B$47,IF(INDEX(aData,$B39,AG$4)="","-",TEXT(INDEX(aData,$B39,AG$4),$H39)),IFERROR(INDEX(aScoresRounded,$B39,AG$4),""))) -> 26.1 | AH39: =IF(AH$4="","",CHOOSE(uxb_works!$B$47,IF(INDEX(aData,$B39,AH$4)="","-",TEXT(INDEX(aData,$B39,AH$4),$H39)),IFERROR(INDEX(aScoresRounded,$B39,AH$4),""))) -> 99.4 | AI39: =IF(AI$4="","",CHOOSE(uxb_works!$B$47,IF(INDEX(aData,$B39,AI$4)="","-",TEXT(INDEX(aData,$B39,AI$4),$H39)),IFERROR(INDEX(aScoresRounded,$B39,AI$4),""))) -> 81.5 | AJ39: =IF(AJ$4="","",CHOOSE(uxb_works!$B$47,IF(INDEX(aData,$B39,AJ$4)="","-",TEXT(INDEX(aData,$B39,AJ$4),$H39)),IFERROR(INDEX(aScoresRounded,$B39,AJ$4),""))) -> 82.2 | AK39: =IF(AK$4="","",CHOOSE(uxb_works!$B$47,IF(INDEX(aData,$B39,AK$4)="","-",TEXT(INDEX(aData,$B39,AK$4),$H39)),IFERROR(INDEX(aScoresRounded,$B39,AK$4),""))) -> 14 | AL39: =IF(AL$4="","",CHOOSE(uxb_works!$B$47,IF(INDEX(aData,$B39,AL$4)="","-",TEXT(INDEX(aData,$B39,AL$4),$H39)),IFERROR(INDEX(aScoresRounded,$B39,AL$4),""))) -> 24.2 | AM39: =IF(AM$4="","",CHOOSE(uxb_works!$B$47,IF(INDEX(aData,$B39,AM$4)="","-",TEXT(INDEX(aData,$B39,AM$4),$H39)),IFERROR(INDEX(aScoresRounded,$B39,AM$4),""))) -> 22.3 | AN39: =IF(AN$4="","",CHOOSE(uxb_works!$B$47,IF(INDEX(aData,$B39,AN$4)="","-",TEXT(INDEX(aData,$B39,AN$4),$H39)),IFERROR(INDEX(aScoresRounded,$B39,AN$4),""))) -> 82.2 | AO39: =IF(AO$4="","",CHOOSE(uxb_works!$B$47,IF(INDEX(aData,$B39,AO$4)="","-",TEXT(INDEX(aData,$B39,AO$4),$H39)),IFERROR(INDEX(aScoresRounded,$B39,AO$4),""))) -> 74.5 | AP39: =IF(AP$4="","",CHOOSE(uxb_works!$B$47,IF(INDEX(aData,$B39,AP$4)="","-",TEXT(INDEX(aData,$B39,AP$4),$H39)),IFERROR(INDEX(aScoresRounded,$B39,AP$4),""))) -> 3.2 | AQ39: =IF(AQ$4="","",CHOOSE(uxb_works!$B$47,IF(INDEX(aData,$B39,AQ$4)="","-",TEXT(INDEX(aData,$B39,AQ$4),$H39)),IFERROR(INDEX(aScoresRounded,$B39,AQ$4),""))) -> 7.6 | AR39: =IF(AR$4="","",CHOOSE(uxb_works!$B$47,IF(INDEX(aData,$B39,AR$4)="","-",TEXT(INDEX(aData,$B39,AR$4),$H39)),IFERROR(INDEX(aScoresRounded,$B39,AR$4),""))) -> 22.3 | AS39: =IF(AS$4="","",CHOOSE(uxb_works!$B$47,IF(INDEX(aData,$B39,AS$4)="","-",TEXT(INDEX(aData,$B39,AS$4),$H39)),IFERROR(INDEX(aScoresRounded,$B39,AS$4),""))) -> 14 | AW39: =CHOOSE($AV$1,0,IF(AW$10=0,0,IF(P39<=$AX$1,1,IF(P39<=#REF!,2,3))),IF(AW$10=0,0,IF(P39<=$AX$1,4,IF(P39<=#REF!,5,6)))) -> 0 | AX39: =CHOOSE($AV$1,0,IF(AX$10=0,0,IF(#REF!<=$AX$1,1,IF(#REF!<=#REF!,2,3))),IF(AX$10=0,0,IF(#REF!<=$AX$1,4,IF(#REF!<=#REF!,5,6)))) -> 0
